{"text_format":"3","workbook":"xlsx","n_sheets":5,"sheets":["Auswertung","Statistik nach Autor(in)","Top 10 Bilder","Fotografen","online"],"not_rendered":{"images":6,"macros":1,"defined_names":1,"comments":1},"read":"whole","date_system":"1900"}

{"sheet":"Auswertung","index":0,"n_rows":129,"n_cols":45,"rows_kept":129,"merged":[[0,1,0,21],[0,22,0,25],[0,36,1,36],[0,39,1,39],[0,42,1,42]]}
[{"$nulls":37},"Platz 1",{"$f":"VERKETTEN_P1(AA3:AA129,CHAR(10))","v":"Antje_Finsterer_Notwendigkeit_3.jpg von Antje Finsterer"},null,"Platz 2",{"$f":"VERKETTEN_P1(AB3:AB129,CHAR(10))","v":"Gerhard_Rieß_Notwendigkeit_1.jpg von Gerhard Rieß\nSusanne_Deinhardt_Notwendigkeit_3.jpg von Susanne Deinhardt"},null,"Platz 3",{"$f":"VERKETTEN_P1(AC3:AC129,CHAR(10))","v":""}]
[null,"Bildname","Juror 1","Juror 2","Juror 3","Juror 4","Juror 5","Juror 6","Juror 7","Juror 8","Juror 9","Juror 10","Juror 11","Juror 12","Juror 13","Juror 14","Juror 15","Juror 16","Juror 17","Juror 18","Juror 19","Juror 20","Punkte","Schnitt","Platz","Autor(in)","Platz 1","Platz 2","Platz 3","Platz 4","Platz 5","Platz 6","Platz 7","Platz 8","Platz 9","Platz 10",null,"Platz 1",{"$f":"VERKETTEN_P1('Statistik nach Autor(in)'!E6:'Statistik nach Autor(in)'!E35,CHAR(10))","v":"Antje Finsterer"},null,"Platz 2",{"$f":"VERKETTEN_P1('Statistik nach Autor(in)'!F6:'Statistik nach Autor(in)'!F35,CHAR(10))","v":"Susanne Deinhardt"},null,"Platz 3",{"$f":"VERKETTEN_P1('Statistik nach Autor(in)'!G6:'Statistik nach Autor(in)'!G35,CHAR(10))","v":"Gerhard Rieß"}]
[null,"Antje_Finsterer_Notwendigkeit_3.jpg",3,3,{"$nulls":18},{"$f":"IF(Tabelle_Auswertung[[#This Row],[Bildname]]<>\"\",SUM(Tabelle_Auswertung[[#This Row],[Juror 1]:[Juror 20]]),\" - \")","v":6},{"$f":"IF(Tabelle_Auswertung[[#This Row],[Bildname]]<>\"\",IF(Tabelle_Auswertung[[#This Row],[Punkte]]>0,AVERAGE(Tabelle_Auswertung[[#This Row],[Juror 1]:[Juror 20]]),\" - \"),\" - \")","v":{"v":3,"d":"3.00 "}},{"$f":"IF(Tabelle_Auswertung[[#This Row],[Bildname]]<>\"\",IF(Tabelle_Auswertung[[#This Row],[Punkte]]>0,RANK(Tabelle_Auswertung[[#This Row],[Punkte]],[Punkte],0),\" - \"),\" - \")","v":1},"Antje Finsterer",{"$f":"IF(Tabelle_Auswertung[[#This Row],[Platz]]=1,CONCATENATE(Tabelle_Auswertung[[#This Row],[Bildname]],\" von \",Tabelle_Auswertung[[#This Row],[Autor(in)]]),\"\")","v":"Antje_Finsterer_Notwendigkeit_3.jpg von Antje Finsterer"},{"$f":"IF(Tabelle_Auswertung[[#This Row],[Platz]]=2,CONCATENATE(Tabelle_Auswertung[[#This Row],[Bildname]],\" von \",Tabelle_Auswertung[[#This Row],[Autor(in)]]),\"\")","v":""},{"$f":"IF(Tabelle_Auswertung[[#This Row],[Platz]]=3,CONCATENATE(Tabelle_Auswertung[[#This Row],[Bildname]],\" von \",Tabelle_Auswertung[[#This Row],[Autor(in)]]),\"\")","v":""},{"$f":"IF(Tabelle_Auswertung[[#This Row],[Platz]]=4,CONCATENATE(Tabelle_Auswertung[[#This Row],[Bildname]],\" von \",Tabelle_Auswertung[[#This Row],[Autor(in)]]),\"\")","v":""},{"$f":"IF(Tabelle_Auswertung[[#This Row],[Platz]]=5,CONCATENATE(Tabelle_Auswertung[[#This Row],[Bildname]],\" von \",Tabelle_Auswertung[[#This Row],[Autor(in)]]),\"\")","v":""},{"$f":"IF(Tabelle_Auswertung[[#This Row],[Platz]]=6,CONCATENATE(Tabelle_Auswertung[[#This Row],[Bildname]],\" von \",Tabelle_Auswertung[[#This Row],[Autor(in)]]),\"\")","v":""},{"$f":"IF(Tabelle_Auswertung[[#This Row],[Platz]]=7,CONCATENATE(Tabelle_Auswertung[[#This Row],[Bildname]],\" von \",Tabelle_Auswertung[[#This Row],[Autor(in)]]),\"\")","v":""},{"$f":"IF(Tabelle_Auswertung[[#This Row],[Platz]]=8,CONCATENATE(Tabelle_Auswertung[[#This Row],[Bildname]],\" von \",Tabelle_Auswertung[[#This Row],[Autor(in)]]),\"\")","v":""},{"$f":"IF(Tabelle_Auswertung[[#This Row],[Platz]]=9,CONCATENATE(Tabelle_Auswertung[[#This Row],[Bildname]],\" von \",Tabelle_Auswertung[[#This Row],[Autor(in)]]),\"\")","v":""},{"$f":"IF(Tabelle_Auswertung[[#This Row],[Platz]]=10,CONCATENATE(Tabelle_Auswertung[[#This Row],[Bildname]],\" von \",Tabelle_Auswertung[[#This Row],[Autor(in)]]),\"\")","v":""}]
[null,"Gerhard_Rieß_Notwendigkeit_1.jpg",1,1,2,{"$nulls":17},{"$f":"IF(Tabelle_Auswertung[[#This Row],[Bildname]]<>\"\",SUM(Tabelle_Auswertung[[#This Row],[Juror 1]:[Juror 20]]),\" - \")","v":4},{"$f":"IF(Tabelle_Auswertung[[#This Row],[Bildname]]<>\"\",IF(Tabelle_Auswertung[[#This Row],[Punkte]]>0,AVERAGE(Tabelle_Auswertung[[#This Row],[Juror 1]:[Juror 20]]),\" - \"),\" - \")","v":{"v":1.3333333333333333,"d":"1.33 "}},{"$f":"IF(Tabelle_Auswertung[[#This Row],[Bildname]]<>\"\",IF(Tabelle_Auswertung[[#This Row],[Punkte]]>0,RANK(Tabelle_Auswertung[[#This Row],[Punkte]],[Punkte],0),\" - \"),\" - \")","v":2},"Gerhard Rieß",{"$f":"IF(Tabelle_Auswertung[[#This Row],[Platz]]=1,CONCATENATE(Tabelle_Auswertung[[#This Row],[Bildname]],\" von \",Tabelle_Auswertung[[#This Row],[Autor(in)]]),\"\")","v":""},{"$f":"IF(Tabelle_Auswertung[[#This Row],[Platz]]=2,CONCATENATE(Tabelle_Auswertung[[#This Row],[Bildname]],\" von \",Tabelle_Auswertung[[#This Row],[Autor(in)]]),\"\")","v":"Gerhard_Rieß_Notwendigkeit_1.jpg von Gerhard Rieß"},{"$f":"IF(Tabelle_Auswertung[[#This Row],[Platz]]=3,CONCATENATE(Tabelle_Auswertung[[#This Row],[Bildname]],\" von \",Tabelle_Auswertung[[#This Row],[Autor(in)]]),\"\")","v":""},{"$f":"IF(Tabelle_Auswertung[[#This Row],[Platz]]=4,CONCATENATE(Tabelle_Auswertung[[#This Row],[Bildname]],\" von \",Tabelle_Auswertung[[#This Row],[Autor(in)]]),\"\")","v":""},{"$f":"IF(Tabelle_Auswertung[[#This Row],[Platz]]=5,CONCATENATE(Tabelle_Auswertung[[#This Row],[Bildname]],\" von \",Tabelle_Auswertung[[#This Row],[Autor(in)]]),\"\")","v":""},{"$f":"IF(Tabelle_Auswertung[[#This Row],[Platz]]=6,CONCATENATE(Tabelle_Auswertung[[#This Row],[Bildname]],\" von \",Tabelle_Auswertung[[#This Row],[Autor(in)]]),\"\")","v":""},{"$f":"IF(Tabelle_Auswertung[[#This Row],[Platz]]=7,CONCATENATE(Tabelle_Auswertung[[#This Row],[Bildname]],\" von \",Tabelle_Auswertung[[#This Row],[Autor(in)]]),\"\")","v":""},{"$f":"IF(Tabelle_Auswertung[[#This Row],[Platz]]=8,CONCATENATE(Tabelle_Auswertung[[#This Row],[Bildname]],\" von \",Tabelle_Auswertung[[#This Row],[Autor(in)]]),\"\")","v":""},{"$f":"IF(Tabelle_Auswertung[[#This Row],[Platz]]=9,CONCATENATE(Tabelle_Auswertung[[#This Row],[Bildname]],\" von \",Tabelle_Auswertung[[#This Row],[Autor(in)]]),\"\")","v":""},{"$f":"IF(Tabelle_Auswertung[[#This Row],[Platz]]=10,CONCATENATE(Tabelle_Auswertung[[#This Row],[Bildname]],\" von \",Tabelle_Auswertung[[#This Row],[Autor(in)]]),\"\")","v":""}]
[null,"Susanne_Deinhardt_Notwendigkeit_3.jpg",2,2,{"$nulls":18},{"$f":"IF(Tabelle_Auswertung[[#This Row],[Bildname]]<>\"\",SUM(Tabelle_Auswertung[[#This Row],[Juror 1]:[Juror 20]]),\" - \")","v":4},{"$f":"IF(Tabelle_Auswertung[[#This Row],[Bildname]]<>\"\",IF(Tabelle_Auswertung[[#This Row],[Punkte]]>0,AVERAGE(Tabelle_Auswertung[[#This Row],[Juror 1]:[Juror 20]]),\" - \"),\" - \")","v":{"v":2,"d":"2.00 "}},{"$f":"IF(Tabelle_Auswertung[[#This Row],[Bildname]]<>\"\",IF(Tabelle_Auswertung[[#This Row],[Punkte]]>0,RANK(Tabelle_Auswertung[[#This Row],[Punkte]],[Punkte],0),\" - \"),\" - \")","v":2},"Susanne Deinhardt",{"$f":"IF(Tabelle_Auswertung[[#This Row],[Platz]]=1,CONCATENATE(Tabelle_Auswertung[[#This Row],[Bildname]],\" von \",Tabelle_Auswertung[[#This Row],[Autor(in)]]),\"\")","v":""},{"$f":"IF(Tabelle_Auswertung[[#This Row],[Platz]]=2,CONCATENATE(Tabelle_Auswertung[[#This Row],[Bildname]],\" von \",Tabelle_Auswertung[[#This Row],[Autor(in)]]),\"\")","v":"Susanne_Deinhardt_Notwendigkeit_3.jpg von Susanne Deinhardt"},{"$f":"IF(Tabelle_Auswertung[[#This Row],[Platz]]=3,CONCATENATE(Tabelle_Auswertung[[#This Row],[Bildname]],\" von \",Tabelle_Auswertung[[#This Row],[Autor(in)]]),\"\")","v":""},{"$f":"IF(Tabelle_Auswertung[[#This Row],[Platz]]=4,CONCATENATE(Tabelle_Auswertung[[#This Row],[Bildname]],\" von \",Tabelle_Auswertung[[#This Row],[Autor(in)]]),\"\")","v":""},{"$f":"IF(Tabelle_Auswertung[[#This Row],[Platz]]=5,CONCATENATE(Tabelle_Auswertung[[#This Row],[Bildname]],\" von \",Tabelle_Auswertung[[#This Row],[Autor(in)]]),\"\")","v":""},{"$f":"IF(Tabelle_Auswertung[[#This Row],[Platz]]=6,CONCATENATE(Tabelle_Auswertung[[#This Row],[Bildname]],\" von \",Tabelle_Auswertung[[#This Row],[Autor(in)]]),\"\")","v":""},{"$f":"IF(Tabelle_Auswertung[[#This Row],[Platz]]=7,CONCATENATE(Tabelle_Auswertung[[#This Row],[Bildname]],\" von \",Tabelle_Auswertung[[#This Row],[Autor(in)]]),\"\")","v":""},{"$f":"IF(Tabelle_Auswertung[[#This Row],[Platz]]=8,CONCATENATE(Tabelle_Auswertung[[#This Row],[Bildname]],\" von \",Tabelle_Auswertung[[#This Row],[Autor(in)]]),\"\")","v":""},{"$f":"IF(Tabelle_Auswertung[[#This Row],[Platz]]=9,CONCATENATE(Tabelle_Auswertung[[#This Row],[Bildname]],\" von \",Tabelle_Auswertung[[#This Row],[Autor(in)]]),\"\")","v":""},{"$f":"IF(Tabelle_Auswertung[[#This Row],[Platz]]=10,CONCATENATE(Tabelle_Auswertung[[#This Row],[Bildname]],\" von \",Tabelle_Auswertung[[#This Row],[Autor(in)]]),\"\")","v":""}]
[null,"Antje_Finsterer_Notwendigkeit_1.jpg",3,{"$nulls":19},{"$f":"IF(Tabelle_Auswertung[[#This Row],[Bildname]]<>\"\",SUM(Tabelle_Auswertung[[#This Row],[Juror 1]:[Juror 20]]),\" - \")","v":3},{"$f":"IF(Tabelle_Auswertung[[#This Row],[Bildname]]<>\"\",IF(Tabelle_Auswertung[[#This Row],[Punkte]]>0,AVERAGE(Tabelle_Auswertung[[#This Row],[Juror 1]:[Juror 20]]),\" - \"),\" - \")","v":{"v":3,"d":"3.00 "}},{"$f":"IF(Tabelle_Auswertung[[#This Row],[Bildname]]<>\"\",IF(Tabelle_Auswertung[[#This Row],[Punkte]]>0,RANK(Tabelle_Auswertung[[#This Row],[Punkte]],[Punkte],0),\" - \"),\" - \")","v":4},"Antje Finsterer",{"$f":"IF(Tabelle_Auswertung[[#This Row],[Platz]]=1,CONCATENATE(Tabelle_Auswertung[[#This Row],[Bildname]],\" von \",Tabelle_Auswertung[[#This Row],[Autor(in)]]),\"\")","v":""},{"$f":"IF(Tabelle_Auswertung[[#This Row],[Platz]]=2,CONCATENATE(Tabelle_Auswertung[[#This Row],[Bildname]],\" von \",Tabelle_Auswertung[[#This Row],[Autor(in)]]),\"\")","v":""},{"$f":"IF(Tabelle_Auswertung[[#This Row],[Platz]]=3,CONCATENATE(Tabelle_Auswertung[[#This Row],[Bildname]],\" von \",Tabelle_Auswertung[[#This Row],[Autor(in)]]),\"\")","v":""},{"$f":"IF(Tabelle_Auswertung[[#This Row],[Platz]]=4,CONCATENATE(Tabelle_Auswertung[[#This Row],[Bildname]],\" von \",Tabelle_Auswertung[[#This Row],[Autor(in)]]),\"\")","v":"Antje_Finsterer_Notwendigkeit_1.jpg von Antje Finsterer"},{"$f":"IF(Tabelle_Auswertung[[#This Row],[Platz]]=5,CONCATENATE(Tabelle_Auswertung[[#This Row],[Bildname]],\" von \",Tabelle_Auswertung[[#This Row],[Autor(in)]]),\"\")","v":""},{"$f":"IF(Tabelle_Auswertung[[#This Row],[Platz]]=6,CONCATENATE(Tabelle_Auswertung[[#This Row],[Bildname]],\" von \",Tabelle_Auswertung[[#This Row],[Autor(in)]]),\"\")","v":""},{"$f":"IF(Tabelle_Auswertung[[#This Row],[Platz]]=7,CONCATENATE(Tabelle_Auswertung[[#This Row],[Bildname]],\" von \",Tabelle_Auswertung[[#This Row],[Autor(in)]]),\"\")","v":""},{"$f":"IF(Tabelle_Auswertung[[#This Row],[Platz]]=8,CONCATENATE(Tabelle_Auswertung[[#This Row],[Bildname]],\" von \",Tabelle_Auswertung[[#This Row],[Autor(in)]]),\"\")","v":""},{"$f":"IF(Tabelle_Auswertung[[#This Row],[Platz]]=9,CONCATENATE(Tabelle_Auswertung[[#This Row],[Bildname]],\" von \",Tabelle_Auswertung[[#This Row],[Autor(in)]]),\"\")","v":""},{"$f":"IF(Tabelle_Auswertung[[#This Row],[Platz]]=10,CONCATENATE(Tabelle_Auswertung[[#This Row],[Bildname]],\" von \",Tabelle_Auswertung[[#This Row],[Autor(in)]]),\"\")","v":""}]
[null,"Antje_Finsterer_Notwendigkeit_2.jpg",2,1,{"$nulls":18},{"$f":"IF(Tabelle_Auswertung[[#This Row],[Bildname]]<>\"\",SUM(Tabelle_Auswertung[[#This Row],[Juror 1]:[Juror 20]]),\" - \")","v":3},{"$f":"IF(Tabelle_Auswertung[[#This Row],[Bildname]]<>\"\",IF(Tabelle_Auswertung[[#This Row],[Punkte]]>0,AVERAGE(Tabelle_Auswertung[[#This Row],[Juror 1]:[Juror 20]]),\" - \"),\" - \")","v":{"v":1.5,"d":"1.50 "}},{"$f":"IF(Tabelle_Auswertung[[#This Row],[Bildname]]<>\"\",IF(Tabelle_Auswertung[[#This Row],[Punkte]]>0,RANK(Tabelle_Auswertung[[#This Row],[Punkte]],[Punkte],0),\" - \"),\" - \")","v":4},"Antje Finsterer",{"$f":"IF(Tabelle_Auswertung[[#This Row],[Platz]]=1,CONCATENATE(Tabelle_Auswertung[[#This Row],[Bildname]],\" von \",Tabelle_Auswertung[[#This Row],[Autor(in)]]),\"\")","v":""},{"$f":"IF(Tabelle_Auswertung[[#This Row],[Platz]]=2,CONCATENATE(Tabelle_Auswertung[[#This Row],[Bildname]],\" von \",Tabelle_Auswertung[[#This Row],[Autor(in)]]),\"\")","v":""},{"$f":"IF(Tabelle_Auswertung[[#This Row],[Platz]]=3,CONCATENATE(Tabelle_Auswertung[[#This Row],[Bildname]],\" von \",Tabelle_Auswertung[[#This Row],[Autor(in)]]),\"\")","v":""},{"$f":"IF(Tabelle_Auswertung[[#This Row],[Platz]]=4,CONCATENATE(Tabelle_Auswertung[[#This Row],[Bildname]],\" von \",Tabelle_Auswertung[[#This Row],[Autor(in)]]),\"\")","v":"Antje_Finsterer_Notwendigkeit_2.jpg von Antje Finsterer"},{"$f":"IF(Tabelle_Auswertung[[#This Row],[Platz]]=5,CONCATENATE(Tabelle_Auswertung[[#This Row],[Bildname]],\" von \",Tabelle_Auswertung[[#This Row],[Autor(in)]]),\"\")","v":""},{"$f":"IF(Tabelle_Auswertung[[#This Row],[Platz]]=6,CONCATENATE(Tabelle_Auswertung[[#This Row],[Bildname]],\" von \",Tabelle_Auswertung[[#This Row],[Autor(in)]]),\"\")","v":""},{"$f":"IF(Tabelle_Auswertung[[#This Row],[Platz]]=7,CONCATENATE(Tabelle_Auswertung[[#This Row],[Bildname]],\" von \",Tabelle_Auswertung[[#This Row],[Autor(in)]]),\"\")","v":""},{"$f":"IF(Tabelle_Auswertung[[#This Row],[Platz]]=8,CONCATENATE(Tabelle_Auswertung[[#This Row],[Bildname]],\" von \",Tabelle_Auswertung[[#This Row],[Autor(in)]]),\"\")","v":""},{"$f":"IF(Tabelle_Auswertung[[#This Row],[Platz]]=9,CONCATENATE(Tabelle_Auswertung[[#This Row],[Bildname]],\" von \",Tabelle_Auswertung[[#This Row],[Autor(in)]]),\"\")","v":""},{"$f":"IF(Tabelle_Auswertung[[#This Row],[Platz]]=10,CONCATENATE(Tabelle_Auswertung[[#This Row],[Bildname]],\" von \",Tabelle_Auswertung[[#This Row],[Autor(in)]]),\"\")","v":""}]
[null,"Susanne_Deinhardt_Notwendigkeit_1.jpg",1,{"$nulls":19},{"$f":"IF(Tabelle_Auswertung[[#This Row],[Bildname]]<>\"\",SUM(Tabelle_Auswertung[[#This Row],[Juror 1]:[Juror 20]]),\" - \")","v":1},{"$f":"IF(Tabelle_Auswertung[[#This Row],[Bildname]]<>\"\",IF(Tabelle_Auswertung[[#This Row],[Punkte]]>0,AVERAGE(Tabelle_Auswertung[[#This Row],[Juror 1]:[Juror 20]]),\" - \"),\" - \")","v":{"v":1,"d":"1.00 "}},{"$f":"IF(Tabelle_Auswertung[[#This Row],[Bildname]]<>\"\",IF(Tabelle_Auswertung[[#This Row],[Punkte]]>0,RANK(Tabelle_Auswertung[[#This Row],[Punkte]],[Punkte],0),\" - \"),\" - \")","v":6},"Susanne Deinhardt",{"$f":"IF(Tabelle_Auswertung[[#This Row],[Platz]]=1,CONCATENATE(Tabelle_Auswertung[[#This Row],[Bildname]],\" von \",Tabelle_Auswertung[[#This Row],[Autor(in)]]),\"\")","v":""},{"$f":"IF(Tabelle_Auswertung[[#This Row],[Platz]]=2,CONCATENATE(Tabelle_Auswertung[[#This Row],[Bildname]],\" von \",Tabelle_Auswertung[[#This Row],[Autor(in)]]),\"\")","v":""},{"$f":"IF(Tabelle_Auswertung[[#This Row],[Platz]]=3,CONCATENATE(Tabelle_Auswertung[[#This Row],[Bildname]],\" von \",Tabelle_Auswertung[[#This Row],[Autor(in)]]),\"\")","v":""},{"$f":"IF(Tabelle_Auswertung[[#This Row],[Platz]]=4,CONCATENATE(Tabelle_Auswertung[[#This Row],[Bildname]],\" von \",Tabelle_Auswertung[[#This Row],[Autor(in)]]),\"\")","v":""},{"$f":"IF(Tabelle_Auswertung[[#This Row],[Platz]]=5,CONCATENATE(Tabelle_Auswertung[[#This Row],[Bildname]],\" von \",Tabelle_Auswertung[[#This Row],[Autor(in)]]),\"\")","v":""},{"$f":"IF(Tabelle_Auswertung[[#This Row],[Platz]]=6,CONCATENATE(Tabelle_Auswertung[[#This Row],[Bildname]],\" von \",Tabelle_Auswertung[[#This Row],[Autor(in)]]),\"\")","v":"Susanne_Deinhardt_Notwendigkeit_1.jpg von Susanne Deinhardt"},{"$f":"IF(Tabelle_Auswertung[[#This Row],[Platz]]=7,CONCATENATE(Tabelle_Auswertung[[#This Row],[Bildname]],\" von \",Tabelle_Auswertung[[#This Row],[Autor(in)]]),\"\")","v":""},{"$f":"IF(Tabelle_Auswertung[[#This Row],[Platz]]=8,CONCATENATE(Tabelle_Auswertung[[#This Row],[Bildname]],\" von \",Tabelle_Auswertung[[#This Row],[Autor(in)]]),\"\")","v":""},{"$f":"IF(Tabelle_Auswertung[[#This Row],[Platz]]=9,CONCATENATE(Tabelle_Auswertung[[#This Row],[Bildname]],\" von \",Tabelle_Auswertung[[#This Row],[Autor(in)]]),\"\")","v":""},{"$f":"IF(Tabelle_Auswertung[[#This Row],[Platz]]=10,CONCATENATE(Tabelle_Auswertung[[#This Row],[Bildname]],\" von \",Tabelle_Auswertung[[#This Row],[Autor(in)]]),\"\")","v":""}]
[null,"Susanne_Deinhardt_Notwendigkeit_2.jpg",{"$nulls":20},{"$f":"IF(Tabelle_Auswertung[[#This Row],[Bildname]]<>\"\",SUM(Tabelle_Auswertung[[#This Row],[Juror 1]:[Juror 20]]),\" - \")","v":0},{"$f":"IF(Tabelle_Auswertung[[#This Row],[Bildname]]<>\"\",IF(Tabelle_Auswertung[[#This Row],[Punkte]]>0,AVERAGE(Tabelle_Auswertung[[#This Row],[Juror 1]:[Juror 20]]),\" - \"),\" - \")","v":" - "},{"$f":"IF(Tabelle_Auswertung[[#This Row],[Bildname]]<>\"\",IF(Tabelle_Auswertung[[#This Row],[Punkte]]>0,RANK(Tabelle_Auswertung[[#This Row],[Punkte]],[Punkte],0),\" - \"),\" - \")","v":" - "},"Susanne Deinhardt",{"$f":"IF(Tabelle_Auswertung[[#This Row],[Platz]]=1,CONCATENATE(Tabelle_Auswertung[[#This Row],[Bildname]],\" von \",Tabelle_Auswertung[[#This Row],[Autor(in)]]),\"\")","v":""},{"$f":"IF(Tabelle_Auswertung[[#This Row],[Platz]]=2,CONCATENATE(Tabelle_Auswertung[[#This Row],[Bildname]],\" von \",Tabelle_Auswertung[[#This Row],[Autor(in)]]),\"\")","v":""},{"$f":"IF(Tabelle_Auswertung[[#This Row],[Platz]]=3,CONCATENATE(Tabelle_Auswertung[[#This Row],[Bildname]],\" von \",Tabelle_Auswertung[[#This Row],[Autor(in)]]),\"\")","v":""},{"$f":"IF(Tabelle_Auswertung[[#This Row],[Platz]]=4,CONCATENATE(Tabelle_Auswertung[[#This Row],[Bildname]],\" von \",Tabelle_Auswertung[[#This Row],[Autor(in)]]),\"\")","v":""},{"$f":"IF(Tabelle_Auswertung[[#This Row],[Platz]]=5,CONCATENATE(Tabelle_Auswertung[[#This Row],[Bildname]],\" von \",Tabelle_Auswertung[[#This Row],[Autor(in)]]),\"\")","v":""},{"$f":"IF(Tabelle_Auswertung[[#This Row],[Platz]]=6,CONCATENATE(Tabelle_Auswertung[[#This Row],[Bildname]],\" von \",Tabelle_Auswertung[[#This Row],[Autor(in)]]),\"\")","v":""},{"$f":"IF(Tabelle_Auswertung[[#This Row],[Platz]]=7,CONCATENATE(Tabelle_Auswertung[[#This Row],[Bildname]],\" von \",Tabelle_Auswertung[[#This Row],[Autor(in)]]),\"\")","v":""},{"$f":"IF(Tabelle_Auswertung[[#This Row],[Platz]]=8,CONCATENATE(Tabelle_Auswertung[[#This Row],[Bildname]],\" von \",Tabelle_Auswertung[[#This Row],[Autor(in)]]),\"\")","v":""},{"$f":"IF(Tabelle_Auswertung[[#This Row],[Platz]]=9,CONCATENATE(Tabelle_Auswertung[[#This Row],[Bildname]],\" von \",Tabelle_Auswertung[[#This Row],[Autor(in)]]),\"\")","v":""},{"$f":"IF(Tabelle_Auswertung[[#This Row],[Platz]]=10,CONCATENATE(Tabelle_Auswertung[[#This Row],[Bildname]],\" von \",Tabelle_Auswertung[[#This Row],[Autor(in)]]),\"\")","v":""}]
[{"$nulls":22},{"$f":"IF(Tabelle_Auswertung[[#This Row],[Bildname]]<>\"\",SUM(Tabelle_Auswertung[[#This Row],[Juror 1]:[Juror 20]]),\" - \")","v":" - "},{"$f":"IF(Tabelle_Auswertung[[#This Row],[Bildname]]<>\"\",IF(Tabelle_Auswertung[[#This Row],[Punkte]]>0,AVERAGE(Tabelle_Auswertung[[#This Row],[Juror 1]:[Juror 20]]),\" - \"),\" - \")","v":" - "},{"$f":"IF(Tabelle_Auswertung[[#This Row],[Bildname]]<>\"\",IF(Tabelle_Auswertung[[#This Row],[Punkte]]>0,RANK(Tabelle_Auswertung[[#This Row],[Punkte]],[Punkte],0),\" - \"),\" - \")","v":" - "}," - - -",{"$f":"IF(Tabelle_Auswertung[[#This Row],[Platz]]=1,CONCATENATE(Tabelle_Auswertung[[#This Row],[Bildname]],\" von \",Tabelle_Auswertung[[#This Row],[Autor(in)]]),\"\")","v":""},{"$f":"IF(Tabelle_Auswertung[[#This Row],[Platz]]=2,CONCATENATE(Tabelle_Auswertung[[#This Row],[Bildname]],\" von \",Tabelle_Auswertung[[#This Row],[Autor(in)]]),\"\")","v":""},{"$f":"IF(Tabelle_Auswertung[[#This Row],[Platz]]=3,CONCATENATE(Tabelle_Auswertung[[#This Row],[Bildname]],\" von \",Tabelle_Auswertung[[#This Row],[Autor(in)]]),\"\")","v":""},{"$f":"IF(Tabelle_Auswertung[[#This Row],[Platz]]=4,CONCATENATE(Tabelle_Auswertung[[#This Row],[Bildname]],\" von \",Tabelle_Auswertung[[#This Row],[Autor(in)]]),\"\")","v":""},{"$f":"IF(Tabelle_Auswertung[[#This Row],[Platz]]=5,CONCATENATE(Tabelle_Auswertung[[#This Row],[Bildname]],\" von \",Tabelle_Auswertung[[#This Row],[Autor(in)]]),\"\")","v":""},{"$f":"IF(Tabelle_Auswertung[[#This Row],[Platz]]=6,CONCATENATE(Tabelle_Auswertung[[#This Row],[Bildname]],\" von \",Tabelle_Auswertung[[#This Row],[Autor(in)]]),\"\")","v":""},{"$f":"IF(Tabelle_Auswertung[[#This Row],[Platz]]=7,CONCATENATE(Tabelle_Auswertung[[#This Row],[Bildname]],\" von \",Tabelle_Auswertung[[#This Row],[Autor(in)]]),\"\")","v":""},{"$f":"IF(Tabelle_Auswertung[[#This Row],[Platz]]=8,CONCATENATE(Tabelle_Auswertung[[#This Row],[Bildname]],\" von \",Tabelle_Auswertung[[#This Row],[Autor(in)]]),\"\")","v":""},{"$f":"IF(Tabelle_Auswertung[[#This Row],[Platz]]=9,CONCATENATE(Tabelle_Auswertung[[#This Row],[Bildname]],\" von \",Tabelle_Auswertung[[#This Row],[Autor(in)]]),\"\")","v":""},{"$f":"IF(Tabelle_Auswertung[[#This Row],[Platz]]=10,CONCATENATE(Tabelle_Auswertung[[#This Row],[Bildname]],\" von \",Tabelle_Auswertung[[#This Row],[Autor(in)]]),\"\")","v":""}]
[{"$nulls":22},{"$f":"IF(Tabelle_Auswertung[[#This Row],[Bildname]]<>\"\",SUM(Tabelle_Auswertung[[#This Row],[Juror 1]:[Juror 20]]),\" - \")","v":" - "},{"$f":"IF(Tabelle_Auswertung[[#This Row],[Bildname]]<>\"\",IF(Tabelle_Auswertung[[#This Row],[Punkte]]>0,AVERAGE(Tabelle_Auswertung[[#This Row],[Juror 1]:[Juror 20]]),\" - \"),\" - \")","v":" - "},{"$f":"IF(Tabelle_Auswertung[[#This Row],[Bildname]]<>\"\",IF(Tabelle_Auswertung[[#This Row],[Punkte]]>0,RANK(Tabelle_Auswertung[[#This Row],[Punkte]],[Punkte],0),\" - \"),\" - \")","v":" - "}," - - -",{"$f":"IF(Tabelle_Auswertung[[#This Row],[Platz]]=1,CONCATENATE(Tabelle_Auswertung[[#This Row],[Bildname]],\" von \",Tabelle_Auswertung[[#This Row],[Autor(in)]]),\"\")","v":""},{"$f":"IF(Tabelle_Auswertung[[#This Row],[Platz]]=2,CONCATENATE(Tabelle_Auswertung[[#This Row],[Bildname]],\" von \",Tabelle_Auswertung[[#This Row],[Autor(in)]]),\"\")","v":""},{"$f":"IF(Tabelle_Auswertung[[#This Row],[Platz]]=3,CONCATENATE(Tabelle_Auswertung[[#This Row],[Bildname]],\" von \",Tabelle_Auswertung[[#This Row],[Autor(in)]]),\"\")","v":""},{"$f":"IF(Tabelle_Auswertung[[#This Row],[Platz]]=4,CONCATENATE(Tabelle_Auswertung[[#This Row],[Bildname]],\" von \",Tabelle_Auswertung[[#This Row],[Autor(in)]]),\"\")","v":""},{"$f":"IF(Tabelle_Auswertung[[#This Row],[Platz]]=5,CONCATENATE(Tabelle_Auswertung[[#This Row],[Bildname]],\" von \",Tabelle_Auswertung[[#This Row],[Autor(in)]]),\"\")","v":""},{"$f":"IF(Tabelle_Auswertung[[#This Row],[Platz]]=6,CONCATENATE(Tabelle_Auswertung[[#This Row],[Bildname]],\" von \",Tabelle_Auswertung[[#This Row],[Autor(in)]]),\"\")","v":""},{"$f":"IF(Tabelle_Auswertung[[#This Row],[Platz]]=7,CONCATENATE(Tabelle_Auswertung[[#This Row],[Bildname]],\" von \",Tabelle_Auswertung[[#This Row],[Autor(in)]]),\"\")","v":""},{"$f":"IF(Tabelle_Auswertung[[#This Row],[Platz]]=8,CONCATENATE(Tabelle_Auswertung[[#This Row],[Bildname]],\" von \",Tabelle_Auswertung[[#This Row],[Autor(in)]]),\"\")","v":""},{"$f":"IF(Tabelle_Auswertung[[#This Row],[Platz]]=9,CONCATENATE(Tabelle_Auswertung[[#This Row],[Bildname]],\" von \",Tabelle_Auswertung[[#This Row],[Autor(in)]]),\"\")","v":""},{"$f":"IF(Tabelle_Auswertung[[#This Row],[Platz]]=10,CONCATENATE(Tabelle_Auswertung[[#This Row],[Bildname]],\" von \",Tabelle_Auswertung[[#This Row],[Autor(in)]]),\"\")","v":""}]
[{"$nulls":22},{"$f":"IF(Tabelle_Auswertung[[#This Row],[Bildname]]<>\"\",SUM(Tabelle_Auswertung[[#This Row],[Juror 1]:[Juror 20]]),\" - \")","v":" - "},{"$f":"IF(Tabelle_Auswertung[[#This Row],[Bildname]]<>\"\",IF(Tabelle_Auswertung[[#This Row],[Punkte]]>0,AVERAGE(Tabelle_Auswertung[[#This Row],[Juror 1]:[Juror 20]]),\" - \"),\" - \")","v":" - "},{"$f":"IF(Tabelle_Auswertung[[#This Row],[Bildname]]<>\"\",IF(Tabelle_Auswertung[[#This Row],[Punkte]]>0,RANK(Tabelle_Auswertung[[#This Row],[Punkte]],[Punkte],0),\" - \"),\" - \")","v":" - "}," - - -",{"$f":"IF(Tabelle_Auswertung[[#This Row],[Platz]]=1,CONCATENATE(Tabelle_Auswertung[[#This Row],[Bildname]],\" von \",Tabelle_Auswertung[[#This Row],[Autor(in)]]),\"\")","v":""},{"$f":"IF(Tabelle_Auswertung[[#This Row],[Platz]]=2,CONCATENATE(Tabelle_Auswertung[[#This Row],[Bildname]],\" von \",Tabelle_Auswertung[[#This Row],[Autor(in)]]),\"\")","v":""},{"$f":"IF(Tabelle_Auswertung[[#This Row],[Platz]]=3,CONCATENATE(Tabelle_Auswertung[[#This Row],[Bildname]],\" von \",Tabelle_Auswertung[[#This Row],[Autor(in)]]),\"\")","v":""},{"$f":"IF(Tabelle_Auswertung[[#This Row],[Platz]]=4,CONCATENATE(Tabelle_Auswertung[[#This Row],[Bildname]],\" von \",Tabelle_Auswertung[[#This Row],[Autor(in)]]),\"\")","v":""},{"$f":"IF(Tabelle_Auswertung[[#This Row],[Platz]]=5,CONCATENATE(Tabelle_Auswertung[[#This Row],[Bildname]],\" von \",Tabelle_Auswertung[[#This Row],[Autor(in)]]),\"\")","v":""},{"$f":"IF(Tabelle_Auswertung[[#This Row],[Platz]]=6,CONCATENATE(Tabelle_Auswertung[[#This Row],[Bildname]],\" von \",Tabelle_Auswertung[[#This Row],[Autor(in)]]),\"\")","v":""},{"$f":"IF(Tabelle_Auswertung[[#This Row],[Platz]]=7,CONCATENATE(Tabelle_Auswertung[[#This Row],[Bildname]],\" von \",Tabelle_Auswertung[[#This Row],[Autor(in)]]),\"\")","v":""},{"$f":"IF(Tabelle_Auswertung[[#This Row],[Platz]]=8,CONCATENATE(Tabelle_Auswertung[[#This Row],[Bildname]],\" von \",Tabelle_Auswertung[[#This Row],[Autor(in)]]),\"\")","v":""},{"$f":"IF(Tabelle_Auswertung[[#This Row],[Platz]]=9,CONCATENATE(Tabelle_Auswertung[[#This Row],[Bildname]],\" von \",Tabelle_Auswertung[[#This Row],[Autor(in)]]),\"\")","v":""},{"$f":"IF(Tabelle_Auswertung[[#This Row],[Platz]]=10,CONCATENATE(Tabelle_Auswertung[[#This Row],[Bildname]],\" von \",Tabelle_Auswertung[[#This Row],[Autor(in)]]),\"\")","v":""}]
[{"$nulls":22},{"$f":"IF(Tabelle_Auswertung[[#This Row],[Bildname]]<>\"\",SUM(Tabelle_Auswertung[[#This Row],[Juror 1]:[Juror 20]]),\" - \")","v":" - "},{"$f":"IF(Tabelle_Auswertung[[#This Row],[Bildname]]<>\"\",IF(Tabelle_Auswertung[[#This Row],[Punkte]]>0,AVERAGE(Tabelle_Auswertung[[#This Row],[Juror 1]:[Juror 20]]),\" - \"),\" - \")","v":" - "},{"$f":"IF(Tabelle_Auswertung[[#This Row],[Bildname]]<>\"\",IF(Tabelle_Auswertung[[#This Row],[Punkte]]>0,RANK(Tabelle_Auswertung[[#This Row],[Punkte]],[Punkte],0),\" - \"),\" - \")","v":" - "}," - - -",{"$f":"IF(Tabelle_Auswertung[[#This Row],[Platz]]=1,CONCATENATE(Tabelle_Auswertung[[#This Row],[Bildname]],\" von \",Tabelle_Auswertung[[#This Row],[Autor(in)]]),\"\")","v":""},{"$f":"IF(Tabelle_Auswertung[[#This Row],[Platz]]=2,CONCATENATE(Tabelle_Auswertung[[#This Row],[Bildname]],\" von \",Tabelle_Auswertung[[#This Row],[Autor(in)]]),\"\")","v":""},{"$f":"IF(Tabelle_Auswertung[[#This Row],[Platz]]=3,CONCATENATE(Tabelle_Auswertung[[#This Row],[Bildname]],\" von \",Tabelle_Auswertung[[#This Row],[Autor(in)]]),\"\")","v":""},{"$f":"IF(Tabelle_Auswertung[[#This Row],[Platz]]=4,CONCATENATE(Tabelle_Auswertung[[#This Row],[Bildname]],\" von \",Tabelle_Auswertung[[#This Row],[Autor(in)]]),\"\")","v":""},{"$f":"IF(Tabelle_Auswertung[[#This Row],[Platz]]=5,CONCATENATE(Tabelle_Auswertung[[#This Row],[Bildname]],\" von \",Tabelle_Auswertung[[#This Row],[Autor(in)]]),\"\")","v":""},{"$f":"IF(Tabelle_Auswertung[[#This Row],[Platz]]=6,CONCATENATE(Tabelle_Auswertung[[#This Row],[Bildname]],\" von \",Tabelle_Auswertung[[#This Row],[Autor(in)]]),\"\")","v":""},{"$f":"IF(Tabelle_Auswertung[[#This Row],[Platz]]=7,CONCATENATE(Tabelle_Auswertung[[#This Row],[Bildname]],\" von \",Tabelle_Auswertung[[#This Row],[Autor(in)]]),\"\")","v":""},{"$f":"IF(Tabelle_Auswertung[[#This Row],[Platz]]=8,CONCATENATE(Tabelle_Auswertung[[#This Row],[Bildname]],\" von \",Tabelle_Auswertung[[#This Row],[Autor(in)]]),\"\")","v":""},{"$f":"IF(Tabelle_Auswertung[[#This Row],[Platz]]=9,CONCATENATE(Tabelle_Auswertung[[#This Row],[Bildname]],\" von \",Tabelle_Auswertung[[#This Row],[Autor(in)]]),\"\")","v":""},{"$f":"IF(Tabelle_Auswertung[[#This Row],[Platz]]=10,CONCATENATE(Tabelle_Auswertung[[#This Row],[Bildname]],\" von \",Tabelle_Auswertung[[#This Row],[Autor(in)]]),\"\")","v":""}]
[{"$nulls":22},{"$f":"IF(Tabelle_Auswertung[[#This Row],[Bildname]]<>\"\",SUM(Tabelle_Auswertung[[#This Row],[Juror 1]:[Juror 20]]),\" - \")","v":" - "},{"$f":"IF(Tabelle_Auswertung[[#This Row],[Bildname]]<>\"\",IF(Tabelle_Auswertung[[#This Row],[Punkte]]>0,AVERAGE(Tabelle_Auswertung[[#This Row],[Juror 1]:[Juror 20]]),\" - \"),\" - \")","v":" - "},{"$f":"IF(Tabelle_Auswertung[[#This Row],[Bildname]]<>\"\",IF(Tabelle_Auswertung[[#This Row],[Punkte]]>0,RANK(Tabelle_Auswertung[[#This Row],[Punkte]],[Punkte],0),\" - \"),\" - \")","v":" - "}," - - -",{"$f":"IF(Tabelle_Auswertung[[#This Row],[Platz]]=1,CONCATENATE(Tabelle_Auswertung[[#This Row],[Bildname]],\" von \",Tabelle_Auswertung[[#This Row],[Autor(in)]]),\"\")","v":""},{"$f":"IF(Tabelle_Auswertung[[#This Row],[Platz]]=2,CONCATENATE(Tabelle_Auswertung[[#This Row],[Bildname]],\" von \",Tabelle_Auswertung[[#This Row],[Autor(in)]]),\"\")","v":""},{"$f":"IF(Tabelle_Auswertung[[#This Row],[Platz]]=3,CONCATENATE(Tabelle_Auswertung[[#This Row],[Bildname]],\" von \",Tabelle_Auswertung[[#This Row],[Autor(in)]]),\"\")","v":""},{"$f":"IF(Tabelle_Auswertung[[#This Row],[Platz]]=4,CONCATENATE(Tabelle_Auswertung[[#This Row],[Bildname]],\" von \",Tabelle_Auswertung[[#This Row],[Autor(in)]]),\"\")","v":""},{"$f":"IF(Tabelle_Auswertung[[#This Row],[Platz]]=5,CONCATENATE(Tabelle_Auswertung[[#This Row],[Bildname]],\" von \",Tabelle_Auswertung[[#This Row],[Autor(in)]]),\"\")","v":""},{"$f":"IF(Tabelle_Auswertung[[#This Row],[Platz]]=6,CONCATENATE(Tabelle_Auswertung[[#This Row],[Bildname]],\" von \",Tabelle_Auswertung[[#This Row],[Autor(in)]]),\"\")","v":""},{"$f":"IF(Tabelle_Auswertung[[#This Row],[Platz]]=7,CONCATENATE(Tabelle_Auswertung[[#This Row],[Bildname]],\" von \",Tabelle_Auswertung[[#This Row],[Autor(in)]]),\"\")","v":""},{"$f":"IF(Tabelle_Auswertung[[#This Row],[Platz]]=8,CONCATENATE(Tabelle_Auswertung[[#This Row],[Bildname]],\" von \",Tabelle_Auswertung[[#This Row],[Autor(in)]]),\"\")","v":""},{"$f":"IF(Tabelle_Auswertung[[#This Row],[Platz]]=9,CONCATENATE(Tabelle_Auswertung[[#This Row],[Bildname]],\" von \",Tabelle_Auswertung[[#This Row],[Autor(in)]]),\"\")","v":""},{"$f":"IF(Tabelle_Auswertung[[#This Row],[Platz]]=10,CONCATENATE(Tabelle_Auswertung[[#This Row],[Bildname]],\" von \",Tabelle_Auswertung[[#This Row],[Autor(in)]]),\"\")","v":""}]
[{"$nulls":22},{"$f":"IF(Tabelle_Auswertung[[#This Row],[Bildname]]<>\"\",SUM(Tabelle_Auswertung[[#This Row],[Juror 1]:[Juror 20]]),\" - \")","v":" - "},{"$f":"IF(Tabelle_Auswertung[[#This Row],[Bildname]]<>\"\",IF(Tabelle_Auswertung[[#This Row],[Punkte]]>0,AVERAGE(Tabelle_Auswertung[[#This Row],[Juror 1]:[Juror 20]]),\" - \"),\" - \")","v":" - "},{"$f":"IF(Tabelle_Auswertung[[#This Row],[Bildname]]<>\"\",IF(Tabelle_Auswertung[[#This Row],[Punkte]]>0,RANK(Tabelle_Auswertung[[#This Row],[Punkte]],[Punkte],0),\" - \"),\" - \")","v":" - "}," - - -",{"$f":"IF(Tabelle_Auswertung[[#This Row],[Platz]]=1,CONCATENATE(Tabelle_Auswertung[[#This Row],[Bildname]],\" von \",Tabelle_Auswertung[[#This Row],[Autor(in)]]),\"\")","v":""},{"$f":"IF(Tabelle_Auswertung[[#This Row],[Platz]]=2,CONCATENATE(Tabelle_Auswertung[[#This Row],[Bildname]],\" von \",Tabelle_Auswertung[[#This Row],[Autor(in)]]),\"\")","v":""},{"$f":"IF(Tabelle_Auswertung[[#This Row],[Platz]]=3,CONCATENATE(Tabelle_Auswertung[[#This Row],[Bildname]],\" von \",Tabelle_Auswertung[[#This Row],[Autor(in)]]),\"\")","v":""},{"$f":"IF(Tabelle_Auswertung[[#This Row],[Platz]]=4,CONCATENATE(Tabelle_Auswertung[[#This Row],[Bildname]],\" von \",Tabelle_Auswertung[[#This Row],[Autor(in)]]),\"\")","v":""},{"$f":"IF(Tabelle_Auswertung[[#This Row],[Platz]]=5,CONCATENATE(Tabelle_Auswertung[[#This Row],[Bildname]],\" von \",Tabelle_Auswertung[[#This Row],[Autor(in)]]),\"\")","v":""},{"$f":"IF(Tabelle_Auswertung[[#This Row],[Platz]]=6,CONCATENATE(Tabelle_Auswertung[[#This Row],[Bildname]],\" von \",Tabelle_Auswertung[[#This Row],[Autor(in)]]),\"\")","v":""},{"$f":"IF(Tabelle_Auswertung[[#This Row],[Platz]]=7,CONCATENATE(Tabelle_Auswertung[[#This Row],[Bildname]],\" von \",Tabelle_Auswertung[[#This Row],[Autor(in)]]),\"\")","v":""},{"$f":"IF(Tabelle_Auswertung[[#This Row],[Platz]]=8,CONCATENATE(Tabelle_Auswertung[[#This Row],[Bildname]],\" von \",Tabelle_Auswertung[[#This Row],[Autor(in)]]),\"\")","v":""},{"$f":"IF(Tabelle_Auswertung[[#This Row],[Platz]]=9,CONCATENATE(Tabelle_Auswertung[[#This Row],[Bildname]],\" von \",Tabelle_Auswertung[[#This Row],[Autor(in)]]),\"\")","v":""},{"$f":"IF(Tabelle_Auswertung[[#This Row],[Platz]]=10,CONCATENATE(Tabelle_Auswertung[[#This Row],[Bildname]],\" von \",Tabelle_Auswertung[[#This Row],[Autor(in)]]),\"\")","v":""}]
[{"$nulls":22},{"$f":"IF(Tabelle_Auswertung[[#This Row],[Bildname]]<>\"\",SUM(Tabelle_Auswertung[[#This Row],[Juror 1]:[Juror 20]]),\" - \")","v":" - "},{"$f":"IF(Tabelle_Auswertung[[#This Row],[Bildname]]<>\"\",IF(Tabelle_Auswertung[[#This Row],[Punkte]]>0,AVERAGE(Tabelle_Auswertung[[#This Row],[Juror 1]:[Juror 20]]),\" - \"),\" - \")","v":" - "},{"$f":"IF(Tabelle_Auswertung[[#This Row],[Bildname]]<>\"\",IF(Tabelle_Auswertung[[#This Row],[Punkte]]>0,RANK(Tabelle_Auswertung[[#This Row],[Punkte]],[Punkte],0),\" - \"),\" - \")","v":" - "}," - - -",{"$f":"IF(Tabelle_Auswertung[[#This Row],[Platz]]=1,CONCATENATE(Tabelle_Auswertung[[#This Row],[Bildname]],\" von \",Tabelle_Auswertung[[#This Row],[Autor(in)]]),\"\")","v":""},{"$f":"IF(Tabelle_Auswertung[[#This Row],[Platz]]=2,CONCATENATE(Tabelle_Auswertung[[#This Row],[Bildname]],\" von \",Tabelle_Auswertung[[#This Row],[Autor(in)]]),\"\")","v":""},{"$f":"IF(Tabelle_Auswertung[[#This Row],[Platz]]=3,CONCATENATE(Tabelle_Auswertung[[#This Row],[Bildname]],\" von \",Tabelle_Auswertung[[#This Row],[Autor(in)]]),\"\")","v":""},{"$f":"IF(Tabelle_Auswertung[[#This Row],[Platz]]=4,CONCATENATE(Tabelle_Auswertung[[#This Row],[Bildname]],\" von \",Tabelle_Auswertung[[#This Row],[Autor(in)]]),\"\")","v":""},{"$f":"IF(Tabelle_Auswertung[[#This Row],[Platz]]=5,CONCATENATE(Tabelle_Auswertung[[#This Row],[Bildname]],\" von \",Tabelle_Auswertung[[#This Row],[Autor(in)]]),\"\")","v":""},{"$f":"IF(Tabelle_Auswertung[[#This Row],[Platz]]=6,CONCATENATE(Tabelle_Auswertung[[#This Row],[Bildname]],\" von \",Tabelle_Auswertung[[#This Row],[Autor(in)]]),\"\")","v":""},{"$f":"IF(Tabelle_Auswertung[[#This Row],[Platz]]=7,CONCATENATE(Tabelle_Auswertung[[#This Row],[Bildname]],\" von \",Tabelle_Auswertung[[#This Row],[Autor(in)]]),\"\")","v":""},{"$f":"IF(Tabelle_Auswertung[[#This Row],[Platz]]=8,CONCATENATE(Tabelle_Auswertung[[#This Row],[Bildname]],\" von \",Tabelle_Auswertung[[#This Row],[Autor(in)]]),\"\")","v":""},{"$f":"IF(Tabelle_Auswertung[[#This Row],[Platz]]=9,CONCATENATE(Tabelle_Auswertung[[#This Row],[Bildname]],\" von \",Tabelle_Auswertung[[#This Row],[Autor(in)]]),\"\")","v":""},{"$f":"IF(Tabelle_Auswertung[[#This Row],[Platz]]=10,CONCATENATE(Tabelle_Auswertung[[#This Row],[Bildname]],\" von \",Tabelle_Auswertung[[#This Row],[Autor(in)]]),\"\")","v":""}]
[{"$nulls":22},{"$f":"IF(Tabelle_Auswertung[[#This Row],[Bildname]]<>\"\",SUM(Tabelle_Auswertung[[#This Row],[Juror 1]:[Juror 20]]),\" - \")","v":" - "},{"$f":"IF(Tabelle_Auswertung[[#This Row],[Bildname]]<>\"\",IF(Tabelle_Auswertung[[#This Row],[Punkte]]>0,AVERAGE(Tabelle_Auswertung[[#This Row],[Juror 1]:[Juror 20]]),\" - \"),\" - \")","v":" - "},{"$f":"IF(Tabelle_Auswertung[[#This Row],[Bildname]]<>\"\",IF(Tabelle_Auswertung[[#This Row],[Punkte]]>0,RANK(Tabelle_Auswertung[[#This Row],[Punkte]],[Punkte],0),\" - \"),\" - \")","v":" - "}," - - -",{"$f":"IF(Tabelle_Auswertung[[#This Row],[Platz]]=1,CONCATENATE(Tabelle_Auswertung[[#This Row],[Bildname]],\" von \",Tabelle_Auswertung[[#This Row],[Autor(in)]]),\"\")","v":""},{"$f":"IF(Tabelle_Auswertung[[#This Row],[Platz]]=2,CONCATENATE(Tabelle_Auswertung[[#This Row],[Bildname]],\" von \",Tabelle_Auswertung[[#This Row],[Autor(in)]]),\"\")","v":""},{"$f":"IF(Tabelle_Auswertung[[#This Row],[Platz]]=3,CONCATENATE(Tabelle_Auswertung[[#This Row],[Bildname]],\" von \",Tabelle_Auswertung[[#This Row],[Autor(in)]]),\"\")","v":""},{"$f":"IF(Tabelle_Auswertung[[#This Row],[Platz]]=4,CONCATENATE(Tabelle_Auswertung[[#This Row],[Bildname]],\" von \",Tabelle_Auswertung[[#This Row],[Autor(in)]]),\"\")","v":""},{"$f":"IF(Tabelle_Auswertung[[#This Row],[Platz]]=5,CONCATENATE(Tabelle_Auswertung[[#This Row],[Bildname]],\" von \",Tabelle_Auswertung[[#This Row],[Autor(in)]]),\"\")","v":""},{"$f":"IF(Tabelle_Auswertung[[#This Row],[Platz]]=6,CONCATENATE(Tabelle_Auswertung[[#This Row],[Bildname]],\" von \",Tabelle_Auswertung[[#This Row],[Autor(in)]]),\"\")","v":""},{"$f":"IF(Tabelle_Auswertung[[#This Row],[Platz]]=7,CONCATENATE(Tabelle_Auswertung[[#This Row],[Bildname]],\" von \",Tabelle_Auswertung[[#This Row],[Autor(in)]]),\"\")","v":""},{"$f":"IF(Tabelle_Auswertung[[#This Row],[Platz]]=8,CONCATENATE(Tabelle_Auswertung[[#This Row],[Bildname]],\" von \",Tabelle_Auswertung[[#This Row],[Autor(in)]]),\"\")","v":""},{"$f":"IF(Tabelle_Auswertung[[#This Row],[Platz]]=9,CONCATENATE(Tabelle_Auswertung[[#This Row],[Bildname]],\" von \",Tabelle_Auswertung[[#This Row],[Autor(in)]]),\"\")","v":""},{"$f":"IF(Tabelle_Auswertung[[#This Row],[Platz]]=10,CONCATENATE(Tabelle_Auswertung[[#This Row],[Bildname]],\" von \",Tabelle_Auswertung[[#This Row],[Autor(in)]]),\"\")","v":""}]
[{"$nulls":22},{"$f":"IF(Tabelle_Auswertung[[#This Row],[Bildname]]<>\"\",SUM(Tabelle_Auswertung[[#This Row],[Juror 1]:[Juror 20]]),\" - \")","v":" - "},{"$f":"IF(Tabelle_Auswertung[[#This Row],[Bildname]]<>\"\",IF(Tabelle_Auswertung[[#This Row],[Punkte]]>0,AVERAGE(Tabelle_Auswertung[[#This Row],[Juror 1]:[Juror 20]]),\" - \"),\" - \")","v":" - "},{"$f":"IF(Tabelle_Auswertung[[#This Row],[Bildname]]<>\"\",IF(Tabelle_Auswertung[[#This Row],[Punkte]]>0,RANK(Tabelle_Auswertung[[#This Row],[Punkte]],[Punkte],0),\" - \"),\" - \")","v":" - "}," - - -",{"$f":"IF(Tabelle_Auswertung[[#This Row],[Platz]]=1,CONCATENATE(Tabelle_Auswertung[[#This Row],[Bildname]],\" von \",Tabelle_Auswertung[[#This Row],[Autor(in)]]),\"\")","v":""},{"$f":"IF(Tabelle_Auswertung[[#This Row],[Platz]]=2,CONCATENATE(Tabelle_Auswertung[[#This Row],[Bildname]],\" von \",Tabelle_Auswertung[[#This Row],[Autor(in)]]),\"\")","v":""},{"$f":"IF(Tabelle_Auswertung[[#This Row],[Platz]]=3,CONCATENATE(Tabelle_Auswertung[[#This Row],[Bildname]],\" von \",Tabelle_Auswertung[[#This Row],[Autor(in)]]),\"\")","v":""},{"$f":"IF(Tabelle_Auswertung[[#This Row],[Platz]]=4,CONCATENATE(Tabelle_Auswertung[[#This Row],[Bildname]],\" von \",Tabelle_Auswertung[[#This Row],[Autor(in)]]),\"\")","v":""},{"$f":"IF(Tabelle_Auswertung[[#This Row],[Platz]]=5,CONCATENATE(Tabelle_Auswertung[[#This Row],[Bildname]],\" von \",Tabelle_Auswertung[[#This Row],[Autor(in)]]),\"\")","v":""},{"$f":"IF(Tabelle_Auswertung[[#This Row],[Platz]]=6,CONCATENATE(Tabelle_Auswertung[[#This Row],[Bildname]],\" von \",Tabelle_Auswertung[[#This Row],[Autor(in)]]),\"\")","v":""},{"$f":"IF(Tabelle_Auswertung[[#This Row],[Platz]]=7,CONCATENATE(Tabelle_Auswertung[[#This Row],[Bildname]],\" von \",Tabelle_Auswertung[[#This Row],[Autor(in)]]),\"\")","v":""},{"$f":"IF(Tabelle_Auswertung[[#This Row],[Platz]]=8,CONCATENATE(Tabelle_Auswertung[[#This Row],[Bildname]],\" von \",Tabelle_Auswertung[[#This Row],[Autor(in)]]),\"\")","v":""},{"$f":"IF(Tabelle_Auswertung[[#This Row],[Platz]]=9,CONCATENATE(Tabelle_Auswertung[[#This Row],[Bildname]],\" von \",Tabelle_Auswertung[[#This Row],[Autor(in)]]),\"\")","v":""},{"$f":"IF(Tabelle_Auswertung[[#This Row],[Platz]]=10,CONCATENATE(Tabelle_Auswertung[[#This Row],[Bildname]],\" von \",Tabelle_Auswertung[[#This Row],[Autor(in)]]),\"\")","v":""}]
[{"$nulls":22},{"$f":"IF(Tabelle_Auswertung[[#This Row],[Bildname]]<>\"\",SUM(Tabelle_Auswertung[[#This Row],[Juror 1]:[Juror 20]]),\" - \")","v":" - "},{"$f":"IF(Tabelle_Auswertung[[#This Row],[Bildname]]<>\"\",IF(Tabelle_Auswertung[[#This Row],[Punkte]]>0,AVERAGE(Tabelle_Auswertung[[#This Row],[Juror 1]:[Juror 20]]),\" - \"),\" - \")","v":" - "},{"$f":"IF(Tabelle_Auswertung[[#This Row],[Bildname]]<>\"\",IF(Tabelle_Auswertung[[#This Row],[Punkte]]>0,RANK(Tabelle_Auswertung[[#This Row],[Punkte]],[Punkte],0),\" - \"),\" - \")","v":" - "}," - - -",{"$f":"IF(Tabelle_Auswertung[[#This Row],[Platz]]=1,CONCATENATE(Tabelle_Auswertung[[#This Row],[Bildname]],\" von \",Tabelle_Auswertung[[#This Row],[Autor(in)]]),\"\")","v":""},{"$f":"IF(Tabelle_Auswertung[[#This Row],[Platz]]=2,CONCATENATE(Tabelle_Auswertung[[#This Row],[Bildname]],\" von \",Tabelle_Auswertung[[#This Row],[Autor(in)]]),\"\")","v":""},{"$f":"IF(Tabelle_Auswertung[[#This Row],[Platz]]=3,CONCATENATE(Tabelle_Auswertung[[#This Row],[Bildname]],\" von \",Tabelle_Auswertung[[#This Row],[Autor(in)]]),\"\")","v":""},{"$f":"IF(Tabelle_Auswertung[[#This Row],[Platz]]=4,CONCATENATE(Tabelle_Auswertung[[#This Row],[Bildname]],\" von \",Tabelle_Auswertung[[#This Row],[Autor(in)]]),\"\")","v":""},{"$f":"IF(Tabelle_Auswertung[[#This Row],[Platz]]=5,CONCATENATE(Tabelle_Auswertung[[#This Row],[Bildname]],\" von \",Tabelle_Auswertung[[#This Row],[Autor(in)]]),\"\")","v":""},{"$f":"IF(Tabelle_Auswertung[[#This Row],[Platz]]=6,CONCATENATE(Tabelle_Auswertung[[#This Row],[Bildname]],\" von \",Tabelle_Auswertung[[#This Row],[Autor(in)]]),\"\")","v":""},{"$f":"IF(Tabelle_Auswertung[[#This Row],[Platz]]=7,CONCATENATE(Tabelle_Auswertung[[#This Row],[Bildname]],\" von \",Tabelle_Auswertung[[#This Row],[Autor(in)]]),\"\")","v":""},{"$f":"IF(Tabelle_Auswertung[[#This Row],[Platz]]=8,CONCATENATE(Tabelle_Auswertung[[#This Row],[Bildname]],\" von \",Tabelle_Auswertung[[#This Row],[Autor(in)]]),\"\")","v":""},{"$f":"IF(Tabelle_Auswertung[[#This Row],[Platz]]=9,CONCATENATE(Tabelle_Auswertung[[#This Row],[Bildname]],\" von \",Tabelle_Auswertung[[#This Row],[Autor(in)]]),\"\")","v":""},{"$f":"IF(Tabelle_Auswertung[[#This Row],[Platz]]=10,CONCATENATE(Tabelle_Auswertung[[#This Row],[Bildname]],\" von \",Tabelle_Auswertung[[#This Row],[Autor(in)]]),\"\")","v":""}]
[{"$nulls":22},{"$f":"IF(Tabelle_Auswertung[[#This Row],[Bildname]]<>\"\",SUM(Tabelle_Auswertung[[#This Row],[Juror 1]:[Juror 20]]),\" - \")","v":" - "},{"$f":"IF(Tabelle_Auswertung[[#This Row],[Bildname]]<>\"\",IF(Tabelle_Auswertung[[#This Row],[Punkte]]>0,AVERAGE(Tabelle_Auswertung[[#This Row],[Juror 1]:[Juror 20]]),\" - \"),\" - \")","v":" - "},{"$f":"IF(Tabelle_Auswertung[[#This Row],[Bildname]]<>\"\",IF(Tabelle_Auswertung[[#This Row],[Punkte]]>0,RANK(Tabelle_Auswertung[[#This Row],[Punkte]],[Punkte],0),\" - \"),\" - \")","v":" - "}," - - -",{"$f":"IF(Tabelle_Auswertung[[#This Row],[Platz]]=1,CONCATENATE(Tabelle_Auswertung[[#This Row],[Bildname]],\" von \",Tabelle_Auswertung[[#This Row],[Autor(in)]]),\"\")","v":""},{"$f":"IF(Tabelle_Auswertung[[#This Row],[Platz]]=2,CONCATENATE(Tabelle_Auswertung[[#This Row],[Bildname]],\" von \",Tabelle_Auswertung[[#This Row],[Autor(in)]]),\"\")","v":""},{"$f":"IF(Tabelle_Auswertung[[#This Row],[Platz]]=3,CONCATENATE(Tabelle_Auswertung[[#This Row],[Bildname]],\" von \",Tabelle_Auswertung[[#This Row],[Autor(in)]]),\"\")","v":""},{"$f":"IF(Tabelle_Auswertung[[#This Row],[Platz]]=4,CONCATENATE(Tabelle_Auswertung[[#This Row],[Bildname]],\" von \",Tabelle_Auswertung[[#This Row],[Autor(in)]]),\"\")","v":""},{"$f":"IF(Tabelle_Auswertung[[#This Row],[Platz]]=5,CONCATENATE(Tabelle_Auswertung[[#This Row],[Bildname]],\" von \",Tabelle_Auswertung[[#This Row],[Autor(in)]]),\"\")","v":""},{"$f":"IF(Tabelle_Auswertung[[#This Row],[Platz]]=6,CONCATENATE(Tabelle_Auswertung[[#This Row],[Bildname]],\" von \",Tabelle_Auswertung[[#This Row],[Autor(in)]]),\"\")","v":""},{"$f":"IF(Tabelle_Auswertung[[#This Row],[Platz]]=7,CONCATENATE(Tabelle_Auswertung[[#This Row],[Bildname]],\" von \",Tabelle_Auswertung[[#This Row],[Autor(in)]]),\"\")","v":""},{"$f":"IF(Tabelle_Auswertung[[#This Row],[Platz]]=8,CONCATENATE(Tabelle_Auswertung[[#This Row],[Bildname]],\" von \",Tabelle_Auswertung[[#This Row],[Autor(in)]]),\"\")","v":""},{"$f":"IF(Tabelle_Auswertung[[#This Row],[Platz]]=9,CONCATENATE(Tabelle_Auswertung[[#This Row],[Bildname]],\" von \",Tabelle_Auswertung[[#This Row],[Autor(in)]]),\"\")","v":""},{"$f":"IF(Tabelle_Auswertung[[#This Row],[Platz]]=10,CONCATENATE(Tabelle_Auswertung[[#This Row],[Bildname]],\" von \",Tabelle_Auswertung[[#This Row],[Autor(in)]]),\"\")","v":""}]
[{"$nulls":22},{"$f":"IF(Tabelle_Auswertung[[#This Row],[Bildname]]<>\"\",SUM(Tabelle_Auswertung[[#This Row],[Juror 1]:[Juror 20]]),\" - \")","v":" - "},{"$f":"IF(Tabelle_Auswertung[[#This Row],[Bildname]]<>\"\",IF(Tabelle_Auswertung[[#This Row],[Punkte]]>0,AVERAGE(Tabelle_Auswertung[[#This Row],[Juror 1]:[Juror 20]]),\" - \"),\" - \")","v":" - "},{"$f":"IF(Tabelle_Auswertung[[#This Row],[Bildname]]<>\"\",IF(Tabelle_Auswertung[[#This Row],[Punkte]]>0,RANK(Tabelle_Auswertung[[#This Row],[Punkte]],[Punkte],0),\" - \"),\" - \")","v":" - "}," - - -",{"$f":"IF(Tabelle_Auswertung[[#This Row],[Platz]]=1,CONCATENATE(Tabelle_Auswertung[[#This Row],[Bildname]],\" von \",Tabelle_Auswertung[[#This Row],[Autor(in)]]),\"\")","v":""},{"$f":"IF(Tabelle_Auswertung[[#This Row],[Platz]]=2,CONCATENATE(Tabelle_Auswertung[[#This Row],[Bildname]],\" von \",Tabelle_Auswertung[[#This Row],[Autor(in)]]),\"\")","v":""},{"$f":"IF(Tabelle_Auswertung[[#This Row],[Platz]]=3,CONCATENATE(Tabelle_Auswertung[[#This Row],[Bildname]],\" von \",Tabelle_Auswertung[[#This Row],[Autor(in)]]),\"\")","v":""},{"$f":"IF(Tabelle_Auswertung[[#This Row],[Platz]]=4,CONCATENATE(Tabelle_Auswertung[[#This Row],[Bildname]],\" von \",Tabelle_Auswertung[[#This Row],[Autor(in)]]),\"\")","v":""},{"$f":"IF(Tabelle_Auswertung[[#This Row],[Platz]]=5,CONCATENATE(Tabelle_Auswertung[[#This Row],[Bildname]],\" von \",Tabelle_Auswertung[[#This Row],[Autor(in)]]),\"\")","v":""},{"$f":"IF(Tabelle_Auswertung[[#This Row],[Platz]]=6,CONCATENATE(Tabelle_Auswertung[[#This Row],[Bildname]],\" von \",Tabelle_Auswertung[[#This Row],[Autor(in)]]),\"\")","v":""},{"$f":"IF(Tabelle_Auswertung[[#This Row],[Platz]]=7,CONCATENATE(Tabelle_Auswertung[[#This Row],[Bildname]],\" von \",Tabelle_Auswertung[[#This Row],[Autor(in)]]),\"\")","v":""},{"$f":"IF(Tabelle_Auswertung[[#This Row],[Platz]]=8,CONCATENATE(Tabelle_Auswertung[[#This Row],[Bildname]],\" von \",Tabelle_Auswertung[[#This Row],[Autor(in)]]),\"\")","v":""},{"$f":"IF(Tabelle_Auswertung[[#This Row],[Platz]]=9,CONCATENATE(Tabelle_Auswertung[[#This Row],[Bildname]],\" von \",Tabelle_Auswertung[[#This Row],[Autor(in)]]),\"\")","v":""},{"$f":"IF(Tabelle_Auswertung[[#This Row],[Platz]]=10,CONCATENATE(Tabelle_Auswertung[[#This Row],[Bildname]],\" von \",Tabelle_Auswertung[[#This Row],[Autor(in)]]),\"\")","v":""}]
[{"$nulls":22},{"$f":"IF(Tabelle_Auswertung[[#This Row],[Bildname]]<>\"\",SUM(Tabelle_Auswertung[[#This Row],[Juror 1]:[Juror 20]]),\" - \")","v":" - "},{"$f":"IF(Tabelle_Auswertung[[#This Row],[Bildname]]<>\"\",IF(Tabelle_Auswertung[[#This Row],[Punkte]]>0,AVERAGE(Tabelle_Auswertung[[#This Row],[Juror 1]:[Juror 20]]),\" - \"),\" - \")","v":" - "},{"$f":"IF(Tabelle_Auswertung[[#This Row],[Bildname]]<>\"\",IF(Tabelle_Auswertung[[#This Row],[Punkte]]>0,RANK(Tabelle_Auswertung[[#This Row],[Punkte]],[Punkte],0),\" - \"),\" - \")","v":" - "}," - - -",{"$f":"IF(Tabelle_Auswertung[[#This Row],[Platz]]=1,CONCATENATE(Tabelle_Auswertung[[#This Row],[Bildname]],\" von \",Tabelle_Auswertung[[#This Row],[Autor(in)]]),\"\")","v":""},{"$f":"IF(Tabelle_Auswertung[[#This Row],[Platz]]=2,CONCATENATE(Tabelle_Auswertung[[#This Row],[Bildname]],\" von \",Tabelle_Auswertung[[#This Row],[Autor(in)]]),\"\")","v":""},{"$f":"IF(Tabelle_Auswertung[[#This Row],[Platz]]=3,CONCATENATE(Tabelle_Auswertung[[#This Row],[Bildname]],\" von \",Tabelle_Auswertung[[#This Row],[Autor(in)]]),\"\")","v":""},{"$f":"IF(Tabelle_Auswertung[[#This Row],[Platz]]=4,CONCATENATE(Tabelle_Auswertung[[#This Row],[Bildname]],\" von \",Tabelle_Auswertung[[#This Row],[Autor(in)]]),\"\")","v":""},{"$f":"IF(Tabelle_Auswertung[[#This Row],[Platz]]=5,CONCATENATE(Tabelle_Auswertung[[#This Row],[Bildname]],\" von \",Tabelle_Auswertung[[#This Row],[Autor(in)]]),\"\")","v":""},{"$f":"IF(Tabelle_Auswertung[[#This Row],[Platz]]=6,CONCATENATE(Tabelle_Auswertung[[#This Row],[Bildname]],\" von \",Tabelle_Auswertung[[#This Row],[Autor(in)]]),\"\")","v":""},{"$f":"IF(Tabelle_Auswertung[[#This Row],[Platz]]=7,CONCATENATE(Tabelle_Auswertung[[#This Row],[Bildname]],\" von \",Tabelle_Auswertung[[#This Row],[Autor(in)]]),\"\")","v":""},{"$f":"IF(Tabelle_Auswertung[[#This Row],[Platz]]=8,CONCATENATE(Tabelle_Auswertung[[#This Row],[Bildname]],\" von \",Tabelle_Auswertung[[#This Row],[Autor(in)]]),\"\")","v":""},{"$f":"IF(Tabelle_Auswertung[[#This Row],[Platz]]=9,CONCATENATE(Tabelle_Auswertung[[#This Row],[Bildname]],\" von \",Tabelle_Auswertung[[#This Row],[Autor(in)]]),\"\")","v":""},{"$f":"IF(Tabelle_Auswertung[[#This Row],[Platz]]=10,CONCATENATE(Tabelle_Auswertung[[#This Row],[Bildname]],\" von \",Tabelle_Auswertung[[#This Row],[Autor(in)]]),\"\")","v":""}]
[{"$nulls":22},{"$f":"IF(Tabelle_Auswertung[[#This Row],[Bildname]]<>\"\",SUM(Tabelle_Auswertung[[#This Row],[Juror 1]:[Juror 20]]),\" - \")","v":" - "},{"$f":"IF(Tabelle_Auswertung[[#This Row],[Bildname]]<>\"\",IF(Tabelle_Auswertung[[#This Row],[Punkte]]>0,AVERAGE(Tabelle_Auswertung[[#This Row],[Juror 1]:[Juror 20]]),\" - \"),\" - \")","v":" - "},{"$f":"IF(Tabelle_Auswertung[[#This Row],[Bildname]]<>\"\",IF(Tabelle_Auswertung[[#This Row],[Punkte]]>0,RANK(Tabelle_Auswertung[[#This Row],[Punkte]],[Punkte],0),\" - \"),\" - \")","v":" - "}," - - -",{"$f":"IF(Tabelle_Auswertung[[#This Row],[Platz]]=1,CONCATENATE(Tabelle_Auswertung[[#This Row],[Bildname]],\" von \",Tabelle_Auswertung[[#This Row],[Autor(in)]]),\"\")","v":""},{"$f":"IF(Tabelle_Auswertung[[#This Row],[Platz]]=2,CONCATENATE(Tabelle_Auswertung[[#This Row],[Bildname]],\" von \",Tabelle_Auswertung[[#This Row],[Autor(in)]]),\"\")","v":""},{"$f":"IF(Tabelle_Auswertung[[#This Row],[Platz]]=3,CONCATENATE(Tabelle_Auswertung[[#This Row],[Bildname]],\" von \",Tabelle_Auswertung[[#This Row],[Autor(in)]]),\"\")","v":""},{"$f":"IF(Tabelle_Auswertung[[#This Row],[Platz]]=4,CONCATENATE(Tabelle_Auswertung[[#This Row],[Bildname]],\" von \",Tabelle_Auswertung[[#This Row],[Autor(in)]]),\"\")","v":""},{"$f":"IF(Tabelle_Auswertung[[#This Row],[Platz]]=5,CONCATENATE(Tabelle_Auswertung[[#This Row],[Bildname]],\" von \",Tabelle_Auswertung[[#This Row],[Autor(in)]]),\"\")","v":""},{"$f":"IF(Tabelle_Auswertung[[#This Row],[Platz]]=6,CONCATENATE(Tabelle_Auswertung[[#This Row],[Bildname]],\" von \",Tabelle_Auswertung[[#This Row],[Autor(in)]]),\"\")","v":""},{"$f":"IF(Tabelle_Auswertung[[#This Row],[Platz]]=7,CONCATENATE(Tabelle_Auswertung[[#This Row],[Bildname]],\" von \",Tabelle_Auswertung[[#This Row],[Autor(in)]]),\"\")","v":""},{"$f":"IF(Tabelle_Auswertung[[#This Row],[Platz]]=8,CONCATENATE(Tabelle_Auswertung[[#This Row],[Bildname]],\" von \",Tabelle_Auswertung[[#This Row],[Autor(in)]]),\"\")","v":""},{"$f":"IF(Tabelle_Auswertung[[#This Row],[Platz]]=9,CONCATENATE(Tabelle_Auswertung[[#This Row],[Bildname]],\" von \",Tabelle_Auswertung[[#This Row],[Autor(in)]]),\"\")","v":""},{"$f":"IF(Tabelle_Auswertung[[#This Row],[Platz]]=10,CONCATENATE(Tabelle_Auswertung[[#This Row],[Bildname]],\" von \",Tabelle_Auswertung[[#This Row],[Autor(in)]]),\"\")","v":""}]
[{"$nulls":22},{"$f":"IF(Tabelle_Auswertung[[#This Row],[Bildname]]<>\"\",SUM(Tabelle_Auswertung[[#This Row],[Juror 1]:[Juror 20]]),\" - \")","v":" - "},{"$f":"IF(Tabelle_Auswertung[[#This Row],[Bildname]]<>\"\",IF(Tabelle_Auswertung[[#This Row],[Punkte]]>0,AVERAGE(Tabelle_Auswertung[[#This Row],[Juror 1]:[Juror 20]]),\" - \"),\" - \")","v":" - "},{"$f":"IF(Tabelle_Auswertung[[#This Row],[Bildname]]<>\"\",IF(Tabelle_Auswertung[[#This Row],[Punkte]]>0,RANK(Tabelle_Auswertung[[#This Row],[Punkte]],[Punkte],0),\" - \"),\" - \")","v":" - "}," - - -",{"$f":"IF(Tabelle_Auswertung[[#This Row],[Platz]]=1,CONCATENATE(Tabelle_Auswertung[[#This Row],[Bildname]],\" von \",Tabelle_Auswertung[[#This Row],[Autor(in)]]),\"\")","v":""},{"$f":"IF(Tabelle_Auswertung[[#This Row],[Platz]]=2,CONCATENATE(Tabelle_Auswertung[[#This Row],[Bildname]],\" von \",Tabelle_Auswertung[[#This Row],[Autor(in)]]),\"\")","v":""},{"$f":"IF(Tabelle_Auswertung[[#This Row],[Platz]]=3,CONCATENATE(Tabelle_Auswertung[[#This Row],[Bildname]],\" von \",Tabelle_Auswertung[[#This Row],[Autor(in)]]),\"\")","v":""},{"$f":"IF(Tabelle_Auswertung[[#This Row],[Platz]]=4,CONCATENATE(Tabelle_Auswertung[[#This Row],[Bildname]],\" von \",Tabelle_Auswertung[[#This Row],[Autor(in)]]),\"\")","v":""},{"$f":"IF(Tabelle_Auswertung[[#This Row],[Platz]]=5,CONCATENATE(Tabelle_Auswertung[[#This Row],[Bildname]],\" von \",Tabelle_Auswertung[[#This Row],[Autor(in)]]),\"\")","v":""},{"$f":"IF(Tabelle_Auswertung[[#This Row],[Platz]]=6,CONCATENATE(Tabelle_Auswertung[[#This Row],[Bildname]],\" von \",Tabelle_Auswertung[[#This Row],[Autor(in)]]),\"\")","v":""},{"$f":"IF(Tabelle_Auswertung[[#This Row],[Platz]]=7,CONCATENATE(Tabelle_Auswertung[[#This Row],[Bildname]],\" von \",Tabelle_Auswertung[[#This Row],[Autor(in)]]),\"\")","v":""},{"$f":"IF(Tabelle_Auswertung[[#This Row],[Platz]]=8,CONCATENATE(Tabelle_Auswertung[[#This Row],[Bildname]],\" von \",Tabelle_Auswertung[[#This Row],[Autor(in)]]),\"\")","v":""},{"$f":"IF(Tabelle_Auswertung[[#This Row],[Platz]]=9,CONCATENATE(Tabelle_Auswertung[[#This Row],[Bildname]],\" von \",Tabelle_Auswertung[[#This Row],[Autor(in)]]),\"\")","v":""},{"$f":"IF(Tabelle_Auswertung[[#This Row],[Platz]]=10,CONCATENATE(Tabelle_Auswertung[[#This Row],[Bildname]],\" von \",Tabelle_Auswertung[[#This Row],[Autor(in)]]),\"\")","v":""}]
[{"$nulls":22},{"$f":"IF(Tabelle_Auswertung[[#This Row],[Bildname]]<>\"\",SUM(Tabelle_Auswertung[[#This Row],[Juror 1]:[Juror 20]]),\" - \")","v":" - "},{"$f":"IF(Tabelle_Auswertung[[#This Row],[Bildname]]<>\"\",IF(Tabelle_Auswertung[[#This Row],[Punkte]]>0,AVERAGE(Tabelle_Auswertung[[#This Row],[Juror 1]:[Juror 20]]),\" - \"),\" - \")","v":" - "},{"$f":"IF(Tabelle_Auswertung[[#This Row],[Bildname]]<>\"\",IF(Tabelle_Auswertung[[#This Row],[Punkte]]>0,RANK(Tabelle_Auswertung[[#This Row],[Punkte]],[Punkte],0),\" - \"),\" - \")","v":" - "}," - - -",{"$f":"IF(Tabelle_Auswertung[[#This Row],[Platz]]=1,CONCATENATE(Tabelle_Auswertung[[#This Row],[Bildname]],\" von \",Tabelle_Auswertung[[#This Row],[Autor(in)]]),\"\")","v":""},{"$f":"IF(Tabelle_Auswertung[[#This Row],[Platz]]=2,CONCATENATE(Tabelle_Auswertung[[#This Row],[Bildname]],\" von \",Tabelle_Auswertung[[#This Row],[Autor(in)]]),\"\")","v":""},{"$f":"IF(Tabelle_Auswertung[[#This Row],[Platz]]=3,CONCATENATE(Tabelle_Auswertung[[#This Row],[Bildname]],\" von \",Tabelle_Auswertung[[#This Row],[Autor(in)]]),\"\")","v":""},{"$f":"IF(Tabelle_Auswertung[[#This Row],[Platz]]=4,CONCATENATE(Tabelle_Auswertung[[#This Row],[Bildname]],\" von \",Tabelle_Auswertung[[#This Row],[Autor(in)]]),\"\")","v":""},{"$f":"IF(Tabelle_Auswertung[[#This Row],[Platz]]=5,CONCATENATE(Tabelle_Auswertung[[#This Row],[Bildname]],\" von \",Tabelle_Auswertung[[#This Row],[Autor(in)]]),\"\")","v":""},{"$f":"IF(Tabelle_Auswertung[[#This Row],[Platz]]=6,CONCATENATE(Tabelle_Auswertung[[#This Row],[Bildname]],\" von \",Tabelle_Auswertung[[#This Row],[Autor(in)]]),\"\")","v":""},{"$f":"IF(Tabelle_Auswertung[[#This Row],[Platz]]=7,CONCATENATE(Tabelle_Auswertung[[#This Row],[Bildname]],\" von \",Tabelle_Auswertung[[#This Row],[Autor(in)]]),\"\")","v":""},{"$f":"IF(Tabelle_Auswertung[[#This Row],[Platz]]=8,CONCATENATE(Tabelle_Auswertung[[#This Row],[Bildname]],\" von \",Tabelle_Auswertung[[#This Row],[Autor(in)]]),\"\")","v":""},{"$f":"IF(Tabelle_Auswertung[[#This Row],[Platz]]=9,CONCATENATE(Tabelle_Auswertung[[#This Row],[Bildname]],\" von \",Tabelle_Auswertung[[#This Row],[Autor(in)]]),\"\")","v":""},{"$f":"IF(Tabelle_Auswertung[[#This Row],[Platz]]=10,CONCATENATE(Tabelle_Auswertung[[#This Row],[Bildname]],\" von \",Tabelle_Auswertung[[#This Row],[Autor(in)]]),\"\")","v":""}]
[{"$nulls":22},{"$f":"IF(Tabelle_Auswertung[[#This Row],[Bildname]]<>\"\",SUM(Tabelle_Auswertung[[#This Row],[Juror 1]:[Juror 20]]),\" - \")","v":" - "},{"$f":"IF(Tabelle_Auswertung[[#This Row],[Bildname]]<>\"\",IF(Tabelle_Auswertung[[#This Row],[Punkte]]>0,AVERAGE(Tabelle_Auswertung[[#This Row],[Juror 1]:[Juror 20]]),\" - \"),\" - \")","v":" - "},{"$f":"IF(Tabelle_Auswertung[[#This Row],[Bildname]]<>\"\",IF(Tabelle_Auswertung[[#This Row],[Punkte]]>0,RANK(Tabelle_Auswertung[[#This Row],[Punkte]],[Punkte],0),\" - \"),\" - \")","v":" - "}," - - -",{"$f":"IF(Tabelle_Auswertung[[#This Row],[Platz]]=1,CONCATENATE(Tabelle_Auswertung[[#This Row],[Bildname]],\" von \",Tabelle_Auswertung[[#This Row],[Autor(in)]]),\"\")","v":""},{"$f":"IF(Tabelle_Auswertung[[#This Row],[Platz]]=2,CONCATENATE(Tabelle_Auswertung[[#This Row],[Bildname]],\" von \",Tabelle_Auswertung[[#This Row],[Autor(in)]]),\"\")","v":""},{"$f":"IF(Tabelle_Auswertung[[#This Row],[Platz]]=3,CONCATENATE(Tabelle_Auswertung[[#This Row],[Bildname]],\" von \",Tabelle_Auswertung[[#This Row],[Autor(in)]]),\"\")","v":""},{"$f":"IF(Tabelle_Auswertung[[#This Row],[Platz]]=4,CONCATENATE(Tabelle_Auswertung[[#This Row],[Bildname]],\" von \",Tabelle_Auswertung[[#This Row],[Autor(in)]]),\"\")","v":""},{"$f":"IF(Tabelle_Auswertung[[#This Row],[Platz]]=5,CONCATENATE(Tabelle_Auswertung[[#This Row],[Bildname]],\" von \",Tabelle_Auswertung[[#This Row],[Autor(in)]]),\"\")","v":""},{"$f":"IF(Tabelle_Auswertung[[#This Row],[Platz]]=6,CONCATENATE(Tabelle_Auswertung[[#This Row],[Bildname]],\" von \",Tabelle_Auswertung[[#This Row],[Autor(in)]]),\"\")","v":""},{"$f":"IF(Tabelle_Auswertung[[#This Row],[Platz]]=7,CONCATENATE(Tabelle_Auswertung[[#This Row],[Bildname]],\" von \",Tabelle_Auswertung[[#This Row],[Autor(in)]]),\"\")","v":""},{"$f":"IF(Tabelle_Auswertung[[#This Row],[Platz]]=8,CONCATENATE(Tabelle_Auswertung[[#This Row],[Bildname]],\" von \",Tabelle_Auswertung[[#This Row],[Autor(in)]]),\"\")","v":""},{"$f":"IF(Tabelle_Auswertung[[#This Row],[Platz]]=9,CONCATENATE(Tabelle_Auswertung[[#This Row],[Bildname]],\" von \",Tabelle_Auswertung[[#This Row],[Autor(in)]]),\"\")","v":""},{"$f":"IF(Tabelle_Auswertung[[#This Row],[Platz]]=10,CONCATENATE(Tabelle_Auswertung[[#This Row],[Bildname]],\" von \",Tabelle_Auswertung[[#This Row],[Autor(in)]]),\"\")","v":""}]
[{"$nulls":22},{"$f":"IF(Tabelle_Auswertung[[#This Row],[Bildname]]<>\"\",SUM(Tabelle_Auswertung[[#This Row],[Juror 1]:[Juror 20]]),\" - \")","v":" - "},{"$f":"IF(Tabelle_Auswertung[[#This Row],[Bildname]]<>\"\",IF(Tabelle_Auswertung[[#This Row],[Punkte]]>0,AVERAGE(Tabelle_Auswertung[[#This Row],[Juror 1]:[Juror 20]]),\" - \"),\" - \")","v":" - "},{"$f":"IF(Tabelle_Auswertung[[#This Row],[Bildname]]<>\"\",IF(Tabelle_Auswertung[[#This Row],[Punkte]]>0,RANK(Tabelle_Auswertung[[#This Row],[Punkte]],[Punkte],0),\" - \"),\" - \")","v":" - "}," - - -",{"$f":"IF(Tabelle_Auswertung[[#This Row],[Platz]]=1,CONCATENATE(Tabelle_Auswertung[[#This Row],[Bildname]],\" von \",Tabelle_Auswertung[[#This Row],[Autor(in)]]),\"\")","v":""},{"$f":"IF(Tabelle_Auswertung[[#This Row],[Platz]]=2,CONCATENATE(Tabelle_Auswertung[[#This Row],[Bildname]],\" von \",Tabelle_Auswertung[[#This Row],[Autor(in)]]),\"\")","v":""},{"$f":"IF(Tabelle_Auswertung[[#This Row],[Platz]]=3,CONCATENATE(Tabelle_Auswertung[[#This Row],[Bildname]],\" von \",Tabelle_Auswertung[[#This Row],[Autor(in)]]),\"\")","v":""},{"$f":"IF(Tabelle_Auswertung[[#This Row],[Platz]]=4,CONCATENATE(Tabelle_Auswertung[[#This Row],[Bildname]],\" von \",Tabelle_Auswertung[[#This Row],[Autor(in)]]),\"\")","v":""},{"$f":"IF(Tabelle_Auswertung[[#This Row],[Platz]]=5,CONCATENATE(Tabelle_Auswertung[[#This Row],[Bildname]],\" von \",Tabelle_Auswertung[[#This Row],[Autor(in)]]),\"\")","v":""},{"$f":"IF(Tabelle_Auswertung[[#This Row],[Platz]]=6,CONCATENATE(Tabelle_Auswertung[[#This Row],[Bildname]],\" von \",Tabelle_Auswertung[[#This Row],[Autor(in)]]),\"\")","v":""},{"$f":"IF(Tabelle_Auswertung[[#This Row],[Platz]]=7,CONCATENATE(Tabelle_Auswertung[[#This Row],[Bildname]],\" von \",Tabelle_Auswertung[[#This Row],[Autor(in)]]),\"\")","v":""},{"$f":"IF(Tabelle_Auswertung[[#This Row],[Platz]]=8,CONCATENATE(Tabelle_Auswertung[[#This Row],[Bildname]],\" von \",Tabelle_Auswertung[[#This Row],[Autor(in)]]),\"\")","v":""},{"$f":"IF(Tabelle_Auswertung[[#This Row],[Platz]]=9,CONCATENATE(Tabelle_Auswertung[[#This Row],[Bildname]],\" von \",Tabelle_Auswertung[[#This Row],[Autor(in)]]),\"\")","v":""},{"$f":"IF(Tabelle_Auswertung[[#This Row],[Platz]]=10,CONCATENATE(Tabelle_Auswertung[[#This Row],[Bildname]],\" von \",Tabelle_Auswertung[[#This Row],[Autor(in)]]),\"\")","v":""}]
[{"$nulls":22},{"$f":"IF(Tabelle_Auswertung[[#This Row],[Bildname]]<>\"\",SUM(Tabelle_Auswertung[[#This Row],[Juror 1]:[Juror 20]]),\" - \")","v":" - "},{"$f":"IF(Tabelle_Auswertung[[#This Row],[Bildname]]<>\"\",IF(Tabelle_Auswertung[[#This Row],[Punkte]]>0,AVERAGE(Tabelle_Auswertung[[#This Row],[Juror 1]:[Juror 20]]),\" - \"),\" - \")","v":" - "},{"$f":"IF(Tabelle_Auswertung[[#This Row],[Bildname]]<>\"\",IF(Tabelle_Auswertung[[#This Row],[Punkte]]>0,RANK(Tabelle_Auswertung[[#This Row],[Punkte]],[Punkte],0),\" - \"),\" - \")","v":" - "}," - - -",{"$f":"IF(Tabelle_Auswertung[[#This Row],[Platz]]=1,CONCATENATE(Tabelle_Auswertung[[#This Row],[Bildname]],\" von \",Tabelle_Auswertung[[#This Row],[Autor(in)]]),\"\")","v":""},{"$f":"IF(Tabelle_Auswertung[[#This Row],[Platz]]=2,CONCATENATE(Tabelle_Auswertung[[#This Row],[Bildname]],\" von \",Tabelle_Auswertung[[#This Row],[Autor(in)]]),\"\")","v":""},{"$f":"IF(Tabelle_Auswertung[[#This Row],[Platz]]=3,CONCATENATE(Tabelle_Auswertung[[#This Row],[Bildname]],\" von \",Tabelle_Auswertung[[#This Row],[Autor(in)]]),\"\")","v":""},{"$f":"IF(Tabelle_Auswertung[[#This Row],[Platz]]=4,CONCATENATE(Tabelle_Auswertung[[#This Row],[Bildname]],\" von \",Tabelle_Auswertung[[#This Row],[Autor(in)]]),\"\")","v":""},{"$f":"IF(Tabelle_Auswertung[[#This Row],[Platz]]=5,CONCATENATE(Tabelle_Auswertung[[#This Row],[Bildname]],\" von \",Tabelle_Auswertung[[#This Row],[Autor(in)]]),\"\")","v":""},{"$f":"IF(Tabelle_Auswertung[[#This Row],[Platz]]=6,CONCATENATE(Tabelle_Auswertung[[#This Row],[Bildname]],\" von \",Tabelle_Auswertung[[#This Row],[Autor(in)]]),\"\")","v":""},{"$f":"IF(Tabelle_Auswertung[[#This Row],[Platz]]=7,CONCATENATE(Tabelle_Auswertung[[#This Row],[Bildname]],\" von \",Tabelle_Auswertung[[#This Row],[Autor(in)]]),\"\")","v":""},{"$f":"IF(Tabelle_Auswertung[[#This Row],[Platz]]=8,CONCATENATE(Tabelle_Auswertung[[#This Row],[Bildname]],\" von \",Tabelle_Auswertung[[#This Row],[Autor(in)]]),\"\")","v":""},{"$f":"IF(Tabelle_Auswertung[[#This Row],[Platz]]=9,CONCATENATE(Tabelle_Auswertung[[#This Row],[Bildname]],\" von \",Tabelle_Auswertung[[#This Row],[Autor(in)]]),\"\")","v":""},{"$f":"IF(Tabelle_Auswertung[[#This Row],[Platz]]=10,CONCATENATE(Tabelle_Auswertung[[#This Row],[Bildname]],\" von \",Tabelle_Auswertung[[#This Row],[Autor(in)]]),\"\")","v":""}]
[{"$nulls":22},{"$f":"IF(Tabelle_Auswertung[[#This Row],[Bildname]]<>\"\",SUM(Tabelle_Auswertung[[#This Row],[Juror 1]:[Juror 20]]),\" - \")","v":" - "},{"$f":"IF(Tabelle_Auswertung[[#This Row],[Bildname]]<>\"\",IF(Tabelle_Auswertung[[#This Row],[Punkte]]>0,AVERAGE(Tabelle_Auswertung[[#This Row],[Juror 1]:[Juror 20]]),\" - \"),\" - \")","v":" - "},{"$f":"IF(Tabelle_Auswertung[[#This Row],[Bildname]]<>\"\",IF(Tabelle_Auswertung[[#This Row],[Punkte]]>0,RANK(Tabelle_Auswertung[[#This Row],[Punkte]],[Punkte],0),\" - \"),\" - \")","v":" - "}," - - -",{"$f":"IF(Tabelle_Auswertung[[#This Row],[Platz]]=1,CONCATENATE(Tabelle_Auswertung[[#This Row],[Bildname]],\" von \",Tabelle_Auswertung[[#This Row],[Autor(in)]]),\"\")","v":""},{"$f":"IF(Tabelle_Auswertung[[#This Row],[Platz]]=2,CONCATENATE(Tabelle_Auswertung[[#This Row],[Bildname]],\" von \",Tabelle_Auswertung[[#This Row],[Autor(in)]]),\"\")","v":""},{"$f":"IF(Tabelle_Auswertung[[#This Row],[Platz]]=3,CONCATENATE(Tabelle_Auswertung[[#This Row],[Bildname]],\" von \",Tabelle_Auswertung[[#This Row],[Autor(in)]]),\"\")","v":""},{"$f":"IF(Tabelle_Auswertung[[#This Row],[Platz]]=4,CONCATENATE(Tabelle_Auswertung[[#This Row],[Bildname]],\" von \",Tabelle_Auswertung[[#This Row],[Autor(in)]]),\"\")","v":""},{"$f":"IF(Tabelle_Auswertung[[#This Row],[Platz]]=5,CONCATENATE(Tabelle_Auswertung[[#This Row],[Bildname]],\" von \",Tabelle_Auswertung[[#This Row],[Autor(in)]]),\"\")","v":""},{"$f":"IF(Tabelle_Auswertung[[#This Row],[Platz]]=6,CONCATENATE(Tabelle_Auswertung[[#This Row],[Bildname]],\" von \",Tabelle_Auswertung[[#This Row],[Autor(in)]]),\"\")","v":""},{"$f":"IF(Tabelle_Auswertung[[#This Row],[Platz]]=7,CONCATENATE(Tabelle_Auswertung[[#This Row],[Bildname]],\" von \",Tabelle_Auswertung[[#This Row],[Autor(in)]]),\"\")","v":""},{"$f":"IF(Tabelle_Auswertung[[#This Row],[Platz]]=8,CONCATENATE(Tabelle_Auswertung[[#This Row],[Bildname]],\" von \",Tabelle_Auswertung[[#This Row],[Autor(in)]]),\"\")","v":""},{"$f":"IF(Tabelle_Auswertung[[#This Row],[Platz]]=9,CONCATENATE(Tabelle_Auswertung[[#This Row],[Bildname]],\" von \",Tabelle_Auswertung[[#This Row],[Autor(in)]]),\"\")","v":""},{"$f":"IF(Tabelle_Auswertung[[#This Row],[Platz]]=10,CONCATENATE(Tabelle_Auswertung[[#This Row],[Bildname]],\" von \",Tabelle_Auswertung[[#This Row],[Autor(in)]]),\"\")","v":""}]
[{"$nulls":22},{"$f":"IF(Tabelle_Auswertung[[#This Row],[Bildname]]<>\"\",SUM(Tabelle_Auswertung[[#This Row],[Juror 1]:[Juror 20]]),\" - \")","v":" - "},{"$f":"IF(Tabelle_Auswertung[[#This Row],[Bildname]]<>\"\",IF(Tabelle_Auswertung[[#This Row],[Punkte]]>0,AVERAGE(Tabelle_Auswertung[[#This Row],[Juror 1]:[Juror 20]]),\" - \"),\" - \")","v":" - "},{"$f":"IF(Tabelle_Auswertung[[#This Row],[Bildname]]<>\"\",IF(Tabelle_Auswertung[[#This Row],[Punkte]]>0,RANK(Tabelle_Auswertung[[#This Row],[Punkte]],[Punkte],0),\" - \"),\" - \")","v":" - "}," - - -",{"$f":"IF(Tabelle_Auswertung[[#This Row],[Platz]]=1,CONCATENATE(Tabelle_Auswertung[[#This Row],[Bildname]],\" von \",Tabelle_Auswertung[[#This Row],[Autor(in)]]),\"\")","v":""},{"$f":"IF(Tabelle_Auswertung[[#This Row],[Platz]]=2,CONCATENATE(Tabelle_Auswertung[[#This Row],[Bildname]],\" von \",Tabelle_Auswertung[[#This Row],[Autor(in)]]),\"\")","v":""},{"$f":"IF(Tabelle_Auswertung[[#This Row],[Platz]]=3,CONCATENATE(Tabelle_Auswertung[[#This Row],[Bildname]],\" von \",Tabelle_Auswertung[[#This Row],[Autor(in)]]),\"\")","v":""},{"$f":"IF(Tabelle_Auswertung[[#This Row],[Platz]]=4,CONCATENATE(Tabelle_Auswertung[[#This Row],[Bildname]],\" von \",Tabelle_Auswertung[[#This Row],[Autor(in)]]),\"\")","v":""},{"$f":"IF(Tabelle_Auswertung[[#This Row],[Platz]]=5,CONCATENATE(Tabelle_Auswertung[[#This Row],[Bildname]],\" von \",Tabelle_Auswertung[[#This Row],[Autor(in)]]),\"\")","v":""},{"$f":"IF(Tabelle_Auswertung[[#This Row],[Platz]]=6,CONCATENATE(Tabelle_Auswertung[[#This Row],[Bildname]],\" von \",Tabelle_Auswertung[[#This Row],[Autor(in)]]),\"\")","v":""},{"$f":"IF(Tabelle_Auswertung[[#This Row],[Platz]]=7,CONCATENATE(Tabelle_Auswertung[[#This Row],[Bildname]],\" von \",Tabelle_Auswertung[[#This Row],[Autor(in)]]),\"\")","v":""},{"$f":"IF(Tabelle_Auswertung[[#This Row],[Platz]]=8,CONCATENATE(Tabelle_Auswertung[[#This Row],[Bildname]],\" von \",Tabelle_Auswertung[[#This Row],[Autor(in)]]),\"\")","v":""},{"$f":"IF(Tabelle_Auswertung[[#This Row],[Platz]]=9,CONCATENATE(Tabelle_Auswertung[[#This Row],[Bildname]],\" von \",Tabelle_Auswertung[[#This Row],[Autor(in)]]),\"\")","v":""},{"$f":"IF(Tabelle_Auswertung[[#This Row],[Platz]]=10,CONCATENATE(Tabelle_Auswertung[[#This Row],[Bildname]],\" von \",Tabelle_Auswertung[[#This Row],[Autor(in)]]),\"\")","v":""}]
[{"$nulls":22},{"$f":"IF(Tabelle_Auswertung[[#This Row],[Bildname]]<>\"\",SUM(Tabelle_Auswertung[[#This Row],[Juror 1]:[Juror 20]]),\" - \")","v":" - "},{"$f":"IF(Tabelle_Auswertung[[#This Row],[Bildname]]<>\"\",IF(Tabelle_Auswertung[[#This Row],[Punkte]]>0,AVERAGE(Tabelle_Auswertung[[#This Row],[Juror 1]:[Juror 20]]),\" - \"),\" - \")","v":" - "},{"$f":"IF(Tabelle_Auswertung[[#This Row],[Bildname]]<>\"\",IF(Tabelle_Auswertung[[#This Row],[Punkte]]>0,RANK(Tabelle_Auswertung[[#This Row],[Punkte]],[Punkte],0),\" - \"),\" - \")","v":" - "}," - - -",{"$f":"IF(Tabelle_Auswertung[[#This Row],[Platz]]=1,CONCATENATE(Tabelle_Auswertung[[#This Row],[Bildname]],\" von \",Tabelle_Auswertung[[#This Row],[Autor(in)]]),\"\")","v":""},{"$f":"IF(Tabelle_Auswertung[[#This Row],[Platz]]=2,CONCATENATE(Tabelle_Auswertung[[#This Row],[Bildname]],\" von \",Tabelle_Auswertung[[#This Row],[Autor(in)]]),\"\")","v":""},{"$f":"IF(Tabelle_Auswertung[[#This Row],[Platz]]=3,CONCATENATE(Tabelle_Auswertung[[#This Row],[Bildname]],\" von \",Tabelle_Auswertung[[#This Row],[Autor(in)]]),\"\")","v":""},{"$f":"IF(Tabelle_Auswertung[[#This Row],[Platz]]=4,CONCATENATE(Tabelle_Auswertung[[#This Row],[Bildname]],\" von \",Tabelle_Auswertung[[#This Row],[Autor(in)]]),\"\")","v":""},{"$f":"IF(Tabelle_Auswertung[[#This Row],[Platz]]=5,CONCATENATE(Tabelle_Auswertung[[#This Row],[Bildname]],\" von \",Tabelle_Auswertung[[#This Row],[Autor(in)]]),\"\")","v":""},{"$f":"IF(Tabelle_Auswertung[[#This Row],[Platz]]=6,CONCATENATE(Tabelle_Auswertung[[#This Row],[Bildname]],\" von \",Tabelle_Auswertung[[#This Row],[Autor(in)]]),\"\")","v":""},{"$f":"IF(Tabelle_Auswertung[[#This Row],[Platz]]=7,CONCATENATE(Tabelle_Auswertung[[#This Row],[Bildname]],\" von \",Tabelle_Auswertung[[#This Row],[Autor(in)]]),\"\")","v":""},{"$f":"IF(Tabelle_Auswertung[[#This Row],[Platz]]=8,CONCATENATE(Tabelle_Auswertung[[#This Row],[Bildname]],\" von \",Tabelle_Auswertung[[#This Row],[Autor(in)]]),\"\")","v":""},{"$f":"IF(Tabelle_Auswertung[[#This Row],[Platz]]=9,CONCATENATE(Tabelle_Auswertung[[#This Row],[Bildname]],\" von \",Tabelle_Auswertung[[#This Row],[Autor(in)]]),\"\")","v":""},{"$f":"IF(Tabelle_Auswertung[[#This Row],[Platz]]=10,CONCATENATE(Tabelle_Auswertung[[#This Row],[Bildname]],\" von \",Tabelle_Auswertung[[#This Row],[Autor(in)]]),\"\")","v":""}]
[{"$nulls":22},{"$f":"IF(Tabelle_Auswertung[[#This Row],[Bildname]]<>\"\",SUM(Tabelle_Auswertung[[#This Row],[Juror 1]:[Juror 20]]),\" - \")","v":" - "},{"$f":"IF(Tabelle_Auswertung[[#This Row],[Bildname]]<>\"\",IF(Tabelle_Auswertung[[#This Row],[Punkte]]>0,AVERAGE(Tabelle_Auswertung[[#This Row],[Juror 1]:[Juror 20]]),\" - \"),\" - \")","v":" - "},{"$f":"IF(Tabelle_Auswertung[[#This Row],[Bildname]]<>\"\",IF(Tabelle_Auswertung[[#This Row],[Punkte]]>0,RANK(Tabelle_Auswertung[[#This Row],[Punkte]],[Punkte],0),\" - \"),\" - \")","v":" - "}," - - -",{"$f":"IF(Tabelle_Auswertung[[#This Row],[Platz]]=1,CONCATENATE(Tabelle_Auswertung[[#This Row],[Bildname]],\" von \",Tabelle_Auswertung[[#This Row],[Autor(in)]]),\"\")","v":""},{"$f":"IF(Tabelle_Auswertung[[#This Row],[Platz]]=2,CONCATENATE(Tabelle_Auswertung[[#This Row],[Bildname]],\" von \",Tabelle_Auswertung[[#This Row],[Autor(in)]]),\"\")","v":""},{"$f":"IF(Tabelle_Auswertung[[#This Row],[Platz]]=3,CONCATENATE(Tabelle_Auswertung[[#This Row],[Bildname]],\" von \",Tabelle_Auswertung[[#This Row],[Autor(in)]]),\"\")","v":""},{"$f":"IF(Tabelle_Auswertung[[#This Row],[Platz]]=4,CONCATENATE(Tabelle_Auswertung[[#This Row],[Bildname]],\" von \",Tabelle_Auswertung[[#This Row],[Autor(in)]]),\"\")","v":""},{"$f":"IF(Tabelle_Auswertung[[#This Row],[Platz]]=5,CONCATENATE(Tabelle_Auswertung[[#This Row],[Bildname]],\" von \",Tabelle_Auswertung[[#This Row],[Autor(in)]]),\"\")","v":""},{"$f":"IF(Tabelle_Auswertung[[#This Row],[Platz]]=6,CONCATENATE(Tabelle_Auswertung[[#This Row],[Bildname]],\" von \",Tabelle_Auswertung[[#This Row],[Autor(in)]]),\"\")","v":""},{"$f":"IF(Tabelle_Auswertung[[#This Row],[Platz]]=7,CONCATENATE(Tabelle_Auswertung[[#This Row],[Bildname]],\" von \",Tabelle_Auswertung[[#This Row],[Autor(in)]]),\"\")","v":""},{"$f":"IF(Tabelle_Auswertung[[#This Row],[Platz]]=8,CONCATENATE(Tabelle_Auswertung[[#This Row],[Bildname]],\" von \",Tabelle_Auswertung[[#This Row],[Autor(in)]]),\"\")","v":""},{"$f":"IF(Tabelle_Auswertung[[#This Row],[Platz]]=9,CONCATENATE(Tabelle_Auswertung[[#This Row],[Bildname]],\" von \",Tabelle_Auswertung[[#This Row],[Autor(in)]]),\"\")","v":""},{"$f":"IF(Tabelle_Auswertung[[#This Row],[Platz]]=10,CONCATENATE(Tabelle_Auswertung[[#This Row],[Bildname]],\" von \",Tabelle_Auswertung[[#This Row],[Autor(in)]]),\"\")","v":""}]
[{"$nulls":22},{"$f":"IF(Tabelle_Auswertung[[#This Row],[Bildname]]<>\"\",SUM(Tabelle_Auswertung[[#This Row],[Juror 1]:[Juror 20]]),\" - \")","v":" - "},{"$f":"IF(Tabelle_Auswertung[[#This Row],[Bildname]]<>\"\",IF(Tabelle_Auswertung[[#This Row],[Punkte]]>0,AVERAGE(Tabelle_Auswertung[[#This Row],[Juror 1]:[Juror 20]]),\" - \"),\" - \")","v":" - "},{"$f":"IF(Tabelle_Auswertung[[#This Row],[Bildname]]<>\"\",IF(Tabelle_Auswertung[[#This Row],[Punkte]]>0,RANK(Tabelle_Auswertung[[#This Row],[Punkte]],[Punkte],0),\" - \"),\" - \")","v":" - "}," - - -",{"$f":"IF(Tabelle_Auswertung[[#This Row],[Platz]]=1,CONCATENATE(Tabelle_Auswertung[[#This Row],[Bildname]],\" von \",Tabelle_Auswertung[[#This Row],[Autor(in)]]),\"\")","v":""},{"$f":"IF(Tabelle_Auswertung[[#This Row],[Platz]]=2,CONCATENATE(Tabelle_Auswertung[[#This Row],[Bildname]],\" von \",Tabelle_Auswertung[[#This Row],[Autor(in)]]),\"\")","v":""},{"$f":"IF(Tabelle_Auswertung[[#This Row],[Platz]]=3,CONCATENATE(Tabelle_Auswertung[[#This Row],[Bildname]],\" von \",Tabelle_Auswertung[[#This Row],[Autor(in)]]),\"\")","v":""},{"$f":"IF(Tabelle_Auswertung[[#This Row],[Platz]]=4,CONCATENATE(Tabelle_Auswertung[[#This Row],[Bildname]],\" von \",Tabelle_Auswertung[[#This Row],[Autor(in)]]),\"\")","v":""},{"$f":"IF(Tabelle_Auswertung[[#This Row],[Platz]]=5,CONCATENATE(Tabelle_Auswertung[[#This Row],[Bildname]],\" von \",Tabelle_Auswertung[[#This Row],[Autor(in)]]),\"\")","v":""},{"$f":"IF(Tabelle_Auswertung[[#This Row],[Platz]]=6,CONCATENATE(Tabelle_Auswertung[[#This Row],[Bildname]],\" von \",Tabelle_Auswertung[[#This Row],[Autor(in)]]),\"\")","v":""},{"$f":"IF(Tabelle_Auswertung[[#This Row],[Platz]]=7,CONCATENATE(Tabelle_Auswertung[[#This Row],[Bildname]],\" von \",Tabelle_Auswertung[[#This Row],[Autor(in)]]),\"\")","v":""},{"$f":"IF(Tabelle_Auswertung[[#This Row],[Platz]]=8,CONCATENATE(Tabelle_Auswertung[[#This Row],[Bildname]],\" von \",Tabelle_Auswertung[[#This Row],[Autor(in)]]),\"\")","v":""},{"$f":"IF(Tabelle_Auswertung[[#This Row],[Platz]]=9,CONCATENATE(Tabelle_Auswertung[[#This Row],[Bildname]],\" von \",Tabelle_Auswertung[[#This Row],[Autor(in)]]),\"\")","v":""},{"$f":"IF(Tabelle_Auswertung[[#This Row],[Platz]]=10,CONCATENATE(Tabelle_Auswertung[[#This Row],[Bildname]],\" von \",Tabelle_Auswertung[[#This Row],[Autor(in)]]),\"\")","v":""}]
[{"$nulls":22},{"$f":"IF(Tabelle_Auswertung[[#This Row],[Bildname]]<>\"\",SUM(Tabelle_Auswertung[[#This Row],[Juror 1]:[Juror 20]]),\" - \")","v":" - "},{"$f":"IF(Tabelle_Auswertung[[#This Row],[Bildname]]<>\"\",IF(Tabelle_Auswertung[[#This Row],[Punkte]]>0,AVERAGE(Tabelle_Auswertung[[#This Row],[Juror 1]:[Juror 20]]),\" - \"),\" - \")","v":" - "},{"$f":"IF(Tabelle_Auswertung[[#This Row],[Bildname]]<>\"\",IF(Tabelle_Auswertung[[#This Row],[Punkte]]>0,RANK(Tabelle_Auswertung[[#This Row],[Punkte]],[Punkte],0),\" - \"),\" - \")","v":" - "}," - - -",{"$f":"IF(Tabelle_Auswertung[[#This Row],[Platz]]=1,CONCATENATE(Tabelle_Auswertung[[#This Row],[Bildname]],\" von \",Tabelle_Auswertung[[#This Row],[Autor(in)]]),\"\")","v":""},{"$f":"IF(Tabelle_Auswertung[[#This Row],[Platz]]=2,CONCATENATE(Tabelle_Auswertung[[#This Row],[Bildname]],\" von \",Tabelle_Auswertung[[#This Row],[Autor(in)]]),\"\")","v":""},{"$f":"IF(Tabelle_Auswertung[[#This Row],[Platz]]=3,CONCATENATE(Tabelle_Auswertung[[#This Row],[Bildname]],\" von \",Tabelle_Auswertung[[#This Row],[Autor(in)]]),\"\")","v":""},{"$f":"IF(Tabelle_Auswertung[[#This Row],[Platz]]=4,CONCATENATE(Tabelle_Auswertung[[#This Row],[Bildname]],\" von \",Tabelle_Auswertung[[#This Row],[Autor(in)]]),\"\")","v":""},{"$f":"IF(Tabelle_Auswertung[[#This Row],[Platz]]=5,CONCATENATE(Tabelle_Auswertung[[#This Row],[Bildname]],\" von \",Tabelle_Auswertung[[#This Row],[Autor(in)]]),\"\")","v":""},{"$f":"IF(Tabelle_Auswertung[[#This Row],[Platz]]=6,CONCATENATE(Tabelle_Auswertung[[#This Row],[Bildname]],\" von \",Tabelle_Auswertung[[#This Row],[Autor(in)]]),\"\")","v":""},{"$f":"IF(Tabelle_Auswertung[[#This Row],[Platz]]=7,CONCATENATE(Tabelle_Auswertung[[#This Row],[Bildname]],\" von \",Tabelle_Auswertung[[#This Row],[Autor(in)]]),\"\")","v":""},{"$f":"IF(Tabelle_Auswertung[[#This Row],[Platz]]=8,CONCATENATE(Tabelle_Auswertung[[#This Row],[Bildname]],\" von \",Tabelle_Auswertung[[#This Row],[Autor(in)]]),\"\")","v":""},{"$f":"IF(Tabelle_Auswertung[[#This Row],[Platz]]=9,CONCATENATE(Tabelle_Auswertung[[#This Row],[Bildname]],\" von \",Tabelle_Auswertung[[#This Row],[Autor(in)]]),\"\")","v":""},{"$f":"IF(Tabelle_Auswertung[[#This Row],[Platz]]=10,CONCATENATE(Tabelle_Auswertung[[#This Row],[Bildname]],\" von \",Tabelle_Auswertung[[#This Row],[Autor(in)]]),\"\")","v":""}]
[{"$nulls":22},{"$f":"IF(Tabelle_Auswertung[[#This Row],[Bildname]]<>\"\",SUM(Tabelle_Auswertung[[#This Row],[Juror 1]:[Juror 20]]),\" - \")","v":" - "},{"$f":"IF(Tabelle_Auswertung[[#This Row],[Bildname]]<>\"\",IF(Tabelle_Auswertung[[#This Row],[Punkte]]>0,AVERAGE(Tabelle_Auswertung[[#This Row],[Juror 1]:[Juror 20]]),\" - \"),\" - \")","v":" - "},{"$f":"IF(Tabelle_Auswertung[[#This Row],[Bildname]]<>\"\",IF(Tabelle_Auswertung[[#This Row],[Punkte]]>0,RANK(Tabelle_Auswertung[[#This Row],[Punkte]],[Punkte],0),\" - \"),\" - \")","v":" - "}," - - -",{"$f":"IF(Tabelle_Auswertung[[#This Row],[Platz]]=1,CONCATENATE(Tabelle_Auswertung[[#This Row],[Bildname]],\" von \",Tabelle_Auswertung[[#This Row],[Autor(in)]]),\"\")","v":""},{"$f":"IF(Tabelle_Auswertung[[#This Row],[Platz]]=2,CONCATENATE(Tabelle_Auswertung[[#This Row],[Bildname]],\" von \",Tabelle_Auswertung[[#This Row],[Autor(in)]]),\"\")","v":""},{"$f":"IF(Tabelle_Auswertung[[#This Row],[Platz]]=3,CONCATENATE(Tabelle_Auswertung[[#This Row],[Bildname]],\" von \",Tabelle_Auswertung[[#This Row],[Autor(in)]]),\"\")","v":""},{"$f":"IF(Tabelle_Auswertung[[#This Row],[Platz]]=4,CONCATENATE(Tabelle_Auswertung[[#This Row],[Bildname]],\" von \",Tabelle_Auswertung[[#This Row],[Autor(in)]]),\"\")","v":""},{"$f":"IF(Tabelle_Auswertung[[#This Row],[Platz]]=5,CONCATENATE(Tabelle_Auswertung[[#This Row],[Bildname]],\" von \",Tabelle_Auswertung[[#This Row],[Autor(in)]]),\"\")","v":""},{"$f":"IF(Tabelle_Auswertung[[#This Row],[Platz]]=6,CONCATENATE(Tabelle_Auswertung[[#This Row],[Bildname]],\" von \",Tabelle_Auswertung[[#This Row],[Autor(in)]]),\"\")","v":""},{"$f":"IF(Tabelle_Auswertung[[#This Row],[Platz]]=7,CONCATENATE(Tabelle_Auswertung[[#This Row],[Bildname]],\" von \",Tabelle_Auswertung[[#This Row],[Autor(in)]]),\"\")","v":""},{"$f":"IF(Tabelle_Auswertung[[#This Row],[Platz]]=8,CONCATENATE(Tabelle_Auswertung[[#This Row],[Bildname]],\" von \",Tabelle_Auswertung[[#This Row],[Autor(in)]]),\"\")","v":""},{"$f":"IF(Tabelle_Auswertung[[#This Row],[Platz]]=9,CONCATENATE(Tabelle_Auswertung[[#This Row],[Bildname]],\" von \",Tabelle_Auswertung[[#This Row],[Autor(in)]]),\"\")","v":""},{"$f":"IF(Tabelle_Auswertung[[#This Row],[Platz]]=10,CONCATENATE(Tabelle_Auswertung[[#This Row],[Bildname]],\" von \",Tabelle_Auswertung[[#This Row],[Autor(in)]]),\"\")","v":""}]
[{"$nulls":22},{"$f":"IF(Tabelle_Auswertung[[#This Row],[Bildname]]<>\"\",SUM(Tabelle_Auswertung[[#This Row],[Juror 1]:[Juror 20]]),\" - \")","v":" - "},{"$f":"IF(Tabelle_Auswertung[[#This Row],[Bildname]]<>\"\",IF(Tabelle_Auswertung[[#This Row],[Punkte]]>0,AVERAGE(Tabelle_Auswertung[[#This Row],[Juror 1]:[Juror 20]]),\" - \"),\" - \")","v":" - "},{"$f":"IF(Tabelle_Auswertung[[#This Row],[Bildname]]<>\"\",IF(Tabelle_Auswertung[[#This Row],[Punkte]]>0,RANK(Tabelle_Auswertung[[#This Row],[Punkte]],[Punkte],0),\" - \"),\" - \")","v":" - "}," - - -",{"$f":"IF(Tabelle_Auswertung[[#This Row],[Platz]]=1,CONCATENATE(Tabelle_Auswertung[[#This Row],[Bildname]],\" von \",Tabelle_Auswertung[[#This Row],[Autor(in)]]),\"\")","v":""},{"$f":"IF(Tabelle_Auswertung[[#This Row],[Platz]]=2,CONCATENATE(Tabelle_Auswertung[[#This Row],[Bildname]],\" von \",Tabelle_Auswertung[[#This Row],[Autor(in)]]),\"\")","v":""},{"$f":"IF(Tabelle_Auswertung[[#This Row],[Platz]]=3,CONCATENATE(Tabelle_Auswertung[[#This Row],[Bildname]],\" von \",Tabelle_Auswertung[[#This Row],[Autor(in)]]),\"\")","v":""},{"$f":"IF(Tabelle_Auswertung[[#This Row],[Platz]]=4,CONCATENATE(Tabelle_Auswertung[[#This Row],[Bildname]],\" von \",Tabelle_Auswertung[[#This Row],[Autor(in)]]),\"\")","v":""},{"$f":"IF(Tabelle_Auswertung[[#This Row],[Platz]]=5,CONCATENATE(Tabelle_Auswertung[[#This Row],[Bildname]],\" von \",Tabelle_Auswertung[[#This Row],[Autor(in)]]),\"\")","v":""},{"$f":"IF(Tabelle_Auswertung[[#This Row],[Platz]]=6,CONCATENATE(Tabelle_Auswertung[[#This Row],[Bildname]],\" von \",Tabelle_Auswertung[[#This Row],[Autor(in)]]),\"\")","v":""},{"$f":"IF(Tabelle_Auswertung[[#This Row],[Platz]]=7,CONCATENATE(Tabelle_Auswertung[[#This Row],[Bildname]],\" von \",Tabelle_Auswertung[[#This Row],[Autor(in)]]),\"\")","v":""},{"$f":"IF(Tabelle_Auswertung[[#This Row],[Platz]]=8,CONCATENATE(Tabelle_Auswertung[[#This Row],[Bildname]],\" von \",Tabelle_Auswertung[[#This Row],[Autor(in)]]),\"\")","v":""},{"$f":"IF(Tabelle_Auswertung[[#This Row],[Platz]]=9,CONCATENATE(Tabelle_Auswertung[[#This Row],[Bildname]],\" von \",Tabelle_Auswertung[[#This Row],[Autor(in)]]),\"\")","v":""},{"$f":"IF(Tabelle_Auswertung[[#This Row],[Platz]]=10,CONCATENATE(Tabelle_Auswertung[[#This Row],[Bildname]],\" von \",Tabelle_Auswertung[[#This Row],[Autor(in)]]),\"\")","v":""}]
[{"$nulls":22},{"$f":"IF(Tabelle_Auswertung[[#This Row],[Bildname]]<>\"\",SUM(Tabelle_Auswertung[[#This Row],[Juror 1]:[Juror 20]]),\" - \")","v":" - "},{"$f":"IF(Tabelle_Auswertung[[#This Row],[Bildname]]<>\"\",IF(Tabelle_Auswertung[[#This Row],[Punkte]]>0,AVERAGE(Tabelle_Auswertung[[#This Row],[Juror 1]:[Juror 20]]),\" - \"),\" - \")","v":" - "},{"$f":"IF(Tabelle_Auswertung[[#This Row],[Bildname]]<>\"\",IF(Tabelle_Auswertung[[#This Row],[Punkte]]>0,RANK(Tabelle_Auswertung[[#This Row],[Punkte]],[Punkte],0),\" - \"),\" - \")","v":" - "}," - - -",{"$f":"IF(Tabelle_Auswertung[[#This Row],[Platz]]=1,CONCATENATE(Tabelle_Auswertung[[#This Row],[Bildname]],\" von \",Tabelle_Auswertung[[#This Row],[Autor(in)]]),\"\")","v":""},{"$f":"IF(Tabelle_Auswertung[[#This Row],[Platz]]=2,CONCATENATE(Tabelle_Auswertung[[#This Row],[Bildname]],\" von \",Tabelle_Auswertung[[#This Row],[Autor(in)]]),\"\")","v":""},{"$f":"IF(Tabelle_Auswertung[[#This Row],[Platz]]=3,CONCATENATE(Tabelle_Auswertung[[#This Row],[Bildname]],\" von \",Tabelle_Auswertung[[#This Row],[Autor(in)]]),\"\")","v":""},{"$f":"IF(Tabelle_Auswertung[[#This Row],[Platz]]=4,CONCATENATE(Tabelle_Auswertung[[#This Row],[Bildname]],\" von \",Tabelle_Auswertung[[#This Row],[Autor(in)]]),\"\")","v":""},{"$f":"IF(Tabelle_Auswertung[[#This Row],[Platz]]=5,CONCATENATE(Tabelle_Auswertung[[#This Row],[Bildname]],\" von \",Tabelle_Auswertung[[#This Row],[Autor(in)]]),\"\")","v":""},{"$f":"IF(Tabelle_Auswertung[[#This Row],[Platz]]=6,CONCATENATE(Tabelle_Auswertung[[#This Row],[Bildname]],\" von \",Tabelle_Auswertung[[#This Row],[Autor(in)]]),\"\")","v":""},{"$f":"IF(Tabelle_Auswertung[[#This Row],[Platz]]=7,CONCATENATE(Tabelle_Auswertung[[#This Row],[Bildname]],\" von \",Tabelle_Auswertung[[#This Row],[Autor(in)]]),\"\")","v":""},{"$f":"IF(Tabelle_Auswertung[[#This Row],[Platz]]=8,CONCATENATE(Tabelle_Auswertung[[#This Row],[Bildname]],\" von \",Tabelle_Auswertung[[#This Row],[Autor(in)]]),\"\")","v":""},{"$f":"IF(Tabelle_Auswertung[[#This Row],[Platz]]=9,CONCATENATE(Tabelle_Auswertung[[#This Row],[Bildname]],\" von \",Tabelle_Auswertung[[#This Row],[Autor(in)]]),\"\")","v":""},{"$f":"IF(Tabelle_Auswertung[[#This Row],[Platz]]=10,CONCATENATE(Tabelle_Auswertung[[#This Row],[Bildname]],\" von \",Tabelle_Auswertung[[#This Row],[Autor(in)]]),\"\")","v":""}]
[{"$nulls":22},{"$f":"IF(Tabelle_Auswertung[[#This Row],[Bildname]]<>\"\",SUM(Tabelle_Auswertung[[#This Row],[Juror 1]:[Juror 20]]),\" - \")","v":" - "},{"$f":"IF(Tabelle_Auswertung[[#This Row],[Bildname]]<>\"\",IF(Tabelle_Auswertung[[#This Row],[Punkte]]>0,AVERAGE(Tabelle_Auswertung[[#This Row],[Juror 1]:[Juror 20]]),\" - \"),\" - \")","v":" - "},{"$f":"IF(Tabelle_Auswertung[[#This Row],[Bildname]]<>\"\",IF(Tabelle_Auswertung[[#This Row],[Punkte]]>0,RANK(Tabelle_Auswertung[[#This Row],[Punkte]],[Punkte],0),\" - \"),\" - \")","v":" - "}," - - -",{"$f":"IF(Tabelle_Auswertung[[#This Row],[Platz]]=1,CONCATENATE(Tabelle_Auswertung[[#This Row],[Bildname]],\" von \",Tabelle_Auswertung[[#This Row],[Autor(in)]]),\"\")","v":""},{"$f":"IF(Tabelle_Auswertung[[#This Row],[Platz]]=2,CONCATENATE(Tabelle_Auswertung[[#This Row],[Bildname]],\" von \",Tabelle_Auswertung[[#This Row],[Autor(in)]]),\"\")","v":""},{"$f":"IF(Tabelle_Auswertung[[#This Row],[Platz]]=3,CONCATENATE(Tabelle_Auswertung[[#This Row],[Bildname]],\" von \",Tabelle_Auswertung[[#This Row],[Autor(in)]]),\"\")","v":""},{"$f":"IF(Tabelle_Auswertung[[#This Row],[Platz]]=4,CONCATENATE(Tabelle_Auswertung[[#This Row],[Bildname]],\" von \",Tabelle_Auswertung[[#This Row],[Autor(in)]]),\"\")","v":""},{"$f":"IF(Tabelle_Auswertung[[#This Row],[Platz]]=5,CONCATENATE(Tabelle_Auswertung[[#This Row],[Bildname]],\" von \",Tabelle_Auswertung[[#This Row],[Autor(in)]]),\"\")","v":""},{"$f":"IF(Tabelle_Auswertung[[#This Row],[Platz]]=6,CONCATENATE(Tabelle_Auswertung[[#This Row],[Bildname]],\" von \",Tabelle_Auswertung[[#This Row],[Autor(in)]]),\"\")","v":""},{"$f":"IF(Tabelle_Auswertung[[#This Row],[Platz]]=7,CONCATENATE(Tabelle_Auswertung[[#This Row],[Bildname]],\" von \",Tabelle_Auswertung[[#This Row],[Autor(in)]]),\"\")","v":""},{"$f":"IF(Tabelle_Auswertung[[#This Row],[Platz]]=8,CONCATENATE(Tabelle_Auswertung[[#This Row],[Bildname]],\" von \",Tabelle_Auswertung[[#This Row],[Autor(in)]]),\"\")","v":""},{"$f":"IF(Tabelle_Auswertung[[#This Row],[Platz]]=9,CONCATENATE(Tabelle_Auswertung[[#This Row],[Bildname]],\" von \",Tabelle_Auswertung[[#This Row],[Autor(in)]]),\"\")","v":""},{"$f":"IF(Tabelle_Auswertung[[#This Row],[Platz]]=10,CONCATENATE(Tabelle_Auswertung[[#This Row],[Bildname]],\" von \",Tabelle_Auswertung[[#This Row],[Autor(in)]]),\"\")","v":""}]
[{"$nulls":22},{"$f":"IF(Tabelle_Auswertung[[#This Row],[Bildname]]<>\"\",SUM(Tabelle_Auswertung[[#This Row],[Juror 1]:[Juror 20]]),\" - \")","v":" - "},{"$f":"IF(Tabelle_Auswertung[[#This Row],[Bildname]]<>\"\",IF(Tabelle_Auswertung[[#This Row],[Punkte]]>0,AVERAGE(Tabelle_Auswertung[[#This Row],[Juror 1]:[Juror 20]]),\" - \"),\" - \")","v":" - "},{"$f":"IF(Tabelle_Auswertung[[#This Row],[Bildname]]<>\"\",IF(Tabelle_Auswertung[[#This Row],[Punkte]]>0,RANK(Tabelle_Auswertung[[#This Row],[Punkte]],[Punkte],0),\" - \"),\" - \")","v":" - "}," - - -",{"$f":"IF(Tabelle_Auswertung[[#This Row],[Platz]]=1,CONCATENATE(Tabelle_Auswertung[[#This Row],[Bildname]],\" von \",Tabelle_Auswertung[[#This Row],[Autor(in)]]),\"\")","v":""},{"$f":"IF(Tabelle_Auswertung[[#This Row],[Platz]]=2,CONCATENATE(Tabelle_Auswertung[[#This Row],[Bildname]],\" von \",Tabelle_Auswertung[[#This Row],[Autor(in)]]),\"\")","v":""},{"$f":"IF(Tabelle_Auswertung[[#This Row],[Platz]]=3,CONCATENATE(Tabelle_Auswertung[[#This Row],[Bildname]],\" von \",Tabelle_Auswertung[[#This Row],[Autor(in)]]),\"\")","v":""},{"$f":"IF(Tabelle_Auswertung[[#This Row],[Platz]]=4,CONCATENATE(Tabelle_Auswertung[[#This Row],[Bildname]],\" von \",Tabelle_Auswertung[[#This Row],[Autor(in)]]),\"\")","v":""},{"$f":"IF(Tabelle_Auswertung[[#This Row],[Platz]]=5,CONCATENATE(Tabelle_Auswertung[[#This Row],[Bildname]],\" von \",Tabelle_Auswertung[[#This Row],[Autor(in)]]),\"\")","v":""},{"$f":"IF(Tabelle_Auswertung[[#This Row],[Platz]]=6,CONCATENATE(Tabelle_Auswertung[[#This Row],[Bildname]],\" von \",Tabelle_Auswertung[[#This Row],[Autor(in)]]),\"\")","v":""},{"$f":"IF(Tabelle_Auswertung[[#This Row],[Platz]]=7,CONCATENATE(Tabelle_Auswertung[[#This Row],[Bildname]],\" von \",Tabelle_Auswertung[[#This Row],[Autor(in)]]),\"\")","v":""},{"$f":"IF(Tabelle_Auswertung[[#This Row],[Platz]]=8,CONCATENATE(Tabelle_Auswertung[[#This Row],[Bildname]],\" von \",Tabelle_Auswertung[[#This Row],[Autor(in)]]),\"\")","v":""},{"$f":"IF(Tabelle_Auswertung[[#This Row],[Platz]]=9,CONCATENATE(Tabelle_Auswertung[[#This Row],[Bildname]],\" von \",Tabelle_Auswertung[[#This Row],[Autor(in)]]),\"\")","v":""},{"$f":"IF(Tabelle_Auswertung[[#This Row],[Platz]]=10,CONCATENATE(Tabelle_Auswertung[[#This Row],[Bildname]],\" von \",Tabelle_Auswertung[[#This Row],[Autor(in)]]),\"\")","v":""}]
[{"$nulls":22},{"$f":"IF(Tabelle_Auswertung[[#This Row],[Bildname]]<>\"\",SUM(Tabelle_Auswertung[[#This Row],[Juror 1]:[Juror 20]]),\" - \")","v":" - "},{"$f":"IF(Tabelle_Auswertung[[#This Row],[Bildname]]<>\"\",IF(Tabelle_Auswertung[[#This Row],[Punkte]]>0,AVERAGE(Tabelle_Auswertung[[#This Row],[Juror 1]:[Juror 20]]),\" - \"),\" - \")","v":" - "},{"$f":"IF(Tabelle_Auswertung[[#This Row],[Bildname]]<>\"\",IF(Tabelle_Auswertung[[#This Row],[Punkte]]>0,RANK(Tabelle_Auswertung[[#This Row],[Punkte]],[Punkte],0),\" - \"),\" - \")","v":" - "}," - - -",{"$f":"IF(Tabelle_Auswertung[[#This Row],[Platz]]=1,CONCATENATE(Tabelle_Auswertung[[#This Row],[Bildname]],\" von \",Tabelle_Auswertung[[#This Row],[Autor(in)]]),\"\")","v":""},{"$f":"IF(Tabelle_Auswertung[[#This Row],[Platz]]=2,CONCATENATE(Tabelle_Auswertung[[#This Row],[Bildname]],\" von \",Tabelle_Auswertung[[#This Row],[Autor(in)]]),\"\")","v":""},{"$f":"IF(Tabelle_Auswertung[[#This Row],[Platz]]=3,CONCATENATE(Tabelle_Auswertung[[#This Row],[Bildname]],\" von \",Tabelle_Auswertung[[#This Row],[Autor(in)]]),\"\")","v":""},{"$f":"IF(Tabelle_Auswertung[[#This Row],[Platz]]=4,CONCATENATE(Tabelle_Auswertung[[#This Row],[Bildname]],\" von \",Tabelle_Auswertung[[#This Row],[Autor(in)]]),\"\")","v":""},{"$f":"IF(Tabelle_Auswertung[[#This Row],[Platz]]=5,CONCATENATE(Tabelle_Auswertung[[#This Row],[Bildname]],\" von \",Tabelle_Auswertung[[#This Row],[Autor(in)]]),\"\")","v":""},{"$f":"IF(Tabelle_Auswertung[[#This Row],[Platz]]=6,CONCATENATE(Tabelle_Auswertung[[#This Row],[Bildname]],\" von \",Tabelle_Auswertung[[#This Row],[Autor(in)]]),\"\")","v":""},{"$f":"IF(Tabelle_Auswertung[[#This Row],[Platz]]=7,CONCATENATE(Tabelle_Auswertung[[#This Row],[Bildname]],\" von \",Tabelle_Auswertung[[#This Row],[Autor(in)]]),\"\")","v":""},{"$f":"IF(Tabelle_Auswertung[[#This Row],[Platz]]=8,CONCATENATE(Tabelle_Auswertung[[#This Row],[Bildname]],\" von \",Tabelle_Auswertung[[#This Row],[Autor(in)]]),\"\")","v":""},{"$f":"IF(Tabelle_Auswertung[[#This Row],[Platz]]=9,CONCATENATE(Tabelle_Auswertung[[#This Row],[Bildname]],\" von \",Tabelle_Auswertung[[#This Row],[Autor(in)]]),\"\")","v":""},{"$f":"IF(Tabelle_Auswertung[[#This Row],[Platz]]=10,CONCATENATE(Tabelle_Auswertung[[#This Row],[Bildname]],\" von \",Tabelle_Auswertung[[#This Row],[Autor(in)]]),\"\")","v":""}]
[{"$nulls":22},{"$f":"IF(Tabelle_Auswertung[[#This Row],[Bildname]]<>\"\",SUM(Tabelle_Auswertung[[#This Row],[Juror 1]:[Juror 20]]),\" - \")","v":" - "},{"$f":"IF(Tabelle_Auswertung[[#This Row],[Bildname]]<>\"\",IF(Tabelle_Auswertung[[#This Row],[Punkte]]>0,AVERAGE(Tabelle_Auswertung[[#This Row],[Juror 1]:[Juror 20]]),\" - \"),\" - \")","v":" - "},{"$f":"IF(Tabelle_Auswertung[[#This Row],[Bildname]]<>\"\",IF(Tabelle_Auswertung[[#This Row],[Punkte]]>0,RANK(Tabelle_Auswertung[[#This Row],[Punkte]],[Punkte],0),\" - \"),\" - \")","v":" - "}," - - -",{"$f":"IF(Tabelle_Auswertung[[#This Row],[Platz]]=1,CONCATENATE(Tabelle_Auswertung[[#This Row],[Bildname]],\" von \",Tabelle_Auswertung[[#This Row],[Autor(in)]]),\"\")","v":""},{"$f":"IF(Tabelle_Auswertung[[#This Row],[Platz]]=2,CONCATENATE(Tabelle_Auswertung[[#This Row],[Bildname]],\" von \",Tabelle_Auswertung[[#This Row],[Autor(in)]]),\"\")","v":""},{"$f":"IF(Tabelle_Auswertung[[#This Row],[Platz]]=3,CONCATENATE(Tabelle_Auswertung[[#This Row],[Bildname]],\" von \",Tabelle_Auswertung[[#This Row],[Autor(in)]]),\"\")","v":""},{"$f":"IF(Tabelle_Auswertung[[#This Row],[Platz]]=4,CONCATENATE(Tabelle_Auswertung[[#This Row],[Bildname]],\" von \",Tabelle_Auswertung[[#This Row],[Autor(in)]]),\"\")","v":""},{"$f":"IF(Tabelle_Auswertung[[#This Row],[Platz]]=5,CONCATENATE(Tabelle_Auswertung[[#This Row],[Bildname]],\" von \",Tabelle_Auswertung[[#This Row],[Autor(in)]]),\"\")","v":""},{"$f":"IF(Tabelle_Auswertung[[#This Row],[Platz]]=6,CONCATENATE(Tabelle_Auswertung[[#This Row],[Bildname]],\" von \",Tabelle_Auswertung[[#This Row],[Autor(in)]]),\"\")","v":""},{"$f":"IF(Tabelle_Auswertung[[#This Row],[Platz]]=7,CONCATENATE(Tabelle_Auswertung[[#This Row],[Bildname]],\" von \",Tabelle_Auswertung[[#This Row],[Autor(in)]]),\"\")","v":""},{"$f":"IF(Tabelle_Auswertung[[#This Row],[Platz]]=8,CONCATENATE(Tabelle_Auswertung[[#This Row],[Bildname]],\" von \",Tabelle_Auswertung[[#This Row],[Autor(in)]]),\"\")","v":""},{"$f":"IF(Tabelle_Auswertung[[#This Row],[Platz]]=9,CONCATENATE(Tabelle_Auswertung[[#This Row],[Bildname]],\" von \",Tabelle_Auswertung[[#This Row],[Autor(in)]]),\"\")","v":""},{"$f":"IF(Tabelle_Auswertung[[#This Row],[Platz]]=10,CONCATENATE(Tabelle_Auswertung[[#This Row],[Bildname]],\" von \",Tabelle_Auswertung[[#This Row],[Autor(in)]]),\"\")","v":""}]
[{"$nulls":22},{"$f":"IF(Tabelle_Auswertung[[#This Row],[Bildname]]<>\"\",SUM(Tabelle_Auswertung[[#This Row],[Juror 1]:[Juror 20]]),\" - \")","v":" - "},{"$f":"IF(Tabelle_Auswertung[[#This Row],[Bildname]]<>\"\",IF(Tabelle_Auswertung[[#This Row],[Punkte]]>0,AVERAGE(Tabelle_Auswertung[[#This Row],[Juror 1]:[Juror 20]]),\" - \"),\" - \")","v":" - "},{"$f":"IF(Tabelle_Auswertung[[#This Row],[Bildname]]<>\"\",IF(Tabelle_Auswertung[[#This Row],[Punkte]]>0,RANK(Tabelle_Auswertung[[#This Row],[Punkte]],[Punkte],0),\" - \"),\" - \")","v":" - "}," - - -",{"$f":"IF(Tabelle_Auswertung[[#This Row],[Platz]]=1,CONCATENATE(Tabelle_Auswertung[[#This Row],[Bildname]],\" von \",Tabelle_Auswertung[[#This Row],[Autor(in)]]),\"\")","v":""},{"$f":"IF(Tabelle_Auswertung[[#This Row],[Platz]]=2,CONCATENATE(Tabelle_Auswertung[[#This Row],[Bildname]],\" von \",Tabelle_Auswertung[[#This Row],[Autor(in)]]),\"\")","v":""},{"$f":"IF(Tabelle_Auswertung[[#This Row],[Platz]]=3,CONCATENATE(Tabelle_Auswertung[[#This Row],[Bildname]],\" von \",Tabelle_Auswertung[[#This Row],[Autor(in)]]),\"\")","v":""},{"$f":"IF(Tabelle_Auswertung[[#This Row],[Platz]]=4,CONCATENATE(Tabelle_Auswertung[[#This Row],[Bildname]],\" von \",Tabelle_Auswertung[[#This Row],[Autor(in)]]),\"\")","v":""},{"$f":"IF(Tabelle_Auswertung[[#This Row],[Platz]]=5,CONCATENATE(Tabelle_Auswertung[[#This Row],[Bildname]],\" von \",Tabelle_Auswertung[[#This Row],[Autor(in)]]),\"\")","v":""},{"$f":"IF(Tabelle_Auswertung[[#This Row],[Platz]]=6,CONCATENATE(Tabelle_Auswertung[[#This Row],[Bildname]],\" von \",Tabelle_Auswertung[[#This Row],[Autor(in)]]),\"\")","v":""},{"$f":"IF(Tabelle_Auswertung[[#This Row],[Platz]]=7,CONCATENATE(Tabelle_Auswertung[[#This Row],[Bildname]],\" von \",Tabelle_Auswertung[[#This Row],[Autor(in)]]),\"\")","v":""},{"$f":"IF(Tabelle_Auswertung[[#This Row],[Platz]]=8,CONCATENATE(Tabelle_Auswertung[[#This Row],[Bildname]],\" von \",Tabelle_Auswertung[[#This Row],[Autor(in)]]),\"\")","v":""},{"$f":"IF(Tabelle_Auswertung[[#This Row],[Platz]]=9,CONCATENATE(Tabelle_Auswertung[[#This Row],[Bildname]],\" von \",Tabelle_Auswertung[[#This Row],[Autor(in)]]),\"\")","v":""},{"$f":"IF(Tabelle_Auswertung[[#This Row],[Platz]]=10,CONCATENATE(Tabelle_Auswertung[[#This Row],[Bildname]],\" von \",Tabelle_Auswertung[[#This Row],[Autor(in)]]),\"\")","v":""}]
[{"$nulls":22},{"$f":"IF(Tabelle_Auswertung[[#This Row],[Bildname]]<>\"\",SUM(Tabelle_Auswertung[[#This Row],[Juror 1]:[Juror 20]]),\" - \")","v":" - "},{"$f":"IF(Tabelle_Auswertung[[#This Row],[Bildname]]<>\"\",IF(Tabelle_Auswertung[[#This Row],[Punkte]]>0,AVERAGE(Tabelle_Auswertung[[#This Row],[Juror 1]:[Juror 20]]),\" - \"),\" - \")","v":" - "},{"$f":"IF(Tabelle_Auswertung[[#This Row],[Bildname]]<>\"\",IF(Tabelle_Auswertung[[#This Row],[Punkte]]>0,RANK(Tabelle_Auswertung[[#This Row],[Punkte]],[Punkte],0),\" - \"),\" - \")","v":" - "}," - - -",{"$f":"IF(Tabelle_Auswertung[[#This Row],[Platz]]=1,CONCATENATE(Tabelle_Auswertung[[#This Row],[Bildname]],\" von \",Tabelle_Auswertung[[#This Row],[Autor(in)]]),\"\")","v":""},{"$f":"IF(Tabelle_Auswertung[[#This Row],[Platz]]=2,CONCATENATE(Tabelle_Auswertung[[#This Row],[Bildname]],\" von \",Tabelle_Auswertung[[#This Row],[Autor(in)]]),\"\")","v":""},{"$f":"IF(Tabelle_Auswertung[[#This Row],[Platz]]=3,CONCATENATE(Tabelle_Auswertung[[#This Row],[Bildname]],\" von \",Tabelle_Auswertung[[#This Row],[Autor(in)]]),\"\")","v":""},{"$f":"IF(Tabelle_Auswertung[[#This Row],[Platz]]=4,CONCATENATE(Tabelle_Auswertung[[#This Row],[Bildname]],\" von \",Tabelle_Auswertung[[#This Row],[Autor(in)]]),\"\")","v":""},{"$f":"IF(Tabelle_Auswertung[[#This Row],[Platz]]=5,CONCATENATE(Tabelle_Auswertung[[#This Row],[Bildname]],\" von \",Tabelle_Auswertung[[#This Row],[Autor(in)]]),\"\")","v":""},{"$f":"IF(Tabelle_Auswertung[[#This Row],[Platz]]=6,CONCATENATE(Tabelle_Auswertung[[#This Row],[Bildname]],\" von \",Tabelle_Auswertung[[#This Row],[Autor(in)]]),\"\")","v":""},{"$f":"IF(Tabelle_Auswertung[[#This Row],[Platz]]=7,CONCATENATE(Tabelle_Auswertung[[#This Row],[Bildname]],\" von \",Tabelle_Auswertung[[#This Row],[Autor(in)]]),\"\")","v":""},{"$f":"IF(Tabelle_Auswertung[[#This Row],[Platz]]=8,CONCATENATE(Tabelle_Auswertung[[#This Row],[Bildname]],\" von \",Tabelle_Auswertung[[#This Row],[Autor(in)]]),\"\")","v":""},{"$f":"IF(Tabelle_Auswertung[[#This Row],[Platz]]=9,CONCATENATE(Tabelle_Auswertung[[#This Row],[Bildname]],\" von \",Tabelle_Auswertung[[#This Row],[Autor(in)]]),\"\")","v":""},{"$f":"IF(Tabelle_Auswertung[[#This Row],[Platz]]=10,CONCATENATE(Tabelle_Auswertung[[#This Row],[Bildname]],\" von \",Tabelle_Auswertung[[#This Row],[Autor(in)]]),\"\")","v":""}]
[{"$nulls":22},{"$f":"IF(Tabelle_Auswertung[[#This Row],[Bildname]]<>\"\",SUM(Tabelle_Auswertung[[#This Row],[Juror 1]:[Juror 20]]),\" - \")","v":" - "},{"$f":"IF(Tabelle_Auswertung[[#This Row],[Bildname]]<>\"\",IF(Tabelle_Auswertung[[#This Row],[Punkte]]>0,AVERAGE(Tabelle_Auswertung[[#This Row],[Juror 1]:[Juror 20]]),\" - \"),\" - \")","v":" - "},{"$f":"IF(Tabelle_Auswertung[[#This Row],[Bildname]]<>\"\",IF(Tabelle_Auswertung[[#This Row],[Punkte]]>0,RANK(Tabelle_Auswertung[[#This Row],[Punkte]],[Punkte],0),\" - \"),\" - \")","v":" - "}," - - -",{"$f":"IF(Tabelle_Auswertung[[#This Row],[Platz]]=1,CONCATENATE(Tabelle_Auswertung[[#This Row],[Bildname]],\" von \",Tabelle_Auswertung[[#This Row],[Autor(in)]]),\"\")","v":""},{"$f":"IF(Tabelle_Auswertung[[#This Row],[Platz]]=2,CONCATENATE(Tabelle_Auswertung[[#This Row],[Bildname]],\" von \",Tabelle_Auswertung[[#This Row],[Autor(in)]]),\"\")","v":""},{"$f":"IF(Tabelle_Auswertung[[#This Row],[Platz]]=3,CONCATENATE(Tabelle_Auswertung[[#This Row],[Bildname]],\" von \",Tabelle_Auswertung[[#This Row],[Autor(in)]]),\"\")","v":""},{"$f":"IF(Tabelle_Auswertung[[#This Row],[Platz]]=4,CONCATENATE(Tabelle_Auswertung[[#This Row],[Bildname]],\" von \",Tabelle_Auswertung[[#This Row],[Autor(in)]]),\"\")","v":""},{"$f":"IF(Tabelle_Auswertung[[#This Row],[Platz]]=5,CONCATENATE(Tabelle_Auswertung[[#This Row],[Bildname]],\" von \",Tabelle_Auswertung[[#This Row],[Autor(in)]]),\"\")","v":""},{"$f":"IF(Tabelle_Auswertung[[#This Row],[Platz]]=6,CONCATENATE(Tabelle_Auswertung[[#This Row],[Bildname]],\" von \",Tabelle_Auswertung[[#This Row],[Autor(in)]]),\"\")","v":""},{"$f":"IF(Tabelle_Auswertung[[#This Row],[Platz]]=7,CONCATENATE(Tabelle_Auswertung[[#This Row],[Bildname]],\" von \",Tabelle_Auswertung[[#This Row],[Autor(in)]]),\"\")","v":""},{"$f":"IF(Tabelle_Auswertung[[#This Row],[Platz]]=8,CONCATENATE(Tabelle_Auswertung[[#This Row],[Bildname]],\" von \",Tabelle_Auswertung[[#This Row],[Autor(in)]]),\"\")","v":""},{"$f":"IF(Tabelle_Auswertung[[#This Row],[Platz]]=9,CONCATENATE(Tabelle_Auswertung[[#This Row],[Bildname]],\" von \",Tabelle_Auswertung[[#This Row],[Autor(in)]]),\"\")","v":""},{"$f":"IF(Tabelle_Auswertung[[#This Row],[Platz]]=10,CONCATENATE(Tabelle_Auswertung[[#This Row],[Bildname]],\" von \",Tabelle_Auswertung[[#This Row],[Autor(in)]]),\"\")","v":""}]
[{"$nulls":22},{"$f":"IF(Tabelle_Auswertung[[#This Row],[Bildname]]<>\"\",SUM(Tabelle_Auswertung[[#This Row],[Juror 1]:[Juror 20]]),\" - \")","v":" - "},{"$f":"IF(Tabelle_Auswertung[[#This Row],[Bildname]]<>\"\",IF(Tabelle_Auswertung[[#This Row],[Punkte]]>0,AVERAGE(Tabelle_Auswertung[[#This Row],[Juror 1]:[Juror 20]]),\" - \"),\" - \")","v":" - "},{"$f":"IF(Tabelle_Auswertung[[#This Row],[Bildname]]<>\"\",IF(Tabelle_Auswertung[[#This Row],[Punkte]]>0,RANK(Tabelle_Auswertung[[#This Row],[Punkte]],[Punkte],0),\" - \"),\" - \")","v":" - "}," - - -",{"$f":"IF(Tabelle_Auswertung[[#This Row],[Platz]]=1,CONCATENATE(Tabelle_Auswertung[[#This Row],[Bildname]],\" von \",Tabelle_Auswertung[[#This Row],[Autor(in)]]),\"\")","v":""},{"$f":"IF(Tabelle_Auswertung[[#This Row],[Platz]]=2,CONCATENATE(Tabelle_Auswertung[[#This Row],[Bildname]],\" von \",Tabelle_Auswertung[[#This Row],[Autor(in)]]),\"\")","v":""},{"$f":"IF(Tabelle_Auswertung[[#This Row],[Platz]]=3,CONCATENATE(Tabelle_Auswertung[[#This Row],[Bildname]],\" von \",Tabelle_Auswertung[[#This Row],[Autor(in)]]),\"\")","v":""},{"$f":"IF(Tabelle_Auswertung[[#This Row],[Platz]]=4,CONCATENATE(Tabelle_Auswertung[[#This Row],[Bildname]],\" von \",Tabelle_Auswertung[[#This Row],[Autor(in)]]),\"\")","v":""},{"$f":"IF(Tabelle_Auswertung[[#This Row],[Platz]]=5,CONCATENATE(Tabelle_Auswertung[[#This Row],[Bildname]],\" von \",Tabelle_Auswertung[[#This Row],[Autor(in)]]),\"\")","v":""},{"$f":"IF(Tabelle_Auswertung[[#This Row],[Platz]]=6,CONCATENATE(Tabelle_Auswertung[[#This Row],[Bildname]],\" von \",Tabelle_Auswertung[[#This Row],[Autor(in)]]),\"\")","v":""},{"$f":"IF(Tabelle_Auswertung[[#This Row],[Platz]]=7,CONCATENATE(Tabelle_Auswertung[[#This Row],[Bildname]],\" von \",Tabelle_Auswertung[[#This Row],[Autor(in)]]),\"\")","v":""},{"$f":"IF(Tabelle_Auswertung[[#This Row],[Platz]]=8,CONCATENATE(Tabelle_Auswertung[[#This Row],[Bildname]],\" von \",Tabelle_Auswertung[[#This Row],[Autor(in)]]),\"\")","v":""},{"$f":"IF(Tabelle_Auswertung[[#This Row],[Platz]]=9,CONCATENATE(Tabelle_Auswertung[[#This Row],[Bildname]],\" von \",Tabelle_Auswertung[[#This Row],[Autor(in)]]),\"\")","v":""},{"$f":"IF(Tabelle_Auswertung[[#This Row],[Platz]]=10,CONCATENATE(Tabelle_Auswertung[[#This Row],[Bildname]],\" von \",Tabelle_Auswertung[[#This Row],[Autor(in)]]),\"\")","v":""}]
[{"$nulls":22},{"$f":"IF(Tabelle_Auswertung[[#This Row],[Bildname]]<>\"\",SUM(Tabelle_Auswertung[[#This Row],[Juror 1]:[Juror 20]]),\" - \")","v":" - "},{"$f":"IF(Tabelle_Auswertung[[#This Row],[Bildname]]<>\"\",IF(Tabelle_Auswertung[[#This Row],[Punkte]]>0,AVERAGE(Tabelle_Auswertung[[#This Row],[Juror 1]:[Juror 20]]),\" - \"),\" - \")","v":" - "},{"$f":"IF(Tabelle_Auswertung[[#This Row],[Bildname]]<>\"\",IF(Tabelle_Auswertung[[#This Row],[Punkte]]>0,RANK(Tabelle_Auswertung[[#This Row],[Punkte]],[Punkte],0),\" - \"),\" - \")","v":" - "}," - - -",{"$f":"IF(Tabelle_Auswertung[[#This Row],[Platz]]=1,CONCATENATE(Tabelle_Auswertung[[#This Row],[Bildname]],\" von \",Tabelle_Auswertung[[#This Row],[Autor(in)]]),\"\")","v":""},{"$f":"IF(Tabelle_Auswertung[[#This Row],[Platz]]=2,CONCATENATE(Tabelle_Auswertung[[#This Row],[Bildname]],\" von \",Tabelle_Auswertung[[#This Row],[Autor(in)]]),\"\")","v":""},{"$f":"IF(Tabelle_Auswertung[[#This Row],[Platz]]=3,CONCATENATE(Tabelle_Auswertung[[#This Row],[Bildname]],\" von \",Tabelle_Auswertung[[#This Row],[Autor(in)]]),\"\")","v":""},{"$f":"IF(Tabelle_Auswertung[[#This Row],[Platz]]=4,CONCATENATE(Tabelle_Auswertung[[#This Row],[Bildname]],\" von \",Tabelle_Auswertung[[#This Row],[Autor(in)]]),\"\")","v":""},{"$f":"IF(Tabelle_Auswertung[[#This Row],[Platz]]=5,CONCATENATE(Tabelle_Auswertung[[#This Row],[Bildname]],\" von \",Tabelle_Auswertung[[#This Row],[Autor(in)]]),\"\")","v":""},{"$f":"IF(Tabelle_Auswertung[[#This Row],[Platz]]=6,CONCATENATE(Tabelle_Auswertung[[#This Row],[Bildname]],\" von \",Tabelle_Auswertung[[#This Row],[Autor(in)]]),\"\")","v":""},{"$f":"IF(Tabelle_Auswertung[[#This Row],[Platz]]=7,CONCATENATE(Tabelle_Auswertung[[#This Row],[Bildname]],\" von \",Tabelle_Auswertung[[#This Row],[Autor(in)]]),\"\")","v":""},{"$f":"IF(Tabelle_Auswertung[[#This Row],[Platz]]=8,CONCATENATE(Tabelle_Auswertung[[#This Row],[Bildname]],\" von \",Tabelle_Auswertung[[#This Row],[Autor(in)]]),\"\")","v":""},{"$f":"IF(Tabelle_Auswertung[[#This Row],[Platz]]=9,CONCATENATE(Tabelle_Auswertung[[#This Row],[Bildname]],\" von \",Tabelle_Auswertung[[#This Row],[Autor(in)]]),\"\")","v":""},{"$f":"IF(Tabelle_Auswertung[[#This Row],[Platz]]=10,CONCATENATE(Tabelle_Auswertung[[#This Row],[Bildname]],\" von \",Tabelle_Auswertung[[#This Row],[Autor(in)]]),\"\")","v":""}]
[{"$nulls":22},{"$f":"IF(Tabelle_Auswertung[[#This Row],[Bildname]]<>\"\",SUM(Tabelle_Auswertung[[#This Row],[Juror 1]:[Juror 20]]),\" - \")","v":" - "},{"$f":"IF(Tabelle_Auswertung[[#This Row],[Bildname]]<>\"\",IF(Tabelle_Auswertung[[#This Row],[Punkte]]>0,AVERAGE(Tabelle_Auswertung[[#This Row],[Juror 1]:[Juror 20]]),\" - \"),\" - \")","v":" - "},{"$f":"IF(Tabelle_Auswertung[[#This Row],[Bildname]]<>\"\",IF(Tabelle_Auswertung[[#This Row],[Punkte]]>0,RANK(Tabelle_Auswertung[[#This Row],[Punkte]],[Punkte],0),\" - \"),\" - \")","v":" - "}," - - -",{"$f":"IF(Tabelle_Auswertung[[#This Row],[Platz]]=1,CONCATENATE(Tabelle_Auswertung[[#This Row],[Bildname]],\" von \",Tabelle_Auswertung[[#This Row],[Autor(in)]]),\"\")","v":""},{"$f":"IF(Tabelle_Auswertung[[#This Row],[Platz]]=2,CONCATENATE(Tabelle_Auswertung[[#This Row],[Bildname]],\" von \",Tabelle_Auswertung[[#This Row],[Autor(in)]]),\"\")","v":""},{"$f":"IF(Tabelle_Auswertung[[#This Row],[Platz]]=3,CONCATENATE(Tabelle_Auswertung[[#This Row],[Bildname]],\" von \",Tabelle_Auswertung[[#This Row],[Autor(in)]]),\"\")","v":""},{"$f":"IF(Tabelle_Auswertung[[#This Row],[Platz]]=4,CONCATENATE(Tabelle_Auswertung[[#This Row],[Bildname]],\" von \",Tabelle_Auswertung[[#This Row],[Autor(in)]]),\"\")","v":""},{"$f":"IF(Tabelle_Auswertung[[#This Row],[Platz]]=5,CONCATENATE(Tabelle_Auswertung[[#This Row],[Bildname]],\" von \",Tabelle_Auswertung[[#This Row],[Autor(in)]]),\"\")","v":""},{"$f":"IF(Tabelle_Auswertung[[#This Row],[Platz]]=6,CONCATENATE(Tabelle_Auswertung[[#This Row],[Bildname]],\" von \",Tabelle_Auswertung[[#This Row],[Autor(in)]]),\"\")","v":""},{"$f":"IF(Tabelle_Auswertung[[#This Row],[Platz]]=7,CONCATENATE(Tabelle_Auswertung[[#This Row],[Bildname]],\" von \",Tabelle_Auswertung[[#This Row],[Autor(in)]]),\"\")","v":""},{"$f":"IF(Tabelle_Auswertung[[#This Row],[Platz]]=8,CONCATENATE(Tabelle_Auswertung[[#This Row],[Bildname]],\" von \",Tabelle_Auswertung[[#This Row],[Autor(in)]]),\"\")","v":""},{"$f":"IF(Tabelle_Auswertung[[#This Row],[Platz]]=9,CONCATENATE(Tabelle_Auswertung[[#This Row],[Bildname]],\" von \",Tabelle_Auswertung[[#This Row],[Autor(in)]]),\"\")","v":""},{"$f":"IF(Tabelle_Auswertung[[#This Row],[Platz]]=10,CONCATENATE(Tabelle_Auswertung[[#This Row],[Bildname]],\" von \",Tabelle_Auswertung[[#This Row],[Autor(in)]]),\"\")","v":""}]
[{"$nulls":22},{"$f":"IF(Tabelle_Auswertung[[#This Row],[Bildname]]<>\"\",SUM(Tabelle_Auswertung[[#This Row],[Juror 1]:[Juror 20]]),\" - \")","v":" - "},{"$f":"IF(Tabelle_Auswertung[[#This Row],[Bildname]]<>\"\",IF(Tabelle_Auswertung[[#This Row],[Punkte]]>0,AVERAGE(Tabelle_Auswertung[[#This Row],[Juror 1]:[Juror 20]]),\" - \"),\" - \")","v":" - "},{"$f":"IF(Tabelle_Auswertung[[#This Row],[Bildname]]<>\"\",IF(Tabelle_Auswertung[[#This Row],[Punkte]]>0,RANK(Tabelle_Auswertung[[#This Row],[Punkte]],[Punkte],0),\" - \"),\" - \")","v":" - "}," - - -",{"$f":"IF(Tabelle_Auswertung[[#This Row],[Platz]]=1,CONCATENATE(Tabelle_Auswertung[[#This Row],[Bildname]],\" von \",Tabelle_Auswertung[[#This Row],[Autor(in)]]),\"\")","v":""},{"$f":"IF(Tabelle_Auswertung[[#This Row],[Platz]]=2,CONCATENATE(Tabelle_Auswertung[[#This Row],[Bildname]],\" von \",Tabelle_Auswertung[[#This Row],[Autor(in)]]),\"\")","v":""},{"$f":"IF(Tabelle_Auswertung[[#This Row],[Platz]]=3,CONCATENATE(Tabelle_Auswertung[[#This Row],[Bildname]],\" von \",Tabelle_Auswertung[[#This Row],[Autor(in)]]),\"\")","v":""},{"$f":"IF(Tabelle_Auswertung[[#This Row],[Platz]]=4,CONCATENATE(Tabelle_Auswertung[[#This Row],[Bildname]],\" von \",Tabelle_Auswertung[[#This Row],[Autor(in)]]),\"\")","v":""},{"$f":"IF(Tabelle_Auswertung[[#This Row],[Platz]]=5,CONCATENATE(Tabelle_Auswertung[[#This Row],[Bildname]],\" von \",Tabelle_Auswertung[[#This Row],[Autor(in)]]),\"\")","v":""},{"$f":"IF(Tabelle_Auswertung[[#This Row],[Platz]]=6,CONCATENATE(Tabelle_Auswertung[[#This Row],[Bildname]],\" von \",Tabelle_Auswertung[[#This Row],[Autor(in)]]),\"\")","v":""},{"$f":"IF(Tabelle_Auswertung[[#This Row],[Platz]]=7,CONCATENATE(Tabelle_Auswertung[[#This Row],[Bildname]],\" von \",Tabelle_Auswertung[[#This Row],[Autor(in)]]),\"\")","v":""},{"$f":"IF(Tabelle_Auswertung[[#This Row],[Platz]]=8,CONCATENATE(Tabelle_Auswertung[[#This Row],[Bildname]],\" von \",Tabelle_Auswertung[[#This Row],[Autor(in)]]),\"\")","v":""},{"$f":"IF(Tabelle_Auswertung[[#This Row],[Platz]]=9,CONCATENATE(Tabelle_Auswertung[[#This Row],[Bildname]],\" von \",Tabelle_Auswertung[[#This Row],[Autor(in)]]),\"\")","v":""},{"$f":"IF(Tabelle_Auswertung[[#This Row],[Platz]]=10,CONCATENATE(Tabelle_Auswertung[[#This Row],[Bildname]],\" von \",Tabelle_Auswertung[[#This Row],[Autor(in)]]),\"\")","v":""}]
[{"$nulls":22},{"$f":"IF(Tabelle_Auswertung[[#This Row],[Bildname]]<>\"\",SUM(Tabelle_Auswertung[[#This Row],[Juror 1]:[Juror 20]]),\" - \")","v":" - "},{"$f":"IF(Tabelle_Auswertung[[#This Row],[Bildname]]<>\"\",IF(Tabelle_Auswertung[[#This Row],[Punkte]]>0,AVERAGE(Tabelle_Auswertung[[#This Row],[Juror 1]:[Juror 20]]),\" - \"),\" - \")","v":" - "},{"$f":"IF(Tabelle_Auswertung[[#This Row],[Bildname]]<>\"\",IF(Tabelle_Auswertung[[#This Row],[Punkte]]>0,RANK(Tabelle_Auswertung[[#This Row],[Punkte]],[Punkte],0),\" - \"),\" - \")","v":" - "}," - - -",{"$f":"IF(Tabelle_Auswertung[[#This Row],[Platz]]=1,CONCATENATE(Tabelle_Auswertung[[#This Row],[Bildname]],\" von \",Tabelle_Auswertung[[#This Row],[Autor(in)]]),\"\")","v":""},{"$f":"IF(Tabelle_Auswertung[[#This Row],[Platz]]=2,CONCATENATE(Tabelle_Auswertung[[#This Row],[Bildname]],\" von \",Tabelle_Auswertung[[#This Row],[Autor(in)]]),\"\")","v":""},{"$f":"IF(Tabelle_Auswertung[[#This Row],[Platz]]=3,CONCATENATE(Tabelle_Auswertung[[#This Row],[Bildname]],\" von \",Tabelle_Auswertung[[#This Row],[Autor(in)]]),\"\")","v":""},{"$f":"IF(Tabelle_Auswertung[[#This Row],[Platz]]=4,CONCATENATE(Tabelle_Auswertung[[#This Row],[Bildname]],\" von \",Tabelle_Auswertung[[#This Row],[Autor(in)]]),\"\")","v":""},{"$f":"IF(Tabelle_Auswertung[[#This Row],[Platz]]=5,CONCATENATE(Tabelle_Auswertung[[#This Row],[Bildname]],\" von \",Tabelle_Auswertung[[#This Row],[Autor(in)]]),\"\")","v":""},{"$f":"IF(Tabelle_Auswertung[[#This Row],[Platz]]=6,CONCATENATE(Tabelle_Auswertung[[#This Row],[Bildname]],\" von \",Tabelle_Auswertung[[#This Row],[Autor(in)]]),\"\")","v":""},{"$f":"IF(Tabelle_Auswertung[[#This Row],[Platz]]=7,CONCATENATE(Tabelle_Auswertung[[#This Row],[Bildname]],\" von \",Tabelle_Auswertung[[#This Row],[Autor(in)]]),\"\")","v":""},{"$f":"IF(Tabelle_Auswertung[[#This Row],[Platz]]=8,CONCATENATE(Tabelle_Auswertung[[#This Row],[Bildname]],\" von \",Tabelle_Auswertung[[#This Row],[Autor(in)]]),\"\")","v":""},{"$f":"IF(Tabelle_Auswertung[[#This Row],[Platz]]=9,CONCATENATE(Tabelle_Auswertung[[#This Row],[Bildname]],\" von \",Tabelle_Auswertung[[#This Row],[Autor(in)]]),\"\")","v":""},{"$f":"IF(Tabelle_Auswertung[[#This Row],[Platz]]=10,CONCATENATE(Tabelle_Auswertung[[#This Row],[Bildname]],\" von \",Tabelle_Auswertung[[#This Row],[Autor(in)]]),\"\")","v":""}]
[{"$nulls":22},{"$f":"IF(Tabelle_Auswertung[[#This Row],[Bildname]]<>\"\",SUM(Tabelle_Auswertung[[#This Row],[Juror 1]:[Juror 20]]),\" - \")","v":" - "},{"$f":"IF(Tabelle_Auswertung[[#This Row],[Bildname]]<>\"\",IF(Tabelle_Auswertung[[#This Row],[Punkte]]>0,AVERAGE(Tabelle_Auswertung[[#This Row],[Juror 1]:[Juror 20]]),\" - \"),\" - \")","v":" - "},{"$f":"IF(Tabelle_Auswertung[[#This Row],[Bildname]]<>\"\",IF(Tabelle_Auswertung[[#This Row],[Punkte]]>0,RANK(Tabelle_Auswertung[[#This Row],[Punkte]],[Punkte],0),\" - \"),\" - \")","v":" - "}," - - -",{"$f":"IF(Tabelle_Auswertung[[#This Row],[Platz]]=1,CONCATENATE(Tabelle_Auswertung[[#This Row],[Bildname]],\" von \",Tabelle_Auswertung[[#This Row],[Autor(in)]]),\"\")","v":""},{"$f":"IF(Tabelle_Auswertung[[#This Row],[Platz]]=2,CONCATENATE(Tabelle_Auswertung[[#This Row],[Bildname]],\" von \",Tabelle_Auswertung[[#This Row],[Autor(in)]]),\"\")","v":""},{"$f":"IF(Tabelle_Auswertung[[#This Row],[Platz]]=3,CONCATENATE(Tabelle_Auswertung[[#This Row],[Bildname]],\" von \",Tabelle_Auswertung[[#This Row],[Autor(in)]]),\"\")","v":""},{"$f":"IF(Tabelle_Auswertung[[#This Row],[Platz]]=4,CONCATENATE(Tabelle_Auswertung[[#This Row],[Bildname]],\" von \",Tabelle_Auswertung[[#This Row],[Autor(in)]]),\"\")","v":""},{"$f":"IF(Tabelle_Auswertung[[#This Row],[Platz]]=5,CONCATENATE(Tabelle_Auswertung[[#This Row],[Bildname]],\" von \",Tabelle_Auswertung[[#This Row],[Autor(in)]]),\"\")","v":""},{"$f":"IF(Tabelle_Auswertung[[#This Row],[Platz]]=6,CONCATENATE(Tabelle_Auswertung[[#This Row],[Bildname]],\" von \",Tabelle_Auswertung[[#This Row],[Autor(in)]]),\"\")","v":""},{"$f":"IF(Tabelle_Auswertung[[#This Row],[Platz]]=7,CONCATENATE(Tabelle_Auswertung[[#This Row],[Bildname]],\" von \",Tabelle_Auswertung[[#This Row],[Autor(in)]]),\"\")","v":""},{"$f":"IF(Tabelle_Auswertung[[#This Row],[Platz]]=8,CONCATENATE(Tabelle_Auswertung[[#This Row],[Bildname]],\" von \",Tabelle_Auswertung[[#This Row],[Autor(in)]]),\"\")","v":""},{"$f":"IF(Tabelle_Auswertung[[#This Row],[Platz]]=9,CONCATENATE(Tabelle_Auswertung[[#This Row],[Bildname]],\" von \",Tabelle_Auswertung[[#This Row],[Autor(in)]]),\"\")","v":""},{"$f":"IF(Tabelle_Auswertung[[#This Row],[Platz]]=10,CONCATENATE(Tabelle_Auswertung[[#This Row],[Bildname]],\" von \",Tabelle_Auswertung[[#This Row],[Autor(in)]]),\"\")","v":""}]
[{"$nulls":22},{"$f":"IF(Tabelle_Auswertung[[#This Row],[Bildname]]<>\"\",SUM(Tabelle_Auswertung[[#This Row],[Juror 1]:[Juror 20]]),\" - \")","v":" - "},{"$f":"IF(Tabelle_Auswertung[[#This Row],[Bildname]]<>\"\",IF(Tabelle_Auswertung[[#This Row],[Punkte]]>0,AVERAGE(Tabelle_Auswertung[[#This Row],[Juror 1]:[Juror 20]]),\" - \"),\" - \")","v":" - "},{"$f":"IF(Tabelle_Auswertung[[#This Row],[Bildname]]<>\"\",IF(Tabelle_Auswertung[[#This Row],[Punkte]]>0,RANK(Tabelle_Auswertung[[#This Row],[Punkte]],[Punkte],0),\" - \"),\" - \")","v":" - "}," - - -",{"$f":"IF(Tabelle_Auswertung[[#This Row],[Platz]]=1,CONCATENATE(Tabelle_Auswertung[[#This Row],[Bildname]],\" von \",Tabelle_Auswertung[[#This Row],[Autor(in)]]),\"\")","v":""},{"$f":"IF(Tabelle_Auswertung[[#This Row],[Platz]]=2,CONCATENATE(Tabelle_Auswertung[[#This Row],[Bildname]],\" von \",Tabelle_Auswertung[[#This Row],[Autor(in)]]),\"\")","v":""},{"$f":"IF(Tabelle_Auswertung[[#This Row],[Platz]]=3,CONCATENATE(Tabelle_Auswertung[[#This Row],[Bildname]],\" von \",Tabelle_Auswertung[[#This Row],[Autor(in)]]),\"\")","v":""},{"$f":"IF(Tabelle_Auswertung[[#This Row],[Platz]]=4,CONCATENATE(Tabelle_Auswertung[[#This Row],[Bildname]],\" von \",Tabelle_Auswertung[[#This Row],[Autor(in)]]),\"\")","v":""},{"$f":"IF(Tabelle_Auswertung[[#This Row],[Platz]]=5,CONCATENATE(Tabelle_Auswertung[[#This Row],[Bildname]],\" von \",Tabelle_Auswertung[[#This Row],[Autor(in)]]),\"\")","v":""},{"$f":"IF(Tabelle_Auswertung[[#This Row],[Platz]]=6,CONCATENATE(Tabelle_Auswertung[[#This Row],[Bildname]],\" von \",Tabelle_Auswertung[[#This Row],[Autor(in)]]),\"\")","v":""},{"$f":"IF(Tabelle_Auswertung[[#This Row],[Platz]]=7,CONCATENATE(Tabelle_Auswertung[[#This Row],[Bildname]],\" von \",Tabelle_Auswertung[[#This Row],[Autor(in)]]),\"\")","v":""},{"$f":"IF(Tabelle_Auswertung[[#This Row],[Platz]]=8,CONCATENATE(Tabelle_Auswertung[[#This Row],[Bildname]],\" von \",Tabelle_Auswertung[[#This Row],[Autor(in)]]),\"\")","v":""},{"$f":"IF(Tabelle_Auswertung[[#This Row],[Platz]]=9,CONCATENATE(Tabelle_Auswertung[[#This Row],[Bildname]],\" von \",Tabelle_Auswertung[[#This Row],[Autor(in)]]),\"\")","v":""},{"$f":"IF(Tabelle_Auswertung[[#This Row],[Platz]]=10,CONCATENATE(Tabelle_Auswertung[[#This Row],[Bildname]],\" von \",Tabelle_Auswertung[[#This Row],[Autor(in)]]),\"\")","v":""}]
[{"$nulls":22},{"$f":"IF(Tabelle_Auswertung[[#This Row],[Bildname]]<>\"\",SUM(Tabelle_Auswertung[[#This Row],[Juror 1]:[Juror 20]]),\" - \")","v":" - "},{"$f":"IF(Tabelle_Auswertung[[#This Row],[Bildname]]<>\"\",IF(Tabelle_Auswertung[[#This Row],[Punkte]]>0,AVERAGE(Tabelle_Auswertung[[#This Row],[Juror 1]:[Juror 20]]),\" - \"),\" - \")","v":" - "},{"$f":"IF(Tabelle_Auswertung[[#This Row],[Bildname]]<>\"\",IF(Tabelle_Auswertung[[#This Row],[Punkte]]>0,RANK(Tabelle_Auswertung[[#This Row],[Punkte]],[Punkte],0),\" - \"),\" - \")","v":" - "}," - - -",{"$f":"IF(Tabelle_Auswertung[[#This Row],[Platz]]=1,CONCATENATE(Tabelle_Auswertung[[#This Row],[Bildname]],\" von \",Tabelle_Auswertung[[#This Row],[Autor(in)]]),\"\")","v":""},{"$f":"IF(Tabelle_Auswertung[[#This Row],[Platz]]=2,CONCATENATE(Tabelle_Auswertung[[#This Row],[Bildname]],\" von \",Tabelle_Auswertung[[#This Row],[Autor(in)]]),\"\")","v":""},{"$f":"IF(Tabelle_Auswertung[[#This Row],[Platz]]=3,CONCATENATE(Tabelle_Auswertung[[#This Row],[Bildname]],\" von \",Tabelle_Auswertung[[#This Row],[Autor(in)]]),\"\")","v":""},{"$f":"IF(Tabelle_Auswertung[[#This Row],[Platz]]=4,CONCATENATE(Tabelle_Auswertung[[#This Row],[Bildname]],\" von \",Tabelle_Auswertung[[#This Row],[Autor(in)]]),\"\")","v":""},{"$f":"IF(Tabelle_Auswertung[[#This Row],[Platz]]=5,CONCATENATE(Tabelle_Auswertung[[#This Row],[Bildname]],\" von \",Tabelle_Auswertung[[#This Row],[Autor(in)]]),\"\")","v":""},{"$f":"IF(Tabelle_Auswertung[[#This Row],[Platz]]=6,CONCATENATE(Tabelle_Auswertung[[#This Row],[Bildname]],\" von \",Tabelle_Auswertung[[#This Row],[Autor(in)]]),\"\")","v":""},{"$f":"IF(Tabelle_Auswertung[[#This Row],[Platz]]=7,CONCATENATE(Tabelle_Auswertung[[#This Row],[Bildname]],\" von \",Tabelle_Auswertung[[#This Row],[Autor(in)]]),\"\")","v":""},{"$f":"IF(Tabelle_Auswertung[[#This Row],[Platz]]=8,CONCATENATE(Tabelle_Auswertung[[#This Row],[Bildname]],\" von \",Tabelle_Auswertung[[#This Row],[Autor(in)]]),\"\")","v":""},{"$f":"IF(Tabelle_Auswertung[[#This Row],[Platz]]=9,CONCATENATE(Tabelle_Auswertung[[#This Row],[Bildname]],\" von \",Tabelle_Auswertung[[#This Row],[Autor(in)]]),\"\")","v":""},{"$f":"IF(Tabelle_Auswertung[[#This Row],[Platz]]=10,CONCATENATE(Tabelle_Auswertung[[#This Row],[Bildname]],\" von \",Tabelle_Auswertung[[#This Row],[Autor(in)]]),\"\")","v":""}]
[{"$nulls":22},{"$f":"IF(Tabelle_Auswertung[[#This Row],[Bildname]]<>\"\",SUM(Tabelle_Auswertung[[#This Row],[Juror 1]:[Juror 20]]),\" - \")","v":" - "},{"$f":"IF(Tabelle_Auswertung[[#This Row],[Bildname]]<>\"\",IF(Tabelle_Auswertung[[#This Row],[Punkte]]>0,AVERAGE(Tabelle_Auswertung[[#This Row],[Juror 1]:[Juror 20]]),\" - \"),\" - \")","v":" - "},{"$f":"IF(Tabelle_Auswertung[[#This Row],[Bildname]]<>\"\",IF(Tabelle_Auswertung[[#This Row],[Punkte]]>0,RANK(Tabelle_Auswertung[[#This Row],[Punkte]],[Punkte],0),\" - \"),\" - \")","v":" - "}," - - -",{"$f":"IF(Tabelle_Auswertung[[#This Row],[Platz]]=1,CONCATENATE(Tabelle_Auswertung[[#This Row],[Bildname]],\" von \",Tabelle_Auswertung[[#This Row],[Autor(in)]]),\"\")","v":""},{"$f":"IF(Tabelle_Auswertung[[#This Row],[Platz]]=2,CONCATENATE(Tabelle_Auswertung[[#This Row],[Bildname]],\" von \",Tabelle_Auswertung[[#This Row],[Autor(in)]]),\"\")","v":""},{"$f":"IF(Tabelle_Auswertung[[#This Row],[Platz]]=3,CONCATENATE(Tabelle_Auswertung[[#This Row],[Bildname]],\" von \",Tabelle_Auswertung[[#This Row],[Autor(in)]]),\"\")","v":""},{"$f":"IF(Tabelle_Auswertung[[#This Row],[Platz]]=4,CONCATENATE(Tabelle_Auswertung[[#This Row],[Bildname]],\" von \",Tabelle_Auswertung[[#This Row],[Autor(in)]]),\"\")","v":""},{"$f":"IF(Tabelle_Auswertung[[#This Row],[Platz]]=5,CONCATENATE(Tabelle_Auswertung[[#This Row],[Bildname]],\" von \",Tabelle_Auswertung[[#This Row],[Autor(in)]]),\"\")","v":""},{"$f":"IF(Tabelle_Auswertung[[#This Row],[Platz]]=6,CONCATENATE(Tabelle_Auswertung[[#This Row],[Bildname]],\" von \",Tabelle_Auswertung[[#This Row],[Autor(in)]]),\"\")","v":""},{"$f":"IF(Tabelle_Auswertung[[#This Row],[Platz]]=7,CONCATENATE(Tabelle_Auswertung[[#This Row],[Bildname]],\" von \",Tabelle_Auswertung[[#This Row],[Autor(in)]]),\"\")","v":""},{"$f":"IF(Tabelle_Auswertung[[#This Row],[Platz]]=8,CONCATENATE(Tabelle_Auswertung[[#This Row],[Bildname]],\" von \",Tabelle_Auswertung[[#This Row],[Autor(in)]]),\"\")","v":""},{"$f":"IF(Tabelle_Auswertung[[#This Row],[Platz]]=9,CONCATENATE(Tabelle_Auswertung[[#This Row],[Bildname]],\" von \",Tabelle_Auswertung[[#This Row],[Autor(in)]]),\"\")","v":""},{"$f":"IF(Tabelle_Auswertung[[#This Row],[Platz]]=10,CONCATENATE(Tabelle_Auswertung[[#This Row],[Bildname]],\" von \",Tabelle_Auswertung[[#This Row],[Autor(in)]]),\"\")","v":""}]
[{"$nulls":22},{"$f":"IF(Tabelle_Auswertung[[#This Row],[Bildname]]<>\"\",SUM(Tabelle_Auswertung[[#This Row],[Juror 1]:[Juror 20]]),\" - \")","v":" - "},{"$f":"IF(Tabelle_Auswertung[[#This Row],[Bildname]]<>\"\",IF(Tabelle_Auswertung[[#This Row],[Punkte]]>0,AVERAGE(Tabelle_Auswertung[[#This Row],[Juror 1]:[Juror 20]]),\" - \"),\" - \")","v":" - "},{"$f":"IF(Tabelle_Auswertung[[#This Row],[Bildname]]<>\"\",IF(Tabelle_Auswertung[[#This Row],[Punkte]]>0,RANK(Tabelle_Auswertung[[#This Row],[Punkte]],[Punkte],0),\" - \"),\" - \")","v":" - "}," - - -",{"$f":"IF(Tabelle_Auswertung[[#This Row],[Platz]]=1,CONCATENATE(Tabelle_Auswertung[[#This Row],[Bildname]],\" von \",Tabelle_Auswertung[[#This Row],[Autor(in)]]),\"\")","v":""},{"$f":"IF(Tabelle_Auswertung[[#This Row],[Platz]]=2,CONCATENATE(Tabelle_Auswertung[[#This Row],[Bildname]],\" von \",Tabelle_Auswertung[[#This Row],[Autor(in)]]),\"\")","v":""},{"$f":"IF(Tabelle_Auswertung[[#This Row],[Platz]]=3,CONCATENATE(Tabelle_Auswertung[[#This Row],[Bildname]],\" von \",Tabelle_Auswertung[[#This Row],[Autor(in)]]),\"\")","v":""},{"$f":"IF(Tabelle_Auswertung[[#This Row],[Platz]]=4,CONCATENATE(Tabelle_Auswertung[[#This Row],[Bildname]],\" von \",Tabelle_Auswertung[[#This Row],[Autor(in)]]),\"\")","v":""},{"$f":"IF(Tabelle_Auswertung[[#This Row],[Platz]]=5,CONCATENATE(Tabelle_Auswertung[[#This Row],[Bildname]],\" von \",Tabelle_Auswertung[[#This Row],[Autor(in)]]),\"\")","v":""},{"$f":"IF(Tabelle_Auswertung[[#This Row],[Platz]]=6,CONCATENATE(Tabelle_Auswertung[[#This Row],[Bildname]],\" von \",Tabelle_Auswertung[[#This Row],[Autor(in)]]),\"\")","v":""},{"$f":"IF(Tabelle_Auswertung[[#This Row],[Platz]]=7,CONCATENATE(Tabelle_Auswertung[[#This Row],[Bildname]],\" von \",Tabelle_Auswertung[[#This Row],[Autor(in)]]),\"\")","v":""},{"$f":"IF(Tabelle_Auswertung[[#This Row],[Platz]]=8,CONCATENATE(Tabelle_Auswertung[[#This Row],[Bildname]],\" von \",Tabelle_Auswertung[[#This Row],[Autor(in)]]),\"\")","v":""},{"$f":"IF(Tabelle_Auswertung[[#This Row],[Platz]]=9,CONCATENATE(Tabelle_Auswertung[[#This Row],[Bildname]],\" von \",Tabelle_Auswertung[[#This Row],[Autor(in)]]),\"\")","v":""},{"$f":"IF(Tabelle_Auswertung[[#This Row],[Platz]]=10,CONCATENATE(Tabelle_Auswertung[[#This Row],[Bildname]],\" von \",Tabelle_Auswertung[[#This Row],[Autor(in)]]),\"\")","v":""}]
[{"$nulls":22},{"$f":"IF(Tabelle_Auswertung[[#This Row],[Bildname]]<>\"\",SUM(Tabelle_Auswertung[[#This Row],[Juror 1]:[Juror 20]]),\" - \")","v":" - "},{"$f":"IF(Tabelle_Auswertung[[#This Row],[Bildname]]<>\"\",IF(Tabelle_Auswertung[[#This Row],[Punkte]]>0,AVERAGE(Tabelle_Auswertung[[#This Row],[Juror 1]:[Juror 20]]),\" - \"),\" - \")","v":" - "},{"$f":"IF(Tabelle_Auswertung[[#This Row],[Bildname]]<>\"\",IF(Tabelle_Auswertung[[#This Row],[Punkte]]>0,RANK(Tabelle_Auswertung[[#This Row],[Punkte]],[Punkte],0),\" - \"),\" - \")","v":" - "}," - - -",{"$f":"IF(Tabelle_Auswertung[[#This Row],[Platz]]=1,CONCATENATE(Tabelle_Auswertung[[#This Row],[Bildname]],\" von \",Tabelle_Auswertung[[#This Row],[Autor(in)]]),\"\")","v":""},{"$f":"IF(Tabelle_Auswertung[[#This Row],[Platz]]=2,CONCATENATE(Tabelle_Auswertung[[#This Row],[Bildname]],\" von \",Tabelle_Auswertung[[#This Row],[Autor(in)]]),\"\")","v":""},{"$f":"IF(Tabelle_Auswertung[[#This Row],[Platz]]=3,CONCATENATE(Tabelle_Auswertung[[#This Row],[Bildname]],\" von \",Tabelle_Auswertung[[#This Row],[Autor(in)]]),\"\")","v":""},{"$f":"IF(Tabelle_Auswertung[[#This Row],[Platz]]=4,CONCATENATE(Tabelle_Auswertung[[#This Row],[Bildname]],\" von \",Tabelle_Auswertung[[#This Row],[Autor(in)]]),\"\")","v":""},{"$f":"IF(Tabelle_Auswertung[[#This Row],[Platz]]=5,CONCATENATE(Tabelle_Auswertung[[#This Row],[Bildname]],\" von \",Tabelle_Auswertung[[#This Row],[Autor(in)]]),\"\")","v":""},{"$f":"IF(Tabelle_Auswertung[[#This Row],[Platz]]=6,CONCATENATE(Tabelle_Auswertung[[#This Row],[Bildname]],\" von \",Tabelle_Auswertung[[#This Row],[Autor(in)]]),\"\")","v":""},{"$f":"IF(Tabelle_Auswertung[[#This Row],[Platz]]=7,CONCATENATE(Tabelle_Auswertung[[#This Row],[Bildname]],\" von \",Tabelle_Auswertung[[#This Row],[Autor(in)]]),\"\")","v":""},{"$f":"IF(Tabelle_Auswertung[[#This Row],[Platz]]=8,CONCATENATE(Tabelle_Auswertung[[#This Row],[Bildname]],\" von \",Tabelle_Auswertung[[#This Row],[Autor(in)]]),\"\")","v":""},{"$f":"IF(Tabelle_Auswertung[[#This Row],[Platz]]=9,CONCATENATE(Tabelle_Auswertung[[#This Row],[Bildname]],\" von \",Tabelle_Auswertung[[#This Row],[Autor(in)]]),\"\")","v":""},{"$f":"IF(Tabelle_Auswertung[[#This Row],[Platz]]=10,CONCATENATE(Tabelle_Auswertung[[#This Row],[Bildname]],\" von \",Tabelle_Auswertung[[#This Row],[Autor(in)]]),\"\")","v":""}]
[{"$nulls":22},{"$f":"IF(Tabelle_Auswertung[[#This Row],[Bildname]]<>\"\",SUM(Tabelle_Auswertung[[#This Row],[Juror 1]:[Juror 20]]),\" - \")","v":" - "},{"$f":"IF(Tabelle_Auswertung[[#This Row],[Bildname]]<>\"\",IF(Tabelle_Auswertung[[#This Row],[Punkte]]>0,AVERAGE(Tabelle_Auswertung[[#This Row],[Juror 1]:[Juror 20]]),\" - \"),\" - \")","v":" - "},{"$f":"IF(Tabelle_Auswertung[[#This Row],[Bildname]]<>\"\",IF(Tabelle_Auswertung[[#This Row],[Punkte]]>0,RANK(Tabelle_Auswertung[[#This Row],[Punkte]],[Punkte],0),\" - \"),\" - \")","v":" - "}," - - -",{"$f":"IF(Tabelle_Auswertung[[#This Row],[Platz]]=1,CONCATENATE(Tabelle_Auswertung[[#This Row],[Bildname]],\" von \",Tabelle_Auswertung[[#This Row],[Autor(in)]]),\"\")","v":""},{"$f":"IF(Tabelle_Auswertung[[#This Row],[Platz]]=2,CONCATENATE(Tabelle_Auswertung[[#This Row],[Bildname]],\" von \",Tabelle_Auswertung[[#This Row],[Autor(in)]]),\"\")","v":""},{"$f":"IF(Tabelle_Auswertung[[#This Row],[Platz]]=3,CONCATENATE(Tabelle_Auswertung[[#This Row],[Bildname]],\" von \",Tabelle_Auswertung[[#This Row],[Autor(in)]]),\"\")","v":""},{"$f":"IF(Tabelle_Auswertung[[#This Row],[Platz]]=4,CONCATENATE(Tabelle_Auswertung[[#This Row],[Bildname]],\" von \",Tabelle_Auswertung[[#This Row],[Autor(in)]]),\"\")","v":""},{"$f":"IF(Tabelle_Auswertung[[#This Row],[Platz]]=5,CONCATENATE(Tabelle_Auswertung[[#This Row],[Bildname]],\" von \",Tabelle_Auswertung[[#This Row],[Autor(in)]]),\"\")","v":""},{"$f":"IF(Tabelle_Auswertung[[#This Row],[Platz]]=6,CONCATENATE(Tabelle_Auswertung[[#This Row],[Bildname]],\" von \",Tabelle_Auswertung[[#This Row],[Autor(in)]]),\"\")","v":""},{"$f":"IF(Tabelle_Auswertung[[#This Row],[Platz]]=7,CONCATENATE(Tabelle_Auswertung[[#This Row],[Bildname]],\" von \",Tabelle_Auswertung[[#This Row],[Autor(in)]]),\"\")","v":""},{"$f":"IF(Tabelle_Auswertung[[#This Row],[Platz]]=8,CONCATENATE(Tabelle_Auswertung[[#This Row],[Bildname]],\" von \",Tabelle_Auswertung[[#This Row],[Autor(in)]]),\"\")","v":""},{"$f":"IF(Tabelle_Auswertung[[#This Row],[Platz]]=9,CONCATENATE(Tabelle_Auswertung[[#This Row],[Bildname]],\" von \",Tabelle_Auswertung[[#This Row],[Autor(in)]]),\"\")","v":""},{"$f":"IF(Tabelle_Auswertung[[#This Row],[Platz]]=10,CONCATENATE(Tabelle_Auswertung[[#This Row],[Bildname]],\" von \",Tabelle_Auswertung[[#This Row],[Autor(in)]]),\"\")","v":""}]
[{"$nulls":22},{"$f":"IF(Tabelle_Auswertung[[#This Row],[Bildname]]<>\"\",SUM(Tabelle_Auswertung[[#This Row],[Juror 1]:[Juror 20]]),\" - \")","v":" - "},{"$f":"IF(Tabelle_Auswertung[[#This Row],[Bildname]]<>\"\",IF(Tabelle_Auswertung[[#This Row],[Punkte]]>0,AVERAGE(Tabelle_Auswertung[[#This Row],[Juror 1]:[Juror 20]]),\" - \"),\" - \")","v":" - "},{"$f":"IF(Tabelle_Auswertung[[#This Row],[Bildname]]<>\"\",IF(Tabelle_Auswertung[[#This Row],[Punkte]]>0,RANK(Tabelle_Auswertung[[#This Row],[Punkte]],[Punkte],0),\" - \"),\" - \")","v":" - "}," - - -",{"$f":"IF(Tabelle_Auswertung[[#This Row],[Platz]]=1,CONCATENATE(Tabelle_Auswertung[[#This Row],[Bildname]],\" von \",Tabelle_Auswertung[[#This Row],[Autor(in)]]),\"\")","v":""},{"$f":"IF(Tabelle_Auswertung[[#This Row],[Platz]]=2,CONCATENATE(Tabelle_Auswertung[[#This Row],[Bildname]],\" von \",Tabelle_Auswertung[[#This Row],[Autor(in)]]),\"\")","v":""},{"$f":"IF(Tabelle_Auswertung[[#This Row],[Platz]]=3,CONCATENATE(Tabelle_Auswertung[[#This Row],[Bildname]],\" von \",Tabelle_Auswertung[[#This Row],[Autor(in)]]),\"\")","v":""},{"$f":"IF(Tabelle_Auswertung[[#This Row],[Platz]]=4,CONCATENATE(Tabelle_Auswertung[[#This Row],[Bildname]],\" von \",Tabelle_Auswertung[[#This Row],[Autor(in)]]),\"\")","v":""},{"$f":"IF(Tabelle_Auswertung[[#This Row],[Platz]]=5,CONCATENATE(Tabelle_Auswertung[[#This Row],[Bildname]],\" von \",Tabelle_Auswertung[[#This Row],[Autor(in)]]),\"\")","v":""},{"$f":"IF(Tabelle_Auswertung[[#This Row],[Platz]]=6,CONCATENATE(Tabelle_Auswertung[[#This Row],[Bildname]],\" von \",Tabelle_Auswertung[[#This Row],[Autor(in)]]),\"\")","v":""},{"$f":"IF(Tabelle_Auswertung[[#This Row],[Platz]]=7,CONCATENATE(Tabelle_Auswertung[[#This Row],[Bildname]],\" von \",Tabelle_Auswertung[[#This Row],[Autor(in)]]),\"\")","v":""},{"$f":"IF(Tabelle_Auswertung[[#This Row],[Platz]]=8,CONCATENATE(Tabelle_Auswertung[[#This Row],[Bildname]],\" von \",Tabelle_Auswertung[[#This Row],[Autor(in)]]),\"\")","v":""},{"$f":"IF(Tabelle_Auswertung[[#This Row],[Platz]]=9,CONCATENATE(Tabelle_Auswertung[[#This Row],[Bildname]],\" von \",Tabelle_Auswertung[[#This Row],[Autor(in)]]),\"\")","v":""},{"$f":"IF(Tabelle_Auswertung[[#This Row],[Platz]]=10,CONCATENATE(Tabelle_Auswertung[[#This Row],[Bildname]],\" von \",Tabelle_Auswertung[[#This Row],[Autor(in)]]),\"\")","v":""}]
[{"$nulls":22},{"$f":"IF(Tabelle_Auswertung[[#This Row],[Bildname]]<>\"\",SUM(Tabelle_Auswertung[[#This Row],[Juror 1]:[Juror 20]]),\" - \")","v":" - "},{"$f":"IF(Tabelle_Auswertung[[#This Row],[Bildname]]<>\"\",IF(Tabelle_Auswertung[[#This Row],[Punkte]]>0,AVERAGE(Tabelle_Auswertung[[#This Row],[Juror 1]:[Juror 20]]),\" - \"),\" - \")","v":" - "},{"$f":"IF(Tabelle_Auswertung[[#This Row],[Bildname]]<>\"\",IF(Tabelle_Auswertung[[#This Row],[Punkte]]>0,RANK(Tabelle_Auswertung[[#This Row],[Punkte]],[Punkte],0),\" - \"),\" - \")","v":" - "}," - - -",{"$f":"IF(Tabelle_Auswertung[[#This Row],[Platz]]=1,CONCATENATE(Tabelle_Auswertung[[#This Row],[Bildname]],\" von \",Tabelle_Auswertung[[#This Row],[Autor(in)]]),\"\")","v":""},{"$f":"IF(Tabelle_Auswertung[[#This Row],[Platz]]=2,CONCATENATE(Tabelle_Auswertung[[#This Row],[Bildname]],\" von \",Tabelle_Auswertung[[#This Row],[Autor(in)]]),\"\")","v":""},{"$f":"IF(Tabelle_Auswertung[[#This Row],[Platz]]=3,CONCATENATE(Tabelle_Auswertung[[#This Row],[Bildname]],\" von \",Tabelle_Auswertung[[#This Row],[Autor(in)]]),\"\")","v":""},{"$f":"IF(Tabelle_Auswertung[[#This Row],[Platz]]=4,CONCATENATE(Tabelle_Auswertung[[#This Row],[Bildname]],\" von \",Tabelle_Auswertung[[#This Row],[Autor(in)]]),\"\")","v":""},{"$f":"IF(Tabelle_Auswertung[[#This Row],[Platz]]=5,CONCATENATE(Tabelle_Auswertung[[#This Row],[Bildname]],\" von \",Tabelle_Auswertung[[#This Row],[Autor(in)]]),\"\")","v":""},{"$f":"IF(Tabelle_Auswertung[[#This Row],[Platz]]=6,CONCATENATE(Tabelle_Auswertung[[#This Row],[Bildname]],\" von \",Tabelle_Auswertung[[#This Row],[Autor(in)]]),\"\")","v":""},{"$f":"IF(Tabelle_Auswertung[[#This Row],[Platz]]=7,CONCATENATE(Tabelle_Auswertung[[#This Row],[Bildname]],\" von \",Tabelle_Auswertung[[#This Row],[Autor(in)]]),\"\")","v":""},{"$f":"IF(Tabelle_Auswertung[[#This Row],[Platz]]=8,CONCATENATE(Tabelle_Auswertung[[#This Row],[Bildname]],\" von \",Tabelle_Auswertung[[#This Row],[Autor(in)]]),\"\")","v":""},{"$f":"IF(Tabelle_Auswertung[[#This Row],[Platz]]=9,CONCATENATE(Tabelle_Auswertung[[#This Row],[Bildname]],\" von \",Tabelle_Auswertung[[#This Row],[Autor(in)]]),\"\")","v":""},{"$f":"IF(Tabelle_Auswertung[[#This Row],[Platz]]=10,CONCATENATE(Tabelle_Auswertung[[#This Row],[Bildname]],\" von \",Tabelle_Auswertung[[#This Row],[Autor(in)]]),\"\")","v":""}]
[{"$nulls":22},{"$f":"IF(Tabelle_Auswertung[[#This Row],[Bildname]]<>\"\",SUM(Tabelle_Auswertung[[#This Row],[Juror 1]:[Juror 20]]),\" - \")","v":" - "},{"$f":"IF(Tabelle_Auswertung[[#This Row],[Bildname]]<>\"\",IF(Tabelle_Auswertung[[#This Row],[Punkte]]>0,AVERAGE(Tabelle_Auswertung[[#This Row],[Juror 1]:[Juror 20]]),\" - \"),\" - \")","v":" - "},{"$f":"IF(Tabelle_Auswertung[[#This Row],[Bildname]]<>\"\",IF(Tabelle_Auswertung[[#This Row],[Punkte]]>0,RANK(Tabelle_Auswertung[[#This Row],[Punkte]],[Punkte],0),\" - \"),\" - \")","v":" - "}," - - -",{"$f":"IF(Tabelle_Auswertung[[#This Row],[Platz]]=1,CONCATENATE(Tabelle_Auswertung[[#This Row],[Bildname]],\" von \",Tabelle_Auswertung[[#This Row],[Autor(in)]]),\"\")","v":""},{"$f":"IF(Tabelle_Auswertung[[#This Row],[Platz]]=2,CONCATENATE(Tabelle_Auswertung[[#This Row],[Bildname]],\" von \",Tabelle_Auswertung[[#This Row],[Autor(in)]]),\"\")","v":""},{"$f":"IF(Tabelle_Auswertung[[#This Row],[Platz]]=3,CONCATENATE(Tabelle_Auswertung[[#This Row],[Bildname]],\" von \",Tabelle_Auswertung[[#This Row],[Autor(in)]]),\"\")","v":""},{"$f":"IF(Tabelle_Auswertung[[#This Row],[Platz]]=4,CONCATENATE(Tabelle_Auswertung[[#This Row],[Bildname]],\" von \",Tabelle_Auswertung[[#This Row],[Autor(in)]]),\"\")","v":""},{"$f":"IF(Tabelle_Auswertung[[#This Row],[Platz]]=5,CONCATENATE(Tabelle_Auswertung[[#This Row],[Bildname]],\" von \",Tabelle_Auswertung[[#This Row],[Autor(in)]]),\"\")","v":""},{"$f":"IF(Tabelle_Auswertung[[#This Row],[Platz]]=6,CONCATENATE(Tabelle_Auswertung[[#This Row],[Bildname]],\" von \",Tabelle_Auswertung[[#This Row],[Autor(in)]]),\"\")","v":""},{"$f":"IF(Tabelle_Auswertung[[#This Row],[Platz]]=7,CONCATENATE(Tabelle_Auswertung[[#This Row],[Bildname]],\" von \",Tabelle_Auswertung[[#This Row],[Autor(in)]]),\"\")","v":""},{"$f":"IF(Tabelle_Auswertung[[#This Row],[Platz]]=8,CONCATENATE(Tabelle_Auswertung[[#This Row],[Bildname]],\" von \",Tabelle_Auswertung[[#This Row],[Autor(in)]]),\"\")","v":""},{"$f":"IF(Tabelle_Auswertung[[#This Row],[Platz]]=9,CONCATENATE(Tabelle_Auswertung[[#This Row],[Bildname]],\" von \",Tabelle_Auswertung[[#This Row],[Autor(in)]]),\"\")","v":""},{"$f":"IF(Tabelle_Auswertung[[#This Row],[Platz]]=10,CONCATENATE(Tabelle_Auswertung[[#This Row],[Bildname]],\" von \",Tabelle_Auswertung[[#This Row],[Autor(in)]]),\"\")","v":""}]
[{"$nulls":22},{"$f":"IF(Tabelle_Auswertung[[#This Row],[Bildname]]<>\"\",SUM(Tabelle_Auswertung[[#This Row],[Juror 1]:[Juror 20]]),\" - \")","v":" - "},{"$f":"IF(Tabelle_Auswertung[[#This Row],[Bildname]]<>\"\",IF(Tabelle_Auswertung[[#This Row],[Punkte]]>0,AVERAGE(Tabelle_Auswertung[[#This Row],[Juror 1]:[Juror 20]]),\" - \"),\" - \")","v":" - "},{"$f":"IF(Tabelle_Auswertung[[#This Row],[Bildname]]<>\"\",IF(Tabelle_Auswertung[[#This Row],[Punkte]]>0,RANK(Tabelle_Auswertung[[#This Row],[Punkte]],[Punkte],0),\" - \"),\" - \")","v":" - "}," - - -",{"$f":"IF(Tabelle_Auswertung[[#This Row],[Platz]]=1,CONCATENATE(Tabelle_Auswertung[[#This Row],[Bildname]],\" von \",Tabelle_Auswertung[[#This Row],[Autor(in)]]),\"\")","v":""},{"$f":"IF(Tabelle_Auswertung[[#This Row],[Platz]]=2,CONCATENATE(Tabelle_Auswertung[[#This Row],[Bildname]],\" von \",Tabelle_Auswertung[[#This Row],[Autor(in)]]),\"\")","v":""},{"$f":"IF(Tabelle_Auswertung[[#This Row],[Platz]]=3,CONCATENATE(Tabelle_Auswertung[[#This Row],[Bildname]],\" von \",Tabelle_Auswertung[[#This Row],[Autor(in)]]),\"\")","v":""},{"$f":"IF(Tabelle_Auswertung[[#This Row],[Platz]]=4,CONCATENATE(Tabelle_Auswertung[[#This Row],[Bildname]],\" von \",Tabelle_Auswertung[[#This Row],[Autor(in)]]),\"\")","v":""},{"$f":"IF(Tabelle_Auswertung[[#This Row],[Platz]]=5,CONCATENATE(Tabelle_Auswertung[[#This Row],[Bildname]],\" von \",Tabelle_Auswertung[[#This Row],[Autor(in)]]),\"\")","v":""},{"$f":"IF(Tabelle_Auswertung[[#This Row],[Platz]]=6,CONCATENATE(Tabelle_Auswertung[[#This Row],[Bildname]],\" von \",Tabelle_Auswertung[[#This Row],[Autor(in)]]),\"\")","v":""},{"$f":"IF(Tabelle_Auswertung[[#This Row],[Platz]]=7,CONCATENATE(Tabelle_Auswertung[[#This Row],[Bildname]],\" von \",Tabelle_Auswertung[[#This Row],[Autor(in)]]),\"\")","v":""},{"$f":"IF(Tabelle_Auswertung[[#This Row],[Platz]]=8,CONCATENATE(Tabelle_Auswertung[[#This Row],[Bildname]],\" von \",Tabelle_Auswertung[[#This Row],[Autor(in)]]),\"\")","v":""},{"$f":"IF(Tabelle_Auswertung[[#This Row],[Platz]]=9,CONCATENATE(Tabelle_Auswertung[[#This Row],[Bildname]],\" von \",Tabelle_Auswertung[[#This Row],[Autor(in)]]),\"\")","v":""},{"$f":"IF(Tabelle_Auswertung[[#This Row],[Platz]]=10,CONCATENATE(Tabelle_Auswertung[[#This Row],[Bildname]],\" von \",Tabelle_Auswertung[[#This Row],[Autor(in)]]),\"\")","v":""}]
[{"$nulls":22},{"$f":"IF(Tabelle_Auswertung[[#This Row],[Bildname]]<>\"\",SUM(Tabelle_Auswertung[[#This Row],[Juror 1]:[Juror 20]]),\" - \")","v":" - "},{"$f":"IF(Tabelle_Auswertung[[#This Row],[Bildname]]<>\"\",IF(Tabelle_Auswertung[[#This Row],[Punkte]]>0,AVERAGE(Tabelle_Auswertung[[#This Row],[Juror 1]:[Juror 20]]),\" - \"),\" - \")","v":" - "},{"$f":"IF(Tabelle_Auswertung[[#This Row],[Bildname]]<>\"\",IF(Tabelle_Auswertung[[#This Row],[Punkte]]>0,RANK(Tabelle_Auswertung[[#This Row],[Punkte]],[Punkte],0),\" - \"),\" - \")","v":" - "}," - - -",{"$f":"IF(Tabelle_Auswertung[[#This Row],[Platz]]=1,CONCATENATE(Tabelle_Auswertung[[#This Row],[Bildname]],\" von \",Tabelle_Auswertung[[#This Row],[Autor(in)]]),\"\")","v":""},{"$f":"IF(Tabelle_Auswertung[[#This Row],[Platz]]=2,CONCATENATE(Tabelle_Auswertung[[#This Row],[Bildname]],\" von \",Tabelle_Auswertung[[#This Row],[Autor(in)]]),\"\")","v":""},{"$f":"IF(Tabelle_Auswertung[[#This Row],[Platz]]=3,CONCATENATE(Tabelle_Auswertung[[#This Row],[Bildname]],\" von \",Tabelle_Auswertung[[#This Row],[Autor(in)]]),\"\")","v":""},{"$f":"IF(Tabelle_Auswertung[[#This Row],[Platz]]=4,CONCATENATE(Tabelle_Auswertung[[#This Row],[Bildname]],\" von \",Tabelle_Auswertung[[#This Row],[Autor(in)]]),\"\")","v":""},{"$f":"IF(Tabelle_Auswertung[[#This Row],[Platz]]=5,CONCATENATE(Tabelle_Auswertung[[#This Row],[Bildname]],\" von \",Tabelle_Auswertung[[#This Row],[Autor(in)]]),\"\")","v":""},{"$f":"IF(Tabelle_Auswertung[[#This Row],[Platz]]=6,CONCATENATE(Tabelle_Auswertung[[#This Row],[Bildname]],\" von \",Tabelle_Auswertung[[#This Row],[Autor(in)]]),\"\")","v":""},{"$f":"IF(Tabelle_Auswertung[[#This Row],[Platz]]=7,CONCATENATE(Tabelle_Auswertung[[#This Row],[Bildname]],\" von \",Tabelle_Auswertung[[#This Row],[Autor(in)]]),\"\")","v":""},{"$f":"IF(Tabelle_Auswertung[[#This Row],[Platz]]=8,CONCATENATE(Tabelle_Auswertung[[#This Row],[Bildname]],\" von \",Tabelle_Auswertung[[#This Row],[Autor(in)]]),\"\")","v":""},{"$f":"IF(Tabelle_Auswertung[[#This Row],[Platz]]=9,CONCATENATE(Tabelle_Auswertung[[#This Row],[Bildname]],\" von \",Tabelle_Auswertung[[#This Row],[Autor(in)]]),\"\")","v":""},{"$f":"IF(Tabelle_Auswertung[[#This Row],[Platz]]=10,CONCATENATE(Tabelle_Auswertung[[#This Row],[Bildname]],\" von \",Tabelle_Auswertung[[#This Row],[Autor(in)]]),\"\")","v":""}]
[{"$nulls":22},{"$f":"IF(Tabelle_Auswertung[[#This Row],[Bildname]]<>\"\",SUM(Tabelle_Auswertung[[#This Row],[Juror 1]:[Juror 20]]),\" - \")","v":" - "},{"$f":"IF(Tabelle_Auswertung[[#This Row],[Bildname]]<>\"\",IF(Tabelle_Auswertung[[#This Row],[Punkte]]>0,AVERAGE(Tabelle_Auswertung[[#This Row],[Juror 1]:[Juror 20]]),\" - \"),\" - \")","v":" - "},{"$f":"IF(Tabelle_Auswertung[[#This Row],[Bildname]]<>\"\",IF(Tabelle_Auswertung[[#This Row],[Punkte]]>0,RANK(Tabelle_Auswertung[[#This Row],[Punkte]],[Punkte],0),\" - \"),\" - \")","v":" - "}," - - -",{"$f":"IF(Tabelle_Auswertung[[#This Row],[Platz]]=1,CONCATENATE(Tabelle_Auswertung[[#This Row],[Bildname]],\" von \",Tabelle_Auswertung[[#This Row],[Autor(in)]]),\"\")","v":""},{"$f":"IF(Tabelle_Auswertung[[#This Row],[Platz]]=2,CONCATENATE(Tabelle_Auswertung[[#This Row],[Bildname]],\" von \",Tabelle_Auswertung[[#This Row],[Autor(in)]]),\"\")","v":""},{"$f":"IF(Tabelle_Auswertung[[#This Row],[Platz]]=3,CONCATENATE(Tabelle_Auswertung[[#This Row],[Bildname]],\" von \",Tabelle_Auswertung[[#This Row],[Autor(in)]]),\"\")","v":""},{"$f":"IF(Tabelle_Auswertung[[#This Row],[Platz]]=4,CONCATENATE(Tabelle_Auswertung[[#This Row],[Bildname]],\" von \",Tabelle_Auswertung[[#This Row],[Autor(in)]]),\"\")","v":""},{"$f":"IF(Tabelle_Auswertung[[#This Row],[Platz]]=5,CONCATENATE(Tabelle_Auswertung[[#This Row],[Bildname]],\" von \",Tabelle_Auswertung[[#This Row],[Autor(in)]]),\"\")","v":""},{"$f":"IF(Tabelle_Auswertung[[#This Row],[Platz]]=6,CONCATENATE(Tabelle_Auswertung[[#This Row],[Bildname]],\" von \",Tabelle_Auswertung[[#This Row],[Autor(in)]]),\"\")","v":""},{"$f":"IF(Tabelle_Auswertung[[#This Row],[Platz]]=7,CONCATENATE(Tabelle_Auswertung[[#This Row],[Bildname]],\" von \",Tabelle_Auswertung[[#This Row],[Autor(in)]]),\"\")","v":""},{"$f":"IF(Tabelle_Auswertung[[#This Row],[Platz]]=8,CONCATENATE(Tabelle_Auswertung[[#This Row],[Bildname]],\" von \",Tabelle_Auswertung[[#This Row],[Autor(in)]]),\"\")","v":""},{"$f":"IF(Tabelle_Auswertung[[#This Row],[Platz]]=9,CONCATENATE(Tabelle_Auswertung[[#This Row],[Bildname]],\" von \",Tabelle_Auswertung[[#This Row],[Autor(in)]]),\"\")","v":""},{"$f":"IF(Tabelle_Auswertung[[#This Row],[Platz]]=10,CONCATENATE(Tabelle_Auswertung[[#This Row],[Bildname]],\" von \",Tabelle_Auswertung[[#This Row],[Autor(in)]]),\"\")","v":""}]
[{"$nulls":22},{"$f":"IF(Tabelle_Auswertung[[#This Row],[Bildname]]<>\"\",SUM(Tabelle_Auswertung[[#This Row],[Juror 1]:[Juror 20]]),\" - \")","v":" - "},{"$f":"IF(Tabelle_Auswertung[[#This Row],[Bildname]]<>\"\",IF(Tabelle_Auswertung[[#This Row],[Punkte]]>0,AVERAGE(Tabelle_Auswertung[[#This Row],[Juror 1]:[Juror 20]]),\" - \"),\" - \")","v":" - "},{"$f":"IF(Tabelle_Auswertung[[#This Row],[Bildname]]<>\"\",IF(Tabelle_Auswertung[[#This Row],[Punkte]]>0,RANK(Tabelle_Auswertung[[#This Row],[Punkte]],[Punkte],0),\" - \"),\" - \")","v":" - "}," - - -",{"$f":"IF(Tabelle_Auswertung[[#This Row],[Platz]]=1,CONCATENATE(Tabelle_Auswertung[[#This Row],[Bildname]],\" von \",Tabelle_Auswertung[[#This Row],[Autor(in)]]),\"\")","v":""},{"$f":"IF(Tabelle_Auswertung[[#This Row],[Platz]]=2,CONCATENATE(Tabelle_Auswertung[[#This Row],[Bildname]],\" von \",Tabelle_Auswertung[[#This Row],[Autor(in)]]),\"\")","v":""},{"$f":"IF(Tabelle_Auswertung[[#This Row],[Platz]]=3,CONCATENATE(Tabelle_Auswertung[[#This Row],[Bildname]],\" von \",Tabelle_Auswertung[[#This Row],[Autor(in)]]),\"\")","v":""},{"$f":"IF(Tabelle_Auswertung[[#This Row],[Platz]]=4,CONCATENATE(Tabelle_Auswertung[[#This Row],[Bildname]],\" von \",Tabelle_Auswertung[[#This Row],[Autor(in)]]),\"\")","v":""},{"$f":"IF(Tabelle_Auswertung[[#This Row],[Platz]]=5,CONCATENATE(Tabelle_Auswertung[[#This Row],[Bildname]],\" von \",Tabelle_Auswertung[[#This Row],[Autor(in)]]),\"\")","v":""},{"$f":"IF(Tabelle_Auswertung[[#This Row],[Platz]]=6,CONCATENATE(Tabelle_Auswertung[[#This Row],[Bildname]],\" von \",Tabelle_Auswertung[[#This Row],[Autor(in)]]),\"\")","v":""},{"$f":"IF(Tabelle_Auswertung[[#This Row],[Platz]]=7,CONCATENATE(Tabelle_Auswertung[[#This Row],[Bildname]],\" von \",Tabelle_Auswertung[[#This Row],[Autor(in)]]),\"\")","v":""},{"$f":"IF(Tabelle_Auswertung[[#This Row],[Platz]]=8,CONCATENATE(Tabelle_Auswertung[[#This Row],[Bildname]],\" von \",Tabelle_Auswertung[[#This Row],[Autor(in)]]),\"\")","v":""},{"$f":"IF(Tabelle_Auswertung[[#This Row],[Platz]]=9,CONCATENATE(Tabelle_Auswertung[[#This Row],[Bildname]],\" von \",Tabelle_Auswertung[[#This Row],[Autor(in)]]),\"\")","v":""},{"$f":"IF(Tabelle_Auswertung[[#This Row],[Platz]]=10,CONCATENATE(Tabelle_Auswertung[[#This Row],[Bildname]],\" von \",Tabelle_Auswertung[[#This Row],[Autor(in)]]),\"\")","v":""}]
[{"$nulls":22},{"$f":"IF(Tabelle_Auswertung[[#This Row],[Bildname]]<>\"\",SUM(Tabelle_Auswertung[[#This Row],[Juror 1]:[Juror 20]]),\" - \")","v":" - "},{"$f":"IF(Tabelle_Auswertung[[#This Row],[Bildname]]<>\"\",IF(Tabelle_Auswertung[[#This Row],[Punkte]]>0,AVERAGE(Tabelle_Auswertung[[#This Row],[Juror 1]:[Juror 20]]),\" - \"),\" - \")","v":" - "},{"$f":"IF(Tabelle_Auswertung[[#This Row],[Bildname]]<>\"\",IF(Tabelle_Auswertung[[#This Row],[Punkte]]>0,RANK(Tabelle_Auswertung[[#This Row],[Punkte]],[Punkte],0),\" - \"),\" - \")","v":" - "}," - - -",{"$f":"IF(Tabelle_Auswertung[[#This Row],[Platz]]=1,CONCATENATE(Tabelle_Auswertung[[#This Row],[Bildname]],\" von \",Tabelle_Auswertung[[#This Row],[Autor(in)]]),\"\")","v":""},{"$f":"IF(Tabelle_Auswertung[[#This Row],[Platz]]=2,CONCATENATE(Tabelle_Auswertung[[#This Row],[Bildname]],\" von \",Tabelle_Auswertung[[#This Row],[Autor(in)]]),\"\")","v":""},{"$f":"IF(Tabelle_Auswertung[[#This Row],[Platz]]=3,CONCATENATE(Tabelle_Auswertung[[#This Row],[Bildname]],\" von \",Tabelle_Auswertung[[#This Row],[Autor(in)]]),\"\")","v":""},{"$f":"IF(Tabelle_Auswertung[[#This Row],[Platz]]=4,CONCATENATE(Tabelle_Auswertung[[#This Row],[Bildname]],\" von \",Tabelle_Auswertung[[#This Row],[Autor(in)]]),\"\")","v":""},{"$f":"IF(Tabelle_Auswertung[[#This Row],[Platz]]=5,CONCATENATE(Tabelle_Auswertung[[#This Row],[Bildname]],\" von \",Tabelle_Auswertung[[#This Row],[Autor(in)]]),\"\")","v":""},{"$f":"IF(Tabelle_Auswertung[[#This Row],[Platz]]=6,CONCATENATE(Tabelle_Auswertung[[#This Row],[Bildname]],\" von \",Tabelle_Auswertung[[#This Row],[Autor(in)]]),\"\")","v":""},{"$f":"IF(Tabelle_Auswertung[[#This Row],[Platz]]=7,CONCATENATE(Tabelle_Auswertung[[#This Row],[Bildname]],\" von \",Tabelle_Auswertung[[#This Row],[Autor(in)]]),\"\")","v":""},{"$f":"IF(Tabelle_Auswertung[[#This Row],[Platz]]=8,CONCATENATE(Tabelle_Auswertung[[#This Row],[Bildname]],\" von \",Tabelle_Auswertung[[#This Row],[Autor(in)]]),\"\")","v":""},{"$f":"IF(Tabelle_Auswertung[[#This Row],[Platz]]=9,CONCATENATE(Tabelle_Auswertung[[#This Row],[Bildname]],\" von \",Tabelle_Auswertung[[#This Row],[Autor(in)]]),\"\")","v":""},{"$f":"IF(Tabelle_Auswertung[[#This Row],[Platz]]=10,CONCATENATE(Tabelle_Auswertung[[#This Row],[Bildname]],\" von \",Tabelle_Auswertung[[#This Row],[Autor(in)]]),\"\")","v":""}]
[{"$nulls":22},{"$f":"IF(Tabelle_Auswertung[[#This Row],[Bildname]]<>\"\",SUM(Tabelle_Auswertung[[#This Row],[Juror 1]:[Juror 20]]),\" - \")","v":" - "},{"$f":"IF(Tabelle_Auswertung[[#This Row],[Bildname]]<>\"\",IF(Tabelle_Auswertung[[#This Row],[Punkte]]>0,AVERAGE(Tabelle_Auswertung[[#This Row],[Juror 1]:[Juror 20]]),\" - \"),\" - \")","v":" - "},{"$f":"IF(Tabelle_Auswertung[[#This Row],[Bildname]]<>\"\",IF(Tabelle_Auswertung[[#This Row],[Punkte]]>0,RANK(Tabelle_Auswertung[[#This Row],[Punkte]],[Punkte],0),\" - \"),\" - \")","v":" - "}," - - -",{"$f":"IF(Tabelle_Auswertung[[#This Row],[Platz]]=1,CONCATENATE(Tabelle_Auswertung[[#This Row],[Bildname]],\" von \",Tabelle_Auswertung[[#This Row],[Autor(in)]]),\"\")","v":""},{"$f":"IF(Tabelle_Auswertung[[#This Row],[Platz]]=2,CONCATENATE(Tabelle_Auswertung[[#This Row],[Bildname]],\" von \",Tabelle_Auswertung[[#This Row],[Autor(in)]]),\"\")","v":""},{"$f":"IF(Tabelle_Auswertung[[#This Row],[Platz]]=3,CONCATENATE(Tabelle_Auswertung[[#This Row],[Bildname]],\" von \",Tabelle_Auswertung[[#This Row],[Autor(in)]]),\"\")","v":""},{"$f":"IF(Tabelle_Auswertung[[#This Row],[Platz]]=4,CONCATENATE(Tabelle_Auswertung[[#This Row],[Bildname]],\" von \",Tabelle_Auswertung[[#This Row],[Autor(in)]]),\"\")","v":""},{"$f":"IF(Tabelle_Auswertung[[#This Row],[Platz]]=5,CONCATENATE(Tabelle_Auswertung[[#This Row],[Bildname]],\" von \",Tabelle_Auswertung[[#This Row],[Autor(in)]]),\"\")","v":""},{"$f":"IF(Tabelle_Auswertung[[#This Row],[Platz]]=6,CONCATENATE(Tabelle_Auswertung[[#This Row],[Bildname]],\" von \",Tabelle_Auswertung[[#This Row],[Autor(in)]]),\"\")","v":""},{"$f":"IF(Tabelle_Auswertung[[#This Row],[Platz]]=7,CONCATENATE(Tabelle_Auswertung[[#This Row],[Bildname]],\" von \",Tabelle_Auswertung[[#This Row],[Autor(in)]]),\"\")","v":""},{"$f":"IF(Tabelle_Auswertung[[#This Row],[Platz]]=8,CONCATENATE(Tabelle_Auswertung[[#This Row],[Bildname]],\" von \",Tabelle_Auswertung[[#This Row],[Autor(in)]]),\"\")","v":""},{"$f":"IF(Tabelle_Auswertung[[#This Row],[Platz]]=9,CONCATENATE(Tabelle_Auswertung[[#This Row],[Bildname]],\" von \",Tabelle_Auswertung[[#This Row],[Autor(in)]]),\"\")","v":""},{"$f":"IF(Tabelle_Auswertung[[#This Row],[Platz]]=10,CONCATENATE(Tabelle_Auswertung[[#This Row],[Bildname]],\" von \",Tabelle_Auswertung[[#This Row],[Autor(in)]]),\"\")","v":""}]
[{"$nulls":22},{"$f":"IF(Tabelle_Auswertung[[#This Row],[Bildname]]<>\"\",SUM(Tabelle_Auswertung[[#This Row],[Juror 1]:[Juror 20]]),\" - \")","v":" - "},{"$f":"IF(Tabelle_Auswertung[[#This Row],[Bildname]]<>\"\",IF(Tabelle_Auswertung[[#This Row],[Punkte]]>0,AVERAGE(Tabelle_Auswertung[[#This Row],[Juror 1]:[Juror 20]]),\" - \"),\" - \")","v":" - "},{"$f":"IF(Tabelle_Auswertung[[#This Row],[Bildname]]<>\"\",IF(Tabelle_Auswertung[[#This Row],[Punkte]]>0,RANK(Tabelle_Auswertung[[#This Row],[Punkte]],[Punkte],0),\" - \"),\" - \")","v":" - "}," - - -",{"$f":"IF(Tabelle_Auswertung[[#This Row],[Platz]]=1,CONCATENATE(Tabelle_Auswertung[[#This Row],[Bildname]],\" von \",Tabelle_Auswertung[[#This Row],[Autor(in)]]),\"\")","v":""},{"$f":"IF(Tabelle_Auswertung[[#This Row],[Platz]]=2,CONCATENATE(Tabelle_Auswertung[[#This Row],[Bildname]],\" von \",Tabelle_Auswertung[[#This Row],[Autor(in)]]),\"\")","v":""},{"$f":"IF(Tabelle_Auswertung[[#This Row],[Platz]]=3,CONCATENATE(Tabelle_Auswertung[[#This Row],[Bildname]],\" von \",Tabelle_Auswertung[[#This Row],[Autor(in)]]),\"\")","v":""},{"$f":"IF(Tabelle_Auswertung[[#This Row],[Platz]]=4,CONCATENATE(Tabelle_Auswertung[[#This Row],[Bildname]],\" von \",Tabelle_Auswertung[[#This Row],[Autor(in)]]),\"\")","v":""},{"$f":"IF(Tabelle_Auswertung[[#This Row],[Platz]]=5,CONCATENATE(Tabelle_Auswertung[[#This Row],[Bildname]],\" von \",Tabelle_Auswertung[[#This Row],[Autor(in)]]),\"\")","v":""},{"$f":"IF(Tabelle_Auswertung[[#This Row],[Platz]]=6,CONCATENATE(Tabelle_Auswertung[[#This Row],[Bildname]],\" von \",Tabelle_Auswertung[[#This Row],[Autor(in)]]),\"\")","v":""},{"$f":"IF(Tabelle_Auswertung[[#This Row],[Platz]]=7,CONCATENATE(Tabelle_Auswertung[[#This Row],[Bildname]],\" von \",Tabelle_Auswertung[[#This Row],[Autor(in)]]),\"\")","v":""},{"$f":"IF(Tabelle_Auswertung[[#This Row],[Platz]]=8,CONCATENATE(Tabelle_Auswertung[[#This Row],[Bildname]],\" von \",Tabelle_Auswertung[[#This Row],[Autor(in)]]),\"\")","v":""},{"$f":"IF(Tabelle_Auswertung[[#This Row],[Platz]]=9,CONCATENATE(Tabelle_Auswertung[[#This Row],[Bildname]],\" von \",Tabelle_Auswertung[[#This Row],[Autor(in)]]),\"\")","v":""},{"$f":"IF(Tabelle_Auswertung[[#This Row],[Platz]]=10,CONCATENATE(Tabelle_Auswertung[[#This Row],[Bildname]],\" von \",Tabelle_Auswertung[[#This Row],[Autor(in)]]),\"\")","v":""}]
[{"$nulls":22},{"$f":"IF(Tabelle_Auswertung[[#This Row],[Bildname]]<>\"\",SUM(Tabelle_Auswertung[[#This Row],[Juror 1]:[Juror 20]]),\" - \")","v":" - "},{"$f":"IF(Tabelle_Auswertung[[#This Row],[Bildname]]<>\"\",IF(Tabelle_Auswertung[[#This Row],[Punkte]]>0,AVERAGE(Tabelle_Auswertung[[#This Row],[Juror 1]:[Juror 20]]),\" - \"),\" - \")","v":" - "},{"$f":"IF(Tabelle_Auswertung[[#This Row],[Bildname]]<>\"\",IF(Tabelle_Auswertung[[#This Row],[Punkte]]>0,RANK(Tabelle_Auswertung[[#This Row],[Punkte]],[Punkte],0),\" - \"),\" - \")","v":" - "}," - - -",{"$f":"IF(Tabelle_Auswertung[[#This Row],[Platz]]=1,CONCATENATE(Tabelle_Auswertung[[#This Row],[Bildname]],\" von \",Tabelle_Auswertung[[#This Row],[Autor(in)]]),\"\")","v":""},{"$f":"IF(Tabelle_Auswertung[[#This Row],[Platz]]=2,CONCATENATE(Tabelle_Auswertung[[#This Row],[Bildname]],\" von \",Tabelle_Auswertung[[#This Row],[Autor(in)]]),\"\")","v":""},{"$f":"IF(Tabelle_Auswertung[[#This Row],[Platz]]=3,CONCATENATE(Tabelle_Auswertung[[#This Row],[Bildname]],\" von \",Tabelle_Auswertung[[#This Row],[Autor(in)]]),\"\")","v":""},{"$f":"IF(Tabelle_Auswertung[[#This Row],[Platz]]=4,CONCATENATE(Tabelle_Auswertung[[#This Row],[Bildname]],\" von \",Tabelle_Auswertung[[#This Row],[Autor(in)]]),\"\")","v":""},{"$f":"IF(Tabelle_Auswertung[[#This Row],[Platz]]=5,CONCATENATE(Tabelle_Auswertung[[#This Row],[Bildname]],\" von \",Tabelle_Auswertung[[#This Row],[Autor(in)]]),\"\")","v":""},{"$f":"IF(Tabelle_Auswertung[[#This Row],[Platz]]=6,CONCATENATE(Tabelle_Auswertung[[#This Row],[Bildname]],\" von \",Tabelle_Auswertung[[#This Row],[Autor(in)]]),\"\")","v":""},{"$f":"IF(Tabelle_Auswertung[[#This Row],[Platz]]=7,CONCATENATE(Tabelle_Auswertung[[#This Row],[Bildname]],\" von \",Tabelle_Auswertung[[#This Row],[Autor(in)]]),\"\")","v":""},{"$f":"IF(Tabelle_Auswertung[[#This Row],[Platz]]=8,CONCATENATE(Tabelle_Auswertung[[#This Row],[Bildname]],\" von \",Tabelle_Auswertung[[#This Row],[Autor(in)]]),\"\")","v":""},{"$f":"IF(Tabelle_Auswertung[[#This Row],[Platz]]=9,CONCATENATE(Tabelle_Auswertung[[#This Row],[Bildname]],\" von \",Tabelle_Auswertung[[#This Row],[Autor(in)]]),\"\")","v":""},{"$f":"IF(Tabelle_Auswertung[[#This Row],[Platz]]=10,CONCATENATE(Tabelle_Auswertung[[#This Row],[Bildname]],\" von \",Tabelle_Auswertung[[#This Row],[Autor(in)]]),\"\")","v":""}]
[{"$nulls":22},{"$f":"IF(Tabelle_Auswertung[[#This Row],[Bildname]]<>\"\",SUM(Tabelle_Auswertung[[#This Row],[Juror 1]:[Juror 20]]),\" - \")","v":" - "},{"$f":"IF(Tabelle_Auswertung[[#This Row],[Bildname]]<>\"\",IF(Tabelle_Auswertung[[#This Row],[Punkte]]>0,AVERAGE(Tabelle_Auswertung[[#This Row],[Juror 1]:[Juror 20]]),\" - \"),\" - \")","v":" - "},{"$f":"IF(Tabelle_Auswertung[[#This Row],[Bildname]]<>\"\",IF(Tabelle_Auswertung[[#This Row],[Punkte]]>0,RANK(Tabelle_Auswertung[[#This Row],[Punkte]],[Punkte],0),\" - \"),\" - \")","v":" - "}," - - -",{"$f":"IF(Tabelle_Auswertung[[#This Row],[Platz]]=1,CONCATENATE(Tabelle_Auswertung[[#This Row],[Bildname]],\" von \",Tabelle_Auswertung[[#This Row],[Autor(in)]]),\"\")","v":""},{"$f":"IF(Tabelle_Auswertung[[#This Row],[Platz]]=2,CONCATENATE(Tabelle_Auswertung[[#This Row],[Bildname]],\" von \",Tabelle_Auswertung[[#This Row],[Autor(in)]]),\"\")","v":""},{"$f":"IF(Tabelle_Auswertung[[#This Row],[Platz]]=3,CONCATENATE(Tabelle_Auswertung[[#This Row],[Bildname]],\" von \",Tabelle_Auswertung[[#This Row],[Autor(in)]]),\"\")","v":""},{"$f":"IF(Tabelle_Auswertung[[#This Row],[Platz]]=4,CONCATENATE(Tabelle_Auswertung[[#This Row],[Bildname]],\" von \",Tabelle_Auswertung[[#This Row],[Autor(in)]]),\"\")","v":""},{"$f":"IF(Tabelle_Auswertung[[#This Row],[Platz]]=5,CONCATENATE(Tabelle_Auswertung[[#This Row],[Bildname]],\" von \",Tabelle_Auswertung[[#This Row],[Autor(in)]]),\"\")","v":""},{"$f":"IF(Tabelle_Auswertung[[#This Row],[Platz]]=6,CONCATENATE(Tabelle_Auswertung[[#This Row],[Bildname]],\" von \",Tabelle_Auswertung[[#This Row],[Autor(in)]]),\"\")","v":""},{"$f":"IF(Tabelle_Auswertung[[#This Row],[Platz]]=7,CONCATENATE(Tabelle_Auswertung[[#This Row],[Bildname]],\" von \",Tabelle_Auswertung[[#This Row],[Autor(in)]]),\"\")","v":""},{"$f":"IF(Tabelle_Auswertung[[#This Row],[Platz]]=8,CONCATENATE(Tabelle_Auswertung[[#This Row],[Bildname]],\" von \",Tabelle_Auswertung[[#This Row],[Autor(in)]]),\"\")","v":""},{"$f":"IF(Tabelle_Auswertung[[#This Row],[Platz]]=9,CONCATENATE(Tabelle_Auswertung[[#This Row],[Bildname]],\" von \",Tabelle_Auswertung[[#This Row],[Autor(in)]]),\"\")","v":""},{"$f":"IF(Tabelle_Auswertung[[#This Row],[Platz]]=10,CONCATENATE(Tabelle_Auswertung[[#This Row],[Bildname]],\" von \",Tabelle_Auswertung[[#This Row],[Autor(in)]]),\"\")","v":""}]
[{"$nulls":22},{"$f":"IF(Tabelle_Auswertung[[#This Row],[Bildname]]<>\"\",SUM(Tabelle_Auswertung[[#This Row],[Juror 1]:[Juror 20]]),\" - \")","v":" - "},{"$f":"IF(Tabelle_Auswertung[[#This Row],[Bildname]]<>\"\",IF(Tabelle_Auswertung[[#This Row],[Punkte]]>0,AVERAGE(Tabelle_Auswertung[[#This Row],[Juror 1]:[Juror 20]]),\" - \"),\" - \")","v":" - "},{"$f":"IF(Tabelle_Auswertung[[#This Row],[Bildname]]<>\"\",IF(Tabelle_Auswertung[[#This Row],[Punkte]]>0,RANK(Tabelle_Auswertung[[#This Row],[Punkte]],[Punkte],0),\" - \"),\" - \")","v":" - "}," - - -",{"$f":"IF(Tabelle_Auswertung[[#This Row],[Platz]]=1,CONCATENATE(Tabelle_Auswertung[[#This Row],[Bildname]],\" von \",Tabelle_Auswertung[[#This Row],[Autor(in)]]),\"\")","v":""},{"$f":"IF(Tabelle_Auswertung[[#This Row],[Platz]]=2,CONCATENATE(Tabelle_Auswertung[[#This Row],[Bildname]],\" von \",Tabelle_Auswertung[[#This Row],[Autor(in)]]),\"\")","v":""},{"$f":"IF(Tabelle_Auswertung[[#This Row],[Platz]]=3,CONCATENATE(Tabelle_Auswertung[[#This Row],[Bildname]],\" von \",Tabelle_Auswertung[[#This Row],[Autor(in)]]),\"\")","v":""},{"$f":"IF(Tabelle_Auswertung[[#This Row],[Platz]]=4,CONCATENATE(Tabelle_Auswertung[[#This Row],[Bildname]],\" von \",Tabelle_Auswertung[[#This Row],[Autor(in)]]),\"\")","v":""},{"$f":"IF(Tabelle_Auswertung[[#This Row],[Platz]]=5,CONCATENATE(Tabelle_Auswertung[[#This Row],[Bildname]],\" von \",Tabelle_Auswertung[[#This Row],[Autor(in)]]),\"\")","v":""},{"$f":"IF(Tabelle_Auswertung[[#This Row],[Platz]]=6,CONCATENATE(Tabelle_Auswertung[[#This Row],[Bildname]],\" von \",Tabelle_Auswertung[[#This Row],[Autor(in)]]),\"\")","v":""},{"$f":"IF(Tabelle_Auswertung[[#This Row],[Platz]]=7,CONCATENATE(Tabelle_Auswertung[[#This Row],[Bildname]],\" von \",Tabelle_Auswertung[[#This Row],[Autor(in)]]),\"\")","v":""},{"$f":"IF(Tabelle_Auswertung[[#This Row],[Platz]]=8,CONCATENATE(Tabelle_Auswertung[[#This Row],[Bildname]],\" von \",Tabelle_Auswertung[[#This Row],[Autor(in)]]),\"\")","v":""},{"$f":"IF(Tabelle_Auswertung[[#This Row],[Platz]]=9,CONCATENATE(Tabelle_Auswertung[[#This Row],[Bildname]],\" von \",Tabelle_Auswertung[[#This Row],[Autor(in)]]),\"\")","v":""},{"$f":"IF(Tabelle_Auswertung[[#This Row],[Platz]]=10,CONCATENATE(Tabelle_Auswertung[[#This Row],[Bildname]],\" von \",Tabelle_Auswertung[[#This Row],[Autor(in)]]),\"\")","v":""}]
[{"$nulls":22},{"$f":"IF(Tabelle_Auswertung[[#This Row],[Bildname]]<>\"\",SUM(Tabelle_Auswertung[[#This Row],[Juror 1]:[Juror 20]]),\" - \")","v":" - "},{"$f":"IF(Tabelle_Auswertung[[#This Row],[Bildname]]<>\"\",IF(Tabelle_Auswertung[[#This Row],[Punkte]]>0,AVERAGE(Tabelle_Auswertung[[#This Row],[Juror 1]:[Juror 20]]),\" - \"),\" - \")","v":" - "},{"$f":"IF(Tabelle_Auswertung[[#This Row],[Bildname]]<>\"\",IF(Tabelle_Auswertung[[#This Row],[Punkte]]>0,RANK(Tabelle_Auswertung[[#This Row],[Punkte]],[Punkte],0),\" - \"),\" - \")","v":" - "}," - - -",{"$f":"IF(Tabelle_Auswertung[[#This Row],[Platz]]=1,CONCATENATE(Tabelle_Auswertung[[#This Row],[Bildname]],\" von \",Tabelle_Auswertung[[#This Row],[Autor(in)]]),\"\")","v":""},{"$f":"IF(Tabelle_Auswertung[[#This Row],[Platz]]=2,CONCATENATE(Tabelle_Auswertung[[#This Row],[Bildname]],\" von \",Tabelle_Auswertung[[#This Row],[Autor(in)]]),\"\")","v":""},{"$f":"IF(Tabelle_Auswertung[[#This Row],[Platz]]=3,CONCATENATE(Tabelle_Auswertung[[#This Row],[Bildname]],\" von \",Tabelle_Auswertung[[#This Row],[Autor(in)]]),\"\")","v":""},{"$f":"IF(Tabelle_Auswertung[[#This Row],[Platz]]=4,CONCATENATE(Tabelle_Auswertung[[#This Row],[Bildname]],\" von \",Tabelle_Auswertung[[#This Row],[Autor(in)]]),\"\")","v":""},{"$f":"IF(Tabelle_Auswertung[[#This Row],[Platz]]=5,CONCATENATE(Tabelle_Auswertung[[#This Row],[Bildname]],\" von \",Tabelle_Auswertung[[#This Row],[Autor(in)]]),\"\")","v":""},{"$f":"IF(Tabelle_Auswertung[[#This Row],[Platz]]=6,CONCATENATE(Tabelle_Auswertung[[#This Row],[Bildname]],\" von \",Tabelle_Auswertung[[#This Row],[Autor(in)]]),\"\")","v":""},{"$f":"IF(Tabelle_Auswertung[[#This Row],[Platz]]=7,CONCATENATE(Tabelle_Auswertung[[#This Row],[Bildname]],\" von \",Tabelle_Auswertung[[#This Row],[Autor(in)]]),\"\")","v":""},{"$f":"IF(Tabelle_Auswertung[[#This Row],[Platz]]=8,CONCATENATE(Tabelle_Auswertung[[#This Row],[Bildname]],\" von \",Tabelle_Auswertung[[#This Row],[Autor(in)]]),\"\")","v":""},{"$f":"IF(Tabelle_Auswertung[[#This Row],[Platz]]=9,CONCATENATE(Tabelle_Auswertung[[#This Row],[Bildname]],\" von \",Tabelle_Auswertung[[#This Row],[Autor(in)]]),\"\")","v":""},{"$f":"IF(Tabelle_Auswertung[[#This Row],[Platz]]=10,CONCATENATE(Tabelle_Auswertung[[#This Row],[Bildname]],\" von \",Tabelle_Auswertung[[#This Row],[Autor(in)]]),\"\")","v":""}]
[{"$nulls":22},{"$f":"IF(Tabelle_Auswertung[[#This Row],[Bildname]]<>\"\",SUM(Tabelle_Auswertung[[#This Row],[Juror 1]:[Juror 20]]),\" - \")","v":" - "},{"$f":"IF(Tabelle_Auswertung[[#This Row],[Bildname]]<>\"\",IF(Tabelle_Auswertung[[#This Row],[Punkte]]>0,AVERAGE(Tabelle_Auswertung[[#This Row],[Juror 1]:[Juror 20]]),\" - \"),\" - \")","v":" - "},{"$f":"IF(Tabelle_Auswertung[[#This Row],[Bildname]]<>\"\",IF(Tabelle_Auswertung[[#This Row],[Punkte]]>0,RANK(Tabelle_Auswertung[[#This Row],[Punkte]],[Punkte],0),\" - \"),\" - \")","v":" - "}," - - -",{"$f":"IF(Tabelle_Auswertung[[#This Row],[Platz]]=1,CONCATENATE(Tabelle_Auswertung[[#This Row],[Bildname]],\" von \",Tabelle_Auswertung[[#This Row],[Autor(in)]]),\"\")","v":""},{"$f":"IF(Tabelle_Auswertung[[#This Row],[Platz]]=2,CONCATENATE(Tabelle_Auswertung[[#This Row],[Bildname]],\" von \",Tabelle_Auswertung[[#This Row],[Autor(in)]]),\"\")","v":""},{"$f":"IF(Tabelle_Auswertung[[#This Row],[Platz]]=3,CONCATENATE(Tabelle_Auswertung[[#This Row],[Bildname]],\" von \",Tabelle_Auswertung[[#This Row],[Autor(in)]]),\"\")","v":""},{"$f":"IF(Tabelle_Auswertung[[#This Row],[Platz]]=4,CONCATENATE(Tabelle_Auswertung[[#This Row],[Bildname]],\" von \",Tabelle_Auswertung[[#This Row],[Autor(in)]]),\"\")","v":""},{"$f":"IF(Tabelle_Auswertung[[#This Row],[Platz]]=5,CONCATENATE(Tabelle_Auswertung[[#This Row],[Bildname]],\" von \",Tabelle_Auswertung[[#This Row],[Autor(in)]]),\"\")","v":""},{"$f":"IF(Tabelle_Auswertung[[#This Row],[Platz]]=6,CONCATENATE(Tabelle_Auswertung[[#This Row],[Bildname]],\" von \",Tabelle_Auswertung[[#This Row],[Autor(in)]]),\"\")","v":""},{"$f":"IF(Tabelle_Auswertung[[#This Row],[Platz]]=7,CONCATENATE(Tabelle_Auswertung[[#This Row],[Bildname]],\" von \",Tabelle_Auswertung[[#This Row],[Autor(in)]]),\"\")","v":""},{"$f":"IF(Tabelle_Auswertung[[#This Row],[Platz]]=8,CONCATENATE(Tabelle_Auswertung[[#This Row],[Bildname]],\" von \",Tabelle_Auswertung[[#This Row],[Autor(in)]]),\"\")","v":""},{"$f":"IF(Tabelle_Auswertung[[#This Row],[Platz]]=9,CONCATENATE(Tabelle_Auswertung[[#This Row],[Bildname]],\" von \",Tabelle_Auswertung[[#This Row],[Autor(in)]]),\"\")","v":""},{"$f":"IF(Tabelle_Auswertung[[#This Row],[Platz]]=10,CONCATENATE(Tabelle_Auswertung[[#This Row],[Bildname]],\" von \",Tabelle_Auswertung[[#This Row],[Autor(in)]]),\"\")","v":""}]
[{"$nulls":22},{"$f":"IF(Tabelle_Auswertung[[#This Row],[Bildname]]<>\"\",SUM(Tabelle_Auswertung[[#This Row],[Juror 1]:[Juror 20]]),\" - \")","v":" - "},{"$f":"IF(Tabelle_Auswertung[[#This Row],[Bildname]]<>\"\",IF(Tabelle_Auswertung[[#This Row],[Punkte]]>0,AVERAGE(Tabelle_Auswertung[[#This Row],[Juror 1]:[Juror 20]]),\" - \"),\" - \")","v":" - "},{"$f":"IF(Tabelle_Auswertung[[#This Row],[Bildname]]<>\"\",IF(Tabelle_Auswertung[[#This Row],[Punkte]]>0,RANK(Tabelle_Auswertung[[#This Row],[Punkte]],[Punkte],0),\" - \"),\" - \")","v":" - "}," - - -",{"$f":"IF(Tabelle_Auswertung[[#This Row],[Platz]]=1,CONCATENATE(Tabelle_Auswertung[[#This Row],[Bildname]],\" von \",Tabelle_Auswertung[[#This Row],[Autor(in)]]),\"\")","v":""},{"$f":"IF(Tabelle_Auswertung[[#This Row],[Platz]]=2,CONCATENATE(Tabelle_Auswertung[[#This Row],[Bildname]],\" von \",Tabelle_Auswertung[[#This Row],[Autor(in)]]),\"\")","v":""},{"$f":"IF(Tabelle_Auswertung[[#This Row],[Platz]]=3,CONCATENATE(Tabelle_Auswertung[[#This Row],[Bildname]],\" von \",Tabelle_Auswertung[[#This Row],[Autor(in)]]),\"\")","v":""},{"$f":"IF(Tabelle_Auswertung[[#This Row],[Platz]]=4,CONCATENATE(Tabelle_Auswertung[[#This Row],[Bildname]],\" von \",Tabelle_Auswertung[[#This Row],[Autor(in)]]),\"\")","v":""},{"$f":"IF(Tabelle_Auswertung[[#This Row],[Platz]]=5,CONCATENATE(Tabelle_Auswertung[[#This Row],[Bildname]],\" von \",Tabelle_Auswertung[[#This Row],[Autor(in)]]),\"\")","v":""},{"$f":"IF(Tabelle_Auswertung[[#This Row],[Platz]]=6,CONCATENATE(Tabelle_Auswertung[[#This Row],[Bildname]],\" von \",Tabelle_Auswertung[[#This Row],[Autor(in)]]),\"\")","v":""},{"$f":"IF(Tabelle_Auswertung[[#This Row],[Platz]]=7,CONCATENATE(Tabelle_Auswertung[[#This Row],[Bildname]],\" von \",Tabelle_Auswertung[[#This Row],[Autor(in)]]),\"\")","v":""},{"$f":"IF(Tabelle_Auswertung[[#This Row],[Platz]]=8,CONCATENATE(Tabelle_Auswertung[[#This Row],[Bildname]],\" von \",Tabelle_Auswertung[[#This Row],[Autor(in)]]),\"\")","v":""},{"$f":"IF(Tabelle_Auswertung[[#This Row],[Platz]]=9,CONCATENATE(Tabelle_Auswertung[[#This Row],[Bildname]],\" von \",Tabelle_Auswertung[[#This Row],[Autor(in)]]),\"\")","v":""},{"$f":"IF(Tabelle_Auswertung[[#This Row],[Platz]]=10,CONCATENATE(Tabelle_Auswertung[[#This Row],[Bildname]],\" von \",Tabelle_Auswertung[[#This Row],[Autor(in)]]),\"\")","v":""}]
[{"$nulls":22},{"$f":"IF(Tabelle_Auswertung[[#This Row],[Bildname]]<>\"\",SUM(Tabelle_Auswertung[[#This Row],[Juror 1]:[Juror 20]]),\" - \")","v":" - "},{"$f":"IF(Tabelle_Auswertung[[#This Row],[Bildname]]<>\"\",IF(Tabelle_Auswertung[[#This Row],[Punkte]]>0,AVERAGE(Tabelle_Auswertung[[#This Row],[Juror 1]:[Juror 20]]),\" - \"),\" - \")","v":" - "},{"$f":"IF(Tabelle_Auswertung[[#This Row],[Bildname]]<>\"\",IF(Tabelle_Auswertung[[#This Row],[Punkte]]>0,RANK(Tabelle_Auswertung[[#This Row],[Punkte]],[Punkte],0),\" - \"),\" - \")","v":" - "}," - - -",{"$f":"IF(Tabelle_Auswertung[[#This Row],[Platz]]=1,CONCATENATE(Tabelle_Auswertung[[#This Row],[Bildname]],\" von \",Tabelle_Auswertung[[#This Row],[Autor(in)]]),\"\")","v":""},{"$f":"IF(Tabelle_Auswertung[[#This Row],[Platz]]=2,CONCATENATE(Tabelle_Auswertung[[#This Row],[Bildname]],\" von \",Tabelle_Auswertung[[#This Row],[Autor(in)]]),\"\")","v":""},{"$f":"IF(Tabelle_Auswertung[[#This Row],[Platz]]=3,CONCATENATE(Tabelle_Auswertung[[#This Row],[Bildname]],\" von \",Tabelle_Auswertung[[#This Row],[Autor(in)]]),\"\")","v":""},{"$f":"IF(Tabelle_Auswertung[[#This Row],[Platz]]=4,CONCATENATE(Tabelle_Auswertung[[#This Row],[Bildname]],\" von \",Tabelle_Auswertung[[#This Row],[Autor(in)]]),\"\")","v":""},{"$f":"IF(Tabelle_Auswertung[[#This Row],[Platz]]=5,CONCATENATE(Tabelle_Auswertung[[#This Row],[Bildname]],\" von \",Tabelle_Auswertung[[#This Row],[Autor(in)]]),\"\")","v":""},{"$f":"IF(Tabelle_Auswertung[[#This Row],[Platz]]=6,CONCATENATE(Tabelle_Auswertung[[#This Row],[Bildname]],\" von \",Tabelle_Auswertung[[#This Row],[Autor(in)]]),\"\")","v":""},{"$f":"IF(Tabelle_Auswertung[[#This Row],[Platz]]=7,CONCATENATE(Tabelle_Auswertung[[#This Row],[Bildname]],\" von \",Tabelle_Auswertung[[#This Row],[Autor(in)]]),\"\")","v":""},{"$f":"IF(Tabelle_Auswertung[[#This Row],[Platz]]=8,CONCATENATE(Tabelle_Auswertung[[#This Row],[Bildname]],\" von \",Tabelle_Auswertung[[#This Row],[Autor(in)]]),\"\")","v":""},{"$f":"IF(Tabelle_Auswertung[[#This Row],[Platz]]=9,CONCATENATE(Tabelle_Auswertung[[#This Row],[Bildname]],\" von \",Tabelle_Auswertung[[#This Row],[Autor(in)]]),\"\")","v":""},{"$f":"IF(Tabelle_Auswertung[[#This Row],[Platz]]=10,CONCATENATE(Tabelle_Auswertung[[#This Row],[Bildname]],\" von \",Tabelle_Auswertung[[#This Row],[Autor(in)]]),\"\")","v":""}]
[{"$nulls":22},{"$f":"IF(Tabelle_Auswertung[[#This Row],[Bildname]]<>\"\",SUM(Tabelle_Auswertung[[#This Row],[Juror 1]:[Juror 20]]),\" - \")","v":" - "},{"$f":"IF(Tabelle_Auswertung[[#This Row],[Bildname]]<>\"\",IF(Tabelle_Auswertung[[#This Row],[Punkte]]>0,AVERAGE(Tabelle_Auswertung[[#This Row],[Juror 1]:[Juror 20]]),\" - \"),\" - \")","v":" - "},{"$f":"IF(Tabelle_Auswertung[[#This Row],[Bildname]]<>\"\",IF(Tabelle_Auswertung[[#This Row],[Punkte]]>0,RANK(Tabelle_Auswertung[[#This Row],[Punkte]],[Punkte],0),\" - \"),\" - \")","v":" - "}," - - -",{"$f":"IF(Tabelle_Auswertung[[#This Row],[Platz]]=1,CONCATENATE(Tabelle_Auswertung[[#This Row],[Bildname]],\" von \",Tabelle_Auswertung[[#This Row],[Autor(in)]]),\"\")","v":""},{"$f":"IF(Tabelle_Auswertung[[#This Row],[Platz]]=2,CONCATENATE(Tabelle_Auswertung[[#This Row],[Bildname]],\" von \",Tabelle_Auswertung[[#This Row],[Autor(in)]]),\"\")","v":""},{"$f":"IF(Tabelle_Auswertung[[#This Row],[Platz]]=3,CONCATENATE(Tabelle_Auswertung[[#This Row],[Bildname]],\" von \",Tabelle_Auswertung[[#This Row],[Autor(in)]]),\"\")","v":""},{"$f":"IF(Tabelle_Auswertung[[#This Row],[Platz]]=4,CONCATENATE(Tabelle_Auswertung[[#This Row],[Bildname]],\" von \",Tabelle_Auswertung[[#This Row],[Autor(in)]]),\"\")","v":""},{"$f":"IF(Tabelle_Auswertung[[#This Row],[Platz]]=5,CONCATENATE(Tabelle_Auswertung[[#This Row],[Bildname]],\" von \",Tabelle_Auswertung[[#This Row],[Autor(in)]]),\"\")","v":""},{"$f":"IF(Tabelle_Auswertung[[#This Row],[Platz]]=6,CONCATENATE(Tabelle_Auswertung[[#This Row],[Bildname]],\" von \",Tabelle_Auswertung[[#This Row],[Autor(in)]]),\"\")","v":""},{"$f":"IF(Tabelle_Auswertung[[#This Row],[Platz]]=7,CONCATENATE(Tabelle_Auswertung[[#This Row],[Bildname]],\" von \",Tabelle_Auswertung[[#This Row],[Autor(in)]]),\"\")","v":""},{"$f":"IF(Tabelle_Auswertung[[#This Row],[Platz]]=8,CONCATENATE(Tabelle_Auswertung[[#This Row],[Bildname]],\" von \",Tabelle_Auswertung[[#This Row],[Autor(in)]]),\"\")","v":""},{"$f":"IF(Tabelle_Auswertung[[#This Row],[Platz]]=9,CONCATENATE(Tabelle_Auswertung[[#This Row],[Bildname]],\" von \",Tabelle_Auswertung[[#This Row],[Autor(in)]]),\"\")","v":""},{"$f":"IF(Tabelle_Auswertung[[#This Row],[Platz]]=10,CONCATENATE(Tabelle_Auswertung[[#This Row],[Bildname]],\" von \",Tabelle_Auswertung[[#This Row],[Autor(in)]]),\"\")","v":""}]
[{"$nulls":22},{"$f":"IF(Tabelle_Auswertung[[#This Row],[Bildname]]<>\"\",SUM(Tabelle_Auswertung[[#This Row],[Juror 1]:[Juror 20]]),\" - \")","v":" - "},{"$f":"IF(Tabelle_Auswertung[[#This Row],[Bildname]]<>\"\",IF(Tabelle_Auswertung[[#This Row],[Punkte]]>0,AVERAGE(Tabelle_Auswertung[[#This Row],[Juror 1]:[Juror 20]]),\" - \"),\" - \")","v":" - "},{"$f":"IF(Tabelle_Auswertung[[#This Row],[Bildname]]<>\"\",IF(Tabelle_Auswertung[[#This Row],[Punkte]]>0,RANK(Tabelle_Auswertung[[#This Row],[Punkte]],[Punkte],0),\" - \"),\" - \")","v":" - "}," - - -",{"$f":"IF(Tabelle_Auswertung[[#This Row],[Platz]]=1,CONCATENATE(Tabelle_Auswertung[[#This Row],[Bildname]],\" von \",Tabelle_Auswertung[[#This Row],[Autor(in)]]),\"\")","v":""},{"$f":"IF(Tabelle_Auswertung[[#This Row],[Platz]]=2,CONCATENATE(Tabelle_Auswertung[[#This Row],[Bildname]],\" von \",Tabelle_Auswertung[[#This Row],[Autor(in)]]),\"\")","v":""},{"$f":"IF(Tabelle_Auswertung[[#This Row],[Platz]]=3,CONCATENATE(Tabelle_Auswertung[[#This Row],[Bildname]],\" von \",Tabelle_Auswertung[[#This Row],[Autor(in)]]),\"\")","v":""},{"$f":"IF(Tabelle_Auswertung[[#This Row],[Platz]]=4,CONCATENATE(Tabelle_Auswertung[[#This Row],[Bildname]],\" von \",Tabelle_Auswertung[[#This Row],[Autor(in)]]),\"\")","v":""},{"$f":"IF(Tabelle_Auswertung[[#This Row],[Platz]]=5,CONCATENATE(Tabelle_Auswertung[[#This Row],[Bildname]],\" von \",Tabelle_Auswertung[[#This Row],[Autor(in)]]),\"\")","v":""},{"$f":"IF(Tabelle_Auswertung[[#This Row],[Platz]]=6,CONCATENATE(Tabelle_Auswertung[[#This Row],[Bildname]],\" von \",Tabelle_Auswertung[[#This Row],[Autor(in)]]),\"\")","v":""},{"$f":"IF(Tabelle_Auswertung[[#This Row],[Platz]]=7,CONCATENATE(Tabelle_Auswertung[[#This Row],[Bildname]],\" von \",Tabelle_Auswertung[[#This Row],[Autor(in)]]),\"\")","v":""},{"$f":"IF(Tabelle_Auswertung[[#This Row],[Platz]]=8,CONCATENATE(Tabelle_Auswertung[[#This Row],[Bildname]],\" von \",Tabelle_Auswertung[[#This Row],[Autor(in)]]),\"\")","v":""},{"$f":"IF(Tabelle_Auswertung[[#This Row],[Platz]]=9,CONCATENATE(Tabelle_Auswertung[[#This Row],[Bildname]],\" von \",Tabelle_Auswertung[[#This Row],[Autor(in)]]),\"\")","v":""},{"$f":"IF(Tabelle_Auswertung[[#This Row],[Platz]]=10,CONCATENATE(Tabelle_Auswertung[[#This Row],[Bildname]],\" von \",Tabelle_Auswertung[[#This Row],[Autor(in)]]),\"\")","v":""}]
[{"$nulls":22},{"$f":"IF(Tabelle_Auswertung[[#This Row],[Bildname]]<>\"\",SUM(Tabelle_Auswertung[[#This Row],[Juror 1]:[Juror 20]]),\" - \")","v":" - "},{"$f":"IF(Tabelle_Auswertung[[#This Row],[Bildname]]<>\"\",IF(Tabelle_Auswertung[[#This Row],[Punkte]]>0,AVERAGE(Tabelle_Auswertung[[#This Row],[Juror 1]:[Juror 20]]),\" - \"),\" - \")","v":" - "},{"$f":"IF(Tabelle_Auswertung[[#This Row],[Bildname]]<>\"\",IF(Tabelle_Auswertung[[#This Row],[Punkte]]>0,RANK(Tabelle_Auswertung[[#This Row],[Punkte]],[Punkte],0),\" - \"),\" - \")","v":" - "}," - - -",{"$f":"IF(Tabelle_Auswertung[[#This Row],[Platz]]=1,CONCATENATE(Tabelle_Auswertung[[#This Row],[Bildname]],\" von \",Tabelle_Auswertung[[#This Row],[Autor(in)]]),\"\")","v":""},{"$f":"IF(Tabelle_Auswertung[[#This Row],[Platz]]=2,CONCATENATE(Tabelle_Auswertung[[#This Row],[Bildname]],\" von \",Tabelle_Auswertung[[#This Row],[Autor(in)]]),\"\")","v":""},{"$f":"IF(Tabelle_Auswertung[[#This Row],[Platz]]=3,CONCATENATE(Tabelle_Auswertung[[#This Row],[Bildname]],\" von \",Tabelle_Auswertung[[#This Row],[Autor(in)]]),\"\")","v":""},{"$f":"IF(Tabelle_Auswertung[[#This Row],[Platz]]=4,CONCATENATE(Tabelle_Auswertung[[#This Row],[Bildname]],\" von \",Tabelle_Auswertung[[#This Row],[Autor(in)]]),\"\")","v":""},{"$f":"IF(Tabelle_Auswertung[[#This Row],[Platz]]=5,CONCATENATE(Tabelle_Auswertung[[#This Row],[Bildname]],\" von \",Tabelle_Auswertung[[#This Row],[Autor(in)]]),\"\")","v":""},{"$f":"IF(Tabelle_Auswertung[[#This Row],[Platz]]=6,CONCATENATE(Tabelle_Auswertung[[#This Row],[Bildname]],\" von \",Tabelle_Auswertung[[#This Row],[Autor(in)]]),\"\")","v":""},{"$f":"IF(Tabelle_Auswertung[[#This Row],[Platz]]=7,CONCATENATE(Tabelle_Auswertung[[#This Row],[Bildname]],\" von \",Tabelle_Auswertung[[#This Row],[Autor(in)]]),\"\")","v":""},{"$f":"IF(Tabelle_Auswertung[[#This Row],[Platz]]=8,CONCATENATE(Tabelle_Auswertung[[#This Row],[Bildname]],\" von \",Tabelle_Auswertung[[#This Row],[Autor(in)]]),\"\")","v":""},{"$f":"IF(Tabelle_Auswertung[[#This Row],[Platz]]=9,CONCATENATE(Tabelle_Auswertung[[#This Row],[Bildname]],\" von \",Tabelle_Auswertung[[#This Row],[Autor(in)]]),\"\")","v":""},{"$f":"IF(Tabelle_Auswertung[[#This Row],[Platz]]=10,CONCATENATE(Tabelle_Auswertung[[#This Row],[Bildname]],\" von \",Tabelle_Auswertung[[#This Row],[Autor(in)]]),\"\")","v":""}]
[{"$nulls":22},{"$f":"IF(Tabelle_Auswertung[[#This Row],[Bildname]]<>\"\",SUM(Tabelle_Auswertung[[#This Row],[Juror 1]:[Juror 20]]),\" - \")","v":" - "},{"$f":"IF(Tabelle_Auswertung[[#This Row],[Bildname]]<>\"\",IF(Tabelle_Auswertung[[#This Row],[Punkte]]>0,AVERAGE(Tabelle_Auswertung[[#This Row],[Juror 1]:[Juror 20]]),\" - \"),\" - \")","v":" - "},{"$f":"IF(Tabelle_Auswertung[[#This Row],[Bildname]]<>\"\",IF(Tabelle_Auswertung[[#This Row],[Punkte]]>0,RANK(Tabelle_Auswertung[[#This Row],[Punkte]],[Punkte],0),\" - \"),\" - \")","v":" - "}," - - -",{"$f":"IF(Tabelle_Auswertung[[#This Row],[Platz]]=1,CONCATENATE(Tabelle_Auswertung[[#This Row],[Bildname]],\" von \",Tabelle_Auswertung[[#This Row],[Autor(in)]]),\"\")","v":""},{"$f":"IF(Tabelle_Auswertung[[#This Row],[Platz]]=2,CONCATENATE(Tabelle_Auswertung[[#This Row],[Bildname]],\" von \",Tabelle_Auswertung[[#This Row],[Autor(in)]]),\"\")","v":""},{"$f":"IF(Tabelle_Auswertung[[#This Row],[Platz]]=3,CONCATENATE(Tabelle_Auswertung[[#This Row],[Bildname]],\" von \",Tabelle_Auswertung[[#This Row],[Autor(in)]]),\"\")","v":""},{"$f":"IF(Tabelle_Auswertung[[#This Row],[Platz]]=4,CONCATENATE(Tabelle_Auswertung[[#This Row],[Bildname]],\" von \",Tabelle_Auswertung[[#This Row],[Autor(in)]]),\"\")","v":""},{"$f":"IF(Tabelle_Auswertung[[#This Row],[Platz]]=5,CONCATENATE(Tabelle_Auswertung[[#This Row],[Bildname]],\" von \",Tabelle_Auswertung[[#This Row],[Autor(in)]]),\"\")","v":""},{"$f":"IF(Tabelle_Auswertung[[#This Row],[Platz]]=6,CONCATENATE(Tabelle_Auswertung[[#This Row],[Bildname]],\" von \",Tabelle_Auswertung[[#This Row],[Autor(in)]]),\"\")","v":""},{"$f":"IF(Tabelle_Auswertung[[#This Row],[Platz]]=7,CONCATENATE(Tabelle_Auswertung[[#This Row],[Bildname]],\" von \",Tabelle_Auswertung[[#This Row],[Autor(in)]]),\"\")","v":""},{"$f":"IF(Tabelle_Auswertung[[#This Row],[Platz]]=8,CONCATENATE(Tabelle_Auswertung[[#This Row],[Bildname]],\" von \",Tabelle_Auswertung[[#This Row],[Autor(in)]]),\"\")","v":""},{"$f":"IF(Tabelle_Auswertung[[#This Row],[Platz]]=9,CONCATENATE(Tabelle_Auswertung[[#This Row],[Bildname]],\" von \",Tabelle_Auswertung[[#This Row],[Autor(in)]]),\"\")","v":""},{"$f":"IF(Tabelle_Auswertung[[#This Row],[Platz]]=10,CONCATENATE(Tabelle_Auswertung[[#This Row],[Bildname]],\" von \",Tabelle_Auswertung[[#This Row],[Autor(in)]]),\"\")","v":""}]
[{"$nulls":22},{"$f":"IF(Tabelle_Auswertung[[#This Row],[Bildname]]<>\"\",SUM(Tabelle_Auswertung[[#This Row],[Juror 1]:[Juror 20]]),\" - \")","v":" - "},{"$f":"IF(Tabelle_Auswertung[[#This Row],[Bildname]]<>\"\",IF(Tabelle_Auswertung[[#This Row],[Punkte]]>0,AVERAGE(Tabelle_Auswertung[[#This Row],[Juror 1]:[Juror 20]]),\" - \"),\" - \")","v":" - "},{"$f":"IF(Tabelle_Auswertung[[#This Row],[Bildname]]<>\"\",IF(Tabelle_Auswertung[[#This Row],[Punkte]]>0,RANK(Tabelle_Auswertung[[#This Row],[Punkte]],[Punkte],0),\" - \"),\" - \")","v":" - "}," - - -",{"$f":"IF(Tabelle_Auswertung[[#This Row],[Platz]]=1,CONCATENATE(Tabelle_Auswertung[[#This Row],[Bildname]],\" von \",Tabelle_Auswertung[[#This Row],[Autor(in)]]),\"\")","v":""},{"$f":"IF(Tabelle_Auswertung[[#This Row],[Platz]]=2,CONCATENATE(Tabelle_Auswertung[[#This Row],[Bildname]],\" von \",Tabelle_Auswertung[[#This Row],[Autor(in)]]),\"\")","v":""},{"$f":"IF(Tabelle_Auswertung[[#This Row],[Platz]]=3,CONCATENATE(Tabelle_Auswertung[[#This Row],[Bildname]],\" von \",Tabelle_Auswertung[[#This Row],[Autor(in)]]),\"\")","v":""},{"$f":"IF(Tabelle_Auswertung[[#This Row],[Platz]]=4,CONCATENATE(Tabelle_Auswertung[[#This Row],[Bildname]],\" von \",Tabelle_Auswertung[[#This Row],[Autor(in)]]),\"\")","v":""},{"$f":"IF(Tabelle_Auswertung[[#This Row],[Platz]]=5,CONCATENATE(Tabelle_Auswertung[[#This Row],[Bildname]],\" von \",Tabelle_Auswertung[[#This Row],[Autor(in)]]),\"\")","v":""},{"$f":"IF(Tabelle_Auswertung[[#This Row],[Platz]]=6,CONCATENATE(Tabelle_Auswertung[[#This Row],[Bildname]],\" von \",Tabelle_Auswertung[[#This Row],[Autor(in)]]),\"\")","v":""},{"$f":"IF(Tabelle_Auswertung[[#This Row],[Platz]]=7,CONCATENATE(Tabelle_Auswertung[[#This Row],[Bildname]],\" von \",Tabelle_Auswertung[[#This Row],[Autor(in)]]),\"\")","v":""},{"$f":"IF(Tabelle_Auswertung[[#This Row],[Platz]]=8,CONCATENATE(Tabelle_Auswertung[[#This Row],[Bildname]],\" von \",Tabelle_Auswertung[[#This Row],[Autor(in)]]),\"\")","v":""},{"$f":"IF(Tabelle_Auswertung[[#This Row],[Platz]]=9,CONCATENATE(Tabelle_Auswertung[[#This Row],[Bildname]],\" von \",Tabelle_Auswertung[[#This Row],[Autor(in)]]),\"\")","v":""},{"$f":"IF(Tabelle_Auswertung[[#This Row],[Platz]]=10,CONCATENATE(Tabelle_Auswertung[[#This Row],[Bildname]],\" von \",Tabelle_Auswertung[[#This Row],[Autor(in)]]),\"\")","v":""}]
[{"$nulls":22},{"$f":"IF(Tabelle_Auswertung[[#This Row],[Bildname]]<>\"\",SUM(Tabelle_Auswertung[[#This Row],[Juror 1]:[Juror 20]]),\" - \")","v":" - "},{"$f":"IF(Tabelle_Auswertung[[#This Row],[Bildname]]<>\"\",IF(Tabelle_Auswertung[[#This Row],[Punkte]]>0,AVERAGE(Tabelle_Auswertung[[#This Row],[Juror 1]:[Juror 20]]),\" - \"),\" - \")","v":" - "},{"$f":"IF(Tabelle_Auswertung[[#This Row],[Bildname]]<>\"\",IF(Tabelle_Auswertung[[#This Row],[Punkte]]>0,RANK(Tabelle_Auswertung[[#This Row],[Punkte]],[Punkte],0),\" - \"),\" - \")","v":" - "}," - - -",{"$f":"IF(Tabelle_Auswertung[[#This Row],[Platz]]=1,CONCATENATE(Tabelle_Auswertung[[#This Row],[Bildname]],\" von \",Tabelle_Auswertung[[#This Row],[Autor(in)]]),\"\")","v":""},{"$f":"IF(Tabelle_Auswertung[[#This Row],[Platz]]=2,CONCATENATE(Tabelle_Auswertung[[#This Row],[Bildname]],\" von \",Tabelle_Auswertung[[#This Row],[Autor(in)]]),\"\")","v":""},{"$f":"IF(Tabelle_Auswertung[[#This Row],[Platz]]=3,CONCATENATE(Tabelle_Auswertung[[#This Row],[Bildname]],\" von \",Tabelle_Auswertung[[#This Row],[Autor(in)]]),\"\")","v":""},{"$f":"IF(Tabelle_Auswertung[[#This Row],[Platz]]=4,CONCATENATE(Tabelle_Auswertung[[#This Row],[Bildname]],\" von \",Tabelle_Auswertung[[#This Row],[Autor(in)]]),\"\")","v":""},{"$f":"IF(Tabelle_Auswertung[[#This Row],[Platz]]=5,CONCATENATE(Tabelle_Auswertung[[#This Row],[Bildname]],\" von \",Tabelle_Auswertung[[#This Row],[Autor(in)]]),\"\")","v":""},{"$f":"IF(Tabelle_Auswertung[[#This Row],[Platz]]=6,CONCATENATE(Tabelle_Auswertung[[#This Row],[Bildname]],\" von \",Tabelle_Auswertung[[#This Row],[Autor(in)]]),\"\")","v":""},{"$f":"IF(Tabelle_Auswertung[[#This Row],[Platz]]=7,CONCATENATE(Tabelle_Auswertung[[#This Row],[Bildname]],\" von \",Tabelle_Auswertung[[#This Row],[Autor(in)]]),\"\")","v":""},{"$f":"IF(Tabelle_Auswertung[[#This Row],[Platz]]=8,CONCATENATE(Tabelle_Auswertung[[#This Row],[Bildname]],\" von \",Tabelle_Auswertung[[#This Row],[Autor(in)]]),\"\")","v":""},{"$f":"IF(Tabelle_Auswertung[[#This Row],[Platz]]=9,CONCATENATE(Tabelle_Auswertung[[#This Row],[Bildname]],\" von \",Tabelle_Auswertung[[#This Row],[Autor(in)]]),\"\")","v":""},{"$f":"IF(Tabelle_Auswertung[[#This Row],[Platz]]=10,CONCATENATE(Tabelle_Auswertung[[#This Row],[Bildname]],\" von \",Tabelle_Auswertung[[#This Row],[Autor(in)]]),\"\")","v":""}]
[{"$nulls":22},{"$f":"IF(Tabelle_Auswertung[[#This Row],[Bildname]]<>\"\",SUM(Tabelle_Auswertung[[#This Row],[Juror 1]:[Juror 20]]),\" - \")","v":" - "},{"$f":"IF(Tabelle_Auswertung[[#This Row],[Bildname]]<>\"\",IF(Tabelle_Auswertung[[#This Row],[Punkte]]>0,AVERAGE(Tabelle_Auswertung[[#This Row],[Juror 1]:[Juror 20]]),\" - \"),\" - \")","v":" - "},{"$f":"IF(Tabelle_Auswertung[[#This Row],[Bildname]]<>\"\",IF(Tabelle_Auswertung[[#This Row],[Punkte]]>0,RANK(Tabelle_Auswertung[[#This Row],[Punkte]],[Punkte],0),\" - \"),\" - \")","v":" - "}," - - -",{"$f":"IF(Tabelle_Auswertung[[#This Row],[Platz]]=1,CONCATENATE(Tabelle_Auswertung[[#This Row],[Bildname]],\" von \",Tabelle_Auswertung[[#This Row],[Autor(in)]]),\"\")","v":""},{"$f":"IF(Tabelle_Auswertung[[#This Row],[Platz]]=2,CONCATENATE(Tabelle_Auswertung[[#This Row],[Bildname]],\" von \",Tabelle_Auswertung[[#This Row],[Autor(in)]]),\"\")","v":""},{"$f":"IF(Tabelle_Auswertung[[#This Row],[Platz]]=3,CONCATENATE(Tabelle_Auswertung[[#This Row],[Bildname]],\" von \",Tabelle_Auswertung[[#This Row],[Autor(in)]]),\"\")","v":""},{"$f":"IF(Tabelle_Auswertung[[#This Row],[Platz]]=4,CONCATENATE(Tabelle_Auswertung[[#This Row],[Bildname]],\" von \",Tabelle_Auswertung[[#This Row],[Autor(in)]]),\"\")","v":""},{"$f":"IF(Tabelle_Auswertung[[#This Row],[Platz]]=5,CONCATENATE(Tabelle_Auswertung[[#This Row],[Bildname]],\" von \",Tabelle_Auswertung[[#This Row],[Autor(in)]]),\"\")","v":""},{"$f":"IF(Tabelle_Auswertung[[#This Row],[Platz]]=6,CONCATENATE(Tabelle_Auswertung[[#This Row],[Bildname]],\" von \",Tabelle_Auswertung[[#This Row],[Autor(in)]]),\"\")","v":""},{"$f":"IF(Tabelle_Auswertung[[#This Row],[Platz]]=7,CONCATENATE(Tabelle_Auswertung[[#This Row],[Bildname]],\" von \",Tabelle_Auswertung[[#This Row],[Autor(in)]]),\"\")","v":""},{"$f":"IF(Tabelle_Auswertung[[#This Row],[Platz]]=8,CONCATENATE(Tabelle_Auswertung[[#This Row],[Bildname]],\" von \",Tabelle_Auswertung[[#This Row],[Autor(in)]]),\"\")","v":""},{"$f":"IF(Tabelle_Auswertung[[#This Row],[Platz]]=9,CONCATENATE(Tabelle_Auswertung[[#This Row],[Bildname]],\" von \",Tabelle_Auswertung[[#This Row],[Autor(in)]]),\"\")","v":""},{"$f":"IF(Tabelle_Auswertung[[#This Row],[Platz]]=10,CONCATENATE(Tabelle_Auswertung[[#This Row],[Bildname]],\" von \",Tabelle_Auswertung[[#This Row],[Autor(in)]]),\"\")","v":""}]
[{"$nulls":22},{"$f":"IF(Tabelle_Auswertung[[#This Row],[Bildname]]<>\"\",SUM(Tabelle_Auswertung[[#This Row],[Juror 1]:[Juror 20]]),\" - \")","v":" - "},{"$f":"IF(Tabelle_Auswertung[[#This Row],[Bildname]]<>\"\",IF(Tabelle_Auswertung[[#This Row],[Punkte]]>0,AVERAGE(Tabelle_Auswertung[[#This Row],[Juror 1]:[Juror 20]]),\" - \"),\" - \")","v":" - "},{"$f":"IF(Tabelle_Auswertung[[#This Row],[Bildname]]<>\"\",IF(Tabelle_Auswertung[[#This Row],[Punkte]]>0,RANK(Tabelle_Auswertung[[#This Row],[Punkte]],[Punkte],0),\" - \"),\" - \")","v":" - "}," - - -",{"$f":"IF(Tabelle_Auswertung[[#This Row],[Platz]]=1,CONCATENATE(Tabelle_Auswertung[[#This Row],[Bildname]],\" von \",Tabelle_Auswertung[[#This Row],[Autor(in)]]),\"\")","v":""},{"$f":"IF(Tabelle_Auswertung[[#This Row],[Platz]]=2,CONCATENATE(Tabelle_Auswertung[[#This Row],[Bildname]],\" von \",Tabelle_Auswertung[[#This Row],[Autor(in)]]),\"\")","v":""},{"$f":"IF(Tabelle_Auswertung[[#This Row],[Platz]]=3,CONCATENATE(Tabelle_Auswertung[[#This Row],[Bildname]],\" von \",Tabelle_Auswertung[[#This Row],[Autor(in)]]),\"\")","v":""},{"$f":"IF(Tabelle_Auswertung[[#This Row],[Platz]]=4,CONCATENATE(Tabelle_Auswertung[[#This Row],[Bildname]],\" von \",Tabelle_Auswertung[[#This Row],[Autor(in)]]),\"\")","v":""},{"$f":"IF(Tabelle_Auswertung[[#This Row],[Platz]]=5,CONCATENATE(Tabelle_Auswertung[[#This Row],[Bildname]],\" von \",Tabelle_Auswertung[[#This Row],[Autor(in)]]),\"\")","v":""},{"$f":"IF(Tabelle_Auswertung[[#This Row],[Platz]]=6,CONCATENATE(Tabelle_Auswertung[[#This Row],[Bildname]],\" von \",Tabelle_Auswertung[[#This Row],[Autor(in)]]),\"\")","v":""},{"$f":"IF(Tabelle_Auswertung[[#This Row],[Platz]]=7,CONCATENATE(Tabelle_Auswertung[[#This Row],[Bildname]],\" von \",Tabelle_Auswertung[[#This Row],[Autor(in)]]),\"\")","v":""},{"$f":"IF(Tabelle_Auswertung[[#This Row],[Platz]]=8,CONCATENATE(Tabelle_Auswertung[[#This Row],[Bildname]],\" von \",Tabelle_Auswertung[[#This Row],[Autor(in)]]),\"\")","v":""},{"$f":"IF(Tabelle_Auswertung[[#This Row],[Platz]]=9,CONCATENATE(Tabelle_Auswertung[[#This Row],[Bildname]],\" von \",Tabelle_Auswertung[[#This Row],[Autor(in)]]),\"\")","v":""},{"$f":"IF(Tabelle_Auswertung[[#This Row],[Platz]]=10,CONCATENATE(Tabelle_Auswertung[[#This Row],[Bildname]],\" von \",Tabelle_Auswertung[[#This Row],[Autor(in)]]),\"\")","v":""}]
[{"$nulls":22},{"$f":"IF(Tabelle_Auswertung[[#This Row],[Bildname]]<>\"\",SUM(Tabelle_Auswertung[[#This Row],[Juror 1]:[Juror 20]]),\" - \")","v":" - "},{"$f":"IF(Tabelle_Auswertung[[#This Row],[Bildname]]<>\"\",IF(Tabelle_Auswertung[[#This Row],[Punkte]]>0,AVERAGE(Tabelle_Auswertung[[#This Row],[Juror 1]:[Juror 20]]),\" - \"),\" - \")","v":" - "},{"$f":"IF(Tabelle_Auswertung[[#This Row],[Bildname]]<>\"\",IF(Tabelle_Auswertung[[#This Row],[Punkte]]>0,RANK(Tabelle_Auswertung[[#This Row],[Punkte]],[Punkte],0),\" - \"),\" - \")","v":" - "}," - - -",{"$f":"IF(Tabelle_Auswertung[[#This Row],[Platz]]=1,CONCATENATE(Tabelle_Auswertung[[#This Row],[Bildname]],\" von \",Tabelle_Auswertung[[#This Row],[Autor(in)]]),\"\")","v":""},{"$f":"IF(Tabelle_Auswertung[[#This Row],[Platz]]=2,CONCATENATE(Tabelle_Auswertung[[#This Row],[Bildname]],\" von \",Tabelle_Auswertung[[#This Row],[Autor(in)]]),\"\")","v":""},{"$f":"IF(Tabelle_Auswertung[[#This Row],[Platz]]=3,CONCATENATE(Tabelle_Auswertung[[#This Row],[Bildname]],\" von \",Tabelle_Auswertung[[#This Row],[Autor(in)]]),\"\")","v":""},{"$f":"IF(Tabelle_Auswertung[[#This Row],[Platz]]=4,CONCATENATE(Tabelle_Auswertung[[#This Row],[Bildname]],\" von \",Tabelle_Auswertung[[#This Row],[Autor(in)]]),\"\")","v":""},{"$f":"IF(Tabelle_Auswertung[[#This Row],[Platz]]=5,CONCATENATE(Tabelle_Auswertung[[#This Row],[Bildname]],\" von \",Tabelle_Auswertung[[#This Row],[Autor(in)]]),\"\")","v":""},{"$f":"IF(Tabelle_Auswertung[[#This Row],[Platz]]=6,CONCATENATE(Tabelle_Auswertung[[#This Row],[Bildname]],\" von \",Tabelle_Auswertung[[#This Row],[Autor(in)]]),\"\")","v":""},{"$f":"IF(Tabelle_Auswertung[[#This Row],[Platz]]=7,CONCATENATE(Tabelle_Auswertung[[#This Row],[Bildname]],\" von \",Tabelle_Auswertung[[#This Row],[Autor(in)]]),\"\")","v":""},{"$f":"IF(Tabelle_Auswertung[[#This Row],[Platz]]=8,CONCATENATE(Tabelle_Auswertung[[#This Row],[Bildname]],\" von \",Tabelle_Auswertung[[#This Row],[Autor(in)]]),\"\")","v":""},{"$f":"IF(Tabelle_Auswertung[[#This Row],[Platz]]=9,CONCATENATE(Tabelle_Auswertung[[#This Row],[Bildname]],\" von \",Tabelle_Auswertung[[#This Row],[Autor(in)]]),\"\")","v":""},{"$f":"IF(Tabelle_Auswertung[[#This Row],[Platz]]=10,CONCATENATE(Tabelle_Auswertung[[#This Row],[Bildname]],\" von \",Tabelle_Auswertung[[#This Row],[Autor(in)]]),\"\")","v":""}]
[{"$nulls":22},{"$f":"IF(Tabelle_Auswertung[[#This Row],[Bildname]]<>\"\",SUM(Tabelle_Auswertung[[#This Row],[Juror 1]:[Juror 20]]),\" - \")","v":" - "},{"$f":"IF(Tabelle_Auswertung[[#This Row],[Bildname]]<>\"\",IF(Tabelle_Auswertung[[#This Row],[Punkte]]>0,AVERAGE(Tabelle_Auswertung[[#This Row],[Juror 1]:[Juror 20]]),\" - \"),\" - \")","v":" - "},{"$f":"IF(Tabelle_Auswertung[[#This Row],[Bildname]]<>\"\",IF(Tabelle_Auswertung[[#This Row],[Punkte]]>0,RANK(Tabelle_Auswertung[[#This Row],[Punkte]],[Punkte],0),\" - \"),\" - \")","v":" - "}," - - -",{"$f":"IF(Tabelle_Auswertung[[#This Row],[Platz]]=1,CONCATENATE(Tabelle_Auswertung[[#This Row],[Bildname]],\" von \",Tabelle_Auswertung[[#This Row],[Autor(in)]]),\"\")","v":""},{"$f":"IF(Tabelle_Auswertung[[#This Row],[Platz]]=2,CONCATENATE(Tabelle_Auswertung[[#This Row],[Bildname]],\" von \",Tabelle_Auswertung[[#This Row],[Autor(in)]]),\"\")","v":""},{"$f":"IF(Tabelle_Auswertung[[#This Row],[Platz]]=3,CONCATENATE(Tabelle_Auswertung[[#This Row],[Bildname]],\" von \",Tabelle_Auswertung[[#This Row],[Autor(in)]]),\"\")","v":""},{"$f":"IF(Tabelle_Auswertung[[#This Row],[Platz]]=4,CONCATENATE(Tabelle_Auswertung[[#This Row],[Bildname]],\" von \",Tabelle_Auswertung[[#This Row],[Autor(in)]]),\"\")","v":""},{"$f":"IF(Tabelle_Auswertung[[#This Row],[Platz]]=5,CONCATENATE(Tabelle_Auswertung[[#This Row],[Bildname]],\" von \",Tabelle_Auswertung[[#This Row],[Autor(in)]]),\"\")","v":""},{"$f":"IF(Tabelle_Auswertung[[#This Row],[Platz]]=6,CONCATENATE(Tabelle_Auswertung[[#This Row],[Bildname]],\" von \",Tabelle_Auswertung[[#This Row],[Autor(in)]]),\"\")","v":""},{"$f":"IF(Tabelle_Auswertung[[#This Row],[Platz]]=7,CONCATENATE(Tabelle_Auswertung[[#This Row],[Bildname]],\" von \",Tabelle_Auswertung[[#This Row],[Autor(in)]]),\"\")","v":""},{"$f":"IF(Tabelle_Auswertung[[#This Row],[Platz]]=8,CONCATENATE(Tabelle_Auswertung[[#This Row],[Bildname]],\" von \",Tabelle_Auswertung[[#This Row],[Autor(in)]]),\"\")","v":""},{"$f":"IF(Tabelle_Auswertung[[#This Row],[Platz]]=9,CONCATENATE(Tabelle_Auswertung[[#This Row],[Bildname]],\" von \",Tabelle_Auswertung[[#This Row],[Autor(in)]]),\"\")","v":""},{"$f":"IF(Tabelle_Auswertung[[#This Row],[Platz]]=10,CONCATENATE(Tabelle_Auswertung[[#This Row],[Bildname]],\" von \",Tabelle_Auswertung[[#This Row],[Autor(in)]]),\"\")","v":""}]
[{"$nulls":22},{"$f":"IF(Tabelle_Auswertung[[#This Row],[Bildname]]<>\"\",SUM(Tabelle_Auswertung[[#This Row],[Juror 1]:[Juror 20]]),\" - \")","v":" - "},{"$f":"IF(Tabelle_Auswertung[[#This Row],[Bildname]]<>\"\",IF(Tabelle_Auswertung[[#This Row],[Punkte]]>0,AVERAGE(Tabelle_Auswertung[[#This Row],[Juror 1]:[Juror 20]]),\" - \"),\" - \")","v":" - "},{"$f":"IF(Tabelle_Auswertung[[#This Row],[Bildname]]<>\"\",IF(Tabelle_Auswertung[[#This Row],[Punkte]]>0,RANK(Tabelle_Auswertung[[#This Row],[Punkte]],[Punkte],0),\" - \"),\" - \")","v":" - "}," - - -",{"$f":"IF(Tabelle_Auswertung[[#This Row],[Platz]]=1,CONCATENATE(Tabelle_Auswertung[[#This Row],[Bildname]],\" von \",Tabelle_Auswertung[[#This Row],[Autor(in)]]),\"\")","v":""},{"$f":"IF(Tabelle_Auswertung[[#This Row],[Platz]]=2,CONCATENATE(Tabelle_Auswertung[[#This Row],[Bildname]],\" von \",Tabelle_Auswertung[[#This Row],[Autor(in)]]),\"\")","v":""},{"$f":"IF(Tabelle_Auswertung[[#This Row],[Platz]]=3,CONCATENATE(Tabelle_Auswertung[[#This Row],[Bildname]],\" von \",Tabelle_Auswertung[[#This Row],[Autor(in)]]),\"\")","v":""},{"$f":"IF(Tabelle_Auswertung[[#This Row],[Platz]]=4,CONCATENATE(Tabelle_Auswertung[[#This Row],[Bildname]],\" von \",Tabelle_Auswertung[[#This Row],[Autor(in)]]),\"\")","v":""},{"$f":"IF(Tabelle_Auswertung[[#This Row],[Platz]]=5,CONCATENATE(Tabelle_Auswertung[[#This Row],[Bildname]],\" von \",Tabelle_Auswertung[[#This Row],[Autor(in)]]),\"\")","v":""},{"$f":"IF(Tabelle_Auswertung[[#This Row],[Platz]]=6,CONCATENATE(Tabelle_Auswertung[[#This Row],[Bildname]],\" von \",Tabelle_Auswertung[[#This Row],[Autor(in)]]),\"\")","v":""},{"$f":"IF(Tabelle_Auswertung[[#This Row],[Platz]]=7,CONCATENATE(Tabelle_Auswertung[[#This Row],[Bildname]],\" von \",Tabelle_Auswertung[[#This Row],[Autor(in)]]),\"\")","v":""},{"$f":"IF(Tabelle_Auswertung[[#This Row],[Platz]]=8,CONCATENATE(Tabelle_Auswertung[[#This Row],[Bildname]],\" von \",Tabelle_Auswertung[[#This Row],[Autor(in)]]),\"\")","v":""},{"$f":"IF(Tabelle_Auswertung[[#This Row],[Platz]]=9,CONCATENATE(Tabelle_Auswertung[[#This Row],[Bildname]],\" von \",Tabelle_Auswertung[[#This Row],[Autor(in)]]),\"\")","v":""},{"$f":"IF(Tabelle_Auswertung[[#This Row],[Platz]]=10,CONCATENATE(Tabelle_Auswertung[[#This Row],[Bildname]],\" von \",Tabelle_Auswertung[[#This Row],[Autor(in)]]),\"\")","v":""}]
[{"$nulls":22},{"$f":"IF(Tabelle_Auswertung[[#This Row],[Bildname]]<>\"\",SUM(Tabelle_Auswertung[[#This Row],[Juror 1]:[Juror 20]]),\" - \")","v":" - "},{"$f":"IF(Tabelle_Auswertung[[#This Row],[Bildname]]<>\"\",IF(Tabelle_Auswertung[[#This Row],[Punkte]]>0,AVERAGE(Tabelle_Auswertung[[#This Row],[Juror 1]:[Juror 20]]),\" - \"),\" - \")","v":" - "},{"$f":"IF(Tabelle_Auswertung[[#This Row],[Bildname]]<>\"\",IF(Tabelle_Auswertung[[#This Row],[Punkte]]>0,RANK(Tabelle_Auswertung[[#This Row],[Punkte]],[Punkte],0),\" - \"),\" - \")","v":" - "}," - - -",{"$f":"IF(Tabelle_Auswertung[[#This Row],[Platz]]=1,CONCATENATE(Tabelle_Auswertung[[#This Row],[Bildname]],\" von \",Tabelle_Auswertung[[#This Row],[Autor(in)]]),\"\")","v":""},{"$f":"IF(Tabelle_Auswertung[[#This Row],[Platz]]=2,CONCATENATE(Tabelle_Auswertung[[#This Row],[Bildname]],\" von \",Tabelle_Auswertung[[#This Row],[Autor(in)]]),\"\")","v":""},{"$f":"IF(Tabelle_Auswertung[[#This Row],[Platz]]=3,CONCATENATE(Tabelle_Auswertung[[#This Row],[Bildname]],\" von \",Tabelle_Auswertung[[#This Row],[Autor(in)]]),\"\")","v":""},{"$f":"IF(Tabelle_Auswertung[[#This Row],[Platz]]=4,CONCATENATE(Tabelle_Auswertung[[#This Row],[Bildname]],\" von \",Tabelle_Auswertung[[#This Row],[Autor(in)]]),\"\")","v":""},{"$f":"IF(Tabelle_Auswertung[[#This Row],[Platz]]=5,CONCATENATE(Tabelle_Auswertung[[#This Row],[Bildname]],\" von \",Tabelle_Auswertung[[#This Row],[Autor(in)]]),\"\")","v":""},{"$f":"IF(Tabelle_Auswertung[[#This Row],[Platz]]=6,CONCATENATE(Tabelle_Auswertung[[#This Row],[Bildname]],\" von \",Tabelle_Auswertung[[#This Row],[Autor(in)]]),\"\")","v":""},{"$f":"IF(Tabelle_Auswertung[[#This Row],[Platz]]=7,CONCATENATE(Tabelle_Auswertung[[#This Row],[Bildname]],\" von \",Tabelle_Auswertung[[#This Row],[Autor(in)]]),\"\")","v":""},{"$f":"IF(Tabelle_Auswertung[[#This Row],[Platz]]=8,CONCATENATE(Tabelle_Auswertung[[#This Row],[Bildname]],\" von \",Tabelle_Auswertung[[#This Row],[Autor(in)]]),\"\")","v":""},{"$f":"IF(Tabelle_Auswertung[[#This Row],[Platz]]=9,CONCATENATE(Tabelle_Auswertung[[#This Row],[Bildname]],\" von \",Tabelle_Auswertung[[#This Row],[Autor(in)]]),\"\")","v":""},{"$f":"IF(Tabelle_Auswertung[[#This Row],[Platz]]=10,CONCATENATE(Tabelle_Auswertung[[#This Row],[Bildname]],\" von \",Tabelle_Auswertung[[#This Row],[Autor(in)]]),\"\")","v":""}]
[{"$nulls":22},{"$f":"IF(Tabelle_Auswertung[[#This Row],[Bildname]]<>\"\",SUM(Tabelle_Auswertung[[#This Row],[Juror 1]:[Juror 20]]),\" - \")","v":" - "},{"$f":"IF(Tabelle_Auswertung[[#This Row],[Bildname]]<>\"\",IF(Tabelle_Auswertung[[#This Row],[Punkte]]>0,AVERAGE(Tabelle_Auswertung[[#This Row],[Juror 1]:[Juror 20]]),\" - \"),\" - \")","v":" - "},{"$f":"IF(Tabelle_Auswertung[[#This Row],[Bildname]]<>\"\",IF(Tabelle_Auswertung[[#This Row],[Punkte]]>0,RANK(Tabelle_Auswertung[[#This Row],[Punkte]],[Punkte],0),\" - \"),\" - \")","v":" - "}," - - -",{"$f":"IF(Tabelle_Auswertung[[#This Row],[Platz]]=1,CONCATENATE(Tabelle_Auswertung[[#This Row],[Bildname]],\" von \",Tabelle_Auswertung[[#This Row],[Autor(in)]]),\"\")","v":""},{"$f":"IF(Tabelle_Auswertung[[#This Row],[Platz]]=2,CONCATENATE(Tabelle_Auswertung[[#This Row],[Bildname]],\" von \",Tabelle_Auswertung[[#This Row],[Autor(in)]]),\"\")","v":""},{"$f":"IF(Tabelle_Auswertung[[#This Row],[Platz]]=3,CONCATENATE(Tabelle_Auswertung[[#This Row],[Bildname]],\" von \",Tabelle_Auswertung[[#This Row],[Autor(in)]]),\"\")","v":""},{"$f":"IF(Tabelle_Auswertung[[#This Row],[Platz]]=4,CONCATENATE(Tabelle_Auswertung[[#This Row],[Bildname]],\" von \",Tabelle_Auswertung[[#This Row],[Autor(in)]]),\"\")","v":""},{"$f":"IF(Tabelle_Auswertung[[#This Row],[Platz]]=5,CONCATENATE(Tabelle_Auswertung[[#This Row],[Bildname]],\" von \",Tabelle_Auswertung[[#This Row],[Autor(in)]]),\"\")","v":""},{"$f":"IF(Tabelle_Auswertung[[#This Row],[Platz]]=6,CONCATENATE(Tabelle_Auswertung[[#This Row],[Bildname]],\" von \",Tabelle_Auswertung[[#This Row],[Autor(in)]]),\"\")","v":""},{"$f":"IF(Tabelle_Auswertung[[#This Row],[Platz]]=7,CONCATENATE(Tabelle_Auswertung[[#This Row],[Bildname]],\" von \",Tabelle_Auswertung[[#This Row],[Autor(in)]]),\"\")","v":""},{"$f":"IF(Tabelle_Auswertung[[#This Row],[Platz]]=8,CONCATENATE(Tabelle_Auswertung[[#This Row],[Bildname]],\" von \",Tabelle_Auswertung[[#This Row],[Autor(in)]]),\"\")","v":""},{"$f":"IF(Tabelle_Auswertung[[#This Row],[Platz]]=9,CONCATENATE(Tabelle_Auswertung[[#This Row],[Bildname]],\" von \",Tabelle_Auswertung[[#This Row],[Autor(in)]]),\"\")","v":""},{"$f":"IF(Tabelle_Auswertung[[#This Row],[Platz]]=10,CONCATENATE(Tabelle_Auswertung[[#This Row],[Bildname]],\" von \",Tabelle_Auswertung[[#This Row],[Autor(in)]]),\"\")","v":""}]
[{"$nulls":22},{"$f":"IF(Tabelle_Auswertung[[#This Row],[Bildname]]<>\"\",SUM(Tabelle_Auswertung[[#This Row],[Juror 1]:[Juror 20]]),\" - \")","v":" - "},{"$f":"IF(Tabelle_Auswertung[[#This Row],[Bildname]]<>\"\",IF(Tabelle_Auswertung[[#This Row],[Punkte]]>0,AVERAGE(Tabelle_Auswertung[[#This Row],[Juror 1]:[Juror 20]]),\" - \"),\" - \")","v":" - "},{"$f":"IF(Tabelle_Auswertung[[#This Row],[Bildname]]<>\"\",IF(Tabelle_Auswertung[[#This Row],[Punkte]]>0,RANK(Tabelle_Auswertung[[#This Row],[Punkte]],[Punkte],0),\" - \"),\" - \")","v":" - "}," - - -",{"$f":"IF(Tabelle_Auswertung[[#This Row],[Platz]]=1,CONCATENATE(Tabelle_Auswertung[[#This Row],[Bildname]],\" von \",Tabelle_Auswertung[[#This Row],[Autor(in)]]),\"\")","v":""},{"$f":"IF(Tabelle_Auswertung[[#This Row],[Platz]]=2,CONCATENATE(Tabelle_Auswertung[[#This Row],[Bildname]],\" von \",Tabelle_Auswertung[[#This Row],[Autor(in)]]),\"\")","v":""},{"$f":"IF(Tabelle_Auswertung[[#This Row],[Platz]]=3,CONCATENATE(Tabelle_Auswertung[[#This Row],[Bildname]],\" von \",Tabelle_Auswertung[[#This Row],[Autor(in)]]),\"\")","v":""},{"$f":"IF(Tabelle_Auswertung[[#This Row],[Platz]]=4,CONCATENATE(Tabelle_Auswertung[[#This Row],[Bildname]],\" von \",Tabelle_Auswertung[[#This Row],[Autor(in)]]),\"\")","v":""},{"$f":"IF(Tabelle_Auswertung[[#This Row],[Platz]]=5,CONCATENATE(Tabelle_Auswertung[[#This Row],[Bildname]],\" von \",Tabelle_Auswertung[[#This Row],[Autor(in)]]),\"\")","v":""},{"$f":"IF(Tabelle_Auswertung[[#This Row],[Platz]]=6,CONCATENATE(Tabelle_Auswertung[[#This Row],[Bildname]],\" von \",Tabelle_Auswertung[[#This Row],[Autor(in)]]),\"\")","v":""},{"$f":"IF(Tabelle_Auswertung[[#This Row],[Platz]]=7,CONCATENATE(Tabelle_Auswertung[[#This Row],[Bildname]],\" von \",Tabelle_Auswertung[[#This Row],[Autor(in)]]),\"\")","v":""},{"$f":"IF(Tabelle_Auswertung[[#This Row],[Platz]]=8,CONCATENATE(Tabelle_Auswertung[[#This Row],[Bildname]],\" von \",Tabelle_Auswertung[[#This Row],[Autor(in)]]),\"\")","v":""},{"$f":"IF(Tabelle_Auswertung[[#This Row],[Platz]]=9,CONCATENATE(Tabelle_Auswertung[[#This Row],[Bildname]],\" von \",Tabelle_Auswertung[[#This Row],[Autor(in)]]),\"\")","v":""},{"$f":"IF(Tabelle_Auswertung[[#This Row],[Platz]]=10,CONCATENATE(Tabelle_Auswertung[[#This Row],[Bildname]],\" von \",Tabelle_Auswertung[[#This Row],[Autor(in)]]),\"\")","v":""}]
[{"$nulls":22},{"$f":"IF(Tabelle_Auswertung[[#This Row],[Bildname]]<>\"\",SUM(Tabelle_Auswertung[[#This Row],[Juror 1]:[Juror 20]]),\" - \")","v":" - "},{"$f":"IF(Tabelle_Auswertung[[#This Row],[Bildname]]<>\"\",IF(Tabelle_Auswertung[[#This Row],[Punkte]]>0,AVERAGE(Tabelle_Auswertung[[#This Row],[Juror 1]:[Juror 20]]),\" - \"),\" - \")","v":" - "},{"$f":"IF(Tabelle_Auswertung[[#This Row],[Bildname]]<>\"\",IF(Tabelle_Auswertung[[#This Row],[Punkte]]>0,RANK(Tabelle_Auswertung[[#This Row],[Punkte]],[Punkte],0),\" - \"),\" - \")","v":" - "}," - - -",{"$f":"IF(Tabelle_Auswertung[[#This Row],[Platz]]=1,CONCATENATE(Tabelle_Auswertung[[#This Row],[Bildname]],\" von \",Tabelle_Auswertung[[#This Row],[Autor(in)]]),\"\")","v":""},{"$f":"IF(Tabelle_Auswertung[[#This Row],[Platz]]=2,CONCATENATE(Tabelle_Auswertung[[#This Row],[Bildname]],\" von \",Tabelle_Auswertung[[#This Row],[Autor(in)]]),\"\")","v":""},{"$f":"IF(Tabelle_Auswertung[[#This Row],[Platz]]=3,CONCATENATE(Tabelle_Auswertung[[#This Row],[Bildname]],\" von \",Tabelle_Auswertung[[#This Row],[Autor(in)]]),\"\")","v":""},{"$f":"IF(Tabelle_Auswertung[[#This Row],[Platz]]=4,CONCATENATE(Tabelle_Auswertung[[#This Row],[Bildname]],\" von \",Tabelle_Auswertung[[#This Row],[Autor(in)]]),\"\")","v":""},{"$f":"IF(Tabelle_Auswertung[[#This Row],[Platz]]=5,CONCATENATE(Tabelle_Auswertung[[#This Row],[Bildname]],\" von \",Tabelle_Auswertung[[#This Row],[Autor(in)]]),\"\")","v":""},{"$f":"IF(Tabelle_Auswertung[[#This Row],[Platz]]=6,CONCATENATE(Tabelle_Auswertung[[#This Row],[Bildname]],\" von \",Tabelle_Auswertung[[#This Row],[Autor(in)]]),\"\")","v":""},{"$f":"IF(Tabelle_Auswertung[[#This Row],[Platz]]=7,CONCATENATE(Tabelle_Auswertung[[#This Row],[Bildname]],\" von \",Tabelle_Auswertung[[#This Row],[Autor(in)]]),\"\")","v":""},{"$f":"IF(Tabelle_Auswertung[[#This Row],[Platz]]=8,CONCATENATE(Tabelle_Auswertung[[#This Row],[Bildname]],\" von \",Tabelle_Auswertung[[#This Row],[Autor(in)]]),\"\")","v":""},{"$f":"IF(Tabelle_Auswertung[[#This Row],[Platz]]=9,CONCATENATE(Tabelle_Auswertung[[#This Row],[Bildname]],\" von \",Tabelle_Auswertung[[#This Row],[Autor(in)]]),\"\")","v":""},{"$f":"IF(Tabelle_Auswertung[[#This Row],[Platz]]=10,CONCATENATE(Tabelle_Auswertung[[#This Row],[Bildname]],\" von \",Tabelle_Auswertung[[#This Row],[Autor(in)]]),\"\")","v":""}]
[{"$nulls":22},{"$f":"IF(Tabelle_Auswertung[[#This Row],[Bildname]]<>\"\",SUM(Tabelle_Auswertung[[#This Row],[Juror 1]:[Juror 20]]),\" - \")","v":" - "},{"$f":"IF(Tabelle_Auswertung[[#This Row],[Bildname]]<>\"\",IF(Tabelle_Auswertung[[#This Row],[Punkte]]>0,AVERAGE(Tabelle_Auswertung[[#This Row],[Juror 1]:[Juror 20]]),\" - \"),\" - \")","v":" - "},{"$f":"IF(Tabelle_Auswertung[[#This Row],[Bildname]]<>\"\",IF(Tabelle_Auswertung[[#This Row],[Punkte]]>0,RANK(Tabelle_Auswertung[[#This Row],[Punkte]],[Punkte],0),\" - \"),\" - \")","v":" - "}," - - -",{"$f":"IF(Tabelle_Auswertung[[#This Row],[Platz]]=1,CONCATENATE(Tabelle_Auswertung[[#This Row],[Bildname]],\" von \",Tabelle_Auswertung[[#This Row],[Autor(in)]]),\"\")","v":""},{"$f":"IF(Tabelle_Auswertung[[#This Row],[Platz]]=2,CONCATENATE(Tabelle_Auswertung[[#This Row],[Bildname]],\" von \",Tabelle_Auswertung[[#This Row],[Autor(in)]]),\"\")","v":""},{"$f":"IF(Tabelle_Auswertung[[#This Row],[Platz]]=3,CONCATENATE(Tabelle_Auswertung[[#This Row],[Bildname]],\" von \",Tabelle_Auswertung[[#This Row],[Autor(in)]]),\"\")","v":""},{"$f":"IF(Tabelle_Auswertung[[#This Row],[Platz]]=4,CONCATENATE(Tabelle_Auswertung[[#This Row],[Bildname]],\" von \",Tabelle_Auswertung[[#This Row],[Autor(in)]]),\"\")","v":""},{"$f":"IF(Tabelle_Auswertung[[#This Row],[Platz]]=5,CONCATENATE(Tabelle_Auswertung[[#This Row],[Bildname]],\" von \",Tabelle_Auswertung[[#This Row],[Autor(in)]]),\"\")","v":""},{"$f":"IF(Tabelle_Auswertung[[#This Row],[Platz]]=6,CONCATENATE(Tabelle_Auswertung[[#This Row],[Bildname]],\" von \",Tabelle_Auswertung[[#This Row],[Autor(in)]]),\"\")","v":""},{"$f":"IF(Tabelle_Auswertung[[#This Row],[Platz]]=7,CONCATENATE(Tabelle_Auswertung[[#This Row],[Bildname]],\" von \",Tabelle_Auswertung[[#This Row],[Autor(in)]]),\"\")","v":""},{"$f":"IF(Tabelle_Auswertung[[#This Row],[Platz]]=8,CONCATENATE(Tabelle_Auswertung[[#This Row],[Bildname]],\" von \",Tabelle_Auswertung[[#This Row],[Autor(in)]]),\"\")","v":""},{"$f":"IF(Tabelle_Auswertung[[#This Row],[Platz]]=9,CONCATENATE(Tabelle_Auswertung[[#This Row],[Bildname]],\" von \",Tabelle_Auswertung[[#This Row],[Autor(in)]]),\"\")","v":""},{"$f":"IF(Tabelle_Auswertung[[#This Row],[Platz]]=10,CONCATENATE(Tabelle_Auswertung[[#This Row],[Bildname]],\" von \",Tabelle_Auswertung[[#This Row],[Autor(in)]]),\"\")","v":""}]
[{"$nulls":22},{"$f":"IF(Tabelle_Auswertung[[#This Row],[Bildname]]<>\"\",SUM(Tabelle_Auswertung[[#This Row],[Juror 1]:[Juror 20]]),\" - \")","v":" - "},{"$f":"IF(Tabelle_Auswertung[[#This Row],[Bildname]]<>\"\",IF(Tabelle_Auswertung[[#This Row],[Punkte]]>0,AVERAGE(Tabelle_Auswertung[[#This Row],[Juror 1]:[Juror 20]]),\" - \"),\" - \")","v":" - "},{"$f":"IF(Tabelle_Auswertung[[#This Row],[Bildname]]<>\"\",IF(Tabelle_Auswertung[[#This Row],[Punkte]]>0,RANK(Tabelle_Auswertung[[#This Row],[Punkte]],[Punkte],0),\" - \"),\" - \")","v":" - "}," - - -",{"$f":"IF(Tabelle_Auswertung[[#This Row],[Platz]]=1,CONCATENATE(Tabelle_Auswertung[[#This Row],[Bildname]],\" von \",Tabelle_Auswertung[[#This Row],[Autor(in)]]),\"\")","v":""},{"$f":"IF(Tabelle_Auswertung[[#This Row],[Platz]]=2,CONCATENATE(Tabelle_Auswertung[[#This Row],[Bildname]],\" von \",Tabelle_Auswertung[[#This Row],[Autor(in)]]),\"\")","v":""},{"$f":"IF(Tabelle_Auswertung[[#This Row],[Platz]]=3,CONCATENATE(Tabelle_Auswertung[[#This Row],[Bildname]],\" von \",Tabelle_Auswertung[[#This Row],[Autor(in)]]),\"\")","v":""},{"$f":"IF(Tabelle_Auswertung[[#This Row],[Platz]]=4,CONCATENATE(Tabelle_Auswertung[[#This Row],[Bildname]],\" von \",Tabelle_Auswertung[[#This Row],[Autor(in)]]),\"\")","v":""},{"$f":"IF(Tabelle_Auswertung[[#This Row],[Platz]]=5,CONCATENATE(Tabelle_Auswertung[[#This Row],[Bildname]],\" von \",Tabelle_Auswertung[[#This Row],[Autor(in)]]),\"\")","v":""},{"$f":"IF(Tabelle_Auswertung[[#This Row],[Platz]]=6,CONCATENATE(Tabelle_Auswertung[[#This Row],[Bildname]],\" von \",Tabelle_Auswertung[[#This Row],[Autor(in)]]),\"\")","v":""},{"$f":"IF(Tabelle_Auswertung[[#This Row],[Platz]]=7,CONCATENATE(Tabelle_Auswertung[[#This Row],[Bildname]],\" von \",Tabelle_Auswertung[[#This Row],[Autor(in)]]),\"\")","v":""},{"$f":"IF(Tabelle_Auswertung[[#This Row],[Platz]]=8,CONCATENATE(Tabelle_Auswertung[[#This Row],[Bildname]],\" von \",Tabelle_Auswertung[[#This Row],[Autor(in)]]),\"\")","v":""},{"$f":"IF(Tabelle_Auswertung[[#This Row],[Platz]]=9,CONCATENATE(Tabelle_Auswertung[[#This Row],[Bildname]],\" von \",Tabelle_Auswertung[[#This Row],[Autor(in)]]),\"\")","v":""},{"$f":"IF(Tabelle_Auswertung[[#This Row],[Platz]]=10,CONCATENATE(Tabelle_Auswertung[[#This Row],[Bildname]],\" von \",Tabelle_Auswertung[[#This Row],[Autor(in)]]),\"\")","v":""}]
[{"$nulls":22},{"$f":"IF(Tabelle_Auswertung[[#This Row],[Bildname]]<>\"\",SUM(Tabelle_Auswertung[[#This Row],[Juror 1]:[Juror 20]]),\" - \")","v":" - "},{"$f":"IF(Tabelle_Auswertung[[#This Row],[Bildname]]<>\"\",IF(Tabelle_Auswertung[[#This Row],[Punkte]]>0,AVERAGE(Tabelle_Auswertung[[#This Row],[Juror 1]:[Juror 20]]),\" - \"),\" - \")","v":" - "},{"$f":"IF(Tabelle_Auswertung[[#This Row],[Bildname]]<>\"\",IF(Tabelle_Auswertung[[#This Row],[Punkte]]>0,RANK(Tabelle_Auswertung[[#This Row],[Punkte]],[Punkte],0),\" - \"),\" - \")","v":" - "}," - - -",{"$f":"IF(Tabelle_Auswertung[[#This Row],[Platz]]=1,CONCATENATE(Tabelle_Auswertung[[#This Row],[Bildname]],\" von \",Tabelle_Auswertung[[#This Row],[Autor(in)]]),\"\")","v":""},{"$f":"IF(Tabelle_Auswertung[[#This Row],[Platz]]=2,CONCATENATE(Tabelle_Auswertung[[#This Row],[Bildname]],\" von \",Tabelle_Auswertung[[#This Row],[Autor(in)]]),\"\")","v":""},{"$f":"IF(Tabelle_Auswertung[[#This Row],[Platz]]=3,CONCATENATE(Tabelle_Auswertung[[#This Row],[Bildname]],\" von \",Tabelle_Auswertung[[#This Row],[Autor(in)]]),\"\")","v":""},{"$f":"IF(Tabelle_Auswertung[[#This Row],[Platz]]=4,CONCATENATE(Tabelle_Auswertung[[#This Row],[Bildname]],\" von \",Tabelle_Auswertung[[#This Row],[Autor(in)]]),\"\")","v":""},{"$f":"IF(Tabelle_Auswertung[[#This Row],[Platz]]=5,CONCATENATE(Tabelle_Auswertung[[#This Row],[Bildname]],\" von \",Tabelle_Auswertung[[#This Row],[Autor(in)]]),\"\")","v":""},{"$f":"IF(Tabelle_Auswertung[[#This Row],[Platz]]=6,CONCATENATE(Tabelle_Auswertung[[#This Row],[Bildname]],\" von \",Tabelle_Auswertung[[#This Row],[Autor(in)]]),\"\")","v":""},{"$f":"IF(Tabelle_Auswertung[[#This Row],[Platz]]=7,CONCATENATE(Tabelle_Auswertung[[#This Row],[Bildname]],\" von \",Tabelle_Auswertung[[#This Row],[Autor(in)]]),\"\")","v":""},{"$f":"IF(Tabelle_Auswertung[[#This Row],[Platz]]=8,CONCATENATE(Tabelle_Auswertung[[#This Row],[Bildname]],\" von \",Tabelle_Auswertung[[#This Row],[Autor(in)]]),\"\")","v":""},{"$f":"IF(Tabelle_Auswertung[[#This Row],[Platz]]=9,CONCATENATE(Tabelle_Auswertung[[#This Row],[Bildname]],\" von \",Tabelle_Auswertung[[#This Row],[Autor(in)]]),\"\")","v":""},{"$f":"IF(Tabelle_Auswertung[[#This Row],[Platz]]=10,CONCATENATE(Tabelle_Auswertung[[#This Row],[Bildname]],\" von \",Tabelle_Auswertung[[#This Row],[Autor(in)]]),\"\")","v":""}]
[{"$nulls":22},{"$f":"IF(Tabelle_Auswertung[[#This Row],[Bildname]]<>\"\",SUM(Tabelle_Auswertung[[#This Row],[Juror 1]:[Juror 20]]),\" - \")","v":" - "},{"$f":"IF(Tabelle_Auswertung[[#This Row],[Bildname]]<>\"\",IF(Tabelle_Auswertung[[#This Row],[Punkte]]>0,AVERAGE(Tabelle_Auswertung[[#This Row],[Juror 1]:[Juror 20]]),\" - \"),\" - \")","v":" - "},{"$f":"IF(Tabelle_Auswertung[[#This Row],[Bildname]]<>\"\",IF(Tabelle_Auswertung[[#This Row],[Punkte]]>0,RANK(Tabelle_Auswertung[[#This Row],[Punkte]],[Punkte],0),\" - \"),\" - \")","v":" - "}," - - -",{"$f":"IF(Tabelle_Auswertung[[#This Row],[Platz]]=1,CONCATENATE(Tabelle_Auswertung[[#This Row],[Bildname]],\" von \",Tabelle_Auswertung[[#This Row],[Autor(in)]]),\"\")","v":""},{"$f":"IF(Tabelle_Auswertung[[#This Row],[Platz]]=2,CONCATENATE(Tabelle_Auswertung[[#This Row],[Bildname]],\" von \",Tabelle_Auswertung[[#This Row],[Autor(in)]]),\"\")","v":""},{"$f":"IF(Tabelle_Auswertung[[#This Row],[Platz]]=3,CONCATENATE(Tabelle_Auswertung[[#This Row],[Bildname]],\" von \",Tabelle_Auswertung[[#This Row],[Autor(in)]]),\"\")","v":""},{"$f":"IF(Tabelle_Auswertung[[#This Row],[Platz]]=4,CONCATENATE(Tabelle_Auswertung[[#This Row],[Bildname]],\" von \",Tabelle_Auswertung[[#This Row],[Autor(in)]]),\"\")","v":""},{"$f":"IF(Tabelle_Auswertung[[#This Row],[Platz]]=5,CONCATENATE(Tabelle_Auswertung[[#This Row],[Bildname]],\" von \",Tabelle_Auswertung[[#This Row],[Autor(in)]]),\"\")","v":""},{"$f":"IF(Tabelle_Auswertung[[#This Row],[Platz]]=6,CONCATENATE(Tabelle_Auswertung[[#This Row],[Bildname]],\" von \",Tabelle_Auswertung[[#This Row],[Autor(in)]]),\"\")","v":""},{"$f":"IF(Tabelle_Auswertung[[#This Row],[Platz]]=7,CONCATENATE(Tabelle_Auswertung[[#This Row],[Bildname]],\" von \",Tabelle_Auswertung[[#This Row],[Autor(in)]]),\"\")","v":""},{"$f":"IF(Tabelle_Auswertung[[#This Row],[Platz]]=8,CONCATENATE(Tabelle_Auswertung[[#This Row],[Bildname]],\" von \",Tabelle_Auswertung[[#This Row],[Autor(in)]]),\"\")","v":""},{"$f":"IF(Tabelle_Auswertung[[#This Row],[Platz]]=9,CONCATENATE(Tabelle_Auswertung[[#This Row],[Bildname]],\" von \",Tabelle_Auswertung[[#This Row],[Autor(in)]]),\"\")","v":""},{"$f":"IF(Tabelle_Auswertung[[#This Row],[Platz]]=10,CONCATENATE(Tabelle_Auswertung[[#This Row],[Bildname]],\" von \",Tabelle_Auswertung[[#This Row],[Autor(in)]]),\"\")","v":""}]
[{"$nulls":22},{"$f":"IF(Tabelle_Auswertung[[#This Row],[Bildname]]<>\"\",SUM(Tabelle_Auswertung[[#This Row],[Juror 1]:[Juror 20]]),\" - \")","v":" - "},{"$f":"IF(Tabelle_Auswertung[[#This Row],[Bildname]]<>\"\",IF(Tabelle_Auswertung[[#This Row],[Punkte]]>0,AVERAGE(Tabelle_Auswertung[[#This Row],[Juror 1]:[Juror 20]]),\" - \"),\" - \")","v":" - "},{"$f":"IF(Tabelle_Auswertung[[#This Row],[Bildname]]<>\"\",IF(Tabelle_Auswertung[[#This Row],[Punkte]]>0,RANK(Tabelle_Auswertung[[#This Row],[Punkte]],[Punkte],0),\" - \"),\" - \")","v":" - "}," - - -",{"$f":"IF(Tabelle_Auswertung[[#This Row],[Platz]]=1,CONCATENATE(Tabelle_Auswertung[[#This Row],[Bildname]],\" von \",Tabelle_Auswertung[[#This Row],[Autor(in)]]),\"\")","v":""},{"$f":"IF(Tabelle_Auswertung[[#This Row],[Platz]]=2,CONCATENATE(Tabelle_Auswertung[[#This Row],[Bildname]],\" von \",Tabelle_Auswertung[[#This Row],[Autor(in)]]),\"\")","v":""},{"$f":"IF(Tabelle_Auswertung[[#This Row],[Platz]]=3,CONCATENATE(Tabelle_Auswertung[[#This Row],[Bildname]],\" von \",Tabelle_Auswertung[[#This Row],[Autor(in)]]),\"\")","v":""},{"$f":"IF(Tabelle_Auswertung[[#This Row],[Platz]]=4,CONCATENATE(Tabelle_Auswertung[[#This Row],[Bildname]],\" von \",Tabelle_Auswertung[[#This Row],[Autor(in)]]),\"\")","v":""},{"$f":"IF(Tabelle_Auswertung[[#This Row],[Platz]]=5,CONCATENATE(Tabelle_Auswertung[[#This Row],[Bildname]],\" von \",Tabelle_Auswertung[[#This Row],[Autor(in)]]),\"\")","v":""},{"$f":"IF(Tabelle_Auswertung[[#This Row],[Platz]]=6,CONCATENATE(Tabelle_Auswertung[[#This Row],[Bildname]],\" von \",Tabelle_Auswertung[[#This Row],[Autor(in)]]),\"\")","v":""},{"$f":"IF(Tabelle_Auswertung[[#This Row],[Platz]]=7,CONCATENATE(Tabelle_Auswertung[[#This Row],[Bildname]],\" von \",Tabelle_Auswertung[[#This Row],[Autor(in)]]),\"\")","v":""},{"$f":"IF(Tabelle_Auswertung[[#This Row],[Platz]]=8,CONCATENATE(Tabelle_Auswertung[[#This Row],[Bildname]],\" von \",Tabelle_Auswertung[[#This Row],[Autor(in)]]),\"\")","v":""},{"$f":"IF(Tabelle_Auswertung[[#This Row],[Platz]]=9,CONCATENATE(Tabelle_Auswertung[[#This Row],[Bildname]],\" von \",Tabelle_Auswertung[[#This Row],[Autor(in)]]),\"\")","v":""},{"$f":"IF(Tabelle_Auswertung[[#This Row],[Platz]]=10,CONCATENATE(Tabelle_Auswertung[[#This Row],[Bildname]],\" von \",Tabelle_Auswertung[[#This Row],[Autor(in)]]),\"\")","v":""}]
[{"$nulls":22},{"$f":"IF(Tabelle_Auswertung[[#This Row],[Bildname]]<>\"\",SUM(Tabelle_Auswertung[[#This Row],[Juror 1]:[Juror 20]]),\" - \")","v":" - "},{"$f":"IF(Tabelle_Auswertung[[#This Row],[Bildname]]<>\"\",IF(Tabelle_Auswertung[[#This Row],[Punkte]]>0,AVERAGE(Tabelle_Auswertung[[#This Row],[Juror 1]:[Juror 20]]),\" - \"),\" - \")","v":" - "},{"$f":"IF(Tabelle_Auswertung[[#This Row],[Bildname]]<>\"\",IF(Tabelle_Auswertung[[#This Row],[Punkte]]>0,RANK(Tabelle_Auswertung[[#This Row],[Punkte]],[Punkte],0),\" - \"),\" - \")","v":" - "}," - - -",{"$f":"IF(Tabelle_Auswertung[[#This Row],[Platz]]=1,CONCATENATE(Tabelle_Auswertung[[#This Row],[Bildname]],\" von \",Tabelle_Auswertung[[#This Row],[Autor(in)]]),\"\")","v":""},{"$f":"IF(Tabelle_Auswertung[[#This Row],[Platz]]=2,CONCATENATE(Tabelle_Auswertung[[#This Row],[Bildname]],\" von \",Tabelle_Auswertung[[#This Row],[Autor(in)]]),\"\")","v":""},{"$f":"IF(Tabelle_Auswertung[[#This Row],[Platz]]=3,CONCATENATE(Tabelle_Auswertung[[#This Row],[Bildname]],\" von \",Tabelle_Auswertung[[#This Row],[Autor(in)]]),\"\")","v":""},{"$f":"IF(Tabelle_Auswertung[[#This Row],[Platz]]=4,CONCATENATE(Tabelle_Auswertung[[#This Row],[Bildname]],\" von \",Tabelle_Auswertung[[#This Row],[Autor(in)]]),\"\")","v":""},{"$f":"IF(Tabelle_Auswertung[[#This Row],[Platz]]=5,CONCATENATE(Tabelle_Auswertung[[#This Row],[Bildname]],\" von \",Tabelle_Auswertung[[#This Row],[Autor(in)]]),\"\")","v":""},{"$f":"IF(Tabelle_Auswertung[[#This Row],[Platz]]=6,CONCATENATE(Tabelle_Auswertung[[#This Row],[Bildname]],\" von \",Tabelle_Auswertung[[#This Row],[Autor(in)]]),\"\")","v":""},{"$f":"IF(Tabelle_Auswertung[[#This Row],[Platz]]=7,CONCATENATE(Tabelle_Auswertung[[#This Row],[Bildname]],\" von \",Tabelle_Auswertung[[#This Row],[Autor(in)]]),\"\")","v":""},{"$f":"IF(Tabelle_Auswertung[[#This Row],[Platz]]=8,CONCATENATE(Tabelle_Auswertung[[#This Row],[Bildname]],\" von \",Tabelle_Auswertung[[#This Row],[Autor(in)]]),\"\")","v":""},{"$f":"IF(Tabelle_Auswertung[[#This Row],[Platz]]=9,CONCATENATE(Tabelle_Auswertung[[#This Row],[Bildname]],\" von \",Tabelle_Auswertung[[#This Row],[Autor(in)]]),\"\")","v":""},{"$f":"IF(Tabelle_Auswertung[[#This Row],[Platz]]=10,CONCATENATE(Tabelle_Auswertung[[#This Row],[Bildname]],\" von \",Tabelle_Auswertung[[#This Row],[Autor(in)]]),\"\")","v":""}]
[{"$nulls":22},{"$f":"IF(Tabelle_Auswertung[[#This Row],[Bildname]]<>\"\",SUM(Tabelle_Auswertung[[#This Row],[Juror 1]:[Juror 20]]),\" - \")","v":" - "},{"$f":"IF(Tabelle_Auswertung[[#This Row],[Bildname]]<>\"\",IF(Tabelle_Auswertung[[#This Row],[Punkte]]>0,AVERAGE(Tabelle_Auswertung[[#This Row],[Juror 1]:[Juror 20]]),\" - \"),\" - \")","v":" - "},{"$f":"IF(Tabelle_Auswertung[[#This Row],[Bildname]]<>\"\",IF(Tabelle_Auswertung[[#This Row],[Punkte]]>0,RANK(Tabelle_Auswertung[[#This Row],[Punkte]],[Punkte],0),\" - \"),\" - \")","v":" - "}," - - -",{"$f":"IF(Tabelle_Auswertung[[#This Row],[Platz]]=1,CONCATENATE(Tabelle_Auswertung[[#This Row],[Bildname]],\" von \",Tabelle_Auswertung[[#This Row],[Autor(in)]]),\"\")","v":""},{"$f":"IF(Tabelle_Auswertung[[#This Row],[Platz]]=2,CONCATENATE(Tabelle_Auswertung[[#This Row],[Bildname]],\" von \",Tabelle_Auswertung[[#This Row],[Autor(in)]]),\"\")","v":""},{"$f":"IF(Tabelle_Auswertung[[#This Row],[Platz]]=3,CONCATENATE(Tabelle_Auswertung[[#This Row],[Bildname]],\" von \",Tabelle_Auswertung[[#This Row],[Autor(in)]]),\"\")","v":""},{"$f":"IF(Tabelle_Auswertung[[#This Row],[Platz]]=4,CONCATENATE(Tabelle_Auswertung[[#This Row],[Bildname]],\" von \",Tabelle_Auswertung[[#This Row],[Autor(in)]]),\"\")","v":""},{"$f":"IF(Tabelle_Auswertung[[#This Row],[Platz]]=5,CONCATENATE(Tabelle_Auswertung[[#This Row],[Bildname]],\" von \",Tabelle_Auswertung[[#This Row],[Autor(in)]]),\"\")","v":""},{"$f":"IF(Tabelle_Auswertung[[#This Row],[Platz]]=6,CONCATENATE(Tabelle_Auswertung[[#This Row],[Bildname]],\" von \",Tabelle_Auswertung[[#This Row],[Autor(in)]]),\"\")","v":""},{"$f":"IF(Tabelle_Auswertung[[#This Row],[Platz]]=7,CONCATENATE(Tabelle_Auswertung[[#This Row],[Bildname]],\" von \",Tabelle_Auswertung[[#This Row],[Autor(in)]]),\"\")","v":""},{"$f":"IF(Tabelle_Auswertung[[#This Row],[Platz]]=8,CONCATENATE(Tabelle_Auswertung[[#This Row],[Bildname]],\" von \",Tabelle_Auswertung[[#This Row],[Autor(in)]]),\"\")","v":""},{"$f":"IF(Tabelle_Auswertung[[#This Row],[Platz]]=9,CONCATENATE(Tabelle_Auswertung[[#This Row],[Bildname]],\" von \",Tabelle_Auswertung[[#This Row],[Autor(in)]]),\"\")","v":""},{"$f":"IF(Tabelle_Auswertung[[#This Row],[Platz]]=10,CONCATENATE(Tabelle_Auswertung[[#This Row],[Bildname]],\" von \",Tabelle_Auswertung[[#This Row],[Autor(in)]]),\"\")","v":""}]
[{"$nulls":22},{"$f":"IF(Tabelle_Auswertung[[#This Row],[Bildname]]<>\"\",SUM(Tabelle_Auswertung[[#This Row],[Juror 1]:[Juror 20]]),\" - \")","v":" - "},{"$f":"IF(Tabelle_Auswertung[[#This Row],[Bildname]]<>\"\",IF(Tabelle_Auswertung[[#This Row],[Punkte]]>0,AVERAGE(Tabelle_Auswertung[[#This Row],[Juror 1]:[Juror 20]]),\" - \"),\" - \")","v":" - "},{"$f":"IF(Tabelle_Auswertung[[#This Row],[Bildname]]<>\"\",IF(Tabelle_Auswertung[[#This Row],[Punkte]]>0,RANK(Tabelle_Auswertung[[#This Row],[Punkte]],[Punkte],0),\" - \"),\" - \")","v":" - "}," - - -",{"$f":"IF(Tabelle_Auswertung[[#This Row],[Platz]]=1,CONCATENATE(Tabelle_Auswertung[[#This Row],[Bildname]],\" von \",Tabelle_Auswertung[[#This Row],[Autor(in)]]),\"\")","v":""},{"$f":"IF(Tabelle_Auswertung[[#This Row],[Platz]]=2,CONCATENATE(Tabelle_Auswertung[[#This Row],[Bildname]],\" von \",Tabelle_Auswertung[[#This Row],[Autor(in)]]),\"\")","v":""},{"$f":"IF(Tabelle_Auswertung[[#This Row],[Platz]]=3,CONCATENATE(Tabelle_Auswertung[[#This Row],[Bildname]],\" von \",Tabelle_Auswertung[[#This Row],[Autor(in)]]),\"\")","v":""},{"$f":"IF(Tabelle_Auswertung[[#This Row],[Platz]]=4,CONCATENATE(Tabelle_Auswertung[[#This Row],[Bildname]],\" von \",Tabelle_Auswertung[[#This Row],[Autor(in)]]),\"\")","v":""},{"$f":"IF(Tabelle_Auswertung[[#This Row],[Platz]]=5,CONCATENATE(Tabelle_Auswertung[[#This Row],[Bildname]],\" von \",Tabelle_Auswertung[[#This Row],[Autor(in)]]),\"\")","v":""},{"$f":"IF(Tabelle_Auswertung[[#This Row],[Platz]]=6,CONCATENATE(Tabelle_Auswertung[[#This Row],[Bildname]],\" von \",Tabelle_Auswertung[[#This Row],[Autor(in)]]),\"\")","v":""},{"$f":"IF(Tabelle_Auswertung[[#This Row],[Platz]]=7,CONCATENATE(Tabelle_Auswertung[[#This Row],[Bildname]],\" von \",Tabelle_Auswertung[[#This Row],[Autor(in)]]),\"\")","v":""},{"$f":"IF(Tabelle_Auswertung[[#This Row],[Platz]]=8,CONCATENATE(Tabelle_Auswertung[[#This Row],[Bildname]],\" von \",Tabelle_Auswertung[[#This Row],[Autor(in)]]),\"\")","v":""},{"$f":"IF(Tabelle_Auswertung[[#This Row],[Platz]]=9,CONCATENATE(Tabelle_Auswertung[[#This Row],[Bildname]],\" von \",Tabelle_Auswertung[[#This Row],[Autor(in)]]),\"\")","v":""},{"$f":"IF(Tabelle_Auswertung[[#This Row],[Platz]]=10,CONCATENATE(Tabelle_Auswertung[[#This Row],[Bildname]],\" von \",Tabelle_Auswertung[[#This Row],[Autor(in)]]),\"\")","v":""}]
[{"$nulls":22},{"$f":"IF(Tabelle_Auswertung[[#This Row],[Bildname]]<>\"\",SUM(Tabelle_Auswertung[[#This Row],[Juror 1]:[Juror 20]]),\" - \")","v":" - "},{"$f":"IF(Tabelle_Auswertung[[#This Row],[Bildname]]<>\"\",IF(Tabelle_Auswertung[[#This Row],[Punkte]]>0,AVERAGE(Tabelle_Auswertung[[#This Row],[Juror 1]:[Juror 20]]),\" - \"),\" - \")","v":" - "},{"$f":"IF(Tabelle_Auswertung[[#This Row],[Bildname]]<>\"\",IF(Tabelle_Auswertung[[#This Row],[Punkte]]>0,RANK(Tabelle_Auswertung[[#This Row],[Punkte]],[Punkte],0),\" - \"),\" - \")","v":" - "}," - - -",{"$f":"IF(Tabelle_Auswertung[[#This Row],[Platz]]=1,CONCATENATE(Tabelle_Auswertung[[#This Row],[Bildname]],\" von \",Tabelle_Auswertung[[#This Row],[Autor(in)]]),\"\")","v":""},{"$f":"IF(Tabelle_Auswertung[[#This Row],[Platz]]=2,CONCATENATE(Tabelle_Auswertung[[#This Row],[Bildname]],\" von \",Tabelle_Auswertung[[#This Row],[Autor(in)]]),\"\")","v":""},{"$f":"IF(Tabelle_Auswertung[[#This Row],[Platz]]=3,CONCATENATE(Tabelle_Auswertung[[#This Row],[Bildname]],\" von \",Tabelle_Auswertung[[#This Row],[Autor(in)]]),\"\")","v":""},{"$f":"IF(Tabelle_Auswertung[[#This Row],[Platz]]=4,CONCATENATE(Tabelle_Auswertung[[#This Row],[Bildname]],\" von \",Tabelle_Auswertung[[#This Row],[Autor(in)]]),\"\")","v":""},{"$f":"IF(Tabelle_Auswertung[[#This Row],[Platz]]=5,CONCATENATE(Tabelle_Auswertung[[#This Row],[Bildname]],\" von \",Tabelle_Auswertung[[#This Row],[Autor(in)]]),\"\")","v":""},{"$f":"IF(Tabelle_Auswertung[[#This Row],[Platz]]=6,CONCATENATE(Tabelle_Auswertung[[#This Row],[Bildname]],\" von \",Tabelle_Auswertung[[#This Row],[Autor(in)]]),\"\")","v":""},{"$f":"IF(Tabelle_Auswertung[[#This Row],[Platz]]=7,CONCATENATE(Tabelle_Auswertung[[#This Row],[Bildname]],\" von \",Tabelle_Auswertung[[#This Row],[Autor(in)]]),\"\")","v":""},{"$f":"IF(Tabelle_Auswertung[[#This Row],[Platz]]=8,CONCATENATE(Tabelle_Auswertung[[#This Row],[Bildname]],\" von \",Tabelle_Auswertung[[#This Row],[Autor(in)]]),\"\")","v":""},{"$f":"IF(Tabelle_Auswertung[[#This Row],[Platz]]=9,CONCATENATE(Tabelle_Auswertung[[#This Row],[Bildname]],\" von \",Tabelle_Auswertung[[#This Row],[Autor(in)]]),\"\")","v":""},{"$f":"IF(Tabelle_Auswertung[[#This Row],[Platz]]=10,CONCATENATE(Tabelle_Auswertung[[#This Row],[Bildname]],\" von \",Tabelle_Auswertung[[#This Row],[Autor(in)]]),\"\")","v":""}]
[{"$nulls":22},{"$f":"IF(Tabelle_Auswertung[[#This Row],[Bildname]]<>\"\",SUM(Tabelle_Auswertung[[#This Row],[Juror 1]:[Juror 20]]),\" - \")","v":" - "},{"$f":"IF(Tabelle_Auswertung[[#This Row],[Bildname]]<>\"\",IF(Tabelle_Auswertung[[#This Row],[Punkte]]>0,AVERAGE(Tabelle_Auswertung[[#This Row],[Juror 1]:[Juror 20]]),\" - \"),\" - \")","v":" - "},{"$f":"IF(Tabelle_Auswertung[[#This Row],[Bildname]]<>\"\",IF(Tabelle_Auswertung[[#This Row],[Punkte]]>0,RANK(Tabelle_Auswertung[[#This Row],[Punkte]],[Punkte],0),\" - \"),\" - \")","v":" - "}," - - -",{"$f":"IF(Tabelle_Auswertung[[#This Row],[Platz]]=1,CONCATENATE(Tabelle_Auswertung[[#This Row],[Bildname]],\" von \",Tabelle_Auswertung[[#This Row],[Autor(in)]]),\"\")","v":""},{"$f":"IF(Tabelle_Auswertung[[#This Row],[Platz]]=2,CONCATENATE(Tabelle_Auswertung[[#This Row],[Bildname]],\" von \",Tabelle_Auswertung[[#This Row],[Autor(in)]]),\"\")","v":""},{"$f":"IF(Tabelle_Auswertung[[#This Row],[Platz]]=3,CONCATENATE(Tabelle_Auswertung[[#This Row],[Bildname]],\" von \",Tabelle_Auswertung[[#This Row],[Autor(in)]]),\"\")","v":""},{"$f":"IF(Tabelle_Auswertung[[#This Row],[Platz]]=4,CONCATENATE(Tabelle_Auswertung[[#This Row],[Bildname]],\" von \",Tabelle_Auswertung[[#This Row],[Autor(in)]]),\"\")","v":""},{"$f":"IF(Tabelle_Auswertung[[#This Row],[Platz]]=5,CONCATENATE(Tabelle_Auswertung[[#This Row],[Bildname]],\" von \",Tabelle_Auswertung[[#This Row],[Autor(in)]]),\"\")","v":""},{"$f":"IF(Tabelle_Auswertung[[#This Row],[Platz]]=6,CONCATENATE(Tabelle_Auswertung[[#This Row],[Bildname]],\" von \",Tabelle_Auswertung[[#This Row],[Autor(in)]]),\"\")","v":""},{"$f":"IF(Tabelle_Auswertung[[#This Row],[Platz]]=7,CONCATENATE(Tabelle_Auswertung[[#This Row],[Bildname]],\" von \",Tabelle_Auswertung[[#This Row],[Autor(in)]]),\"\")","v":""},{"$f":"IF(Tabelle_Auswertung[[#This Row],[Platz]]=8,CONCATENATE(Tabelle_Auswertung[[#This Row],[Bildname]],\" von \",Tabelle_Auswertung[[#This Row],[Autor(in)]]),\"\")","v":""},{"$f":"IF(Tabelle_Auswertung[[#This Row],[Platz]]=9,CONCATENATE(Tabelle_Auswertung[[#This Row],[Bildname]],\" von \",Tabelle_Auswertung[[#This Row],[Autor(in)]]),\"\")","v":""},{"$f":"IF(Tabelle_Auswertung[[#This Row],[Platz]]=10,CONCATENATE(Tabelle_Auswertung[[#This Row],[Bildname]],\" von \",Tabelle_Auswertung[[#This Row],[Autor(in)]]),\"\")","v":""}]
[{"$nulls":22},{"$f":"IF(Tabelle_Auswertung[[#This Row],[Bildname]]<>\"\",SUM(Tabelle_Auswertung[[#This Row],[Juror 1]:[Juror 20]]),\" - \")","v":" - "},{"$f":"IF(Tabelle_Auswertung[[#This Row],[Bildname]]<>\"\",IF(Tabelle_Auswertung[[#This Row],[Punkte]]>0,AVERAGE(Tabelle_Auswertung[[#This Row],[Juror 1]:[Juror 20]]),\" - \"),\" - \")","v":" - "},{"$f":"IF(Tabelle_Auswertung[[#This Row],[Bildname]]<>\"\",IF(Tabelle_Auswertung[[#This Row],[Punkte]]>0,RANK(Tabelle_Auswertung[[#This Row],[Punkte]],[Punkte],0),\" - \"),\" - \")","v":" - "}," - - -",{"$f":"IF(Tabelle_Auswertung[[#This Row],[Platz]]=1,CONCATENATE(Tabelle_Auswertung[[#This Row],[Bildname]],\" von \",Tabelle_Auswertung[[#This Row],[Autor(in)]]),\"\")","v":""},{"$f":"IF(Tabelle_Auswertung[[#This Row],[Platz]]=2,CONCATENATE(Tabelle_Auswertung[[#This Row],[Bildname]],\" von \",Tabelle_Auswertung[[#This Row],[Autor(in)]]),\"\")","v":""},{"$f":"IF(Tabelle_Auswertung[[#This Row],[Platz]]=3,CONCATENATE(Tabelle_Auswertung[[#This Row],[Bildname]],\" von \",Tabelle_Auswertung[[#This Row],[Autor(in)]]),\"\")","v":""},{"$f":"IF(Tabelle_Auswertung[[#This Row],[Platz]]=4,CONCATENATE(Tabelle_Auswertung[[#This Row],[Bildname]],\" von \",Tabelle_Auswertung[[#This Row],[Autor(in)]]),\"\")","v":""},{"$f":"IF(Tabelle_Auswertung[[#This Row],[Platz]]=5,CONCATENATE(Tabelle_Auswertung[[#This Row],[Bildname]],\" von \",Tabelle_Auswertung[[#This Row],[Autor(in)]]),\"\")","v":""},{"$f":"IF(Tabelle_Auswertung[[#This Row],[Platz]]=6,CONCATENATE(Tabelle_Auswertung[[#This Row],[Bildname]],\" von \",Tabelle_Auswertung[[#This Row],[Autor(in)]]),\"\")","v":""},{"$f":"IF(Tabelle_Auswertung[[#This Row],[Platz]]=7,CONCATENATE(Tabelle_Auswertung[[#This Row],[Bildname]],\" von \",Tabelle_Auswertung[[#This Row],[Autor(in)]]),\"\")","v":""},{"$f":"IF(Tabelle_Auswertung[[#This Row],[Platz]]=8,CONCATENATE(Tabelle_Auswertung[[#This Row],[Bildname]],\" von \",Tabelle_Auswertung[[#This Row],[Autor(in)]]),\"\")","v":""},{"$f":"IF(Tabelle_Auswertung[[#This Row],[Platz]]=9,CONCATENATE(Tabelle_Auswertung[[#This Row],[Bildname]],\" von \",Tabelle_Auswertung[[#This Row],[Autor(in)]]),\"\")","v":""},{"$f":"IF(Tabelle_Auswertung[[#This Row],[Platz]]=10,CONCATENATE(Tabelle_Auswertung[[#This Row],[Bildname]],\" von \",Tabelle_Auswertung[[#This Row],[Autor(in)]]),\"\")","v":""}]
[{"$nulls":22},{"$f":"IF(Tabelle_Auswertung[[#This Row],[Bildname]]<>\"\",SUM(Tabelle_Auswertung[[#This Row],[Juror 1]:[Juror 20]]),\" - \")","v":" - "},{"$f":"IF(Tabelle_Auswertung[[#This Row],[Bildname]]<>\"\",IF(Tabelle_Auswertung[[#This Row],[Punkte]]>0,AVERAGE(Tabelle_Auswertung[[#This Row],[Juror 1]:[Juror 20]]),\" - \"),\" - \")","v":" - "},{"$f":"IF(Tabelle_Auswertung[[#This Row],[Bildname]]<>\"\",IF(Tabelle_Auswertung[[#This Row],[Punkte]]>0,RANK(Tabelle_Auswertung[[#This Row],[Punkte]],[Punkte],0),\" - \"),\" - \")","v":" - "}," - - -",{"$f":"IF(Tabelle_Auswertung[[#This Row],[Platz]]=1,CONCATENATE(Tabelle_Auswertung[[#This Row],[Bildname]],\" von \",Tabelle_Auswertung[[#This Row],[Autor(in)]]),\"\")","v":""},{"$f":"IF(Tabelle_Auswertung[[#This Row],[Platz]]=2,CONCATENATE(Tabelle_Auswertung[[#This Row],[Bildname]],\" von \",Tabelle_Auswertung[[#This Row],[Autor(in)]]),\"\")","v":""},{"$f":"IF(Tabelle_Auswertung[[#This Row],[Platz]]=3,CONCATENATE(Tabelle_Auswertung[[#This Row],[Bildname]],\" von \",Tabelle_Auswertung[[#This Row],[Autor(in)]]),\"\")","v":""},{"$f":"IF(Tabelle_Auswertung[[#This Row],[Platz]]=4,CONCATENATE(Tabelle_Auswertung[[#This Row],[Bildname]],\" von \",Tabelle_Auswertung[[#This Row],[Autor(in)]]),\"\")","v":""},{"$f":"IF(Tabelle_Auswertung[[#This Row],[Platz]]=5,CONCATENATE(Tabelle_Auswertung[[#This Row],[Bildname]],\" von \",Tabelle_Auswertung[[#This Row],[Autor(in)]]),\"\")","v":""},{"$f":"IF(Tabelle_Auswertung[[#This Row],[Platz]]=6,CONCATENATE(Tabelle_Auswertung[[#This Row],[Bildname]],\" von \",Tabelle_Auswertung[[#This Row],[Autor(in)]]),\"\")","v":""},{"$f":"IF(Tabelle_Auswertung[[#This Row],[Platz]]=7,CONCATENATE(Tabelle_Auswertung[[#This Row],[Bildname]],\" von \",Tabelle_Auswertung[[#This Row],[Autor(in)]]),\"\")","v":""},{"$f":"IF(Tabelle_Auswertung[[#This Row],[Platz]]=8,CONCATENATE(Tabelle_Auswertung[[#This Row],[Bildname]],\" von \",Tabelle_Auswertung[[#This Row],[Autor(in)]]),\"\")","v":""},{"$f":"IF(Tabelle_Auswertung[[#This Row],[Platz]]=9,CONCATENATE(Tabelle_Auswertung[[#This Row],[Bildname]],\" von \",Tabelle_Auswertung[[#This Row],[Autor(in)]]),\"\")","v":""},{"$f":"IF(Tabelle_Auswertung[[#This Row],[Platz]]=10,CONCATENATE(Tabelle_Auswertung[[#This Row],[Bildname]],\" von \",Tabelle_Auswertung[[#This Row],[Autor(in)]]),\"\")","v":""}]
[{"$nulls":22},{"$f":"IF(Tabelle_Auswertung[[#This Row],[Bildname]]<>\"\",SUM(Tabelle_Auswertung[[#This Row],[Juror 1]:[Juror 20]]),\" - \")","v":" - "},{"$f":"IF(Tabelle_Auswertung[[#This Row],[Bildname]]<>\"\",IF(Tabelle_Auswertung[[#This Row],[Punkte]]>0,AVERAGE(Tabelle_Auswertung[[#This Row],[Juror 1]:[Juror 20]]),\" - \"),\" - \")","v":" - "},{"$f":"IF(Tabelle_Auswertung[[#This Row],[Bildname]]<>\"\",IF(Tabelle_Auswertung[[#This Row],[Punkte]]>0,RANK(Tabelle_Auswertung[[#This Row],[Punkte]],[Punkte],0),\" - \"),\" - \")","v":" - "}," - - -",{"$f":"IF(Tabelle_Auswertung[[#This Row],[Platz]]=1,CONCATENATE(Tabelle_Auswertung[[#This Row],[Bildname]],\" von \",Tabelle_Auswertung[[#This Row],[Autor(in)]]),\"\")","v":""},{"$f":"IF(Tabelle_Auswertung[[#This Row],[Platz]]=2,CONCATENATE(Tabelle_Auswertung[[#This Row],[Bildname]],\" von \",Tabelle_Auswertung[[#This Row],[Autor(in)]]),\"\")","v":""},{"$f":"IF(Tabelle_Auswertung[[#This Row],[Platz]]=3,CONCATENATE(Tabelle_Auswertung[[#This Row],[Bildname]],\" von \",Tabelle_Auswertung[[#This Row],[Autor(in)]]),\"\")","v":""},{"$f":"IF(Tabelle_Auswertung[[#This Row],[Platz]]=4,CONCATENATE(Tabelle_Auswertung[[#This Row],[Bildname]],\" von \",Tabelle_Auswertung[[#This Row],[Autor(in)]]),\"\")","v":""},{"$f":"IF(Tabelle_Auswertung[[#This Row],[Platz]]=5,CONCATENATE(Tabelle_Auswertung[[#This Row],[Bildname]],\" von \",Tabelle_Auswertung[[#This Row],[Autor(in)]]),\"\")","v":""},{"$f":"IF(Tabelle_Auswertung[[#This Row],[Platz]]=6,CONCATENATE(Tabelle_Auswertung[[#This Row],[Bildname]],\" von \",Tabelle_Auswertung[[#This Row],[Autor(in)]]),\"\")","v":""},{"$f":"IF(Tabelle_Auswertung[[#This Row],[Platz]]=7,CONCATENATE(Tabelle_Auswertung[[#This Row],[Bildname]],\" von \",Tabelle_Auswertung[[#This Row],[Autor(in)]]),\"\")","v":""},{"$f":"IF(Tabelle_Auswertung[[#This Row],[Platz]]=8,CONCATENATE(Tabelle_Auswertung[[#This Row],[Bildname]],\" von \",Tabelle_Auswertung[[#This Row],[Autor(in)]]),\"\")","v":""},{"$f":"IF(Tabelle_Auswertung[[#This Row],[Platz]]=9,CONCATENATE(Tabelle_Auswertung[[#This Row],[Bildname]],\" von \",Tabelle_Auswertung[[#This Row],[Autor(in)]]),\"\")","v":""},{"$f":"IF(Tabelle_Auswertung[[#This Row],[Platz]]=10,CONCATENATE(Tabelle_Auswertung[[#This Row],[Bildname]],\" von \",Tabelle_Auswertung[[#This Row],[Autor(in)]]),\"\")","v":""}]
[{"$nulls":22},{"$f":"IF(Tabelle_Auswertung[[#This Row],[Bildname]]<>\"\",SUM(Tabelle_Auswertung[[#This Row],[Juror 1]:[Juror 20]]),\" - \")","v":" - "},{"$f":"IF(Tabelle_Auswertung[[#This Row],[Bildname]]<>\"\",IF(Tabelle_Auswertung[[#This Row],[Punkte]]>0,AVERAGE(Tabelle_Auswertung[[#This Row],[Juror 1]:[Juror 20]]),\" - \"),\" - \")","v":" - "},{"$f":"IF(Tabelle_Auswertung[[#This Row],[Bildname]]<>\"\",IF(Tabelle_Auswertung[[#This Row],[Punkte]]>0,RANK(Tabelle_Auswertung[[#This Row],[Punkte]],[Punkte],0),\" - \"),\" - \")","v":" - "}," - - -",{"$f":"IF(Tabelle_Auswertung[[#This Row],[Platz]]=1,CONCATENATE(Tabelle_Auswertung[[#This Row],[Bildname]],\" von \",Tabelle_Auswertung[[#This Row],[Autor(in)]]),\"\")","v":""},{"$f":"IF(Tabelle_Auswertung[[#This Row],[Platz]]=2,CONCATENATE(Tabelle_Auswertung[[#This Row],[Bildname]],\" von \",Tabelle_Auswertung[[#This Row],[Autor(in)]]),\"\")","v":""},{"$f":"IF(Tabelle_Auswertung[[#This Row],[Platz]]=3,CONCATENATE(Tabelle_Auswertung[[#This Row],[Bildname]],\" von \",Tabelle_Auswertung[[#This Row],[Autor(in)]]),\"\")","v":""},{"$f":"IF(Tabelle_Auswertung[[#This Row],[Platz]]=4,CONCATENATE(Tabelle_Auswertung[[#This Row],[Bildname]],\" von \",Tabelle_Auswertung[[#This Row],[Autor(in)]]),\"\")","v":""},{"$f":"IF(Tabelle_Auswertung[[#This Row],[Platz]]=5,CONCATENATE(Tabelle_Auswertung[[#This Row],[Bildname]],\" von \",Tabelle_Auswertung[[#This Row],[Autor(in)]]),\"\")","v":""},{"$f":"IF(Tabelle_Auswertung[[#This Row],[Platz]]=6,CONCATENATE(Tabelle_Auswertung[[#This Row],[Bildname]],\" von \",Tabelle_Auswertung[[#This Row],[Autor(in)]]),\"\")","v":""},{"$f":"IF(Tabelle_Auswertung[[#This Row],[Platz]]=7,CONCATENATE(Tabelle_Auswertung[[#This Row],[Bildname]],\" von \",Tabelle_Auswertung[[#This Row],[Autor(in)]]),\"\")","v":""},{"$f":"IF(Tabelle_Auswertung[[#This Row],[Platz]]=8,CONCATENATE(Tabelle_Auswertung[[#This Row],[Bildname]],\" von \",Tabelle_Auswertung[[#This Row],[Autor(in)]]),\"\")","v":""},{"$f":"IF(Tabelle_Auswertung[[#This Row],[Platz]]=9,CONCATENATE(Tabelle_Auswertung[[#This Row],[Bildname]],\" von \",Tabelle_Auswertung[[#This Row],[Autor(in)]]),\"\")","v":""},{"$f":"IF(Tabelle_Auswertung[[#This Row],[Platz]]=10,CONCATENATE(Tabelle_Auswertung[[#This Row],[Bildname]],\" von \",Tabelle_Auswertung[[#This Row],[Autor(in)]]),\"\")","v":""}]
[{"$nulls":22},{"$f":"IF(Tabelle_Auswertung[[#This Row],[Bildname]]<>\"\",SUM(Tabelle_Auswertung[[#This Row],[Juror 1]:[Juror 20]]),\" - \")","v":" - "},{"$f":"IF(Tabelle_Auswertung[[#This Row],[Bildname]]<>\"\",IF(Tabelle_Auswertung[[#This Row],[Punkte]]>0,AVERAGE(Tabelle_Auswertung[[#This Row],[Juror 1]:[Juror 20]]),\" - \"),\" - \")","v":" - "},{"$f":"IF(Tabelle_Auswertung[[#This Row],[Bildname]]<>\"\",IF(Tabelle_Auswertung[[#This Row],[Punkte]]>0,RANK(Tabelle_Auswertung[[#This Row],[Punkte]],[Punkte],0),\" - \"),\" - \")","v":" - "}," - - -",{"$f":"IF(Tabelle_Auswertung[[#This Row],[Platz]]=1,CONCATENATE(Tabelle_Auswertung[[#This Row],[Bildname]],\" von \",Tabelle_Auswertung[[#This Row],[Autor(in)]]),\"\")","v":""},{"$f":"IF(Tabelle_Auswertung[[#This Row],[Platz]]=2,CONCATENATE(Tabelle_Auswertung[[#This Row],[Bildname]],\" von \",Tabelle_Auswertung[[#This Row],[Autor(in)]]),\"\")","v":""},{"$f":"IF(Tabelle_Auswertung[[#This Row],[Platz]]=3,CONCATENATE(Tabelle_Auswertung[[#This Row],[Bildname]],\" von \",Tabelle_Auswertung[[#This Row],[Autor(in)]]),\"\")","v":""},{"$f":"IF(Tabelle_Auswertung[[#This Row],[Platz]]=4,CONCATENATE(Tabelle_Auswertung[[#This Row],[Bildname]],\" von \",Tabelle_Auswertung[[#This Row],[Autor(in)]]),\"\")","v":""},{"$f":"IF(Tabelle_Auswertung[[#This Row],[Platz]]=5,CONCATENATE(Tabelle_Auswertung[[#This Row],[Bildname]],\" von \",Tabelle_Auswertung[[#This Row],[Autor(in)]]),\"\")","v":""},{"$f":"IF(Tabelle_Auswertung[[#This Row],[Platz]]=6,CONCATENATE(Tabelle_Auswertung[[#This Row],[Bildname]],\" von \",Tabelle_Auswertung[[#This Row],[Autor(in)]]),\"\")","v":""},{"$f":"IF(Tabelle_Auswertung[[#This Row],[Platz]]=7,CONCATENATE(Tabelle_Auswertung[[#This Row],[Bildname]],\" von \",Tabelle_Auswertung[[#This Row],[Autor(in)]]),\"\")","v":""},{"$f":"IF(Tabelle_Auswertung[[#This Row],[Platz]]=8,CONCATENATE(Tabelle_Auswertung[[#This Row],[Bildname]],\" von \",Tabelle_Auswertung[[#This Row],[Autor(in)]]),\"\")","v":""},{"$f":"IF(Tabelle_Auswertung[[#This Row],[Platz]]=9,CONCATENATE(Tabelle_Auswertung[[#This Row],[Bildname]],\" von \",Tabelle_Auswertung[[#This Row],[Autor(in)]]),\"\")","v":""},{"$f":"IF(Tabelle_Auswertung[[#This Row],[Platz]]=10,CONCATENATE(Tabelle_Auswertung[[#This Row],[Bildname]],\" von \",Tabelle_Auswertung[[#This Row],[Autor(in)]]),\"\")","v":""}]
[{"$nulls":22},{"$f":"IF(Tabelle_Auswertung[[#This Row],[Bildname]]<>\"\",SUM(Tabelle_Auswertung[[#This Row],[Juror 1]:[Juror 20]]),\" - \")","v":" - "},{"$f":"IF(Tabelle_Auswertung[[#This Row],[Bildname]]<>\"\",IF(Tabelle_Auswertung[[#This Row],[Punkte]]>0,AVERAGE(Tabelle_Auswertung[[#This Row],[Juror 1]:[Juror 20]]),\" - \"),\" - \")","v":" - "},{"$f":"IF(Tabelle_Auswertung[[#This Row],[Bildname]]<>\"\",IF(Tabelle_Auswertung[[#This Row],[Punkte]]>0,RANK(Tabelle_Auswertung[[#This Row],[Punkte]],[Punkte],0),\" - \"),\" - \")","v":" - "}," - - -",{"$f":"IF(Tabelle_Auswertung[[#This Row],[Platz]]=1,CONCATENATE(Tabelle_Auswertung[[#This Row],[Bildname]],\" von \",Tabelle_Auswertung[[#This Row],[Autor(in)]]),\"\")","v":""},{"$f":"IF(Tabelle_Auswertung[[#This Row],[Platz]]=2,CONCATENATE(Tabelle_Auswertung[[#This Row],[Bildname]],\" von \",Tabelle_Auswertung[[#This Row],[Autor(in)]]),\"\")","v":""},{"$f":"IF(Tabelle_Auswertung[[#This Row],[Platz]]=3,CONCATENATE(Tabelle_Auswertung[[#This Row],[Bildname]],\" von \",Tabelle_Auswertung[[#This Row],[Autor(in)]]),\"\")","v":""},{"$f":"IF(Tabelle_Auswertung[[#This Row],[Platz]]=4,CONCATENATE(Tabelle_Auswertung[[#This Row],[Bildname]],\" von \",Tabelle_Auswertung[[#This Row],[Autor(in)]]),\"\")","v":""},{"$f":"IF(Tabelle_Auswertung[[#This Row],[Platz]]=5,CONCATENATE(Tabelle_Auswertung[[#This Row],[Bildname]],\" von \",Tabelle_Auswertung[[#This Row],[Autor(in)]]),\"\")","v":""},{"$f":"IF(Tabelle_Auswertung[[#This Row],[Platz]]=6,CONCATENATE(Tabelle_Auswertung[[#This Row],[Bildname]],\" von \",Tabelle_Auswertung[[#This Row],[Autor(in)]]),\"\")","v":""},{"$f":"IF(Tabelle_Auswertung[[#This Row],[Platz]]=7,CONCATENATE(Tabelle_Auswertung[[#This Row],[Bildname]],\" von \",Tabelle_Auswertung[[#This Row],[Autor(in)]]),\"\")","v":""},{"$f":"IF(Tabelle_Auswertung[[#This Row],[Platz]]=8,CONCATENATE(Tabelle_Auswertung[[#This Row],[Bildname]],\" von \",Tabelle_Auswertung[[#This Row],[Autor(in)]]),\"\")","v":""},{"$f":"IF(Tabelle_Auswertung[[#This Row],[Platz]]=9,CONCATENATE(Tabelle_Auswertung[[#This Row],[Bildname]],\" von \",Tabelle_Auswertung[[#This Row],[Autor(in)]]),\"\")","v":""},{"$f":"IF(Tabelle_Auswertung[[#This Row],[Platz]]=10,CONCATENATE(Tabelle_Auswertung[[#This Row],[Bildname]],\" von \",Tabelle_Auswertung[[#This Row],[Autor(in)]]),\"\")","v":""}]
[{"$nulls":22},{"$f":"IF(Tabelle_Auswertung[[#This Row],[Bildname]]<>\"\",SUM(Tabelle_Auswertung[[#This Row],[Juror 1]:[Juror 20]]),\" - \")","v":" - "},{"$f":"IF(Tabelle_Auswertung[[#This Row],[Bildname]]<>\"\",IF(Tabelle_Auswertung[[#This Row],[Punkte]]>0,AVERAGE(Tabelle_Auswertung[[#This Row],[Juror 1]:[Juror 20]]),\" - \"),\" - \")","v":" - "},{"$f":"IF(Tabelle_Auswertung[[#This Row],[Bildname]]<>\"\",IF(Tabelle_Auswertung[[#This Row],[Punkte]]>0,RANK(Tabelle_Auswertung[[#This Row],[Punkte]],[Punkte],0),\" - \"),\" - \")","v":" - "}," - - -",{"$f":"IF(Tabelle_Auswertung[[#This Row],[Platz]]=1,CONCATENATE(Tabelle_Auswertung[[#This Row],[Bildname]],\" von \",Tabelle_Auswertung[[#This Row],[Autor(in)]]),\"\")","v":""},{"$f":"IF(Tabelle_Auswertung[[#This Row],[Platz]]=2,CONCATENATE(Tabelle_Auswertung[[#This Row],[Bildname]],\" von \",Tabelle_Auswertung[[#This Row],[Autor(in)]]),\"\")","v":""},{"$f":"IF(Tabelle_Auswertung[[#This Row],[Platz]]=3,CONCATENATE(Tabelle_Auswertung[[#This Row],[Bildname]],\" von \",Tabelle_Auswertung[[#This Row],[Autor(in)]]),\"\")","v":""},{"$f":"IF(Tabelle_Auswertung[[#This Row],[Platz]]=4,CONCATENATE(Tabelle_Auswertung[[#This Row],[Bildname]],\" von \",Tabelle_Auswertung[[#This Row],[Autor(in)]]),\"\")","v":""},{"$f":"IF(Tabelle_Auswertung[[#This Row],[Platz]]=5,CONCATENATE(Tabelle_Auswertung[[#This Row],[Bildname]],\" von \",Tabelle_Auswertung[[#This Row],[Autor(in)]]),\"\")","v":""},{"$f":"IF(Tabelle_Auswertung[[#This Row],[Platz]]=6,CONCATENATE(Tabelle_Auswertung[[#This Row],[Bildname]],\" von \",Tabelle_Auswertung[[#This Row],[Autor(in)]]),\"\")","v":""},{"$f":"IF(Tabelle_Auswertung[[#This Row],[Platz]]=7,CONCATENATE(Tabelle_Auswertung[[#This Row],[Bildname]],\" von \",Tabelle_Auswertung[[#This Row],[Autor(in)]]),\"\")","v":""},{"$f":"IF(Tabelle_Auswertung[[#This Row],[Platz]]=8,CONCATENATE(Tabelle_Auswertung[[#This Row],[Bildname]],\" von \",Tabelle_Auswertung[[#This Row],[Autor(in)]]),\"\")","v":""},{"$f":"IF(Tabelle_Auswertung[[#This Row],[Platz]]=9,CONCATENATE(Tabelle_Auswertung[[#This Row],[Bildname]],\" von \",Tabelle_Auswertung[[#This Row],[Autor(in)]]),\"\")","v":""},{"$f":"IF(Tabelle_Auswertung[[#This Row],[Platz]]=10,CONCATENATE(Tabelle_Auswertung[[#This Row],[Bildname]],\" von \",Tabelle_Auswertung[[#This Row],[Autor(in)]]),\"\")","v":""}]
[{"$nulls":22},{"$f":"IF(Tabelle_Auswertung[[#This Row],[Bildname]]<>\"\",SUM(Tabelle_Auswertung[[#This Row],[Juror 1]:[Juror 20]]),\" - \")","v":" - "},{"$f":"IF(Tabelle_Auswertung[[#This Row],[Bildname]]<>\"\",IF(Tabelle_Auswertung[[#This Row],[Punkte]]>0,AVERAGE(Tabelle_Auswertung[[#This Row],[Juror 1]:[Juror 20]]),\" - \"),\" - \")","v":" - "},{"$f":"IF(Tabelle_Auswertung[[#This Row],[Bildname]]<>\"\",IF(Tabelle_Auswertung[[#This Row],[Punkte]]>0,RANK(Tabelle_Auswertung[[#This Row],[Punkte]],[Punkte],0),\" - \"),\" - \")","v":" - "}," - - -",{"$f":"IF(Tabelle_Auswertung[[#This Row],[Platz]]=1,CONCATENATE(Tabelle_Auswertung[[#This Row],[Bildname]],\" von \",Tabelle_Auswertung[[#This Row],[Autor(in)]]),\"\")","v":""},{"$f":"IF(Tabelle_Auswertung[[#This Row],[Platz]]=2,CONCATENATE(Tabelle_Auswertung[[#This Row],[Bildname]],\" von \",Tabelle_Auswertung[[#This Row],[Autor(in)]]),\"\")","v":""},{"$f":"IF(Tabelle_Auswertung[[#This Row],[Platz]]=3,CONCATENATE(Tabelle_Auswertung[[#This Row],[Bildname]],\" von \",Tabelle_Auswertung[[#This Row],[Autor(in)]]),\"\")","v":""},{"$f":"IF(Tabelle_Auswertung[[#This Row],[Platz]]=4,CONCATENATE(Tabelle_Auswertung[[#This Row],[Bildname]],\" von \",Tabelle_Auswertung[[#This Row],[Autor(in)]]),\"\")","v":""},{"$f":"IF(Tabelle_Auswertung[[#This Row],[Platz]]=5,CONCATENATE(Tabelle_Auswertung[[#This Row],[Bildname]],\" von \",Tabelle_Auswertung[[#This Row],[Autor(in)]]),\"\")","v":""},{"$f":"IF(Tabelle_Auswertung[[#This Row],[Platz]]=6,CONCATENATE(Tabelle_Auswertung[[#This Row],[Bildname]],\" von \",Tabelle_Auswertung[[#This Row],[Autor(in)]]),\"\")","v":""},{"$f":"IF(Tabelle_Auswertung[[#This Row],[Platz]]=7,CONCATENATE(Tabelle_Auswertung[[#This Row],[Bildname]],\" von \",Tabelle_Auswertung[[#This Row],[Autor(in)]]),\"\")","v":""},{"$f":"IF(Tabelle_Auswertung[[#This Row],[Platz]]=8,CONCATENATE(Tabelle_Auswertung[[#This Row],[Bildname]],\" von \",Tabelle_Auswertung[[#This Row],[Autor(in)]]),\"\")","v":""},{"$f":"IF(Tabelle_Auswertung[[#This Row],[Platz]]=9,CONCATENATE(Tabelle_Auswertung[[#This Row],[Bildname]],\" von \",Tabelle_Auswertung[[#This Row],[Autor(in)]]),\"\")","v":""},{"$f":"IF(Tabelle_Auswertung[[#This Row],[Platz]]=10,CONCATENATE(Tabelle_Auswertung[[#This Row],[Bildname]],\" von \",Tabelle_Auswertung[[#This Row],[Autor(in)]]),\"\")","v":""}]
[{"$nulls":22},{"$f":"IF(Tabelle_Auswertung[[#This Row],[Bildname]]<>\"\",SUM(Tabelle_Auswertung[[#This Row],[Juror 1]:[Juror 20]]),\" - \")","v":" - "},{"$f":"IF(Tabelle_Auswertung[[#This Row],[Bildname]]<>\"\",IF(Tabelle_Auswertung[[#This Row],[Punkte]]>0,AVERAGE(Tabelle_Auswertung[[#This Row],[Juror 1]:[Juror 20]]),\" - \"),\" - \")","v":" - "},{"$f":"IF(Tabelle_Auswertung[[#This Row],[Bildname]]<>\"\",IF(Tabelle_Auswertung[[#This Row],[Punkte]]>0,RANK(Tabelle_Auswertung[[#This Row],[Punkte]],[Punkte],0),\" - \"),\" - \")","v":" - "}," - - -",{"$f":"IF(Tabelle_Auswertung[[#This Row],[Platz]]=1,CONCATENATE(Tabelle_Auswertung[[#This Row],[Bildname]],\" von \",Tabelle_Auswertung[[#This Row],[Autor(in)]]),\"\")","v":""},{"$f":"IF(Tabelle_Auswertung[[#This Row],[Platz]]=2,CONCATENATE(Tabelle_Auswertung[[#This Row],[Bildname]],\" von \",Tabelle_Auswertung[[#This Row],[Autor(in)]]),\"\")","v":""},{"$f":"IF(Tabelle_Auswertung[[#This Row],[Platz]]=3,CONCATENATE(Tabelle_Auswertung[[#This Row],[Bildname]],\" von \",Tabelle_Auswertung[[#This Row],[Autor(in)]]),\"\")","v":""},{"$f":"IF(Tabelle_Auswertung[[#This Row],[Platz]]=4,CONCATENATE(Tabelle_Auswertung[[#This Row],[Bildname]],\" von \",Tabelle_Auswertung[[#This Row],[Autor(in)]]),\"\")","v":""},{"$f":"IF(Tabelle_Auswertung[[#This Row],[Platz]]=5,CONCATENATE(Tabelle_Auswertung[[#This Row],[Bildname]],\" von \",Tabelle_Auswertung[[#This Row],[Autor(in)]]),\"\")","v":""},{"$f":"IF(Tabelle_Auswertung[[#This Row],[Platz]]=6,CONCATENATE(Tabelle_Auswertung[[#This Row],[Bildname]],\" von \",Tabelle_Auswertung[[#This Row],[Autor(in)]]),\"\")","v":""},{"$f":"IF(Tabelle_Auswertung[[#This Row],[Platz]]=7,CONCATENATE(Tabelle_Auswertung[[#This Row],[Bildname]],\" von \",Tabelle_Auswertung[[#This Row],[Autor(in)]]),\"\")","v":""},{"$f":"IF(Tabelle_Auswertung[[#This Row],[Platz]]=8,CONCATENATE(Tabelle_Auswertung[[#This Row],[Bildname]],\" von \",Tabelle_Auswertung[[#This Row],[Autor(in)]]),\"\")","v":""},{"$f":"IF(Tabelle_Auswertung[[#This Row],[Platz]]=9,CONCATENATE(Tabelle_Auswertung[[#This Row],[Bildname]],\" von \",Tabelle_Auswertung[[#This Row],[Autor(in)]]),\"\")","v":""},{"$f":"IF(Tabelle_Auswertung[[#This Row],[Platz]]=10,CONCATENATE(Tabelle_Auswertung[[#This Row],[Bildname]],\" von \",Tabelle_Auswertung[[#This Row],[Autor(in)]]),\"\")","v":""}]
[{"$nulls":22},{"$f":"IF(Tabelle_Auswertung[[#This Row],[Bildname]]<>\"\",SUM(Tabelle_Auswertung[[#This Row],[Juror 1]:[Juror 20]]),\" - \")","v":" - "},{"$f":"IF(Tabelle_Auswertung[[#This Row],[Bildname]]<>\"\",IF(Tabelle_Auswertung[[#This Row],[Punkte]]>0,AVERAGE(Tabelle_Auswertung[[#This Row],[Juror 1]:[Juror 20]]),\" - \"),\" - \")","v":" - "},{"$f":"IF(Tabelle_Auswertung[[#This Row],[Bildname]]<>\"\",IF(Tabelle_Auswertung[[#This Row],[Punkte]]>0,RANK(Tabelle_Auswertung[[#This Row],[Punkte]],[Punkte],0),\" - \"),\" - \")","v":" - "}," - - -",{"$f":"IF(Tabelle_Auswertung[[#This Row],[Platz]]=1,CONCATENATE(Tabelle_Auswertung[[#This Row],[Bildname]],\" von \",Tabelle_Auswertung[[#This Row],[Autor(in)]]),\"\")","v":""},{"$f":"IF(Tabelle_Auswertung[[#This Row],[Platz]]=2,CONCATENATE(Tabelle_Auswertung[[#This Row],[Bildname]],\" von \",Tabelle_Auswertung[[#This Row],[Autor(in)]]),\"\")","v":""},{"$f":"IF(Tabelle_Auswertung[[#This Row],[Platz]]=3,CONCATENATE(Tabelle_Auswertung[[#This Row],[Bildname]],\" von \",Tabelle_Auswertung[[#This Row],[Autor(in)]]),\"\")","v":""},{"$f":"IF(Tabelle_Auswertung[[#This Row],[Platz]]=4,CONCATENATE(Tabelle_Auswertung[[#This Row],[Bildname]],\" von \",Tabelle_Auswertung[[#This Row],[Autor(in)]]),\"\")","v":""},{"$f":"IF(Tabelle_Auswertung[[#This Row],[Platz]]=5,CONCATENATE(Tabelle_Auswertung[[#This Row],[Bildname]],\" von \",Tabelle_Auswertung[[#This Row],[Autor(in)]]),\"\")","v":""},{"$f":"IF(Tabelle_Auswertung[[#This Row],[Platz]]=6,CONCATENATE(Tabelle_Auswertung[[#This Row],[Bildname]],\" von \",Tabelle_Auswertung[[#This Row],[Autor(in)]]),\"\")","v":""},{"$f":"IF(Tabelle_Auswertung[[#This Row],[Platz]]=7,CONCATENATE(Tabelle_Auswertung[[#This Row],[Bildname]],\" von \",Tabelle_Auswertung[[#This Row],[Autor(in)]]),\"\")","v":""},{"$f":"IF(Tabelle_Auswertung[[#This Row],[Platz]]=8,CONCATENATE(Tabelle_Auswertung[[#This Row],[Bildname]],\" von \",Tabelle_Auswertung[[#This Row],[Autor(in)]]),\"\")","v":""},{"$f":"IF(Tabelle_Auswertung[[#This Row],[Platz]]=9,CONCATENATE(Tabelle_Auswertung[[#This Row],[Bildname]],\" von \",Tabelle_Auswertung[[#This Row],[Autor(in)]]),\"\")","v":""},{"$f":"IF(Tabelle_Auswertung[[#This Row],[Platz]]=10,CONCATENATE(Tabelle_Auswertung[[#This Row],[Bildname]],\" von \",Tabelle_Auswertung[[#This Row],[Autor(in)]]),\"\")","v":""}]
[{"$nulls":22},{"$f":"IF(Tabelle_Auswertung[[#This Row],[Bildname]]<>\"\",SUM(Tabelle_Auswertung[[#This Row],[Juror 1]:[Juror 20]]),\" - \")","v":" - "},{"$f":"IF(Tabelle_Auswertung[[#This Row],[Bildname]]<>\"\",IF(Tabelle_Auswertung[[#This Row],[Punkte]]>0,AVERAGE(Tabelle_Auswertung[[#This Row],[Juror 1]:[Juror 20]]),\" - \"),\" - \")","v":" - "},{"$f":"IF(Tabelle_Auswertung[[#This Row],[Bildname]]<>\"\",IF(Tabelle_Auswertung[[#This Row],[Punkte]]>0,RANK(Tabelle_Auswertung[[#This Row],[Punkte]],[Punkte],0),\" - \"),\" - \")","v":" - "}," - - -",{"$f":"IF(Tabelle_Auswertung[[#This Row],[Platz]]=1,CONCATENATE(Tabelle_Auswertung[[#This Row],[Bildname]],\" von \",Tabelle_Auswertung[[#This Row],[Autor(in)]]),\"\")","v":""},{"$f":"IF(Tabelle_Auswertung[[#This Row],[Platz]]=2,CONCATENATE(Tabelle_Auswertung[[#This Row],[Bildname]],\" von \",Tabelle_Auswertung[[#This Row],[Autor(in)]]),\"\")","v":""},{"$f":"IF(Tabelle_Auswertung[[#This Row],[Platz]]=3,CONCATENATE(Tabelle_Auswertung[[#This Row],[Bildname]],\" von \",Tabelle_Auswertung[[#This Row],[Autor(in)]]),\"\")","v":""},{"$f":"IF(Tabelle_Auswertung[[#This Row],[Platz]]=4,CONCATENATE(Tabelle_Auswertung[[#This Row],[Bildname]],\" von \",Tabelle_Auswertung[[#This Row],[Autor(in)]]),\"\")","v":""},{"$f":"IF(Tabelle_Auswertung[[#This Row],[Platz]]=5,CONCATENATE(Tabelle_Auswertung[[#This Row],[Bildname]],\" von \",Tabelle_Auswertung[[#This Row],[Autor(in)]]),\"\")","v":""},{"$f":"IF(Tabelle_Auswertung[[#This Row],[Platz]]=6,CONCATENATE(Tabelle_Auswertung[[#This Row],[Bildname]],\" von \",Tabelle_Auswertung[[#This Row],[Autor(in)]]),\"\")","v":""},{"$f":"IF(Tabelle_Auswertung[[#This Row],[Platz]]=7,CONCATENATE(Tabelle_Auswertung[[#This Row],[Bildname]],\" von \",Tabelle_Auswertung[[#This Row],[Autor(in)]]),\"\")","v":""},{"$f":"IF(Tabelle_Auswertung[[#This Row],[Platz]]=8,CONCATENATE(Tabelle_Auswertung[[#This Row],[Bildname]],\" von \",Tabelle_Auswertung[[#This Row],[Autor(in)]]),\"\")","v":""},{"$f":"IF(Tabelle_Auswertung[[#This Row],[Platz]]=9,CONCATENATE(Tabelle_Auswertung[[#This Row],[Bildname]],\" von \",Tabelle_Auswertung[[#This Row],[Autor(in)]]),\"\")","v":""},{"$f":"IF(Tabelle_Auswertung[[#This Row],[Platz]]=10,CONCATENATE(Tabelle_Auswertung[[#This Row],[Bildname]],\" von \",Tabelle_Auswertung[[#This Row],[Autor(in)]]),\"\")","v":""}]
[{"$nulls":22},{"$f":"IF(Tabelle_Auswertung[[#This Row],[Bildname]]<>\"\",SUM(Tabelle_Auswertung[[#This Row],[Juror 1]:[Juror 20]]),\" - \")","v":" - "},{"$f":"IF(Tabelle_Auswertung[[#This Row],[Bildname]]<>\"\",IF(Tabelle_Auswertung[[#This Row],[Punkte]]>0,AVERAGE(Tabelle_Auswertung[[#This Row],[Juror 1]:[Juror 20]]),\" - \"),\" - \")","v":" - "},{"$f":"IF(Tabelle_Auswertung[[#This Row],[Bildname]]<>\"\",IF(Tabelle_Auswertung[[#This Row],[Punkte]]>0,RANK(Tabelle_Auswertung[[#This Row],[Punkte]],[Punkte],0),\" - \"),\" - \")","v":" - "}," - - -",{"$f":"IF(Tabelle_Auswertung[[#This Row],[Platz]]=1,CONCATENATE(Tabelle_Auswertung[[#This Row],[Bildname]],\" von \",Tabelle_Auswertung[[#This Row],[Autor(in)]]),\"\")","v":""},{"$f":"IF(Tabelle_Auswertung[[#This Row],[Platz]]=2,CONCATENATE(Tabelle_Auswertung[[#This Row],[Bildname]],\" von \",Tabelle_Auswertung[[#This Row],[Autor(in)]]),\"\")","v":""},{"$f":"IF(Tabelle_Auswertung[[#This Row],[Platz]]=3,CONCATENATE(Tabelle_Auswertung[[#This Row],[Bildname]],\" von \",Tabelle_Auswertung[[#This Row],[Autor(in)]]),\"\")","v":""},{"$f":"IF(Tabelle_Auswertung[[#This Row],[Platz]]=4,CONCATENATE(Tabelle_Auswertung[[#This Row],[Bildname]],\" von \",Tabelle_Auswertung[[#This Row],[Autor(in)]]),\"\")","v":""},{"$f":"IF(Tabelle_Auswertung[[#This Row],[Platz]]=5,CONCATENATE(Tabelle_Auswertung[[#This Row],[Bildname]],\" von \",Tabelle_Auswertung[[#This Row],[Autor(in)]]),\"\")","v":""},{"$f":"IF(Tabelle_Auswertung[[#This Row],[Platz]]=6,CONCATENATE(Tabelle_Auswertung[[#This Row],[Bildname]],\" von \",Tabelle_Auswertung[[#This Row],[Autor(in)]]),\"\")","v":""},{"$f":"IF(Tabelle_Auswertung[[#This Row],[Platz]]=7,CONCATENATE(Tabelle_Auswertung[[#This Row],[Bildname]],\" von \",Tabelle_Auswertung[[#This Row],[Autor(in)]]),\"\")","v":""},{"$f":"IF(Tabelle_Auswertung[[#This Row],[Platz]]=8,CONCATENATE(Tabelle_Auswertung[[#This Row],[Bildname]],\" von \",Tabelle_Auswertung[[#This Row],[Autor(in)]]),\"\")","v":""},{"$f":"IF(Tabelle_Auswertung[[#This Row],[Platz]]=9,CONCATENATE(Tabelle_Auswertung[[#This Row],[Bildname]],\" von \",Tabelle_Auswertung[[#This Row],[Autor(in)]]),\"\")","v":""},{"$f":"IF(Tabelle_Auswertung[[#This Row],[Platz]]=10,CONCATENATE(Tabelle_Auswertung[[#This Row],[Bildname]],\" von \",Tabelle_Auswertung[[#This Row],[Autor(in)]]),\"\")","v":""}]
[{"$nulls":22},{"$f":"IF(Tabelle_Auswertung[[#This Row],[Bildname]]<>\"\",SUM(Tabelle_Auswertung[[#This Row],[Juror 1]:[Juror 20]]),\" - \")","v":" - "},{"$f":"IF(Tabelle_Auswertung[[#This Row],[Bildname]]<>\"\",IF(Tabelle_Auswertung[[#This Row],[Punkte]]>0,AVERAGE(Tabelle_Auswertung[[#This Row],[Juror 1]:[Juror 20]]),\" - \"),\" - \")","v":" - "},{"$f":"IF(Tabelle_Auswertung[[#This Row],[Bildname]]<>\"\",IF(Tabelle_Auswertung[[#This Row],[Punkte]]>0,RANK(Tabelle_Auswertung[[#This Row],[Punkte]],[Punkte],0),\" - \"),\" - \")","v":" - "}," - - -",{"$f":"IF(Tabelle_Auswertung[[#This Row],[Platz]]=1,CONCATENATE(Tabelle_Auswertung[[#This Row],[Bildname]],\" von \",Tabelle_Auswertung[[#This Row],[Autor(in)]]),\"\")","v":""},{"$f":"IF(Tabelle_Auswertung[[#This Row],[Platz]]=2,CONCATENATE(Tabelle_Auswertung[[#This Row],[Bildname]],\" von \",Tabelle_Auswertung[[#This Row],[Autor(in)]]),\"\")","v":""},{"$f":"IF(Tabelle_Auswertung[[#This Row],[Platz]]=3,CONCATENATE(Tabelle_Auswertung[[#This Row],[Bildname]],\" von \",Tabelle_Auswertung[[#This Row],[Autor(in)]]),\"\")","v":""},{"$f":"IF(Tabelle_Auswertung[[#This Row],[Platz]]=4,CONCATENATE(Tabelle_Auswertung[[#This Row],[Bildname]],\" von \",Tabelle_Auswertung[[#This Row],[Autor(in)]]),\"\")","v":""},{"$f":"IF(Tabelle_Auswertung[[#This Row],[Platz]]=5,CONCATENATE(Tabelle_Auswertung[[#This Row],[Bildname]],\" von \",Tabelle_Auswertung[[#This Row],[Autor(in)]]),\"\")","v":""},{"$f":"IF(Tabelle_Auswertung[[#This Row],[Platz]]=6,CONCATENATE(Tabelle_Auswertung[[#This Row],[Bildname]],\" von \",Tabelle_Auswertung[[#This Row],[Autor(in)]]),\"\")","v":""},{"$f":"IF(Tabelle_Auswertung[[#This Row],[Platz]]=7,CONCATENATE(Tabelle_Auswertung[[#This Row],[Bildname]],\" von \",Tabelle_Auswertung[[#This Row],[Autor(in)]]),\"\")","v":""},{"$f":"IF(Tabelle_Auswertung[[#This Row],[Platz]]=8,CONCATENATE(Tabelle_Auswertung[[#This Row],[Bildname]],\" von \",Tabelle_Auswertung[[#This Row],[Autor(in)]]),\"\")","v":""},{"$f":"IF(Tabelle_Auswertung[[#This Row],[Platz]]=9,CONCATENATE(Tabelle_Auswertung[[#This Row],[Bildname]],\" von \",Tabelle_Auswertung[[#This Row],[Autor(in)]]),\"\")","v":""},{"$f":"IF(Tabelle_Auswertung[[#This Row],[Platz]]=10,CONCATENATE(Tabelle_Auswertung[[#This Row],[Bildname]],\" von \",Tabelle_Auswertung[[#This Row],[Autor(in)]]),\"\")","v":""}]
[{"$nulls":22},{"$f":"IF(Tabelle_Auswertung[[#This Row],[Bildname]]<>\"\",SUM(Tabelle_Auswertung[[#This Row],[Juror 1]:[Juror 20]]),\" - \")","v":" - "},{"$f":"IF(Tabelle_Auswertung[[#This Row],[Bildname]]<>\"\",IF(Tabelle_Auswertung[[#This Row],[Punkte]]>0,AVERAGE(Tabelle_Auswertung[[#This Row],[Juror 1]:[Juror 20]]),\" - \"),\" - \")","v":" - "},{"$f":"IF(Tabelle_Auswertung[[#This Row],[Bildname]]<>\"\",IF(Tabelle_Auswertung[[#This Row],[Punkte]]>0,RANK(Tabelle_Auswertung[[#This Row],[Punkte]],[Punkte],0),\" - \"),\" - \")","v":" - "}," - - -",{"$f":"IF(Tabelle_Auswertung[[#This Row],[Platz]]=1,CONCATENATE(Tabelle_Auswertung[[#This Row],[Bildname]],\" von \",Tabelle_Auswertung[[#This Row],[Autor(in)]]),\"\")","v":""},{"$f":"IF(Tabelle_Auswertung[[#This Row],[Platz]]=2,CONCATENATE(Tabelle_Auswertung[[#This Row],[Bildname]],\" von \",Tabelle_Auswertung[[#This Row],[Autor(in)]]),\"\")","v":""},{"$f":"IF(Tabelle_Auswertung[[#This Row],[Platz]]=3,CONCATENATE(Tabelle_Auswertung[[#This Row],[Bildname]],\" von \",Tabelle_Auswertung[[#This Row],[Autor(in)]]),\"\")","v":""},{"$f":"IF(Tabelle_Auswertung[[#This Row],[Platz]]=4,CONCATENATE(Tabelle_Auswertung[[#This Row],[Bildname]],\" von \",Tabelle_Auswertung[[#This Row],[Autor(in)]]),\"\")","v":""},{"$f":"IF(Tabelle_Auswertung[[#This Row],[Platz]]=5,CONCATENATE(Tabelle_Auswertung[[#This Row],[Bildname]],\" von \",Tabelle_Auswertung[[#This Row],[Autor(in)]]),\"\")","v":""},{"$f":"IF(Tabelle_Auswertung[[#This Row],[Platz]]=6,CONCATENATE(Tabelle_Auswertung[[#This Row],[Bildname]],\" von \",Tabelle_Auswertung[[#This Row],[Autor(in)]]),\"\")","v":""},{"$f":"IF(Tabelle_Auswertung[[#This Row],[Platz]]=7,CONCATENATE(Tabelle_Auswertung[[#This Row],[Bildname]],\" von \",Tabelle_Auswertung[[#This Row],[Autor(in)]]),\"\")","v":""},{"$f":"IF(Tabelle_Auswertung[[#This Row],[Platz]]=8,CONCATENATE(Tabelle_Auswertung[[#This Row],[Bildname]],\" von \",Tabelle_Auswertung[[#This Row],[Autor(in)]]),\"\")","v":""},{"$f":"IF(Tabelle_Auswertung[[#This Row],[Platz]]=9,CONCATENATE(Tabelle_Auswertung[[#This Row],[Bildname]],\" von \",Tabelle_Auswertung[[#This Row],[Autor(in)]]),\"\")","v":""},{"$f":"IF(Tabelle_Auswertung[[#This Row],[Platz]]=10,CONCATENATE(Tabelle_Auswertung[[#This Row],[Bildname]],\" von \",Tabelle_Auswertung[[#This Row],[Autor(in)]]),\"\")","v":""}]
[{"$nulls":22},{"$f":"IF(Tabelle_Auswertung[[#This Row],[Bildname]]<>\"\",SUM(Tabelle_Auswertung[[#This Row],[Juror 1]:[Juror 20]]),\" - \")","v":" - "},{"$f":"IF(Tabelle_Auswertung[[#This Row],[Bildname]]<>\"\",IF(Tabelle_Auswertung[[#This Row],[Punkte]]>0,AVERAGE(Tabelle_Auswertung[[#This Row],[Juror 1]:[Juror 20]]),\" - \"),\" - \")","v":" - "},{"$f":"IF(Tabelle_Auswertung[[#This Row],[Bildname]]<>\"\",IF(Tabelle_Auswertung[[#This Row],[Punkte]]>0,RANK(Tabelle_Auswertung[[#This Row],[Punkte]],[Punkte],0),\" - \"),\" - \")","v":" - "}," - - -",{"$f":"IF(Tabelle_Auswertung[[#This Row],[Platz]]=1,CONCATENATE(Tabelle_Auswertung[[#This Row],[Bildname]],\" von \",Tabelle_Auswertung[[#This Row],[Autor(in)]]),\"\")","v":""},{"$f":"IF(Tabelle_Auswertung[[#This Row],[Platz]]=2,CONCATENATE(Tabelle_Auswertung[[#This Row],[Bildname]],\" von \",Tabelle_Auswertung[[#This Row],[Autor(in)]]),\"\")","v":""},{"$f":"IF(Tabelle_Auswertung[[#This Row],[Platz]]=3,CONCATENATE(Tabelle_Auswertung[[#This Row],[Bildname]],\" von \",Tabelle_Auswertung[[#This Row],[Autor(in)]]),\"\")","v":""},{"$f":"IF(Tabelle_Auswertung[[#This Row],[Platz]]=4,CONCATENATE(Tabelle_Auswertung[[#This Row],[Bildname]],\" von \",Tabelle_Auswertung[[#This Row],[Autor(in)]]),\"\")","v":""},{"$f":"IF(Tabelle_Auswertung[[#This Row],[Platz]]=5,CONCATENATE(Tabelle_Auswertung[[#This Row],[Bildname]],\" von \",Tabelle_Auswertung[[#This Row],[Autor(in)]]),\"\")","v":""},{"$f":"IF(Tabelle_Auswertung[[#This Row],[Platz]]=6,CONCATENATE(Tabelle_Auswertung[[#This Row],[Bildname]],\" von \",Tabelle_Auswertung[[#This Row],[Autor(in)]]),\"\")","v":""},{"$f":"IF(Tabelle_Auswertung[[#This Row],[Platz]]=7,CONCATENATE(Tabelle_Auswertung[[#This Row],[Bildname]],\" von \",Tabelle_Auswertung[[#This Row],[Autor(in)]]),\"\")","v":""},{"$f":"IF(Tabelle_Auswertung[[#This Row],[Platz]]=8,CONCATENATE(Tabelle_Auswertung[[#This Row],[Bildname]],\" von \",Tabelle_Auswertung[[#This Row],[Autor(in)]]),\"\")","v":""},{"$f":"IF(Tabelle_Auswertung[[#This Row],[Platz]]=9,CONCATENATE(Tabelle_Auswertung[[#This Row],[Bildname]],\" von \",Tabelle_Auswertung[[#This Row],[Autor(in)]]),\"\")","v":""},{"$f":"IF(Tabelle_Auswertung[[#This Row],[Platz]]=10,CONCATENATE(Tabelle_Auswertung[[#This Row],[Bildname]],\" von \",Tabelle_Auswertung[[#This Row],[Autor(in)]]),\"\")","v":""}]
[{"$nulls":22},{"$f":"IF(Tabelle_Auswertung[[#This Row],[Bildname]]<>\"\",SUM(Tabelle_Auswertung[[#This Row],[Juror 1]:[Juror 20]]),\" - \")","v":" - "},{"$f":"IF(Tabelle_Auswertung[[#This Row],[Bildname]]<>\"\",IF(Tabelle_Auswertung[[#This Row],[Punkte]]>0,AVERAGE(Tabelle_Auswertung[[#This Row],[Juror 1]:[Juror 20]]),\" - \"),\" - \")","v":" - "},{"$f":"IF(Tabelle_Auswertung[[#This Row],[Bildname]]<>\"\",IF(Tabelle_Auswertung[[#This Row],[Punkte]]>0,RANK(Tabelle_Auswertung[[#This Row],[Punkte]],[Punkte],0),\" - \"),\" - \")","v":" - "}," - - -",{"$f":"IF(Tabelle_Auswertung[[#This Row],[Platz]]=1,CONCATENATE(Tabelle_Auswertung[[#This Row],[Bildname]],\" von \",Tabelle_Auswertung[[#This Row],[Autor(in)]]),\"\")","v":""},{"$f":"IF(Tabelle_Auswertung[[#This Row],[Platz]]=2,CONCATENATE(Tabelle_Auswertung[[#This Row],[Bildname]],\" von \",Tabelle_Auswertung[[#This Row],[Autor(in)]]),\"\")","v":""},{"$f":"IF(Tabelle_Auswertung[[#This Row],[Platz]]=3,CONCATENATE(Tabelle_Auswertung[[#This Row],[Bildname]],\" von \",Tabelle_Auswertung[[#This Row],[Autor(in)]]),\"\")","v":""},{"$f":"IF(Tabelle_Auswertung[[#This Row],[Platz]]=4,CONCATENATE(Tabelle_Auswertung[[#This Row],[Bildname]],\" von \",Tabelle_Auswertung[[#This Row],[Autor(in)]]),\"\")","v":""},{"$f":"IF(Tabelle_Auswertung[[#This Row],[Platz]]=5,CONCATENATE(Tabelle_Auswertung[[#This Row],[Bildname]],\" von \",Tabelle_Auswertung[[#This Row],[Autor(in)]]),\"\")","v":""},{"$f":"IF(Tabelle_Auswertung[[#This Row],[Platz]]=6,CONCATENATE(Tabelle_Auswertung[[#This Row],[Bildname]],\" von \",Tabelle_Auswertung[[#This Row],[Autor(in)]]),\"\")","v":""},{"$f":"IF(Tabelle_Auswertung[[#This Row],[Platz]]=7,CONCATENATE(Tabelle_Auswertung[[#This Row],[Bildname]],\" von \",Tabelle_Auswertung[[#This Row],[Autor(in)]]),\"\")","v":""},{"$f":"IF(Tabelle_Auswertung[[#This Row],[Platz]]=8,CONCATENATE(Tabelle_Auswertung[[#This Row],[Bildname]],\" von \",Tabelle_Auswertung[[#This Row],[Autor(in)]]),\"\")","v":""},{"$f":"IF(Tabelle_Auswertung[[#This Row],[Platz]]=9,CONCATENATE(Tabelle_Auswertung[[#This Row],[Bildname]],\" von \",Tabelle_Auswertung[[#This Row],[Autor(in)]]),\"\")","v":""},{"$f":"IF(Tabelle_Auswertung[[#This Row],[Platz]]=10,CONCATENATE(Tabelle_Auswertung[[#This Row],[Bildname]],\" von \",Tabelle_Auswertung[[#This Row],[Autor(in)]]),\"\")","v":""}]
[{"$nulls":22},{"$f":"IF(Tabelle_Auswertung[[#This Row],[Bildname]]<>\"\",SUM(Tabelle_Auswertung[[#This Row],[Juror 1]:[Juror 20]]),\" - \")","v":" - "},{"$f":"IF(Tabelle_Auswertung[[#This Row],[Bildname]]<>\"\",IF(Tabelle_Auswertung[[#This Row],[Punkte]]>0,AVERAGE(Tabelle_Auswertung[[#This Row],[Juror 1]:[Juror 20]]),\" - \"),\" - \")","v":" - "},{"$f":"IF(Tabelle_Auswertung[[#This Row],[Bildname]]<>\"\",IF(Tabelle_Auswertung[[#This Row],[Punkte]]>0,RANK(Tabelle_Auswertung[[#This Row],[Punkte]],[Punkte],0),\" - \"),\" - \")","v":" - "}," - - -",{"$f":"IF(Tabelle_Auswertung[[#This Row],[Platz]]=1,CONCATENATE(Tabelle_Auswertung[[#This Row],[Bildname]],\" von \",Tabelle_Auswertung[[#This Row],[Autor(in)]]),\"\")","v":""},{"$f":"IF(Tabelle_Auswertung[[#This Row],[Platz]]=2,CONCATENATE(Tabelle_Auswertung[[#This Row],[Bildname]],\" von \",Tabelle_Auswertung[[#This Row],[Autor(in)]]),\"\")","v":""},{"$f":"IF(Tabelle_Auswertung[[#This Row],[Platz]]=3,CONCATENATE(Tabelle_Auswertung[[#This Row],[Bildname]],\" von \",Tabelle_Auswertung[[#This Row],[Autor(in)]]),\"\")","v":""},{"$f":"IF(Tabelle_Auswertung[[#This Row],[Platz]]=4,CONCATENATE(Tabelle_Auswertung[[#This Row],[Bildname]],\" von \",Tabelle_Auswertung[[#This Row],[Autor(in)]]),\"\")","v":""},{"$f":"IF(Tabelle_Auswertung[[#This Row],[Platz]]=5,CONCATENATE(Tabelle_Auswertung[[#This Row],[Bildname]],\" von \",Tabelle_Auswertung[[#This Row],[Autor(in)]]),\"\")","v":""},{"$f":"IF(Tabelle_Auswertung[[#This Row],[Platz]]=6,CONCATENATE(Tabelle_Auswertung[[#This Row],[Bildname]],\" von \",Tabelle_Auswertung[[#This Row],[Autor(in)]]),\"\")","v":""},{"$f":"IF(Tabelle_Auswertung[[#This Row],[Platz]]=7,CONCATENATE(Tabelle_Auswertung[[#This Row],[Bildname]],\" von \",Tabelle_Auswertung[[#This Row],[Autor(in)]]),\"\")","v":""},{"$f":"IF(Tabelle_Auswertung[[#This Row],[Platz]]=8,CONCATENATE(Tabelle_Auswertung[[#This Row],[Bildname]],\" von \",Tabelle_Auswertung[[#This Row],[Autor(in)]]),\"\")","v":""},{"$f":"IF(Tabelle_Auswertung[[#This Row],[Platz]]=9,CONCATENATE(Tabelle_Auswertung[[#This Row],[Bildname]],\" von \",Tabelle_Auswertung[[#This Row],[Autor(in)]]),\"\")","v":""},{"$f":"IF(Tabelle_Auswertung[[#This Row],[Platz]]=10,CONCATENATE(Tabelle_Auswertung[[#This Row],[Bildname]],\" von \",Tabelle_Auswertung[[#This Row],[Autor(in)]]),\"\")","v":""}]
[{"$nulls":22},{"$f":"IF(Tabelle_Auswertung[[#This Row],[Bildname]]<>\"\",SUM(Tabelle_Auswertung[[#This Row],[Juror 1]:[Juror 20]]),\" - \")","v":" - "},{"$f":"IF(Tabelle_Auswertung[[#This Row],[Bildname]]<>\"\",IF(Tabelle_Auswertung[[#This Row],[Punkte]]>0,AVERAGE(Tabelle_Auswertung[[#This Row],[Juror 1]:[Juror 20]]),\" - \"),\" - \")","v":" - "},{"$f":"IF(Tabelle_Auswertung[[#This Row],[Bildname]]<>\"\",IF(Tabelle_Auswertung[[#This Row],[Punkte]]>0,RANK(Tabelle_Auswertung[[#This Row],[Punkte]],[Punkte],0),\" - \"),\" - \")","v":" - "}," - - -",{"$f":"IF(Tabelle_Auswertung[[#This Row],[Platz]]=1,CONCATENATE(Tabelle_Auswertung[[#This Row],[Bildname]],\" von \",Tabelle_Auswertung[[#This Row],[Autor(in)]]),\"\")","v":""},{"$f":"IF(Tabelle_Auswertung[[#This Row],[Platz]]=2,CONCATENATE(Tabelle_Auswertung[[#This Row],[Bildname]],\" von \",Tabelle_Auswertung[[#This Row],[Autor(in)]]),\"\")","v":""},{"$f":"IF(Tabelle_Auswertung[[#This Row],[Platz]]=3,CONCATENATE(Tabelle_Auswertung[[#This Row],[Bildname]],\" von \",Tabelle_Auswertung[[#This Row],[Autor(in)]]),\"\")","v":""},{"$f":"IF(Tabelle_Auswertung[[#This Row],[Platz]]=4,CONCATENATE(Tabelle_Auswertung[[#This Row],[Bildname]],\" von \",Tabelle_Auswertung[[#This Row],[Autor(in)]]),\"\")","v":""},{"$f":"IF(Tabelle_Auswertung[[#This Row],[Platz]]=5,CONCATENATE(Tabelle_Auswertung[[#This Row],[Bildname]],\" von \",Tabelle_Auswertung[[#This Row],[Autor(in)]]),\"\")","v":""},{"$f":"IF(Tabelle_Auswertung[[#This Row],[Platz]]=6,CONCATENATE(Tabelle_Auswertung[[#This Row],[Bildname]],\" von \",Tabelle_Auswertung[[#This Row],[Autor(in)]]),\"\")","v":""},{"$f":"IF(Tabelle_Auswertung[[#This Row],[Platz]]=7,CONCATENATE(Tabelle_Auswertung[[#This Row],[Bildname]],\" von \",Tabelle_Auswertung[[#This Row],[Autor(in)]]),\"\")","v":""},{"$f":"IF(Tabelle_Auswertung[[#This Row],[Platz]]=8,CONCATENATE(Tabelle_Auswertung[[#This Row],[Bildname]],\" von \",Tabelle_Auswertung[[#This Row],[Autor(in)]]),\"\")","v":""},{"$f":"IF(Tabelle_Auswertung[[#This Row],[Platz]]=9,CONCATENATE(Tabelle_Auswertung[[#This Row],[Bildname]],\" von \",Tabelle_Auswertung[[#This Row],[Autor(in)]]),\"\")","v":""},{"$f":"IF(Tabelle_Auswertung[[#This Row],[Platz]]=10,CONCATENATE(Tabelle_Auswertung[[#This Row],[Bildname]],\" von \",Tabelle_Auswertung[[#This Row],[Autor(in)]]),\"\")","v":""}]
[{"$nulls":22},{"$f":"IF(Tabelle_Auswertung[[#This Row],[Bildname]]<>\"\",SUM(Tabelle_Auswertung[[#This Row],[Juror 1]:[Juror 20]]),\" - \")","v":" - "},{"$f":"IF(Tabelle_Auswertung[[#This Row],[Bildname]]<>\"\",IF(Tabelle_Auswertung[[#This Row],[Punkte]]>0,AVERAGE(Tabelle_Auswertung[[#This Row],[Juror 1]:[Juror 20]]),\" - \"),\" - \")","v":" - "},{"$f":"IF(Tabelle_Auswertung[[#This Row],[Bildname]]<>\"\",IF(Tabelle_Auswertung[[#This Row],[Punkte]]>0,RANK(Tabelle_Auswertung[[#This Row],[Punkte]],[Punkte],0),\" - \"),\" - \")","v":" - "}," - - -",{"$f":"IF(Tabelle_Auswertung[[#This Row],[Platz]]=1,CONCATENATE(Tabelle_Auswertung[[#This Row],[Bildname]],\" von \",Tabelle_Auswertung[[#This Row],[Autor(in)]]),\"\")","v":""},{"$f":"IF(Tabelle_Auswertung[[#This Row],[Platz]]=2,CONCATENATE(Tabelle_Auswertung[[#This Row],[Bildname]],\" von \",Tabelle_Auswertung[[#This Row],[Autor(in)]]),\"\")","v":""},{"$f":"IF(Tabelle_Auswertung[[#This Row],[Platz]]=3,CONCATENATE(Tabelle_Auswertung[[#This Row],[Bildname]],\" von \",Tabelle_Auswertung[[#This Row],[Autor(in)]]),\"\")","v":""},{"$f":"IF(Tabelle_Auswertung[[#This Row],[Platz]]=4,CONCATENATE(Tabelle_Auswertung[[#This Row],[Bildname]],\" von \",Tabelle_Auswertung[[#This Row],[Autor(in)]]),\"\")","v":""},{"$f":"IF(Tabelle_Auswertung[[#This Row],[Platz]]=5,CONCATENATE(Tabelle_Auswertung[[#This Row],[Bildname]],\" von \",Tabelle_Auswertung[[#This Row],[Autor(in)]]),\"\")","v":""},{"$f":"IF(Tabelle_Auswertung[[#This Row],[Platz]]=6,CONCATENATE(Tabelle_Auswertung[[#This Row],[Bildname]],\" von \",Tabelle_Auswertung[[#This Row],[Autor(in)]]),\"\")","v":""},{"$f":"IF(Tabelle_Auswertung[[#This Row],[Platz]]=7,CONCATENATE(Tabelle_Auswertung[[#This Row],[Bildname]],\" von \",Tabelle_Auswertung[[#This Row],[Autor(in)]]),\"\")","v":""},{"$f":"IF(Tabelle_Auswertung[[#This Row],[Platz]]=8,CONCATENATE(Tabelle_Auswertung[[#This Row],[Bildname]],\" von \",Tabelle_Auswertung[[#This Row],[Autor(in)]]),\"\")","v":""},{"$f":"IF(Tabelle_Auswertung[[#This Row],[Platz]]=9,CONCATENATE(Tabelle_Auswertung[[#This Row],[Bildname]],\" von \",Tabelle_Auswertung[[#This Row],[Autor(in)]]),\"\")","v":""},{"$f":"IF(Tabelle_Auswertung[[#This Row],[Platz]]=10,CONCATENATE(Tabelle_Auswertung[[#This Row],[Bildname]],\" von \",Tabelle_Auswertung[[#This Row],[Autor(in)]]),\"\")","v":""}]
[{"$nulls":22},{"$f":"IF(Tabelle_Auswertung[[#This Row],[Bildname]]<>\"\",SUM(Tabelle_Auswertung[[#This Row],[Juror 1]:[Juror 20]]),\" - \")","v":" - "},{"$f":"IF(Tabelle_Auswertung[[#This Row],[Bildname]]<>\"\",IF(Tabelle_Auswertung[[#This Row],[Punkte]]>0,AVERAGE(Tabelle_Auswertung[[#This Row],[Juror 1]:[Juror 20]]),\" - \"),\" - \")","v":" - "},{"$f":"IF(Tabelle_Auswertung[[#This Row],[Bildname]]<>\"\",IF(Tabelle_Auswertung[[#This Row],[Punkte]]>0,RANK(Tabelle_Auswertung[[#This Row],[Punkte]],[Punkte],0),\" - \"),\" - \")","v":" - "}," - - -",{"$f":"IF(Tabelle_Auswertung[[#This Row],[Platz]]=1,CONCATENATE(Tabelle_Auswertung[[#This Row],[Bildname]],\" von \",Tabelle_Auswertung[[#This Row],[Autor(in)]]),\"\")","v":""},{"$f":"IF(Tabelle_Auswertung[[#This Row],[Platz]]=2,CONCATENATE(Tabelle_Auswertung[[#This Row],[Bildname]],\" von \",Tabelle_Auswertung[[#This Row],[Autor(in)]]),\"\")","v":""},{"$f":"IF(Tabelle_Auswertung[[#This Row],[Platz]]=3,CONCATENATE(Tabelle_Auswertung[[#This Row],[Bildname]],\" von \",Tabelle_Auswertung[[#This Row],[Autor(in)]]),\"\")","v":""},{"$f":"IF(Tabelle_Auswertung[[#This Row],[Platz]]=4,CONCATENATE(Tabelle_Auswertung[[#This Row],[Bildname]],\" von \",Tabelle_Auswertung[[#This Row],[Autor(in)]]),\"\")","v":""},{"$f":"IF(Tabelle_Auswertung[[#This Row],[Platz]]=5,CONCATENATE(Tabelle_Auswertung[[#This Row],[Bildname]],\" von \",Tabelle_Auswertung[[#This Row],[Autor(in)]]),\"\")","v":""},{"$f":"IF(Tabelle_Auswertung[[#This Row],[Platz]]=6,CONCATENATE(Tabelle_Auswertung[[#This Row],[Bildname]],\" von \",Tabelle_Auswertung[[#This Row],[Autor(in)]]),\"\")","v":""},{"$f":"IF(Tabelle_Auswertung[[#This Row],[Platz]]=7,CONCATENATE(Tabelle_Auswertung[[#This Row],[Bildname]],\" von \",Tabelle_Auswertung[[#This Row],[Autor(in)]]),\"\")","v":""},{"$f":"IF(Tabelle_Auswertung[[#This Row],[Platz]]=8,CONCATENATE(Tabelle_Auswertung[[#This Row],[Bildname]],\" von \",Tabelle_Auswertung[[#This Row],[Autor(in)]]),\"\")","v":""},{"$f":"IF(Tabelle_Auswertung[[#This Row],[Platz]]=9,CONCATENATE(Tabelle_Auswertung[[#This Row],[Bildname]],\" von \",Tabelle_Auswertung[[#This Row],[Autor(in)]]),\"\")","v":""},{"$f":"IF(Tabelle_Auswertung[[#This Row],[Platz]]=10,CONCATENATE(Tabelle_Auswertung[[#This Row],[Bildname]],\" von \",Tabelle_Auswertung[[#This Row],[Autor(in)]]),\"\")","v":""}]
[{"$nulls":22},{"$f":"IF(Tabelle_Auswertung[[#This Row],[Bildname]]<>\"\",SUM(Tabelle_Auswertung[[#This Row],[Juror 1]:[Juror 20]]),\" - \")","v":" - "},{"$f":"IF(Tabelle_Auswertung[[#This Row],[Bildname]]<>\"\",IF(Tabelle_Auswertung[[#This Row],[Punkte]]>0,AVERAGE(Tabelle_Auswertung[[#This Row],[Juror 1]:[Juror 20]]),\" - \"),\" - \")","v":" - "},{"$f":"IF(Tabelle_Auswertung[[#This Row],[Bildname]]<>\"\",IF(Tabelle_Auswertung[[#This Row],[Punkte]]>0,RANK(Tabelle_Auswertung[[#This Row],[Punkte]],[Punkte],0),\" - \"),\" - \")","v":" - "}," - - -",{"$f":"IF(Tabelle_Auswertung[[#This Row],[Platz]]=1,CONCATENATE(Tabelle_Auswertung[[#This Row],[Bildname]],\" von \",Tabelle_Auswertung[[#This Row],[Autor(in)]]),\"\")","v":""},{"$f":"IF(Tabelle_Auswertung[[#This Row],[Platz]]=2,CONCATENATE(Tabelle_Auswertung[[#This Row],[Bildname]],\" von \",Tabelle_Auswertung[[#This Row],[Autor(in)]]),\"\")","v":""},{"$f":"IF(Tabelle_Auswertung[[#This Row],[Platz]]=3,CONCATENATE(Tabelle_Auswertung[[#This Row],[Bildname]],\" von \",Tabelle_Auswertung[[#This Row],[Autor(in)]]),\"\")","v":""},{"$f":"IF(Tabelle_Auswertung[[#This Row],[Platz]]=4,CONCATENATE(Tabelle_Auswertung[[#This Row],[Bildname]],\" von \",Tabelle_Auswertung[[#This Row],[Autor(in)]]),\"\")","v":""},{"$f":"IF(Tabelle_Auswertung[[#This Row],[Platz]]=5,CONCATENATE(Tabelle_Auswertung[[#This Row],[Bildname]],\" von \",Tabelle_Auswertung[[#This Row],[Autor(in)]]),\"\")","v":""},{"$f":"IF(Tabelle_Auswertung[[#This Row],[Platz]]=6,CONCATENATE(Tabelle_Auswertung[[#This Row],[Bildname]],\" von \",Tabelle_Auswertung[[#This Row],[Autor(in)]]),\"\")","v":""},{"$f":"IF(Tabelle_Auswertung[[#This Row],[Platz]]=7,CONCATENATE(Tabelle_Auswertung[[#This Row],[Bildname]],\" von \",Tabelle_Auswertung[[#This Row],[Autor(in)]]),\"\")","v":""},{"$f":"IF(Tabelle_Auswertung[[#This Row],[Platz]]=8,CONCATENATE(Tabelle_Auswertung[[#This Row],[Bildname]],\" von \",Tabelle_Auswertung[[#This Row],[Autor(in)]]),\"\")","v":""},{"$f":"IF(Tabelle_Auswertung[[#This Row],[Platz]]=9,CONCATENATE(Tabelle_Auswertung[[#This Row],[Bildname]],\" von \",Tabelle_Auswertung[[#This Row],[Autor(in)]]),\"\")","v":""},{"$f":"IF(Tabelle_Auswertung[[#This Row],[Platz]]=10,CONCATENATE(Tabelle_Auswertung[[#This Row],[Bildname]],\" von \",Tabelle_Auswertung[[#This Row],[Autor(in)]]),\"\")","v":""}]
[{"$nulls":22},{"$f":"IF(Tabelle_Auswertung[[#This Row],[Bildname]]<>\"\",SUM(Tabelle_Auswertung[[#This Row],[Juror 1]:[Juror 20]]),\" - \")","v":" - "},{"$f":"IF(Tabelle_Auswertung[[#This Row],[Bildname]]<>\"\",IF(Tabelle_Auswertung[[#This Row],[Punkte]]>0,AVERAGE(Tabelle_Auswertung[[#This Row],[Juror 1]:[Juror 20]]),\" - \"),\" - \")","v":" - "},{"$f":"IF(Tabelle_Auswertung[[#This Row],[Bildname]]<>\"\",IF(Tabelle_Auswertung[[#This Row],[Punkte]]>0,RANK(Tabelle_Auswertung[[#This Row],[Punkte]],[Punkte],0),\" - \"),\" - \")","v":" - "}," - - -",{"$f":"IF(Tabelle_Auswertung[[#This Row],[Platz]]=1,CONCATENATE(Tabelle_Auswertung[[#This Row],[Bildname]],\" von \",Tabelle_Auswertung[[#This Row],[Autor(in)]]),\"\")","v":""},{"$f":"IF(Tabelle_Auswertung[[#This Row],[Platz]]=2,CONCATENATE(Tabelle_Auswertung[[#This Row],[Bildname]],\" von \",Tabelle_Auswertung[[#This Row],[Autor(in)]]),\"\")","v":""},{"$f":"IF(Tabelle_Auswertung[[#This Row],[Platz]]=3,CONCATENATE(Tabelle_Auswertung[[#This Row],[Bildname]],\" von \",Tabelle_Auswertung[[#This Row],[Autor(in)]]),\"\")","v":""},{"$f":"IF(Tabelle_Auswertung[[#This Row],[Platz]]=4,CONCATENATE(Tabelle_Auswertung[[#This Row],[Bildname]],\" von \",Tabelle_Auswertung[[#This Row],[Autor(in)]]),\"\")","v":""},{"$f":"IF(Tabelle_Auswertung[[#This Row],[Platz]]=5,CONCATENATE(Tabelle_Auswertung[[#This Row],[Bildname]],\" von \",Tabelle_Auswertung[[#This Row],[Autor(in)]]),\"\")","v":""},{"$f":"IF(Tabelle_Auswertung[[#This Row],[Platz]]=6,CONCATENATE(Tabelle_Auswertung[[#This Row],[Bildname]],\" von \",Tabelle_Auswertung[[#This Row],[Autor(in)]]),\"\")","v":""},{"$f":"IF(Tabelle_Auswertung[[#This Row],[Platz]]=7,CONCATENATE(Tabelle_Auswertung[[#This Row],[Bildname]],\" von \",Tabelle_Auswertung[[#This Row],[Autor(in)]]),\"\")","v":""},{"$f":"IF(Tabelle_Auswertung[[#This Row],[Platz]]=8,CONCATENATE(Tabelle_Auswertung[[#This Row],[Bildname]],\" von \",Tabelle_Auswertung[[#This Row],[Autor(in)]]),\"\")","v":""},{"$f":"IF(Tabelle_Auswertung[[#This Row],[Platz]]=9,CONCATENATE(Tabelle_Auswertung[[#This Row],[Bildname]],\" von \",Tabelle_Auswertung[[#This Row],[Autor(in)]]),\"\")","v":""},{"$f":"IF(Tabelle_Auswertung[[#This Row],[Platz]]=10,CONCATENATE(Tabelle_Auswertung[[#This Row],[Bildname]],\" von \",Tabelle_Auswertung[[#This Row],[Autor(in)]]),\"\")","v":""}]
[{"$nulls":22},{"$f":"IF(Tabelle_Auswertung[[#This Row],[Bildname]]<>\"\",SUM(Tabelle_Auswertung[[#This Row],[Juror 1]:[Juror 20]]),\" - \")","v":" - "},{"$f":"IF(Tabelle_Auswertung[[#This Row],[Bildname]]<>\"\",IF(Tabelle_Auswertung[[#This Row],[Punkte]]>0,AVERAGE(Tabelle_Auswertung[[#This Row],[Juror 1]:[Juror 20]]),\" - \"),\" - \")","v":" - "},{"$f":"IF(Tabelle_Auswertung[[#This Row],[Bildname]]<>\"\",IF(Tabelle_Auswertung[[#This Row],[Punkte]]>0,RANK(Tabelle_Auswertung[[#This Row],[Punkte]],[Punkte],0),\" - \"),\" - \")","v":" - "}," - - -",{"$f":"IF(Tabelle_Auswertung[[#This Row],[Platz]]=1,CONCATENATE(Tabelle_Auswertung[[#This Row],[Bildname]],\" von \",Tabelle_Auswertung[[#This Row],[Autor(in)]]),\"\")","v":""},{"$f":"IF(Tabelle_Auswertung[[#This Row],[Platz]]=2,CONCATENATE(Tabelle_Auswertung[[#This Row],[Bildname]],\" von \",Tabelle_Auswertung[[#This Row],[Autor(in)]]),\"\")","v":""},{"$f":"IF(Tabelle_Auswertung[[#This Row],[Platz]]=3,CONCATENATE(Tabelle_Auswertung[[#This Row],[Bildname]],\" von \",Tabelle_Auswertung[[#This Row],[Autor(in)]]),\"\")","v":""},{"$f":"IF(Tabelle_Auswertung[[#This Row],[Platz]]=4,CONCATENATE(Tabelle_Auswertung[[#This Row],[Bildname]],\" von \",Tabelle_Auswertung[[#This Row],[Autor(in)]]),\"\")","v":""},{"$f":"IF(Tabelle_Auswertung[[#This Row],[Platz]]=5,CONCATENATE(Tabelle_Auswertung[[#This Row],[Bildname]],\" von \",Tabelle_Auswertung[[#This Row],[Autor(in)]]),\"\")","v":""},{"$f":"IF(Tabelle_Auswertung[[#This Row],[Platz]]=6,CONCATENATE(Tabelle_Auswertung[[#This Row],[Bildname]],\" von \",Tabelle_Auswertung[[#This Row],[Autor(in)]]),\"\")","v":""},{"$f":"IF(Tabelle_Auswertung[[#This Row],[Platz]]=7,CONCATENATE(Tabelle_Auswertung[[#This Row],[Bildname]],\" von \",Tabelle_Auswertung[[#This Row],[Autor(in)]]),\"\")","v":""},{"$f":"IF(Tabelle_Auswertung[[#This Row],[Platz]]=8,CONCATENATE(Tabelle_Auswertung[[#This Row],[Bildname]],\" von \",Tabelle_Auswertung[[#This Row],[Autor(in)]]),\"\")","v":""},{"$f":"IF(Tabelle_Auswertung[[#This Row],[Platz]]=9,CONCATENATE(Tabelle_Auswertung[[#This Row],[Bildname]],\" von \",Tabelle_Auswertung[[#This Row],[Autor(in)]]),\"\")","v":""},{"$f":"IF(Tabelle_Auswertung[[#This Row],[Platz]]=10,CONCATENATE(Tabelle_Auswertung[[#This Row],[Bildname]],\" von \",Tabelle_Auswertung[[#This Row],[Autor(in)]]),\"\")","v":""}]
[{"$nulls":22},{"$f":"IF(Tabelle_Auswertung[[#This Row],[Bildname]]<>\"\",SUM(Tabelle_Auswertung[[#This Row],[Juror 1]:[Juror 20]]),\" - \")","v":" - "},{"$f":"IF(Tabelle_Auswertung[[#This Row],[Bildname]]<>\"\",IF(Tabelle_Auswertung[[#This Row],[Punkte]]>0,AVERAGE(Tabelle_Auswertung[[#This Row],[Juror 1]:[Juror 20]]),\" - \"),\" - \")","v":" - "},{"$f":"IF(Tabelle_Auswertung[[#This Row],[Bildname]]<>\"\",IF(Tabelle_Auswertung[[#This Row],[Punkte]]>0,RANK(Tabelle_Auswertung[[#This Row],[Punkte]],[Punkte],0),\" - \"),\" - \")","v":" - "}," - - -",{"$f":"IF(Tabelle_Auswertung[[#This Row],[Platz]]=1,CONCATENATE(Tabelle_Auswertung[[#This Row],[Bildname]],\" von \",Tabelle_Auswertung[[#This Row],[Autor(in)]]),\"\")","v":""},{"$f":"IF(Tabelle_Auswertung[[#This Row],[Platz]]=2,CONCATENATE(Tabelle_Auswertung[[#This Row],[Bildname]],\" von \",Tabelle_Auswertung[[#This Row],[Autor(in)]]),\"\")","v":""},{"$f":"IF(Tabelle_Auswertung[[#This Row],[Platz]]=3,CONCATENATE(Tabelle_Auswertung[[#This Row],[Bildname]],\" von \",Tabelle_Auswertung[[#This Row],[Autor(in)]]),\"\")","v":""},{"$f":"IF(Tabelle_Auswertung[[#This Row],[Platz]]=4,CONCATENATE(Tabelle_Auswertung[[#This Row],[Bildname]],\" von \",Tabelle_Auswertung[[#This Row],[Autor(in)]]),\"\")","v":""},{"$f":"IF(Tabelle_Auswertung[[#This Row],[Platz]]=5,CONCATENATE(Tabelle_Auswertung[[#This Row],[Bildname]],\" von \",Tabelle_Auswertung[[#This Row],[Autor(in)]]),\"\")","v":""},{"$f":"IF(Tabelle_Auswertung[[#This Row],[Platz]]=6,CONCATENATE(Tabelle_Auswertung[[#This Row],[Bildname]],\" von \",Tabelle_Auswertung[[#This Row],[Autor(in)]]),\"\")","v":""},{"$f":"IF(Tabelle_Auswertung[[#This Row],[Platz]]=7,CONCATENATE(Tabelle_Auswertung[[#This Row],[Bildname]],\" von \",Tabelle_Auswertung[[#This Row],[Autor(in)]]),\"\")","v":""},{"$f":"IF(Tabelle_Auswertung[[#This Row],[Platz]]=8,CONCATENATE(Tabelle_Auswertung[[#This Row],[Bildname]],\" von \",Tabelle_Auswertung[[#This Row],[Autor(in)]]),\"\")","v":""},{"$f":"IF(Tabelle_Auswertung[[#This Row],[Platz]]=9,CONCATENATE(Tabelle_Auswertung[[#This Row],[Bildname]],\" von \",Tabelle_Auswertung[[#This Row],[Autor(in)]]),\"\")","v":""},{"$f":"IF(Tabelle_Auswertung[[#This Row],[Platz]]=10,CONCATENATE(Tabelle_Auswertung[[#This Row],[Bildname]],\" von \",Tabelle_Auswertung[[#This Row],[Autor(in)]]),\"\")","v":""}]
[{"$nulls":22},{"$f":"IF(Tabelle_Auswertung[[#This Row],[Bildname]]<>\"\",SUM(Tabelle_Auswertung[[#This Row],[Juror 1]:[Juror 20]]),\" - \")","v":" - "},{"$f":"IF(Tabelle_Auswertung[[#This Row],[Bildname]]<>\"\",IF(Tabelle_Auswertung[[#This Row],[Punkte]]>0,AVERAGE(Tabelle_Auswertung[[#This Row],[Juror 1]:[Juror 20]]),\" - \"),\" - \")","v":" - "},{"$f":"IF(Tabelle_Auswertung[[#This Row],[Bildname]]<>\"\",IF(Tabelle_Auswertung[[#This Row],[Punkte]]>0,RANK(Tabelle_Auswertung[[#This Row],[Punkte]],[Punkte],0),\" - \"),\" - \")","v":" - "}," - - -",{"$f":"IF(Tabelle_Auswertung[[#This Row],[Platz]]=1,CONCATENATE(Tabelle_Auswertung[[#This Row],[Bildname]],\" von \",Tabelle_Auswertung[[#This Row],[Autor(in)]]),\"\")","v":""},{"$f":"IF(Tabelle_Auswertung[[#This Row],[Platz]]=2,CONCATENATE(Tabelle_Auswertung[[#This Row],[Bildname]],\" von \",Tabelle_Auswertung[[#This Row],[Autor(in)]]),\"\")","v":""},{"$f":"IF(Tabelle_Auswertung[[#This Row],[Platz]]=3,CONCATENATE(Tabelle_Auswertung[[#This Row],[Bildname]],\" von \",Tabelle_Auswertung[[#This Row],[Autor(in)]]),\"\")","v":""},{"$f":"IF(Tabelle_Auswertung[[#This Row],[Platz]]=4,CONCATENATE(Tabelle_Auswertung[[#This Row],[Bildname]],\" von \",Tabelle_Auswertung[[#This Row],[Autor(in)]]),\"\")","v":""},{"$f":"IF(Tabelle_Auswertung[[#This Row],[Platz]]=5,CONCATENATE(Tabelle_Auswertung[[#This Row],[Bildname]],\" von \",Tabelle_Auswertung[[#This Row],[Autor(in)]]),\"\")","v":""},{"$f":"IF(Tabelle_Auswertung[[#This Row],[Platz]]=6,CONCATENATE(Tabelle_Auswertung[[#This Row],[Bildname]],\" von \",Tabelle_Auswertung[[#This Row],[Autor(in)]]),\"\")","v":""},{"$f":"IF(Tabelle_Auswertung[[#This Row],[Platz]]=7,CONCATENATE(Tabelle_Auswertung[[#This Row],[Bildname]],\" von \",Tabelle_Auswertung[[#This Row],[Autor(in)]]),\"\")","v":""},{"$f":"IF(Tabelle_Auswertung[[#This Row],[Platz]]=8,CONCATENATE(Tabelle_Auswertung[[#This Row],[Bildname]],\" von \",Tabelle_Auswertung[[#This Row],[Autor(in)]]),\"\")","v":""},{"$f":"IF(Tabelle_Auswertung[[#This Row],[Platz]]=9,CONCATENATE(Tabelle_Auswertung[[#This Row],[Bildname]],\" von \",Tabelle_Auswertung[[#This Row],[Autor(in)]]),\"\")","v":""},{"$f":"IF(Tabelle_Auswertung[[#This Row],[Platz]]=10,CONCATENATE(Tabelle_Auswertung[[#This Row],[Bildname]],\" von \",Tabelle_Auswertung[[#This Row],[Autor(in)]]),\"\")","v":""}]
[{"$nulls":22},{"$f":"IF(Tabelle_Auswertung[[#This Row],[Bildname]]<>\"\",SUM(Tabelle_Auswertung[[#This Row],[Juror 1]:[Juror 20]]),\" - \")","v":" - "},{"$f":"IF(Tabelle_Auswertung[[#This Row],[Bildname]]<>\"\",IF(Tabelle_Auswertung[[#This Row],[Punkte]]>0,AVERAGE(Tabelle_Auswertung[[#This Row],[Juror 1]:[Juror 20]]),\" - \"),\" - \")","v":" - "},{"$f":"IF(Tabelle_Auswertung[[#This Row],[Bildname]]<>\"\",IF(Tabelle_Auswertung[[#This Row],[Punkte]]>0,RANK(Tabelle_Auswertung[[#This Row],[Punkte]],[Punkte],0),\" - \"),\" - \")","v":" - "}," - - -",{"$f":"IF(Tabelle_Auswertung[[#This Row],[Platz]]=1,CONCATENATE(Tabelle_Auswertung[[#This Row],[Bildname]],\" von \",Tabelle_Auswertung[[#This Row],[Autor(in)]]),\"\")","v":""},{"$f":"IF(Tabelle_Auswertung[[#This Row],[Platz]]=2,CONCATENATE(Tabelle_Auswertung[[#This Row],[Bildname]],\" von \",Tabelle_Auswertung[[#This Row],[Autor(in)]]),\"\")","v":""},{"$f":"IF(Tabelle_Auswertung[[#This Row],[Platz]]=3,CONCATENATE(Tabelle_Auswertung[[#This Row],[Bildname]],\" von \",Tabelle_Auswertung[[#This Row],[Autor(in)]]),\"\")","v":""},{"$f":"IF(Tabelle_Auswertung[[#This Row],[Platz]]=4,CONCATENATE(Tabelle_Auswertung[[#This Row],[Bildname]],\" von \",Tabelle_Auswertung[[#This Row],[Autor(in)]]),\"\")","v":""},{"$f":"IF(Tabelle_Auswertung[[#This Row],[Platz]]=5,CONCATENATE(Tabelle_Auswertung[[#This Row],[Bildname]],\" von \",Tabelle_Auswertung[[#This Row],[Autor(in)]]),\"\")","v":""},{"$f":"IF(Tabelle_Auswertung[[#This Row],[Platz]]=6,CONCATENATE(Tabelle_Auswertung[[#This Row],[Bildname]],\" von \",Tabelle_Auswertung[[#This Row],[Autor(in)]]),\"\")","v":""},{"$f":"IF(Tabelle_Auswertung[[#This Row],[Platz]]=7,CONCATENATE(Tabelle_Auswertung[[#This Row],[Bildname]],\" von \",Tabelle_Auswertung[[#This Row],[Autor(in)]]),\"\")","v":""},{"$f":"IF(Tabelle_Auswertung[[#This Row],[Platz]]=8,CONCATENATE(Tabelle_Auswertung[[#This Row],[Bildname]],\" von \",Tabelle_Auswertung[[#This Row],[Autor(in)]]),\"\")","v":""},{"$f":"IF(Tabelle_Auswertung[[#This Row],[Platz]]=9,CONCATENATE(Tabelle_Auswertung[[#This Row],[Bildname]],\" von \",Tabelle_Auswertung[[#This Row],[Autor(in)]]),\"\")","v":""},{"$f":"IF(Tabelle_Auswertung[[#This Row],[Platz]]=10,CONCATENATE(Tabelle_Auswertung[[#This Row],[Bildname]],\" von \",Tabelle_Auswertung[[#This Row],[Autor(in)]]),\"\")","v":""}]
[{"$nulls":22},{"$f":"IF(Tabelle_Auswertung[[#This Row],[Bildname]]<>\"\",SUM(Tabelle_Auswertung[[#This Row],[Juror 1]:[Juror 20]]),\" - \")","v":" - "},{"$f":"IF(Tabelle_Auswertung[[#This Row],[Bildname]]<>\"\",IF(Tabelle_Auswertung[[#This Row],[Punkte]]>0,AVERAGE(Tabelle_Auswertung[[#This Row],[Juror 1]:[Juror 20]]),\" - \"),\" - \")","v":" - "},{"$f":"IF(Tabelle_Auswertung[[#This Row],[Bildname]]<>\"\",IF(Tabelle_Auswertung[[#This Row],[Punkte]]>0,RANK(Tabelle_Auswertung[[#This Row],[Punkte]],[Punkte],0),\" - \"),\" - \")","v":" - "}," - - -",{"$f":"IF(Tabelle_Auswertung[[#This Row],[Platz]]=1,CONCATENATE(Tabelle_Auswertung[[#This Row],[Bildname]],\" von \",Tabelle_Auswertung[[#This Row],[Autor(in)]]),\"\")","v":""},{"$f":"IF(Tabelle_Auswertung[[#This Row],[Platz]]=2,CONCATENATE(Tabelle_Auswertung[[#This Row],[Bildname]],\" von \",Tabelle_Auswertung[[#This Row],[Autor(in)]]),\"\")","v":""},{"$f":"IF(Tabelle_Auswertung[[#This Row],[Platz]]=3,CONCATENATE(Tabelle_Auswertung[[#This Row],[Bildname]],\" von \",Tabelle_Auswertung[[#This Row],[Autor(in)]]),\"\")","v":""},{"$f":"IF(Tabelle_Auswertung[[#This Row],[Platz]]=4,CONCATENATE(Tabelle_Auswertung[[#This Row],[Bildname]],\" von \",Tabelle_Auswertung[[#This Row],[Autor(in)]]),\"\")","v":""},{"$f":"IF(Tabelle_Auswertung[[#This Row],[Platz]]=5,CONCATENATE(Tabelle_Auswertung[[#This Row],[Bildname]],\" von \",Tabelle_Auswertung[[#This Row],[Autor(in)]]),\"\")","v":""},{"$f":"IF(Tabelle_Auswertung[[#This Row],[Platz]]=6,CONCATENATE(Tabelle_Auswertung[[#This Row],[Bildname]],\" von \",Tabelle_Auswertung[[#This Row],[Autor(in)]]),\"\")","v":""},{"$f":"IF(Tabelle_Auswertung[[#This Row],[Platz]]=7,CONCATENATE(Tabelle_Auswertung[[#This Row],[Bildname]],\" von \",Tabelle_Auswertung[[#This Row],[Autor(in)]]),\"\")","v":""},{"$f":"IF(Tabelle_Auswertung[[#This Row],[Platz]]=8,CONCATENATE(Tabelle_Auswertung[[#This Row],[Bildname]],\" von \",Tabelle_Auswertung[[#This Row],[Autor(in)]]),\"\")","v":""},{"$f":"IF(Tabelle_Auswertung[[#This Row],[Platz]]=9,CONCATENATE(Tabelle_Auswertung[[#This Row],[Bildname]],\" von \",Tabelle_Auswertung[[#This Row],[Autor(in)]]),\"\")","v":""},{"$f":"IF(Tabelle_Auswertung[[#This Row],[Platz]]=10,CONCATENATE(Tabelle_Auswertung[[#This Row],[Bildname]],\" von \",Tabelle_Auswertung[[#This Row],[Autor(in)]]),\"\")","v":""}]
[{"$nulls":22},{"$f":"IF(Tabelle_Auswertung[[#This Row],[Bildname]]<>\"\",SUM(Tabelle_Auswertung[[#This Row],[Juror 1]:[Juror 20]]),\" - \")","v":" - "},{"$f":"IF(Tabelle_Auswertung[[#This Row],[Bildname]]<>\"\",IF(Tabelle_Auswertung[[#This Row],[Punkte]]>0,AVERAGE(Tabelle_Auswertung[[#This Row],[Juror 1]:[Juror 20]]),\" - \"),\" - \")","v":" - "},{"$f":"IF(Tabelle_Auswertung[[#This Row],[Bildname]]<>\"\",IF(Tabelle_Auswertung[[#This Row],[Punkte]]>0,RANK(Tabelle_Auswertung[[#This Row],[Punkte]],[Punkte],0),\" - \"),\" - \")","v":" - "}," - - -",{"$f":"IF(Tabelle_Auswertung[[#This Row],[Platz]]=1,CONCATENATE(Tabelle_Auswertung[[#This Row],[Bildname]],\" von \",Tabelle_Auswertung[[#This Row],[Autor(in)]]),\"\")","v":""},{"$f":"IF(Tabelle_Auswertung[[#This Row],[Platz]]=2,CONCATENATE(Tabelle_Auswertung[[#This Row],[Bildname]],\" von \",Tabelle_Auswertung[[#This Row],[Autor(in)]]),\"\")","v":""},{"$f":"IF(Tabelle_Auswertung[[#This Row],[Platz]]=3,CONCATENATE(Tabelle_Auswertung[[#This Row],[Bildname]],\" von \",Tabelle_Auswertung[[#This Row],[Autor(in)]]),\"\")","v":""},{"$f":"IF(Tabelle_Auswertung[[#This Row],[Platz]]=4,CONCATENATE(Tabelle_Auswertung[[#This Row],[Bildname]],\" von \",Tabelle_Auswertung[[#This Row],[Autor(in)]]),\"\")","v":""},{"$f":"IF(Tabelle_Auswertung[[#This Row],[Platz]]=5,CONCATENATE(Tabelle_Auswertung[[#This Row],[Bildname]],\" von \",Tabelle_Auswertung[[#This Row],[Autor(in)]]),\"\")","v":""},{"$f":"IF(Tabelle_Auswertung[[#This Row],[Platz]]=6,CONCATENATE(Tabelle_Auswertung[[#This Row],[Bildname]],\" von \",Tabelle_Auswertung[[#This Row],[Autor(in)]]),\"\")","v":""},{"$f":"IF(Tabelle_Auswertung[[#This Row],[Platz]]=7,CONCATENATE(Tabelle_Auswertung[[#This Row],[Bildname]],\" von \",Tabelle_Auswertung[[#This Row],[Autor(in)]]),\"\")","v":""},{"$f":"IF(Tabelle_Auswertung[[#This Row],[Platz]]=8,CONCATENATE(Tabelle_Auswertung[[#This Row],[Bildname]],\" von \",Tabelle_Auswertung[[#This Row],[Autor(in)]]),\"\")","v":""},{"$f":"IF(Tabelle_Auswertung[[#This Row],[Platz]]=9,CONCATENATE(Tabelle_Auswertung[[#This Row],[Bildname]],\" von \",Tabelle_Auswertung[[#This Row],[Autor(in)]]),\"\")","v":""},{"$f":"IF(Tabelle_Auswertung[[#This Row],[Platz]]=10,CONCATENATE(Tabelle_Auswertung[[#This Row],[Bildname]],\" von \",Tabelle_Auswertung[[#This Row],[Autor(in)]]),\"\")","v":""}]
[{"$nulls":22},{"$f":"IF(Tabelle_Auswertung[[#This Row],[Bildname]]<>\"\",SUM(Tabelle_Auswertung[[#This Row],[Juror 1]:[Juror 20]]),\" - \")","v":" - "},{"$f":"IF(Tabelle_Auswertung[[#This Row],[Bildname]]<>\"\",IF(Tabelle_Auswertung[[#This Row],[Punkte]]>0,AVERAGE(Tabelle_Auswertung[[#This Row],[Juror 1]:[Juror 20]]),\" - \"),\" - \")","v":" - "},{"$f":"IF(Tabelle_Auswertung[[#This Row],[Bildname]]<>\"\",IF(Tabelle_Auswertung[[#This Row],[Punkte]]>0,RANK(Tabelle_Auswertung[[#This Row],[Punkte]],[Punkte],0),\" - \"),\" - \")","v":" - "}," - - -",{"$f":"IF(Tabelle_Auswertung[[#This Row],[Platz]]=1,CONCATENATE(Tabelle_Auswertung[[#This Row],[Bildname]],\" von \",Tabelle_Auswertung[[#This Row],[Autor(in)]]),\"\")","v":""},{"$f":"IF(Tabelle_Auswertung[[#This Row],[Platz]]=2,CONCATENATE(Tabelle_Auswertung[[#This Row],[Bildname]],\" von \",Tabelle_Auswertung[[#This Row],[Autor(in)]]),\"\")","v":""},{"$f":"IF(Tabelle_Auswertung[[#This Row],[Platz]]=3,CONCATENATE(Tabelle_Auswertung[[#This Row],[Bildname]],\" von \",Tabelle_Auswertung[[#This Row],[Autor(in)]]),\"\")","v":""},{"$f":"IF(Tabelle_Auswertung[[#This Row],[Platz]]=4,CONCATENATE(Tabelle_Auswertung[[#This Row],[Bildname]],\" von \",Tabelle_Auswertung[[#This Row],[Autor(in)]]),\"\")","v":""},{"$f":"IF(Tabelle_Auswertung[[#This Row],[Platz]]=5,CONCATENATE(Tabelle_Auswertung[[#This Row],[Bildname]],\" von \",Tabelle_Auswertung[[#This Row],[Autor(in)]]),\"\")","v":""},{"$f":"IF(Tabelle_Auswertung[[#This Row],[Platz]]=6,CONCATENATE(Tabelle_Auswertung[[#This Row],[Bildname]],\" von \",Tabelle_Auswertung[[#This Row],[Autor(in)]]),\"\")","v":""},{"$f":"IF(Tabelle_Auswertung[[#This Row],[Platz]]=7,CONCATENATE(Tabelle_Auswertung[[#This Row],[Bildname]],\" von \",Tabelle_Auswertung[[#This Row],[Autor(in)]]),\"\")","v":""},{"$f":"IF(Tabelle_Auswertung[[#This Row],[Platz]]=8,CONCATENATE(Tabelle_Auswertung[[#This Row],[Bildname]],\" von \",Tabelle_Auswertung[[#This Row],[Autor(in)]]),\"\")","v":""},{"$f":"IF(Tabelle_Auswertung[[#This Row],[Platz]]=9,CONCATENATE(Tabelle_Auswertung[[#This Row],[Bildname]],\" von \",Tabelle_Auswertung[[#This Row],[Autor(in)]]),\"\")","v":""},{"$f":"IF(Tabelle_Auswertung[[#This Row],[Platz]]=10,CONCATENATE(Tabelle_Auswertung[[#This Row],[Bildname]],\" von \",Tabelle_Auswertung[[#This Row],[Autor(in)]]),\"\")","v":""}]
[{"$nulls":22},{"$f":"IF(Tabelle_Auswertung[[#This Row],[Bildname]]<>\"\",SUM(Tabelle_Auswertung[[#This Row],[Juror 1]:[Juror 20]]),\" - \")","v":" - "},{"$f":"IF(Tabelle_Auswertung[[#This Row],[Bildname]]<>\"\",IF(Tabelle_Auswertung[[#This Row],[Punkte]]>0,AVERAGE(Tabelle_Auswertung[[#This Row],[Juror 1]:[Juror 20]]),\" - \"),\" - \")","v":" - "},{"$f":"IF(Tabelle_Auswertung[[#This Row],[Bildname]]<>\"\",IF(Tabelle_Auswertung[[#This Row],[Punkte]]>0,RANK(Tabelle_Auswertung[[#This Row],[Punkte]],[Punkte],0),\" - \"),\" - \")","v":" - "}," - - -",{"$f":"IF(Tabelle_Auswertung[[#This Row],[Platz]]=1,CONCATENATE(Tabelle_Auswertung[[#This Row],[Bildname]],\" von \",Tabelle_Auswertung[[#This Row],[Autor(in)]]),\"\")","v":""},{"$f":"IF(Tabelle_Auswertung[[#This Row],[Platz]]=2,CONCATENATE(Tabelle_Auswertung[[#This Row],[Bildname]],\" von \",Tabelle_Auswertung[[#This Row],[Autor(in)]]),\"\")","v":""},{"$f":"IF(Tabelle_Auswertung[[#This Row],[Platz]]=3,CONCATENATE(Tabelle_Auswertung[[#This Row],[Bildname]],\" von \",Tabelle_Auswertung[[#This Row],[Autor(in)]]),\"\")","v":""},{"$f":"IF(Tabelle_Auswertung[[#This Row],[Platz]]=4,CONCATENATE(Tabelle_Auswertung[[#This Row],[Bildname]],\" von \",Tabelle_Auswertung[[#This Row],[Autor(in)]]),\"\")","v":""},{"$f":"IF(Tabelle_Auswertung[[#This Row],[Platz]]=5,CONCATENATE(Tabelle_Auswertung[[#This Row],[Bildname]],\" von \",Tabelle_Auswertung[[#This Row],[Autor(in)]]),\"\")","v":""},{"$f":"IF(Tabelle_Auswertung[[#This Row],[Platz]]=6,CONCATENATE(Tabelle_Auswertung[[#This Row],[Bildname]],\" von \",Tabelle_Auswertung[[#This Row],[Autor(in)]]),\"\")","v":""},{"$f":"IF(Tabelle_Auswertung[[#This Row],[Platz]]=7,CONCATENATE(Tabelle_Auswertung[[#This Row],[Bildname]],\" von \",Tabelle_Auswertung[[#This Row],[Autor(in)]]),\"\")","v":""},{"$f":"IF(Tabelle_Auswertung[[#This Row],[Platz]]=8,CONCATENATE(Tabelle_Auswertung[[#This Row],[Bildname]],\" von \",Tabelle_Auswertung[[#This Row],[Autor(in)]]),\"\")","v":""},{"$f":"IF(Tabelle_Auswertung[[#This Row],[Platz]]=9,CONCATENATE(Tabelle_Auswertung[[#This Row],[Bildname]],\" von \",Tabelle_Auswertung[[#This Row],[Autor(in)]]),\"\")","v":""},{"$f":"IF(Tabelle_Auswertung[[#This Row],[Platz]]=10,CONCATENATE(Tabelle_Auswertung[[#This Row],[Bildname]],\" von \",Tabelle_Auswertung[[#This Row],[Autor(in)]]),\"\")","v":""}]
[{"$nulls":22},{"$f":"IF(Tabelle_Auswertung[[#This Row],[Bildname]]<>\"\",SUM(Tabelle_Auswertung[[#This Row],[Juror 1]:[Juror 20]]),\" - \")","v":" - "},{"$f":"IF(Tabelle_Auswertung[[#This Row],[Bildname]]<>\"\",IF(Tabelle_Auswertung[[#This Row],[Punkte]]>0,AVERAGE(Tabelle_Auswertung[[#This Row],[Juror 1]:[Juror 20]]),\" - \"),\" - \")","v":" - "},{"$f":"IF(Tabelle_Auswertung[[#This Row],[Bildname]]<>\"\",IF(Tabelle_Auswertung[[#This Row],[Punkte]]>0,RANK(Tabelle_Auswertung[[#This Row],[Punkte]],[Punkte],0),\" - \"),\" - \")","v":" - "},null,{"$f":"IF(Tabelle_Auswertung[[#This Row],[Platz]]=1,CONCATENATE(Tabelle_Auswertung[[#This Row],[Bildname]],\" von \",Tabelle_Auswertung[[#This Row],[Autor(in)]]),\"\")","v":""},{"$f":"IF(Tabelle_Auswertung[[#This Row],[Platz]]=2,CONCATENATE(Tabelle_Auswertung[[#This Row],[Bildname]],\" von \",Tabelle_Auswertung[[#This Row],[Autor(in)]]),\"\")","v":""},{"$f":"IF(Tabelle_Auswertung[[#This Row],[Platz]]=3,CONCATENATE(Tabelle_Auswertung[[#This Row],[Bildname]],\" von \",Tabelle_Auswertung[[#This Row],[Autor(in)]]),\"\")","v":""},{"$f":"IF(Tabelle_Auswertung[[#This Row],[Platz]]=4,CONCATENATE(Tabelle_Auswertung[[#This Row],[Bildname]],\" von \",Tabelle_Auswertung[[#This Row],[Autor(in)]]),\"\")","v":""},{"$f":"IF(Tabelle_Auswertung[[#This Row],[Platz]]=5,CONCATENATE(Tabelle_Auswertung[[#This Row],[Bildname]],\" von \",Tabelle_Auswertung[[#This Row],[Autor(in)]]),\"\")","v":""},{"$f":"IF(Tabelle_Auswertung[[#This Row],[Platz]]=6,CONCATENATE(Tabelle_Auswertung[[#This Row],[Bildname]],\" von \",Tabelle_Auswertung[[#This Row],[Autor(in)]]),\"\")","v":""},{"$f":"IF(Tabelle_Auswertung[[#This Row],[Platz]]=7,CONCATENATE(Tabelle_Auswertung[[#This Row],[Bildname]],\" von \",Tabelle_Auswertung[[#This Row],[Autor(in)]]),\"\")","v":""},{"$f":"IF(Tabelle_Auswertung[[#This Row],[Platz]]=8,CONCATENATE(Tabelle_Auswertung[[#This Row],[Bildname]],\" von \",Tabelle_Auswertung[[#This Row],[Autor(in)]]),\"\")","v":""},{"$f":"IF(Tabelle_Auswertung[[#This Row],[Platz]]=9,CONCATENATE(Tabelle_Auswertung[[#This Row],[Bildname]],\" von \",Tabelle_Auswertung[[#This Row],[Autor(in)]]),\"\")","v":""},{"$f":"IF(Tabelle_Auswertung[[#This Row],[Platz]]=10,CONCATENATE(Tabelle_Auswertung[[#This Row],[Bildname]],\" von \",Tabelle_Auswertung[[#This Row],[Autor(in)]]),\"\")","v":""}]

{"sheet":"Statistik nach Autor(in)","index":1,"n_rows":35,"n_cols":11,"rows_kept":35,"merged":[[0,0,3,3]]}
["Statistik",{"$nulls":8},1," - Platz 1"]
[{"$nulls":9},2," - Platz 2"]
[{"$nulls":9},3," - Platz 3"]
[{"$nulls":9}," 4-10"," - Top 10"]
["Autor(in)","Punkte","Platz","Teilnahme","1ster","2ter","3ter","TOP 10"]
[{"$f":"IF(AND(Fotografen!$A6<>\"\",Fotografen!$A6<>\" - - -\"),Fotografen!$A6,\"\")","v":"Antje Finsterer"},{"$f":"IF(Tabelle_Statistik[[#This Row],[Teilnahme]]=\"ja\",SUMIF(Tabelle_Auswertung[Autor(in)],Tabelle_Statistik[[#This Row],[Autor(in)]],Tabelle_Auswertung[Punkte]),IF(Tabelle_Statistik[[#This Row],[Autor(in)]]<>\"\",\" - \",\"\"))","v":12},{"$f":"IF(Tabelle_Statistik[[#This Row],[Teilnahme]]=\"ja\",RANK(Tabelle_Statistik[[#This Row],[Punkte]],[Punkte],0),IF(Tabelle_Statistik[[#This Row],[Autor(in)]]<>\"\",\" - \",\"\"))","v":1},{"$f":"IF(Tabelle_Statistik[[#This Row],[Autor(in)]]<>\"\",IF(COUNTIF(Tabelle_Auswertung[Autor(in)],Tabelle_Statistik[[#This Row],[Autor(in)]])>0,\"ja\",\"nein\"),\"\")","v":"ja"},{"$f":"IF(Tabelle_Statistik[[#This Row],[Platz]]=1,Tabelle_Statistik[[#This Row],[Autor(in)]],\"\")","v":"Antje Finsterer"},{"$f":"IF(Tabelle_Statistik[[#This Row],[Platz]]=2,Tabelle_Statistik[[#This Row],[Autor(in)]],\"\")","v":""},{"$f":"IF(Tabelle_Statistik[[#This Row],[Platz]]=3,Tabelle_Statistik[[#This Row],[Autor(in)]],\"\")","v":""},{"$f":"IF(Tabelle_Statistik[[#This Row],[Platz]]<11,Tabelle_Statistik[[#This Row],[Autor(in)]],\"\")","v":"Antje Finsterer"}]
[{"$f":"IF(AND(Fotografen!$A27<>\"\",Fotografen!$A27<>\" - - -\"),Fotografen!$A27,\"\")","v":"Susanne Deinhardt"},{"$f":"IF(Tabelle_Statistik[[#This Row],[Teilnahme]]=\"ja\",SUMIF(Tabelle_Auswertung[Autor(in)],Tabelle_Statistik[[#This Row],[Autor(in)]],Tabelle_Auswertung[Punkte]),IF(Tabelle_Statistik[[#This Row],[Autor(in)]]<>\"\",\" - \",\"\"))","v":5},{"$f":"IF(Tabelle_Statistik[[#This Row],[Teilnahme]]=\"ja\",RANK(Tabelle_Statistik[[#This Row],[Punkte]],[Punkte],0),IF(Tabelle_Statistik[[#This Row],[Autor(in)]]<>\"\",\" - \",\"\"))","v":2},{"$f":"IF(Tabelle_Statistik[[#This Row],[Autor(in)]]<>\"\",IF(COUNTIF(Tabelle_Auswertung[Autor(in)],Tabelle_Statistik[[#This Row],[Autor(in)]])>0,\"ja\",\"nein\"),\"\")","v":"ja"},{"$f":"IF(Tabelle_Statistik[[#This Row],[Platz]]=1,Tabelle_Statistik[[#This Row],[Autor(in)]],\"\")","v":""},{"$f":"IF(Tabelle_Statistik[[#This Row],[Platz]]=2,Tabelle_Statistik[[#This Row],[Autor(in)]],\"\")","v":"Susanne Deinhardt"},{"$f":"IF(Tabelle_Statistik[[#This Row],[Platz]]=3,Tabelle_Statistik[[#This Row],[Autor(in)]],\"\")","v":""},{"$f":"IF(Tabelle_Statistik[[#This Row],[Platz]]<11,Tabelle_Statistik[[#This Row],[Autor(in)]],\"\")","v":"Susanne Deinhardt"}]
[{"$f":"IF(AND(Fotografen!$A12<>\"\",Fotografen!$A12<>\" - - -\"),Fotografen!$A12,\"\")","v":"Gerhard Rieß"},{"$f":"IF(Tabelle_Statistik[[#This Row],[Teilnahme]]=\"ja\",SUMIF(Tabelle_Auswertung[Autor(in)],Tabelle_Statistik[[#This Row],[Autor(in)]],Tabelle_Auswertung[Punkte]),IF(Tabelle_Statistik[[#This Row],[Autor(in)]]<>\"\",\" - \",\"\"))","v":4},{"$f":"IF(Tabelle_Statistik[[#This Row],[Teilnahme]]=\"ja\",RANK(Tabelle_Statistik[[#This Row],[Punkte]],[Punkte],0),IF(Tabelle_Statistik[[#This Row],[Autor(in)]]<>\"\",\" - \",\"\"))","v":3},{"$f":"IF(Tabelle_Statistik[[#This Row],[Autor(in)]]<>\"\",IF(COUNTIF(Tabelle_Auswertung[Autor(in)],Tabelle_Statistik[[#This Row],[Autor(in)]])>0,\"ja\",\"nein\"),\"\")","v":"ja"},{"$f":"IF(Tabelle_Statistik[[#This Row],[Platz]]=1,Tabelle_Statistik[[#This Row],[Autor(in)]],\"\")","v":""},{"$f":"IF(Tabelle_Statistik[[#This Row],[Platz]]=2,Tabelle_Statistik[[#This Row],[Autor(in)]],\"\")","v":""},{"$f":"IF(Tabelle_Statistik[[#This Row],[Platz]]=3,Tabelle_Statistik[[#This Row],[Autor(in)]],\"\")","v":"Gerhard Rieß"},{"$f":"IF(Tabelle_Statistik[[#This Row],[Platz]]<11,Tabelle_Statistik[[#This Row],[Autor(in)]],\"\")","v":"Gerhard Rieß"}]
[{"$f":"IF(AND(Fotografen!$A2<>\"\",Fotografen!$A2<>\" - - -\"),Fotografen!$A2,\"\")","v":""},{"$f":"IF(Tabelle_Statistik[[#This Row],[Teilnahme]]=\"ja\",SUMIF(Tabelle_Auswertung[Autor(in)],Tabelle_Statistik[[#This Row],[Autor(in)]],Tabelle_Auswertung[Punkte]),IF(Tabelle_Statistik[[#This Row],[Autor(in)]]<>\"\",\" - \",\"\"))","v":""},{"$f":"IF(Tabelle_Statistik[[#This Row],[Teilnahme]]=\"ja\",RANK(Tabelle_Statistik[[#This Row],[Punkte]],[Punkte],0),IF(Tabelle_Statistik[[#This Row],[Autor(in)]]<>\"\",\" - \",\"\"))","v":""},{"$f":"IF(Tabelle_Statistik[[#This Row],[Autor(in)]]<>\"\",IF(COUNTIF(Tabelle_Auswertung[Autor(in)],Tabelle_Statistik[[#This Row],[Autor(in)]])>0,\"ja\",\"nein\"),\"\")","v":""},{"$f":"IF(Tabelle_Statistik[[#This Row],[Platz]]=1,Tabelle_Statistik[[#This Row],[Autor(in)]],\"\")","v":""},{"$f":"IF(Tabelle_Statistik[[#This Row],[Platz]]=2,Tabelle_Statistik[[#This Row],[Autor(in)]],\"\")","v":""},{"$f":"IF(Tabelle_Statistik[[#This Row],[Platz]]=3,Tabelle_Statistik[[#This Row],[Autor(in)]],\"\")","v":""},{"$f":"IF(Tabelle_Statistik[[#This Row],[Platz]]<11,Tabelle_Statistik[[#This Row],[Autor(in)]],\"\")","v":""}]
[{"$f":"IF(AND(Fotografen!$A29<>\"\",Fotografen!$A29<>\" - - -\"),Fotografen!$A29,\"\")","v":"Walter Böse"},{"$f":"IF(Tabelle_Statistik[[#This Row],[Teilnahme]]=\"ja\",SUMIF(Tabelle_Auswertung[Autor(in)],Tabelle_Statistik[[#This Row],[Autor(in)]],Tabelle_Auswertung[Punkte]),IF(Tabelle_Statistik[[#This Row],[Autor(in)]]<>\"\",\" - \",\"\"))","v":" - "},{"$f":"IF(Tabelle_Statistik[[#This Row],[Teilnahme]]=\"ja\",RANK(Tabelle_Statistik[[#This Row],[Punkte]],[Punkte],0),IF(Tabelle_Statistik[[#This Row],[Autor(in)]]<>\"\",\" - \",\"\"))","v":" - "},{"$f":"IF(Tabelle_Statistik[[#This Row],[Autor(in)]]<>\"\",IF(COUNTIF(Tabelle_Auswertung[Autor(in)],Tabelle_Statistik[[#This Row],[Autor(in)]])>0,\"ja\",\"nein\"),\"\")","v":"nein"},{"$f":"IF(Tabelle_Statistik[[#This Row],[Platz]]=1,Tabelle_Statistik[[#This Row],[Autor(in)]],\"\")","v":""},{"$f":"IF(Tabelle_Statistik[[#This Row],[Platz]]=2,Tabelle_Statistik[[#This Row],[Autor(in)]],\"\")","v":""},{"$f":"IF(Tabelle_Statistik[[#This Row],[Platz]]=3,Tabelle_Statistik[[#This Row],[Autor(in)]],\"\")","v":""},{"$f":"IF(Tabelle_Statistik[[#This Row],[Platz]]<11,Tabelle_Statistik[[#This Row],[Autor(in)]],\"\")","v":""}]
[{"$f":"IF(AND(Fotografen!$A25<>\"\",Fotografen!$A25<>\" - - -\"),Fotografen!$A25,\"\")","v":"Patricia Spyra"},{"$f":"IF(Tabelle_Statistik[[#This Row],[Teilnahme]]=\"ja\",SUMIF(Tabelle_Auswertung[Autor(in)],Tabelle_Statistik[[#This Row],[Autor(in)]],Tabelle_Auswertung[Punkte]),IF(Tabelle_Statistik[[#This Row],[Autor(in)]]<>\"\",\" - \",\"\"))","v":" - "},{"$f":"IF(Tabelle_Statistik[[#This Row],[Teilnahme]]=\"ja\",RANK(Tabelle_Statistik[[#This Row],[Punkte]],[Punkte],0),IF(Tabelle_Statistik[[#This Row],[Autor(in)]]<>\"\",\" - \",\"\"))","v":" - "},{"$f":"IF(Tabelle_Statistik[[#This Row],[Autor(in)]]<>\"\",IF(COUNTIF(Tabelle_Auswertung[Autor(in)],Tabelle_Statistik[[#This Row],[Autor(in)]])>0,\"ja\",\"nein\"),\"\")","v":"nein"},{"$f":"IF(Tabelle_Statistik[[#This Row],[Platz]]=1,Tabelle_Statistik[[#This Row],[Autor(in)]],\"\")","v":""},{"$f":"IF(Tabelle_Statistik[[#This Row],[Platz]]=2,Tabelle_Statistik[[#This Row],[Autor(in)]],\"\")","v":""},{"$f":"IF(Tabelle_Statistik[[#This Row],[Platz]]=3,Tabelle_Statistik[[#This Row],[Autor(in)]],\"\")","v":""},{"$f":"IF(Tabelle_Statistik[[#This Row],[Platz]]<11,Tabelle_Statistik[[#This Row],[Autor(in)]],\"\")","v":""}]
[{"$f":"IF(AND(Fotografen!$A8<>\"\",Fotografen!$A8<>\" - - -\"),Fotografen!$A8,\"\")","v":"Chris Finsterer"},{"$f":"IF(Tabelle_Statistik[[#This Row],[Teilnahme]]=\"ja\",SUMIF(Tabelle_Auswertung[Autor(in)],Tabelle_Statistik[[#This Row],[Autor(in)]],Tabelle_Auswertung[Punkte]),IF(Tabelle_Statistik[[#This Row],[Autor(in)]]<>\"\",\" - \",\"\"))","v":" - "},{"$f":"IF(Tabelle_Statistik[[#This Row],[Teilnahme]]=\"ja\",RANK(Tabelle_Statistik[[#This Row],[Punkte]],[Punkte],0),IF(Tabelle_Statistik[[#This Row],[Autor(in)]]<>\"\",\" - \",\"\"))","v":" - "},{"$f":"IF(Tabelle_Statistik[[#This Row],[Autor(in)]]<>\"\",IF(COUNTIF(Tabelle_Auswertung[Autor(in)],Tabelle_Statistik[[#This Row],[Autor(in)]])>0,\"ja\",\"nein\"),\"\")","v":"nein"},{"$f":"IF(Tabelle_Statistik[[#This Row],[Platz]]=1,Tabelle_Statistik[[#This Row],[Autor(in)]],\"\")","v":""},{"$f":"IF(Tabelle_Statistik[[#This Row],[Platz]]=2,Tabelle_Statistik[[#This Row],[Autor(in)]],\"\")","v":""},{"$f":"IF(Tabelle_Statistik[[#This Row],[Platz]]=3,Tabelle_Statistik[[#This Row],[Autor(in)]],\"\")","v":""},{"$f":"IF(Tabelle_Statistik[[#This Row],[Platz]]<11,Tabelle_Statistik[[#This Row],[Autor(in)]],\"\")","v":""}]
[{"$f":"IF(AND(Fotografen!$A17<>\"\",Fotografen!$A17<>\" - - -\"),Fotografen!$A17,\"\")","v":"Jan Grünler"},{"$f":"IF(Tabelle_Statistik[[#This Row],[Teilnahme]]=\"ja\",SUMIF(Tabelle_Auswertung[Autor(in)],Tabelle_Statistik[[#This Row],[Autor(in)]],Tabelle_Auswertung[Punkte]),IF(Tabelle_Statistik[[#This Row],[Autor(in)]]<>\"\",\" - \",\"\"))","v":" - "},{"$f":"IF(Tabelle_Statistik[[#This Row],[Teilnahme]]=\"ja\",RANK(Tabelle_Statistik[[#This Row],[Punkte]],[Punkte],0),IF(Tabelle_Statistik[[#This Row],[Autor(in)]]<>\"\",\" - \",\"\"))","v":" - "},{"$f":"IF(Tabelle_Statistik[[#This Row],[Autor(in)]]<>\"\",IF(COUNTIF(Tabelle_Auswertung[Autor(in)],Tabelle_Statistik[[#This Row],[Autor(in)]])>0,\"ja\",\"nein\"),\"\")","v":"nein"},{"$f":"IF(Tabelle_Statistik[[#This Row],[Platz]]=1,Tabelle_Statistik[[#This Row],[Autor(in)]],\"\")","v":""},{"$f":"IF(Tabelle_Statistik[[#This Row],[Platz]]=2,Tabelle_Statistik[[#This Row],[Autor(in)]],\"\")","v":""},{"$f":"IF(Tabelle_Statistik[[#This Row],[Platz]]=3,Tabelle_Statistik[[#This Row],[Autor(in)]],\"\")","v":""},{"$f":"IF(Tabelle_Statistik[[#This Row],[Platz]]<11,Tabelle_Statistik[[#This Row],[Autor(in)]],\"\")","v":""}]
[{"$f":"IF(AND(Fotografen!$A5<>\"\",Fotografen!$A5<>\" - - -\"),Fotografen!$A5,\"\")","v":"Andreas Toltz"},{"$f":"IF(Tabelle_Statistik[[#This Row],[Teilnahme]]=\"ja\",SUMIF(Tabelle_Auswertung[Autor(in)],Tabelle_Statistik[[#This Row],[Autor(in)]],Tabelle_Auswertung[Punkte]),IF(Tabelle_Statistik[[#This Row],[Autor(in)]]<>\"\",\" - \",\"\"))","v":" - "},{"$f":"IF(Tabelle_Statistik[[#This Row],[Teilnahme]]=\"ja\",RANK(Tabelle_Statistik[[#This Row],[Punkte]],[Punkte],0),IF(Tabelle_Statistik[[#This Row],[Autor(in)]]<>\"\",\" - \",\"\"))","v":" - "},{"$f":"IF(Tabelle_Statistik[[#This Row],[Autor(in)]]<>\"\",IF(COUNTIF(Tabelle_Auswertung[Autor(in)],Tabelle_Statistik[[#This Row],[Autor(in)]])>0,\"ja\",\"nein\"),\"\")","v":"nein"},{"$f":"IF(Tabelle_Statistik[[#This Row],[Platz]]=1,Tabelle_Statistik[[#This Row],[Autor(in)]],\"\")","v":""},{"$f":"IF(Tabelle_Statistik[[#This Row],[Platz]]=2,Tabelle_Statistik[[#This Row],[Autor(in)]],\"\")","v":""},{"$f":"IF(Tabelle_Statistik[[#This Row],[Platz]]=3,Tabelle_Statistik[[#This Row],[Autor(in)]],\"\")","v":""},{"$f":"IF(Tabelle_Statistik[[#This Row],[Platz]]<11,Tabelle_Statistik[[#This Row],[Autor(in)]],\"\")","v":""}]
[{"$f":"IF(AND(Fotografen!$A3<>\"\",Fotografen!$A3<>\" - - -\"),Fotografen!$A3,\"\")","v":"Albrecht Flierl"},{"$f":"IF(Tabelle_Statistik[[#This Row],[Teilnahme]]=\"ja\",SUMIF(Tabelle_Auswertung[Autor(in)],Tabelle_Statistik[[#This Row],[Autor(in)]],Tabelle_Auswertung[Punkte]),IF(Tabelle_Statistik[[#This Row],[Autor(in)]]<>\"\",\" - \",\"\"))","v":" - "},{"$f":"IF(Tabelle_Statistik[[#This Row],[Teilnahme]]=\"ja\",RANK(Tabelle_Statistik[[#This Row],[Punkte]],[Punkte],0),IF(Tabelle_Statistik[[#This Row],[Autor(in)]]<>\"\",\" - \",\"\"))","v":" - "},{"$f":"IF(Tabelle_Statistik[[#This Row],[Autor(in)]]<>\"\",IF(COUNTIF(Tabelle_Auswertung[Autor(in)],Tabelle_Statistik[[#This Row],[Autor(in)]])>0,\"ja\",\"nein\"),\"\")","v":"nein"},{"$f":"IF(Tabelle_Statistik[[#This Row],[Platz]]=1,Tabelle_Statistik[[#This Row],[Autor(in)]],\"\")","v":""},{"$f":"IF(Tabelle_Statistik[[#This Row],[Platz]]=2,Tabelle_Statistik[[#This Row],[Autor(in)]],\"\")","v":""},{"$f":"IF(Tabelle_Statistik[[#This Row],[Platz]]=3,Tabelle_Statistik[[#This Row],[Autor(in)]],\"\")","v":""},{"$f":"IF(Tabelle_Statistik[[#This Row],[Platz]]<11,Tabelle_Statistik[[#This Row],[Autor(in)]],\"\")","v":""}]
[{"$f":"IF(AND(Fotografen!$A4<>\"\",Fotografen!$A4<>\" - - -\"),Fotografen!$A4,\"\")","v":"Alexander Häberlein"},{"$f":"IF(Tabelle_Statistik[[#This Row],[Teilnahme]]=\"ja\",SUMIF(Tabelle_Auswertung[Autor(in)],Tabelle_Statistik[[#This Row],[Autor(in)]],Tabelle_Auswertung[Punkte]),IF(Tabelle_Statistik[[#This Row],[Autor(in)]]<>\"\",\" - \",\"\"))","v":" - "},{"$f":"IF(Tabelle_Statistik[[#This Row],[Teilnahme]]=\"ja\",RANK(Tabelle_Statistik[[#This Row],[Punkte]],[Punkte],0),IF(Tabelle_Statistik[[#This Row],[Autor(in)]]<>\"\",\" - \",\"\"))","v":" - "},{"$f":"IF(Tabelle_Statistik[[#This Row],[Autor(in)]]<>\"\",IF(COUNTIF(Tabelle_Auswertung[Autor(in)],Tabelle_Statistik[[#This Row],[Autor(in)]])>0,\"ja\",\"nein\"),\"\")","v":"nein"},{"$f":"IF(Tabelle_Statistik[[#This Row],[Platz]]=1,Tabelle_Statistik[[#This Row],[Autor(in)]],\"\")","v":""},{"$f":"IF(Tabelle_Statistik[[#This Row],[Platz]]=2,Tabelle_Statistik[[#This Row],[Autor(in)]],\"\")","v":""},{"$f":"IF(Tabelle_Statistik[[#This Row],[Platz]]=3,Tabelle_Statistik[[#This Row],[Autor(in)]],\"\")","v":""},{"$f":"IF(Tabelle_Statistik[[#This Row],[Platz]]<11,Tabelle_Statistik[[#This Row],[Autor(in)]],\"\")","v":""}]
[{"$f":"IF(AND(Fotografen!$A7<>\"\",Fotografen!$A7<>\" - - -\"),Fotografen!$A7,\"\")","v":"Bernd Kober"},{"$f":"IF(Tabelle_Statistik[[#This Row],[Teilnahme]]=\"ja\",SUMIF(Tabelle_Auswertung[Autor(in)],Tabelle_Statistik[[#This Row],[Autor(in)]],Tabelle_Auswertung[Punkte]),IF(Tabelle_Statistik[[#This Row],[Autor(in)]]<>\"\",\" - \",\"\"))","v":" - "},{"$f":"IF(Tabelle_Statistik[[#This Row],[Teilnahme]]=\"ja\",RANK(Tabelle_Statistik[[#This Row],[Punkte]],[Punkte],0),IF(Tabelle_Statistik[[#This Row],[Autor(in)]]<>\"\",\" - \",\"\"))","v":" - "},{"$f":"IF(Tabelle_Statistik[[#This Row],[Autor(in)]]<>\"\",IF(COUNTIF(Tabelle_Auswertung[Autor(in)],Tabelle_Statistik[[#This Row],[Autor(in)]])>0,\"ja\",\"nein\"),\"\")","v":"nein"},{"$f":"IF(Tabelle_Statistik[[#This Row],[Platz]]=1,Tabelle_Statistik[[#This Row],[Autor(in)]],\"\")","v":""},{"$f":"IF(Tabelle_Statistik[[#This Row],[Platz]]=2,Tabelle_Statistik[[#This Row],[Autor(in)]],\"\")","v":""},{"$f":"IF(Tabelle_Statistik[[#This Row],[Platz]]=3,Tabelle_Statistik[[#This Row],[Autor(in)]],\"\")","v":""},{"$f":"IF(Tabelle_Statistik[[#This Row],[Platz]]<11,Tabelle_Statistik[[#This Row],[Autor(in)]],\"\")","v":""}]
[{"$f":"IF(AND(Fotografen!$A9<>\"\",Fotografen!$A9<>\" - - -\"),Fotografen!$A9,\"\")","v":"Claudia Dommel"},{"$f":"IF(Tabelle_Statistik[[#This Row],[Teilnahme]]=\"ja\",SUMIF(Tabelle_Auswertung[Autor(in)],Tabelle_Statistik[[#This Row],[Autor(in)]],Tabelle_Auswertung[Punkte]),IF(Tabelle_Statistik[[#This Row],[Autor(in)]]<>\"\",\" - \",\"\"))","v":" - "},{"$f":"IF(Tabelle_Statistik[[#This Row],[Teilnahme]]=\"ja\",RANK(Tabelle_Statistik[[#This Row],[Punkte]],[Punkte],0),IF(Tabelle_Statistik[[#This Row],[Autor(in)]]<>\"\",\" - \",\"\"))","v":" - "},{"$f":"IF(Tabelle_Statistik[[#This Row],[Autor(in)]]<>\"\",IF(COUNTIF(Tabelle_Auswertung[Autor(in)],Tabelle_Statistik[[#This Row],[Autor(in)]])>0,\"ja\",\"nein\"),\"\")","v":"nein"},{"$f":"IF(Tabelle_Statistik[[#This Row],[Platz]]=1,Tabelle_Statistik[[#This Row],[Autor(in)]],\"\")","v":""},{"$f":"IF(Tabelle_Statistik[[#This Row],[Platz]]=2,Tabelle_Statistik[[#This Row],[Autor(in)]],\"\")","v":""},{"$f":"IF(Tabelle_Statistik[[#This Row],[Platz]]=3,Tabelle_Statistik[[#This Row],[Autor(in)]],\"\")","v":""},{"$f":"IF(Tabelle_Statistik[[#This Row],[Platz]]<11,Tabelle_Statistik[[#This Row],[Autor(in)]],\"\")","v":""}]
[{"$f":"IF(AND(Fotografen!$A10<>\"\",Fotografen!$A10<>\" - - -\"),Fotografen!$A10,\"\")","v":"Georg Held"},{"$f":"IF(Tabelle_Statistik[[#This Row],[Teilnahme]]=\"ja\",SUMIF(Tabelle_Auswertung[Autor(in)],Tabelle_Statistik[[#This Row],[Autor(in)]],Tabelle_Auswertung[Punkte]),IF(Tabelle_Statistik[[#This Row],[Autor(in)]]<>\"\",\" - \",\"\"))","v":" - "},{"$f":"IF(Tabelle_Statistik[[#This Row],[Teilnahme]]=\"ja\",RANK(Tabelle_Statistik[[#This Row],[Punkte]],[Punkte],0),IF(Tabelle_Statistik[[#This Row],[Autor(in)]]<>\"\",\" - \",\"\"))","v":" - "},{"$f":"IF(Tabelle_Statistik[[#This Row],[Autor(in)]]<>\"\",IF(COUNTIF(Tabelle_Auswertung[Autor(in)],Tabelle_Statistik[[#This Row],[Autor(in)]])>0,\"ja\",\"nein\"),\"\")","v":"nein"},{"$f":"IF(Tabelle_Statistik[[#This Row],[Platz]]=1,Tabelle_Statistik[[#This Row],[Autor(in)]],\"\")","v":""},{"$f":"IF(Tabelle_Statistik[[#This Row],[Platz]]=2,Tabelle_Statistik[[#This Row],[Autor(in)]],\"\")","v":""},{"$f":"IF(Tabelle_Statistik[[#This Row],[Platz]]=3,Tabelle_Statistik[[#This Row],[Autor(in)]],\"\")","v":""},{"$f":"IF(Tabelle_Statistik[[#This Row],[Platz]]<11,Tabelle_Statistik[[#This Row],[Autor(in)]],\"\")","v":""}]
[{"$f":"IF(AND(Fotografen!$A11<>\"\",Fotografen!$A11<>\" - - -\"),Fotografen!$A11,\"\")","v":"Georg Lindörfer"},{"$f":"IF(Tabelle_Statistik[[#This Row],[Teilnahme]]=\"ja\",SUMIF(Tabelle_Auswertung[Autor(in)],Tabelle_Statistik[[#This Row],[Autor(in)]],Tabelle_Auswertung[Punkte]),IF(Tabelle_Statistik[[#This Row],[Autor(in)]]<>\"\",\" - \",\"\"))","v":" - "},{"$f":"IF(Tabelle_Statistik[[#This Row],[Teilnahme]]=\"ja\",RANK(Tabelle_Statistik[[#This Row],[Punkte]],[Punkte],0),IF(Tabelle_Statistik[[#This Row],[Autor(in)]]<>\"\",\" - \",\"\"))","v":" - "},{"$f":"IF(Tabelle_Statistik[[#This Row],[Autor(in)]]<>\"\",IF(COUNTIF(Tabelle_Auswertung[Autor(in)],Tabelle_Statistik[[#This Row],[Autor(in)]])>0,\"ja\",\"nein\"),\"\")","v":"nein"},{"$f":"IF(Tabelle_Statistik[[#This Row],[Platz]]=1,Tabelle_Statistik[[#This Row],[Autor(in)]],\"\")","v":""},{"$f":"IF(Tabelle_Statistik[[#This Row],[Platz]]=2,Tabelle_Statistik[[#This Row],[Autor(in)]],\"\")","v":""},{"$f":"IF(Tabelle_Statistik[[#This Row],[Platz]]=3,Tabelle_Statistik[[#This Row],[Autor(in)]],\"\")","v":""},{"$f":"IF(Tabelle_Statistik[[#This Row],[Platz]]<11,Tabelle_Statistik[[#This Row],[Autor(in)]],\"\")","v":""}]
[{"$f":"IF(AND(Fotografen!$A13<>\"\",Fotografen!$A13<>\" - - -\"),Fotografen!$A13,\"\")","v":"Gert Häberlein"},{"$f":"IF(Tabelle_Statistik[[#This Row],[Teilnahme]]=\"ja\",SUMIF(Tabelle_Auswertung[Autor(in)],Tabelle_Statistik[[#This Row],[Autor(in)]],Tabelle_Auswertung[Punkte]),IF(Tabelle_Statistik[[#This Row],[Autor(in)]]<>\"\",\" - \",\"\"))","v":" - "},{"$f":"IF(Tabelle_Statistik[[#This Row],[Teilnahme]]=\"ja\",RANK(Tabelle_Statistik[[#This Row],[Punkte]],[Punkte],0),IF(Tabelle_Statistik[[#This Row],[Autor(in)]]<>\"\",\" - \",\"\"))","v":" - "},{"$f":"IF(Tabelle_Statistik[[#This Row],[Autor(in)]]<>\"\",IF(COUNTIF(Tabelle_Auswertung[Autor(in)],Tabelle_Statistik[[#This Row],[Autor(in)]])>0,\"ja\",\"nein\"),\"\")","v":"nein"},{"$f":"IF(Tabelle_Statistik[[#This Row],[Platz]]=1,Tabelle_Statistik[[#This Row],[Autor(in)]],\"\")","v":""},{"$f":"IF(Tabelle_Statistik[[#This Row],[Platz]]=2,Tabelle_Statistik[[#This Row],[Autor(in)]],\"\")","v":""},{"$f":"IF(Tabelle_Statistik[[#This Row],[Platz]]=3,Tabelle_Statistik[[#This Row],[Autor(in)]],\"\")","v":""},{"$f":"IF(Tabelle_Statistik[[#This Row],[Platz]]<11,Tabelle_Statistik[[#This Row],[Autor(in)]],\"\")","v":""}]
[{"$f":"IF(AND(Fotografen!$A14<>\"\",Fotografen!$A14<>\" - - -\"),Fotografen!$A14,\"\")","v":"Günter Buckl"},{"$f":"IF(Tabelle_Statistik[[#This Row],[Teilnahme]]=\"ja\",SUMIF(Tabelle_Auswertung[Autor(in)],Tabelle_Statistik[[#This Row],[Autor(in)]],Tabelle_Auswertung[Punkte]),IF(Tabelle_Statistik[[#This Row],[Autor(in)]]<>\"\",\" - \",\"\"))","v":" - "},{"$f":"IF(Tabelle_Statistik[[#This Row],[Teilnahme]]=\"ja\",RANK(Tabelle_Statistik[[#This Row],[Punkte]],[Punkte],0),IF(Tabelle_Statistik[[#This Row],[Autor(in)]]<>\"\",\" - \",\"\"))","v":" - "},{"$f":"IF(Tabelle_Statistik[[#This Row],[Autor(in)]]<>\"\",IF(COUNTIF(Tabelle_Auswertung[Autor(in)],Tabelle_Statistik[[#This Row],[Autor(in)]])>0,\"ja\",\"nein\"),\"\")","v":"nein"},{"$f":"IF(Tabelle_Statistik[[#This Row],[Platz]]=1,Tabelle_Statistik[[#This Row],[Autor(in)]],\"\")","v":""},{"$f":"IF(Tabelle_Statistik[[#This Row],[Platz]]=2,Tabelle_Statistik[[#This Row],[Autor(in)]],\"\")","v":""},{"$f":"IF(Tabelle_Statistik[[#This Row],[Platz]]=3,Tabelle_Statistik[[#This Row],[Autor(in)]],\"\")","v":""},{"$f":"IF(Tabelle_Statistik[[#This Row],[Platz]]<11,Tabelle_Statistik[[#This Row],[Autor(in)]],\"\")","v":""}]
[{"$f":"IF(AND(Fotografen!$A15<>\"\",Fotografen!$A15<>\" - - -\"),Fotografen!$A15,\"\")","v":"Günter Wieser"},{"$f":"IF(Tabelle_Statistik[[#This Row],[Teilnahme]]=\"ja\",SUMIF(Tabelle_Auswertung[Autor(in)],Tabelle_Statistik[[#This Row],[Autor(in)]],Tabelle_Auswertung[Punkte]),IF(Tabelle_Statistik[[#This Row],[Autor(in)]]<>\"\",\" - \",\"\"))","v":" - "},{"$f":"IF(Tabelle_Statistik[[#This Row],[Teilnahme]]=\"ja\",RANK(Tabelle_Statistik[[#This Row],[Punkte]],[Punkte],0),IF(Tabelle_Statistik[[#This Row],[Autor(in)]]<>\"\",\" - \",\"\"))","v":" - "},{"$f":"IF(Tabelle_Statistik[[#This Row],[Autor(in)]]<>\"\",IF(COUNTIF(Tabelle_Auswertung[Autor(in)],Tabelle_Statistik[[#This Row],[Autor(in)]])>0,\"ja\",\"nein\"),\"\")","v":"nein"},{"$f":"IF(Tabelle_Statistik[[#This Row],[Platz]]=1,Tabelle_Statistik[[#This Row],[Autor(in)]],\"\")","v":""},{"$f":"IF(Tabelle_Statistik[[#This Row],[Platz]]=2,Tabelle_Statistik[[#This Row],[Autor(in)]],\"\")","v":""},{"$f":"IF(Tabelle_Statistik[[#This Row],[Platz]]=3,Tabelle_Statistik[[#This Row],[Autor(in)]],\"\")","v":""},{"$f":"IF(Tabelle_Statistik[[#This Row],[Platz]]<11,Tabelle_Statistik[[#This Row],[Autor(in)]],\"\")","v":""}]
[{"$f":"IF(AND(Fotografen!$A16<>\"\",Fotografen!$A16<>\" - - -\"),Fotografen!$A16,\"\")","v":"Günther Arold"},{"$f":"IF(Tabelle_Statistik[[#This Row],[Teilnahme]]=\"ja\",SUMIF(Tabelle_Auswertung[Autor(in)],Tabelle_Statistik[[#This Row],[Autor(in)]],Tabelle_Auswertung[Punkte]),IF(Tabelle_Statistik[[#This Row],[Autor(in)]]<>\"\",\" - \",\"\"))","v":" - "},{"$f":"IF(Tabelle_Statistik[[#This Row],[Teilnahme]]=\"ja\",RANK(Tabelle_Statistik[[#This Row],[Punkte]],[Punkte],0),IF(Tabelle_Statistik[[#This Row],[Autor(in)]]<>\"\",\" - \",\"\"))","v":" - "},{"$f":"IF(Tabelle_Statistik[[#This Row],[Autor(in)]]<>\"\",IF(COUNTIF(Tabelle_Auswertung[Autor(in)],Tabelle_Statistik[[#This Row],[Autor(in)]])>0,\"ja\",\"nein\"),\"\")","v":"nein"},{"$f":"IF(Tabelle_Statistik[[#This Row],[Platz]]=1,Tabelle_Statistik[[#This Row],[Autor(in)]],\"\")","v":""},{"$f":"IF(Tabelle_Statistik[[#This Row],[Platz]]=2,Tabelle_Statistik[[#This Row],[Autor(in)]],\"\")","v":""},{"$f":"IF(Tabelle_Statistik[[#This Row],[Platz]]=3,Tabelle_Statistik[[#This Row],[Autor(in)]],\"\")","v":""},{"$f":"IF(Tabelle_Statistik[[#This Row],[Platz]]<11,Tabelle_Statistik[[#This Row],[Autor(in)]],\"\")","v":""}]
[{"$f":"IF(AND(Fotografen!$A18<>\"\",Fotografen!$A18<>\" - - -\"),Fotografen!$A18,\"\")","v":"Jürgen Abt"},{"$f":"IF(Tabelle_Statistik[[#This Row],[Teilnahme]]=\"ja\",SUMIF(Tabelle_Auswertung[Autor(in)],Tabelle_Statistik[[#This Row],[Autor(in)]],Tabelle_Auswertung[Punkte]),IF(Tabelle_Statistik[[#This Row],[Autor(in)]]<>\"\",\" - \",\"\"))","v":" - "},{"$f":"IF(Tabelle_Statistik[[#This Row],[Teilnahme]]=\"ja\",RANK(Tabelle_Statistik[[#This Row],[Punkte]],[Punkte],0),IF(Tabelle_Statistik[[#This Row],[Autor(in)]]<>\"\",\" - \",\"\"))","v":" - "},{"$f":"IF(Tabelle_Statistik[[#This Row],[Autor(in)]]<>\"\",IF(COUNTIF(Tabelle_Auswertung[Autor(in)],Tabelle_Statistik[[#This Row],[Autor(in)]])>0,\"ja\",\"nein\"),\"\")","v":"nein"},{"$f":"IF(Tabelle_Statistik[[#This Row],[Platz]]=1,Tabelle_Statistik[[#This Row],[Autor(in)]],\"\")","v":""},{"$f":"IF(Tabelle_Statistik[[#This Row],[Platz]]=2,Tabelle_Statistik[[#This Row],[Autor(in)]],\"\")","v":""},{"$f":"IF(Tabelle_Statistik[[#This Row],[Platz]]=3,Tabelle_Statistik[[#This Row],[Autor(in)]],\"\")","v":""},{"$f":"IF(Tabelle_Statistik[[#This Row],[Platz]]<11,Tabelle_Statistik[[#This Row],[Autor(in)]],\"\")","v":""}]
[{"$f":"IF(AND(Fotografen!$A19<>\"\",Fotografen!$A19<>\" - - -\"),Fotografen!$A19,\"\")","v":"Klaus Leitloff"},{"$f":"IF(Tabelle_Statistik[[#This Row],[Teilnahme]]=\"ja\",SUMIF(Tabelle_Auswertung[Autor(in)],Tabelle_Statistik[[#This Row],[Autor(in)]],Tabelle_Auswertung[Punkte]),IF(Tabelle_Statistik[[#This Row],[Autor(in)]]<>\"\",\" - \",\"\"))","v":" - "},{"$f":"IF(Tabelle_Statistik[[#This Row],[Teilnahme]]=\"ja\",RANK(Tabelle_Statistik[[#This Row],[Punkte]],[Punkte],0),IF(Tabelle_Statistik[[#This Row],[Autor(in)]]<>\"\",\" - \",\"\"))","v":" - "},{"$f":"IF(Tabelle_Statistik[[#This Row],[Autor(in)]]<>\"\",IF(COUNTIF(Tabelle_Auswertung[Autor(in)],Tabelle_Statistik[[#This Row],[Autor(in)]])>0,\"ja\",\"nein\"),\"\")","v":"nein"},{"$f":"IF(Tabelle_Statistik[[#This Row],[Platz]]=1,Tabelle_Statistik[[#This Row],[Autor(in)]],\"\")","v":""},{"$f":"IF(Tabelle_Statistik[[#This Row],[Platz]]=2,Tabelle_Statistik[[#This Row],[Autor(in)]],\"\")","v":""},{"$f":"IF(Tabelle_Statistik[[#This Row],[Platz]]=3,Tabelle_Statistik[[#This Row],[Autor(in)]],\"\")","v":""},{"$f":"IF(Tabelle_Statistik[[#This Row],[Platz]]<11,Tabelle_Statistik[[#This Row],[Autor(in)]],\"\")","v":""}]
[{"$f":"IF(AND(Fotografen!$A20<>\"\",Fotografen!$A20<>\" - - -\"),Fotografen!$A20,\"\")","v":"Klaus Lindörfer"},{"$f":"IF(Tabelle_Statistik[[#This Row],[Teilnahme]]=\"ja\",SUMIF(Tabelle_Auswertung[Autor(in)],Tabelle_Statistik[[#This Row],[Autor(in)]],Tabelle_Auswertung[Punkte]),IF(Tabelle_Statistik[[#This Row],[Autor(in)]]<>\"\",\" - \",\"\"))","v":" - "},{"$f":"IF(Tabelle_Statistik[[#This Row],[Teilnahme]]=\"ja\",RANK(Tabelle_Statistik[[#This Row],[Punkte]],[Punkte],0),IF(Tabelle_Statistik[[#This Row],[Autor(in)]]<>\"\",\" - \",\"\"))","v":" - "},{"$f":"IF(Tabelle_Statistik[[#This Row],[Autor(in)]]<>\"\",IF(COUNTIF(Tabelle_Auswertung[Autor(in)],Tabelle_Statistik[[#This Row],[Autor(in)]])>0,\"ja\",\"nein\"),\"\")","v":"nein"},{"$f":"IF(Tabelle_Statistik[[#This Row],[Platz]]=1,Tabelle_Statistik[[#This Row],[Autor(in)]],\"\")","v":""},{"$f":"IF(Tabelle_Statistik[[#This Row],[Platz]]=2,Tabelle_Statistik[[#This Row],[Autor(in)]],\"\")","v":""},{"$f":"IF(Tabelle_Statistik[[#This Row],[Platz]]=3,Tabelle_Statistik[[#This Row],[Autor(in)]],\"\")","v":""},{"$f":"IF(Tabelle_Statistik[[#This Row],[Platz]]<11,Tabelle_Statistik[[#This Row],[Autor(in)]],\"\")","v":""}]
[{"$f":"IF(AND(Fotografen!$A21<>\"\",Fotografen!$A21<>\" - - -\"),Fotografen!$A21,\"\")","v":"Manfred Schwab"},{"$f":"IF(Tabelle_Statistik[[#This Row],[Teilnahme]]=\"ja\",SUMIF(Tabelle_Auswertung[Autor(in)],Tabelle_Statistik[[#This Row],[Autor(in)]],Tabelle_Auswertung[Punkte]),IF(Tabelle_Statistik[[#This Row],[Autor(in)]]<>\"\",\" - \",\"\"))","v":" - "},{"$f":"IF(Tabelle_Statistik[[#This Row],[Teilnahme]]=\"ja\",RANK(Tabelle_Statistik[[#This Row],[Punkte]],[Punkte],0),IF(Tabelle_Statistik[[#This Row],[Autor(in)]]<>\"\",\" - \",\"\"))","v":" - "},{"$f":"IF(Tabelle_Statistik[[#This Row],[Autor(in)]]<>\"\",IF(COUNTIF(Tabelle_Auswertung[Autor(in)],Tabelle_Statistik[[#This Row],[Autor(in)]])>0,\"ja\",\"nein\"),\"\")","v":"nein"},{"$f":"IF(Tabelle_Statistik[[#This Row],[Platz]]=1,Tabelle_Statistik[[#This Row],[Autor(in)]],\"\")","v":""},{"$f":"IF(Tabelle_Statistik[[#This Row],[Platz]]=2,Tabelle_Statistik[[#This Row],[Autor(in)]],\"\")","v":""},{"$f":"IF(Tabelle_Statistik[[#This Row],[Platz]]=3,Tabelle_Statistik[[#This Row],[Autor(in)]],\"\")","v":""},{"$f":"IF(Tabelle_Statistik[[#This Row],[Platz]]<11,Tabelle_Statistik[[#This Row],[Autor(in)]],\"\")","v":""}]
[{"$f":"IF(AND(Fotografen!$A22<>\"\",Fotografen!$A22<>\" - - -\"),Fotografen!$A22,\"\")","v":"Manfred Wenz"},{"$f":"IF(Tabelle_Statistik[[#This Row],[Teilnahme]]=\"ja\",SUMIF(Tabelle_Auswertung[Autor(in)],Tabelle_Statistik[[#This Row],[Autor(in)]],Tabelle_Auswertung[Punkte]),IF(Tabelle_Statistik[[#This Row],[Autor(in)]]<>\"\",\" - \",\"\"))","v":" - "},{"$f":"IF(Tabelle_Statistik[[#This Row],[Teilnahme]]=\"ja\",RANK(Tabelle_Statistik[[#This Row],[Punkte]],[Punkte],0),IF(Tabelle_Statistik[[#This Row],[Autor(in)]]<>\"\",\" - \",\"\"))","v":" - "},{"$f":"IF(Tabelle_Statistik[[#This Row],[Autor(in)]]<>\"\",IF(COUNTIF(Tabelle_Auswertung[Autor(in)],Tabelle_Statistik[[#This Row],[Autor(in)]])>0,\"ja\",\"nein\"),\"\")","v":"nein"},{"$f":"IF(Tabelle_Statistik[[#This Row],[Platz]]=1,Tabelle_Statistik[[#This Row],[Autor(in)]],\"\")","v":""},{"$f":"IF(Tabelle_Statistik[[#This Row],[Platz]]=2,Tabelle_Statistik[[#This Row],[Autor(in)]],\"\")","v":""},{"$f":"IF(Tabelle_Statistik[[#This Row],[Platz]]=3,Tabelle_Statistik[[#This Row],[Autor(in)]],\"\")","v":""},{"$f":"IF(Tabelle_Statistik[[#This Row],[Platz]]<11,Tabelle_Statistik[[#This Row],[Autor(in)]],\"\")","v":""}]
[{"$f":"IF(AND(Fotografen!$A23<>\"\",Fotografen!$A23<>\" - - -\"),Fotografen!$A23,\"\")","v":"Nadja Cassim"},{"$f":"IF(Tabelle_Statistik[[#This Row],[Teilnahme]]=\"ja\",SUMIF(Tabelle_Auswertung[Autor(in)],Tabelle_Statistik[[#This Row],[Autor(in)]],Tabelle_Auswertung[Punkte]),IF(Tabelle_Statistik[[#This Row],[Autor(in)]]<>\"\",\" - \",\"\"))","v":" - "},{"$f":"IF(Tabelle_Statistik[[#This Row],[Teilnahme]]=\"ja\",RANK(Tabelle_Statistik[[#This Row],[Punkte]],[Punkte],0),IF(Tabelle_Statistik[[#This Row],[Autor(in)]]<>\"\",\" - \",\"\"))","v":" - "},{"$f":"IF(Tabelle_Statistik[[#This Row],[Autor(in)]]<>\"\",IF(COUNTIF(Tabelle_Auswertung[Autor(in)],Tabelle_Statistik[[#This Row],[Autor(in)]])>0,\"ja\",\"nein\"),\"\")","v":"nein"},{"$f":"IF(Tabelle_Statistik[[#This Row],[Platz]]=1,Tabelle_Statistik[[#This Row],[Autor(in)]],\"\")","v":""},{"$f":"IF(Tabelle_Statistik[[#This Row],[Platz]]=2,Tabelle_Statistik[[#This Row],[Autor(in)]],\"\")","v":""},{"$f":"IF(Tabelle_Statistik[[#This Row],[Platz]]=3,Tabelle_Statistik[[#This Row],[Autor(in)]],\"\")","v":""},{"$f":"IF(Tabelle_Statistik[[#This Row],[Platz]]<11,Tabelle_Statistik[[#This Row],[Autor(in)]],\"\")","v":""}]
[{"$f":"IF(AND(Fotografen!$A24<>\"\",Fotografen!$A24<>\" - - -\"),Fotografen!$A24,\"\")","v":"Oliver von Guérard"},{"$f":"IF(Tabelle_Statistik[[#This Row],[Teilnahme]]=\"ja\",SUMIF(Tabelle_Auswertung[Autor(in)],Tabelle_Statistik[[#This Row],[Autor(in)]],Tabelle_Auswertung[Punkte]),IF(Tabelle_Statistik[[#This Row],[Autor(in)]]<>\"\",\" - \",\"\"))","v":" - "},{"$f":"IF(Tabelle_Statistik[[#This Row],[Teilnahme]]=\"ja\",RANK(Tabelle_Statistik[[#This Row],[Punkte]],[Punkte],0),IF(Tabelle_Statistik[[#This Row],[Autor(in)]]<>\"\",\" - \",\"\"))","v":" - "},{"$f":"IF(Tabelle_Statistik[[#This Row],[Autor(in)]]<>\"\",IF(COUNTIF(Tabelle_Auswertung[Autor(in)],Tabelle_Statistik[[#This Row],[Autor(in)]])>0,\"ja\",\"nein\"),\"\")","v":"nein"},{"$f":"IF(Tabelle_Statistik[[#This Row],[Platz]]=1,Tabelle_Statistik[[#This Row],[Autor(in)]],\"\")","v":""},{"$f":"IF(Tabelle_Statistik[[#This Row],[Platz]]=2,Tabelle_Statistik[[#This Row],[Autor(in)]],\"\")","v":""},{"$f":"IF(Tabelle_Statistik[[#This Row],[Platz]]=3,Tabelle_Statistik[[#This Row],[Autor(in)]],\"\")","v":""},{"$f":"IF(Tabelle_Statistik[[#This Row],[Platz]]<11,Tabelle_Statistik[[#This Row],[Autor(in)]],\"\")","v":""}]
[{"$f":"IF(AND(Fotografen!$A26<>\"\",Fotografen!$A26<>\" - - -\"),Fotografen!$A26,\"\")","v":"Peter Höhn"},{"$f":"IF(Tabelle_Statistik[[#This Row],[Teilnahme]]=\"ja\",SUMIF(Tabelle_Auswertung[Autor(in)],Tabelle_Statistik[[#This Row],[Autor(in)]],Tabelle_Auswertung[Punkte]),IF(Tabelle_Statistik[[#This Row],[Autor(in)]]<>\"\",\" - \",\"\"))","v":" - "},{"$f":"IF(Tabelle_Statistik[[#This Row],[Teilnahme]]=\"ja\",RANK(Tabelle_Statistik[[#This Row],[Punkte]],[Punkte],0),IF(Tabelle_Statistik[[#This Row],[Autor(in)]]<>\"\",\" - \",\"\"))","v":" - "},{"$f":"IF(Tabelle_Statistik[[#This Row],[Autor(in)]]<>\"\",IF(COUNTIF(Tabelle_Auswertung[Autor(in)],Tabelle_Statistik[[#This Row],[Autor(in)]])>0,\"ja\",\"nein\"),\"\")","v":"nein"},{"$f":"IF(Tabelle_Statistik[[#This Row],[Platz]]=1,Tabelle_Statistik[[#This Row],[Autor(in)]],\"\")","v":""},{"$f":"IF(Tabelle_Statistik[[#This Row],[Platz]]=2,Tabelle_Statistik[[#This Row],[Autor(in)]],\"\")","v":""},{"$f":"IF(Tabelle_Statistik[[#This Row],[Platz]]=3,Tabelle_Statistik[[#This Row],[Autor(in)]],\"\")","v":""},{"$f":"IF(Tabelle_Statistik[[#This Row],[Platz]]<11,Tabelle_Statistik[[#This Row],[Autor(in)]],\"\")","v":""}]
[{"$f":"IF(AND(Fotografen!$A28<>\"\",Fotografen!$A28<>\" - - -\"),Fotografen!$A28,\"\")","v":"Thomas Fuchs"},{"$f":"IF(Tabelle_Statistik[[#This Row],[Teilnahme]]=\"ja\",SUMIF(Tabelle_Auswertung[Autor(in)],Tabelle_Statistik[[#This Row],[Autor(in)]],Tabelle_Auswertung[Punkte]),IF(Tabelle_Statistik[[#This Row],[Autor(in)]]<>\"\",\" - \",\"\"))","v":" - "},{"$f":"IF(Tabelle_Statistik[[#This Row],[Teilnahme]]=\"ja\",RANK(Tabelle_Statistik[[#This Row],[Punkte]],[Punkte],0),IF(Tabelle_Statistik[[#This Row],[Autor(in)]]<>\"\",\" - \",\"\"))","v":" - "},{"$f":"IF(Tabelle_Statistik[[#This Row],[Autor(in)]]<>\"\",IF(COUNTIF(Tabelle_Auswertung[Autor(in)],Tabelle_Statistik[[#This Row],[Autor(in)]])>0,\"ja\",\"nein\"),\"\")","v":"nein"},{"$f":"IF(Tabelle_Statistik[[#This Row],[Platz]]=1,Tabelle_Statistik[[#This Row],[Autor(in)]],\"\")","v":""},{"$f":"IF(Tabelle_Statistik[[#This Row],[Platz]]=2,Tabelle_Statistik[[#This Row],[Autor(in)]],\"\")","v":""},{"$f":"IF(Tabelle_Statistik[[#This Row],[Platz]]=3,Tabelle_Statistik[[#This Row],[Autor(in)]],\"\")","v":""},{"$f":"IF(Tabelle_Statistik[[#This Row],[Platz]]<11,Tabelle_Statistik[[#This Row],[Autor(in)]],\"\")","v":""}]
[{"$f":"IF(AND(Fotografen!$A30<>\"\",Fotografen!$A30<>\" - - -\"),Fotografen!$A30,\"\")","v":"Wolfgang Brenner"},{"$f":"IF(Tabelle_Statistik[[#This Row],[Teilnahme]]=\"ja\",SUMIF(Tabelle_Auswertung[Autor(in)],Tabelle_Statistik[[#This Row],[Autor(in)]],Tabelle_Auswertung[Punkte]),IF(Tabelle_Statistik[[#This Row],[Autor(in)]]<>\"\",\" - \",\"\"))","v":" - "},{"$f":"IF(Tabelle_Statistik[[#This Row],[Teilnahme]]=\"ja\",RANK(Tabelle_Statistik[[#This Row],[Punkte]],[Punkte],0),IF(Tabelle_Statistik[[#This Row],[Autor(in)]]<>\"\",\" - \",\"\"))","v":" - "},{"$f":"IF(Tabelle_Statistik[[#This Row],[Autor(in)]]<>\"\",IF(COUNTIF(Tabelle_Auswertung[Autor(in)],Tabelle_Statistik[[#This Row],[Autor(in)]])>0,\"ja\",\"nein\"),\"\")","v":"nein"},{"$f":"IF(Tabelle_Statistik[[#This Row],[Platz]]=1,Tabelle_Statistik[[#This Row],[Autor(in)]],\"\")","v":""},{"$f":"IF(Tabelle_Statistik[[#This Row],[Platz]]=2,Tabelle_Statistik[[#This Row],[Autor(in)]],\"\")","v":""},{"$f":"IF(Tabelle_Statistik[[#This Row],[Platz]]=3,Tabelle_Statistik[[#This Row],[Autor(in)]],\"\")","v":""},{"$f":"IF(Tabelle_Statistik[[#This Row],[Platz]]<11,Tabelle_Statistik[[#This Row],[Autor(in)]],\"\")","v":""}]
[{"$f":"IF(AND(Fotografen!$A31<>\"\",Fotografen!$A31<>\" - - -\"),Fotografen!$A31,\"\")","v":"Gast 1"},{"$f":"IF(Tabelle_Statistik[[#This Row],[Teilnahme]]=\"ja\",SUMIF(Tabelle_Auswertung[Autor(in)],Tabelle_Statistik[[#This Row],[Autor(in)]],Tabelle_Auswertung[Punkte]),IF(Tabelle_Statistik[[#This Row],[Autor(in)]]<>\"\",\" - \",\"\"))","v":" - "},{"$f":"IF(Tabelle_Statistik[[#This Row],[Teilnahme]]=\"ja\",RANK(Tabelle_Statistik[[#This Row],[Punkte]],[Punkte],0),IF(Tabelle_Statistik[[#This Row],[Autor(in)]]<>\"\",\" - \",\"\"))","v":" - "},{"$f":"IF(Tabelle_Statistik[[#This Row],[Autor(in)]]<>\"\",IF(COUNTIF(Tabelle_Auswertung[Autor(in)],Tabelle_Statistik[[#This Row],[Autor(in)]])>0,\"ja\",\"nein\"),\"\")","v":"nein"},{"$f":"IF(Tabelle_Statistik[[#This Row],[Platz]]=1,Tabelle_Statistik[[#This Row],[Autor(in)]],\"\")","v":""},{"$f":"IF(Tabelle_Statistik[[#This Row],[Platz]]=2,Tabelle_Statistik[[#This Row],[Autor(in)]],\"\")","v":""},{"$f":"IF(Tabelle_Statistik[[#This Row],[Platz]]=3,Tabelle_Statistik[[#This Row],[Autor(in)]],\"\")","v":""},{"$f":"IF(Tabelle_Statistik[[#This Row],[Platz]]<11,Tabelle_Statistik[[#This Row],[Autor(in)]],\"\")","v":""}]

{"sheet":"Top 10 Bilder","index":2,"n_rows":15,"n_cols":2,"rows_kept":15,"merged":[[0,0,3,1]]}
["TOP 10 Bilder"]
[]
[]
[]
["Platz","Bild(er)"]
[1,{"$f":"VERKETTEN_P1(Tabelle_Auswertung[Platz 1],CHAR(10))","v":"Antje_Finsterer_Notwendigkeit_3.jpg von Antje Finsterer"}]
[2,{"$f":"VERKETTEN_P1(Tabelle_Auswertung[Platz 2],CHAR(10))","v":"Gerhard_Rieß_Notwendigkeit_1.jpg von Gerhard Rieß\nSusanne_Deinhardt_Notwendigkeit_3.jpg von Susanne Deinhardt"}]
[3,{"$f":"VERKETTEN_P1(Tabelle_Auswertung[Platz 3],CHAR(10))","v":""}]
[4,{"$f":"VERKETTEN_P1(Tabelle_Auswertung[Platz 4],CHAR(10))","v":"Antje_Finsterer_Notwendigkeit_1.jpg von Antje Finsterer\nAntje_Finsterer_Notwendigkeit_2.jpg von Antje Finsterer"}]
[5,{"$f":"VERKETTEN_P1(Tabelle_Auswertung[Platz 5],CHAR(10))","v":""}]
[6,{"$f":"VERKETTEN_P1(Tabelle_Auswertung[Platz 6],CHAR(10))","v":"Susanne_Deinhardt_Notwendigkeit_1.jpg von Susanne Deinhardt"}]
[7,{"$f":"VERKETTEN_P1(Tabelle_Auswertung[Platz 6],CHAR(10))","v":"Susanne_Deinhardt_Notwendigkeit_1.jpg von Susanne Deinhardt"}]
[8,{"$f":"VERKETTEN_P1(Tabelle_Auswertung[Platz 8],CHAR(10))","v":""}]
[9,{"$f":"VERKETTEN_P1(Tabelle_Auswertung[Platz 9],CHAR(10))","v":""}]
[10,{"$f":"VERKETTEN_P1(Tabelle_Auswertung[Platz 10],CHAR(10))","v":""}]

{"sheet":"Fotografen","index":3,"n_rows":39,"n_cols":1,"rows_kept":39}
["Autoren"]
[" - - -"]
["Albrecht Flierl"]
["Alexander Häberlein"]
["Andreas Toltz"]
["Antje Finsterer"]
["Bernd Kober"]
["Chris Finsterer"]
["Claudia Dommel"]
["Georg Held"]
["Georg Lindörfer"]
["Gerhard Rieß"]
["Gert Häberlein"]
["Günter Buckl"]
["Günter Wieser"]
["Günther Arold"]
["Jan Grünler"]
["Jürgen Abt"]
["Klaus Leitloff"]
["Klaus Lindörfer"]
["Manfred Schwab"]
["Manfred Wenz"]
["Nadja Cassim"]
["Oliver von Guérard"]
["Patricia Spyra"]
["Peter Höhn"]
["Susanne Deinhardt"]
["Thomas Fuchs"]
["Walter Böse"]
["Wolfgang Brenner"]
["Gast 1"]
["Gast 2"]
["Gast 3"]
["Gast 4"]
["Gast 5"]
["Gast 6"]
["Gast 7"]
["Gast 8"]
["Gast 9"]

{"sheet":"online","index":4,"n_rows":1,"n_cols":14,"rows_kept":1}
["Sortierung","Titel","Spalte1","Spalte2","Spalte3","Spalte4","Punkte","Schnitt","Platz","Fotograf/in",null,"Autor(in)","Punkte","Platz"]